Workbook

Sheet INTRO
B4: AIDE A LA GESTION ET AU SUIVI DE LA COURSE D’ORIENTATION (Guellec - 2011)
B5: (ZONE GEOGRAPHIQUE : CABASSE – MIRAMAS 13)
B7: Remarques : ce fichier devra être sauvegardé sous un nom explicite pour une classe donnée.
B9: POTENTIALITES
B11: q Prise en compte de 2 zones de travail (la zone globale « Cabasse » intégrant une deuxième zone limitée à l’ouest « Le plateau »)
B12: q Gestion d’une classe : prise en compte de groupes constitués ou de chaque élève pour la préparation des séances
B13: q Suivi du niveau d’autonomie atteint pour chaque élève au fil des séances
B14: q Production aléatoire de N° de balises en fonction d’une distance retenue (zone proche, médiane, lointaine, zones combinées…)
B15: q Mise en évidence des doublons (codes) pour chaque élève ou groupe avec possibilité de modification
B16: q Prise en compte de 12 cartes différenciées au niveau du codage des balises pour chaque élève ou groupes
B17: q Ecriture automatique des coupons de contrôle nominatif (ou par groupe) avec choix du nombre de codes inscrits au départ
B18: q Feuille de gestion de séance imprimable avec les codes et solutions pour le suivi des séances
B19: q Feuille de suivi prévue pour un usage sur site avec un ordinateur portable (*)
B20: q Sauvegarde automatisée des feuilles de gestion de séance
B23: (*) Permet un retour formatif automatique (en cas d'erreur comparaison possible sur la carte entre la position du code effectivement trouvé et le code demandé)

Sheet index_classe
F1: CLASSE | G1: 4B | I1: Souhaitez-vous prendre en compte les groupes ? | K1: NON | O1: OUI | P1: =MAX(B3:B38) -> 11
A2: N° | B2: N° GROUPE | C2: Nom_Prenom | D2: NOM CABASSE | E2: NOM PLATEAU | F2: NOM | G2: PRENOM | H2: Niveau d'autonomie (0 à 3) | O2: NON
A3: 1 | B3: 1 | C3: =CONCATENATE(F3," ",G3) -> BENZ Nawel | D3: =IF($F3="","",IF(index_classe!$K$1="OUI",CONCATENATE("Carte N° : ",preparation_cabasse!$D4," - ",preparation_cabasse!$B4),IF(preparation_cabasse!$C$2<>"",CONCATENATE("Carte N° : ",preparation_cabasse!$D4," - ",$F3," ",$G3),CONCATENATE("Carte N° : ",preparation_cabasse!$D4," - ",$F3," ",$G3)))) -> Carte N° : 10 - BENZ Nawel | E3: =IF($F3="","",IF(index_classe!$K$1="OUI",CONCATENATE("Carte N° : ",preparation_plateau!$D4," - ",preparation_plateau!$B4),IF(preparation_plateau!$C$2<>"",CONCATENATE("Carte N° : ",preparation_plateau!$D4," - ",$F3," ",$G3),CONCATENATE("Carte N° : ",preparation_plateau!$D4," - ",$F3," ",$G3)))) -> Carte N° : 1 - BENZ Nawel | F3: BENZ | G3: Nawel | H3: 0 | I3: Tableau des groupes
A4: 2 | B4: 2 | C4: =CONCATENATE(F4," ",G4) -> BERNA Laurine | D4: =IF($F4="","",IF(index_classe!$K$1="OUI",CONCATENATE("Carte N° : ",preparation_cabasse!$D5," - ",preparation_cabasse!$B5),IF(preparation_cabasse!$C$2<>"",CONCATENATE("Carte N° : ",preparation_cabasse!$D5," - ",$F4," ",$G4),CONCATENATE("Carte N° : ",preparation_cabasse!$D5," - ",$F4," ",$G4)))) -> Carte N° : 10 - BERNA Laurine | E4: =IF($F4="","",IF(index_classe!$K$1="OUI",CONCATENATE("Carte N° : ",preparation_plateau!$D5," - ",preparation_plateau!$B5),IF(preparation_plateau!$C$2<>"",CONCATENATE("Carte N° : ",preparation_plateau!$D5," - ",$F4," ",$G4),CONCATENATE("Carte N° : ",preparation_plateau!$D5," - ",$F4," ",$G4)))) -> Carte N° : 2 - BERNA Laurine | F4: BERNA | G4: Laurine | H4: 0 | I4: 1
A5: 3 | B5: 7 | C5: CHEL Sarah | D5: =IF($F5="","",IF(index_classe!$K$1="OUI",CONCATENATE("Carte N° : ",preparation_cabasse!$D6," - ",preparation_cabasse!$B6),IF(preparation_cabasse!$C$2<>"",CONCATENATE("Carte N° : ",preparation_cabasse!$D6," - ",$F5," ",$G5),CONCATENATE("Carte N° : ",preparation_cabasse!$D6," - ",$F5," ",$G5)))) -> Carte N° : 10 - CHEL Sarah | E5: =IF($F5="","",IF(index_classe!$K$1="OUI",CONCATENATE("Carte N° : ",preparation_plateau!$D6," - ",preparation_plateau!$B6),IF(preparation_plateau!$C$2<>"",CONCATENATE("Carte N° : ",preparation_plateau!$D6," - ",$F5," ",$G5),CONCATENATE("Carte N° : ",preparation_plateau!$D6," - ",$F5," ",$G5)))) -> Carte N° : 3 - CHEL Sarah | F5: CHEL | G5: Sarah | H5: 1 | I5: BENZ Nawel
A6: 4 | B6: 8 | C6: CLAUD Maxime | D6: =IF($F6="","",IF(index_classe!$K$1="OUI",CONCATENATE("Carte N° : ",preparation_cabasse!$D7," - ",preparation_cabasse!$B7),IF(preparation_cabasse!$C$2<>"",CONCATENATE("Carte N° : ",preparation_cabasse!$D7," - ",$F6," ",$G6),CONCATENATE("Carte N° : ",preparation_cabasse!$D7," - ",$F6," ",$G6)))) -> Carte N° : 10 - CLAUD Maxime | E6: =IF($F6="","",IF(index_classe!$K$1="OUI",CONCATENATE("Carte N° : ",preparation_plateau!$D7," - ",preparation_plateau!$B7),IF(preparation_plateau!$C$2<>"",CONCATENATE("Carte N° : ",preparation_plateau!$D7," - ",$F6," ",$G6),CONCATENATE("Carte N° : ",preparation_plateau!$D7," - ",$F6," ",$G6)))) -> Carte N° : 4 - CLAUD Maxime | F6: CLAUD | G6: Maxime | H6: 1 | I6: MORET Alice
A7: 5 | B7: 11 | C7: NAISSA Estelle | D7: =IF($F7="","",IF(index_classe!$K$1="OUI",CONCATENATE("Carte N° : ",preparation_cabasse!$D8," - ",preparation_cabasse!$B8),IF(preparation_cabasse!$C$2<>"",CONCATENATE("Carte N° : ",preparation_cabasse!$D8," - ",$F7," ",$G7),CONCATENATE("Carte N° : ",preparation_cabasse!$D8," - ",$F7," ",$G7)))) -> Carte N° : 10 - NAISSA Estelle | E7: =IF($F7="","",IF(index_classe!$K$1="OUI",CONCATENATE("Carte N° : ",preparation_plateau!$D8," - ",preparation_plateau!$B8),IF(preparation_plateau!$C$2<>"",CONCATENATE("Carte N° : ",preparation_plateau!$D8," - ",$F7," ",$G7),CONCATENATE("Carte N° : ",preparation_plateau!$D8," - ",$F7," ",$G7)))) -> Carte N° : 5 - NAISSA Estelle | F7: NAISSA | G7: Estelle | H7: 0 | I7: 2
A8: 6 | B8: 10 | C8: FA Dylan | D8: =IF($F8="","",IF(index_classe!$K$1="OUI",CONCATENATE("Carte N° : ",preparation_cabasse!$D9," - ",preparation_cabasse!$B9),IF(preparation_cabasse!$C$2<>"",CONCATENATE("Carte N° : ",preparation_cabasse!$D9," - ",$F8," ",$G8),CONCATENATE("Carte N° : ",preparation_cabasse!$D9," - ",$F8," ",$G8)))) -> Carte N° : 10 - FA Dylan | E8: =IF($F8="","",IF(index_classe!$K$1="OUI",CONCATENATE("Carte N° : ",preparation_plateau!$D9," - ",preparation_plateau!$B9),IF(preparation_plateau!$C$2<>"",CONCATENATE("Carte N° : ",preparation_plateau!$D9," - ",$F8," ",$G8),CONCATENATE("Carte N° : ",preparation_plateau!$D9," - ",$F8," ",$G8)))) -> Carte N° : 6 - FA Dylan | F8: FA | G8: Dylan | H8: 1 | I8: BERNA Laurine
A9: 7 | B9: 10 | C9: FLEIN Theo | D9: =IF($F9="","",IF(index_classe!$K$1="OUI",CONCATENATE("Carte N° : ",preparation_cabasse!$D10," - ",preparation_cabasse!$B10),IF(preparation_cabasse!$C$2<>"",CONCATENATE("Carte N° : ",preparation_cabasse!$D10," - ",$F9," ",$G9),CONCATENATE("Carte N° : ",preparation_cabasse!$D10," - ",$F9," ",$G9)))) -> Carte N° : 10 - FLEIN Theo | E9: =IF($F9="","",IF(index_classe!$K$1="OUI",CONCATENATE("Carte N° : ",preparation_plateau!$D10," - ",preparation_plateau!$B10),IF(preparation_plateau!$C$2<>"",CONCATENATE("Carte N° : ",preparation_plateau!$D10," - ",$F9," ",$G9),CONCATENATE("Carte N° : ",preparation_plateau!$D10," - ",$F9," ",$G9)))) -> Carte N° : 7 - FLEIN Theo | F9: FLEIN | G9: Theo | H9: 3 | I9: SAL Calvin
A10: 8 | B10: 4 | C10: JEAON Alexis | D10: =IF($F10="","",IF(index_classe!$K$1="OUI",CONCATENATE("Carte N° : ",preparation_cabasse!$D11," - ",preparation_cabasse!$B11),IF(preparation_cabasse!$C$2<>"",CONCATENATE("Carte N° : ",preparation_cabasse!$D11," - ",$F10," ",$G10),CONCATENATE("Carte N° : ",preparation_cabasse!$D11," - ",$F10," ",$G10)))) -> Carte N° : 10 - JEAON Alexis | E10: =IF($F10="","",IF(index_classe!$K$1="OUI",CONCATENATE("Carte N° : ",preparation_plateau!$D11," - ",preparation_plateau!$B11),IF(preparation_plateau!$C$2<>"",CONCATENATE("Carte N° : ",preparation_plateau!$D11," - ",$F10," ",$G10),CONCATENATE("Carte N° : ",preparation_plateau!$D11," - ",$F10," ",$G10)))) -> Carte N° : 8 - JEAON Alexis | F10: JEAON | G10: Alexis | H10: 1 | I10: 3
A11: 9 | B11: 7 | C11: KOLA Alexandre | D11: =IF($F11="","",IF(index_classe!$K$1="OUI",CONCATENATE("Carte N° : ",preparation_cabasse!$D12," - ",preparation_cabasse!$B12),IF(preparation_cabasse!$C$2<>"",CONCATENATE("Carte N° : ",preparation_cabasse!$D12," - ",$F11," ",$G11),CONCATENATE("Carte N° : ",preparation_cabasse!$D12," - ",$F11," ",$G11)))) -> Carte N° : 10 - KOLA Alexandre | E11: =IF($F11="","",IF(index_classe!$K$1="OUI",CONCATENATE("Carte N° : ",preparation_plateau!$D12," - ",preparation_plateau!$B12),IF(preparation_plateau!$C$2<>"",CONCATENATE("Carte N° : ",preparation_plateau!$D12," - ",$F11," ",$G11),CONCATENATE("Carte N° : ",preparation_plateau!$D12," - ",$F11," ",$G11)))) -> Carte N° : 9 - KOLA Alexandre | F11: KOLA | G11: Alexandre | H11: 1 | I11: SIOUI Salah
A12: 10 | B12: 8 | C12: LERHE Melvin | D12: =IF($F12="","",IF(index_classe!$K$1="OUI",CONCATENATE("Carte N° : ",preparation_cabasse!$D13," - ",preparation_cabasse!$B13),IF(preparation_cabasse!$C$2<>"",CONCATENATE("Carte N° : ",preparation_cabasse!$D13," - ",$F12," ",$G12),CONCATENATE("Carte N° : ",preparation_cabasse!$D13," - ",$F12," ",$G12)))) -> Carte N° : 10 - LERHE Melvin | E12: =IF($F12="","",IF(index_classe!$K$1="OUI",CONCATENATE("Carte N° : ",preparation_plateau!$D13," - ",preparation_plateau!$B13),IF(preparation_plateau!$C$2<>"",CONCATENATE("Carte N° : ",preparation_plateau!$D13," - ",$F12," ",$G12),CONCATENATE("Carte N° : ",preparation_plateau!$D13," - ",$F12," ",$G12)))) -> Carte N° : 10 - LERHE Melvin | F12: LERHE | G12: Melvin | H12: 1 | I12: TEJOR Carla
A13: 11 | B13: 6 | C13: LOE Mickael | D13: =IF($F13="","",IF(index_classe!$K$1="OUI",CONCATENATE("Carte N° : ",preparation_cabasse!$D14," - ",preparation_cabasse!$B14),IF(preparation_cabasse!$C$2<>"",CONCATENATE("Carte N° : ",preparation_cabasse!$D14," - ",$F13," ",$G13),CONCATENATE("Carte N° : ",preparation_cabasse!$D14," - ",$F13," ",$G13)))) -> Carte N° : 10 - LOE Mickael | E13: =IF($F13="","",IF(index_classe!$K$1="OUI",CONCATENATE("Carte N° : ",preparation_plateau!$D14," - ",preparation_plateau!$B14),IF(preparation_plateau!$C$2<>"",CONCATENATE("Carte N° : ",preparation_plateau!$D14," - ",$F13," ",$G13),CONCATENATE("Carte N° : ",preparation_plateau!$D14," - ",$F13," ",$G13)))) -> Carte N° : 11 - LOE Mickael | F13: LOE | G13: Mickael | H13: 1 | I13: 4
A14: 12 | B14: 1 | C14: MORET Alice | D14: =IF($F14="","",IF(index_classe!$K$1="OUI",CONCATENATE("Carte N° : ",preparation_cabasse!$D15," - ",preparation_cabasse!$B15),IF(preparation_cabasse!$C$2<>"",CONCATENATE("Carte N° : ",preparation_cabasse!$D15," - ",$F14," ",$G14),CONCATENATE("Carte N° : ",preparation_cabasse!$D15," - ",$F14," ",$G14)))) -> Carte N° : 10 - MORET Alice | E14: =IF($F14="","",IF(index_classe!$K$1="OUI",CONCATENATE("Carte N° : ",preparation_plateau!$D15," - ",preparation_plateau!$B15),IF(preparation_plateau!$C$2<>"",CONCATENATE("Carte N° : ",preparation_plateau!$D15," - ",$F14," ",$G14),CONCATENATE("Carte N° : ",preparation_plateau!$D15," - ",$F14," ",$G14)))) -> Carte N° : 1 - MORET Alice | F14: MORET | G14: Alice | H14: 2 | I14: JEAON Alexis
A15: 13 | B15: 5 | C15: NICAU Romain | D15: =IF($F15="","",IF(index_classe!$K$1="OUI",CONCATENATE("Carte N° : ",preparation_cabasse!$D16," - ",preparation_cabasse!$B16),IF(preparation_cabasse!$C$2<>"",CONCATENATE("Carte N° : ",preparation_cabasse!$D16," - ",$F15," ",$G15),CONCATENATE("Carte N° : ",preparation_cabasse!$D16," - ",$F15," ",$G15)))) -> Carte N° : 10 - NICAU Romain | E15: =IF($F15="","",IF(index_classe!$K$1="OUI",CONCATENATE("Carte N° : ",preparation_plateau!$D16," - ",preparation_plateau!$B16),IF(preparation_plateau!$C$2<>"",CONCATENATE("Carte N° : ",preparation_plateau!$D16," - ",$F15," ",$G15),CONCATENATE("Carte N° : ",preparation_plateau!$D16," - ",$F15," ",$G15)))) -> Carte N° : 2 - NICAU Romain | F15: NICAU | G15: Romain | H15: 1 | I15: RUI Desiderio
A16: 14 | B16: 4 | C16: RUI Desiderio | D16: =IF($F16="","",IF(index_classe!$K$1="OUI",CONCATENATE("Carte N° : ",preparation_cabasse!$D17," - ",preparation_cabasse!$B17),IF(preparation_cabasse!$C$2<>"",CONCATENATE("Carte N° : ",preparation_cabasse!$D17," - ",$F16," ",$G16),CONCATENATE("Carte N° : ",preparation_cabasse!$D17," - ",$F16," ",$G16)))) -> Carte N° : 10 - RUI Desiderio | E16: =IF($F16="","",IF(index_classe!$K$1="OUI",CONCATENATE("Carte N° : ",preparation_plateau!$D17," - ",preparation_plateau!$B17),IF(preparation_plateau!$C$2<>"",CONCATENATE("Carte N° : ",preparation_plateau!$D17," - ",$F16," ",$G16),CONCATENATE("Carte N° : ",preparation_plateau!$D17," - ",$F16," ",$G16)))) -> Carte N° : 3 - RUI Desiderio | F16: RUI | G16: Desiderio | H16: 1 | I16: 5
A17: 15 | B17: 9 | C17: RI Niko | D17: =IF($F17="","",IF(index_classe!$K$1="OUI",CONCATENATE("Carte N° : ",preparation_cabasse!$D18," - ",preparation_cabasse!$B18),IF(preparation_cabasse!$C$2<>"",CONCATENATE("Carte N° : ",preparation_cabasse!$D18," - ",$F17," ",$G17),CONCATENATE("Carte N° : ",preparation_cabasse!$D18," - ",$F17," ",$G17)))) -> Carte N° : 10 - RI Niko | E17: =IF($F17="","",IF(index_classe!$K$1="OUI",CONCATENATE("Carte N° : ",preparation_plateau!$D18," - ",preparation_plateau!$B18),IF(preparation_plateau!$C$2<>"",CONCATENATE("Carte N° : ",preparation_plateau!$D18," - ",$F17," ",$G17),CONCATENATE("Carte N° : ",preparation_plateau!$D18," - ",$F17," ",$G17)))) -> Carte N° : 4 - RI Niko | F17: RI | G17: Niko | H17: 1 | I17: NICAU Romain
A18: 16 | B18: 2 | C18: SAL Calvin | D18: =IF($F18="","",IF(index_classe!$K$1="OUI",CONCATENATE("Carte N° : ",preparation_cabasse!$D19," - ",preparation_cabasse!$B19),IF(preparation_cabasse!$C$2<>"",CONCATENATE("Carte N° : ",preparation_cabasse!$D19," - ",$F18," ",$G18),CONCATENATE("Carte N° : ",preparation_cabasse!$D19," - ",$F18," ",$G18)))) -> Carte N° : 10 - SAL Calvin | E18: =IF($F18="","",IF(index_classe!$K$1="OUI",CONCATENATE("Carte N° : ",preparation_plateau!$D19," - ",preparation_plateau!$B19),IF(preparation_plateau!$C$2<>"",CONCATENATE("Carte N° : ",preparation_plateau!$D19," - ",$F18," ",$G18),CONCATENATE("Carte N° : ",preparation_plateau!$D19," - ",$F18," ",$G18)))) -> Carte N° : 5 - SAL Calvin | F18: SAL | G18: Calvin | H18: 0 | I18: YI William
A19: 17 | B19: 3 | C19: SIOUI Salah | D19: =IF($F19="","",IF(index_classe!$K$1="OUI",CONCATENATE("Carte N° : ",preparation_cabasse!$D20," - ",preparation_cabasse!$B20),IF(preparation_cabasse!$C$2<>"",CONCATENATE("Carte N° : ",preparation_cabasse!$D20," - ",$F19," ",$G19),CONCATENATE("Carte N° : ",preparation_cabasse!$D20," - ",$F19," ",$G19)))) -> Carte N° : 10 - SIOUI Salah | E19: =IF($F19="","",IF(index_classe!$K$1="OUI",CONCATENATE("Carte N° : ",preparation_plateau!$D20," - ",preparation_plateau!$B20),IF(preparation_plateau!$C$2<>"",CONCATENATE("Carte N° : ",preparation_plateau!$D20," - ",$F19," ",$G19),CONCATENATE("Carte N° : ",preparation_plateau!$D20," - ",$F19," ",$G19)))) -> Carte N° : 6 - SIOUI Salah | F19: SIOUI | G19: Salah | H19: 1 | I19: 6
A20: 18 | B20: 11 | C20: TADEVA Khatmat | D20: =IF($F20="","",IF(index_classe!$K$1="OUI",CONCATENATE("Carte N° : ",preparation_cabasse!$D21," - ",preparation_cabasse!$B21),IF(preparation_cabasse!$C$2<>"",CONCATENATE("Carte N° : ",preparation_cabasse!$D21," - ",$F20," ",$G20),CONCATENATE("Carte N° : ",preparation_cabasse!$D21," - ",$F20," ",$G20)))) -> Carte N° : 10 - TADEVA Khatmat | E20: =IF($F20="","",IF(index_classe!$K$1="OUI",CONCATENATE("Carte N° : ",preparation_plateau!$D21," - ",preparation_plateau!$B21),IF(preparation_plateau!$C$2<>"",CONCATENATE("Carte N° : ",preparation_plateau!$D21," - ",$F20," ",$G20),CONCATENATE("Carte N° : ",preparation_plateau!$D21," - ",$F20," ",$G20)))) -> Carte N° : 7 - TADEVA Khatmat | F20: TADEVA | G20: Khatmat | H20: 0 | I20: LOE Mickael
A21: 19 | B21: 6 | C21: TEEC Victor | D21: =IF($F21="","",IF(index_classe!$K$1="OUI",CONCATENATE("Carte N° : ",preparation_cabasse!$D22," - ",preparation_cabasse!$B22),IF(preparation_cabasse!$C$2<>"",CONCATENATE("Carte N° : ",preparation_cabasse!$D22," - ",$F21," ",$G21),CONCATENATE("Carte N° : ",preparation_cabasse!$D22," - ",$F21," ",$G21)))) -> Carte N° : 10 - TEEC Victor | E21: =IF($F21="","",IF(index_classe!$K$1="OUI",CONCATENATE("Carte N° : ",preparation_plateau!$D22," - ",preparation_plateau!$B22),IF(preparation_plateau!$C$2<>"",CONCATENATE("Carte N° : ",preparation_plateau!$D22," - ",$F21," ",$G21),CONCATENATE("Carte N° : ",preparation_plateau!$D22," - ",$F21," ",$G21)))) -> Carte N° : 8 - TEEC Victor | F21: TEEC | G21: Victor | H21: 3 | I21: TEEC Victor
A22: 20 | B22: 3 | C22: TEJOR Carla | D22: =IF($F22="","",IF(index_classe!$K$1="OUI",CONCATENATE("Carte N° : ",preparation_cabasse!$D23," - ",preparation_cabasse!$B23),IF(preparation_cabasse!$C$2<>"",CONCATENATE("Carte N° : ",preparation_cabasse!$D23," - ",$F22," ",$G22),CONCATENATE("Carte N° : ",preparation_cabasse!$D23," - ",$F22," ",$G22)))) -> Carte N° : 10 - TEJOR Carla | E22: =IF($F22="","",IF(index_classe!$K$1="OUI",CONCATENATE("Carte N° : ",preparation_plateau!$D23," - ",preparation_plateau!$B23),IF(preparation_plateau!$C$2<>"",CONCATENATE("Carte N° : ",preparation_plateau!$D23," - ",$F22," ",$G22),CONCATENATE("Carte N° : ",preparation_plateau!$D23," - ",$F22," ",$G22)))) -> Carte N° : 9 - TEJOR Carla | F22: TEJOR | G22: Carla | H22: 0 | I22: 7
A23: 21 | B23: 9 | C23: THIER Andrea | D23: =IF($F23="","",IF(index_classe!$K$1="OUI",CONCATENATE("Carte N° : ",preparation_cabasse!$D24," - ",preparation_cabasse!$B24),IF(preparation_cabasse!$C$2<>"",CONCATENATE("Carte N° : ",preparation_cabasse!$D24," - ",$F23," ",$G23),CONCATENATE("Carte N° : ",preparation_cabasse!$D24," - ",$F23," ",$G23)))) -> Carte N° : 10 - THIER Andrea | E23: =IF($F23="","",IF(index_classe!$K$1="OUI",CONCATENATE("Carte N° : ",preparation_plateau!$D24," - ",preparation_plateau!$B24),IF(preparation_plateau!$C$2<>"",CONCATENATE("Carte N° : ",preparation_plateau!$D24," - ",$F23," ",$G23),CONCATENATE("Carte N° : ",preparation_plateau!$D24," - ",$F23," ",$G23)))) -> Carte N° : 10 - THIER Andrea | F23: THIER | G23: Andrea | H23: 2 | I23: CHEL Sarah
A24: 22 | B24: 5 | C24: YI William | D24: =IF($F24="","",IF(index_classe!$K$1="OUI",CONCATENATE("Carte N° : ",preparation_cabasse!$D25," - ",preparation_cabasse!$B25),IF(preparation_cabasse!$C$2<>"",CONCATENATE("Carte N° : ",preparation_cabasse!$D25," - ",$F24," ",$G24),CONCATENATE("Carte N° : ",preparation_cabasse!$D25," - ",$F24," ",$G24)))) -> Carte N° : 10 - YI William | E24: =IF($F24="","",IF(index_classe!$K$1="OUI",CONCATENATE("Carte N° : ",preparation_plateau!$D25," - ",preparation_plateau!$B25),IF(preparation_plateau!$C$2<>"",CONCATENATE("Carte N° : ",preparation_plateau!$D25," - ",$F24," ",$G24),CONCATENATE("Carte N° : ",preparation_plateau!$D25," - ",$F24," ",$G24)))) -> Carte N° : 12 - YI William | F24: YI | G24: William | H24: 1 | I24: KOLA Alexandre
A25: 23 | D25: =IF($F25="","",IF(index_classe!$K$1="OUI",CONCATENATE("Carte N° : ",preparation_cabasse!$D26," - ",preparation_cabasse!$B26),IF(preparation_cabasse!$C$2<>"",CONCATENATE("Carte N° : ",preparation_cabasse!$D26," - ",$F25," ",$G25),CONCATENATE("Carte N° : ",preparation_cabasse!$D26," - ",$F25," ",$G25)))) ->  | E25: =IF($F25="","",IF(index_classe!$K$1="OUI",CONCATENATE("Carte N° : ",preparation_plateau!$D26," - ",preparation_plateau!$B26),IF(preparation_plateau!$C$2<>"",CONCATENATE("Carte N° : ",preparation_plateau!$D26," - ",$F25," ",$G25),CONCATENATE("Carte N° : ",preparation_plateau!$D26," - ",$F25," ",$G25)))) ->  | I25: 8
A26: 24 | D26: =IF($F26="","",IF(index_classe!$K$1="OUI",CONCATENATE("Carte N° : ",preparation_cabasse!$D27," - ",preparation_cabasse!$B27),IF(preparation_cabasse!$C$2<>"",CONCATENATE("Carte N° : ",preparation_cabasse!$D27," - ",$F26," ",$G26),CONCATENATE("Carte N° : ",preparation_cabasse!$D27," - ",$F26," ",$G26)))) ->  | E26: =IF($F26="","",IF(index_classe!$K$1="OUI",CONCATENATE("Carte N° : ",preparation_plateau!$D27," - ",preparation_plateau!$B27),IF(preparation_plateau!$C$2<>"",CONCATENATE("Carte N° : ",preparation_plateau!$D27," - ",$F26," ",$G26),CONCATENATE("Carte N° : ",preparation_plateau!$D27," - ",$F26," ",$G26)))) ->  | I26: CLAUD Maxime
A27: 25 | D27: =IF($F27="","",IF(index_classe!$K$1="OUI",CONCATENATE("Carte N° : ",preparation_cabasse!$D28," - ",preparation_cabasse!$B28),IF(preparation_cabasse!$C$2<>"",CONCATENATE("Carte N° : ",preparation_cabasse!$D28," - ",$F27," ",$G27),CONCATENATE("Carte N° : ",preparation_cabasse!$D28," - ",$F27," ",$G27)))) ->  | E27: =IF($F27="","",IF(index_classe!$K$1="OUI",CONCATENATE("Carte N° : ",preparation_plateau!$D28," - ",preparation_plateau!$B28),IF(preparation_plateau!$C$2<>"",CONCATENATE("Carte N° : ",preparation_plateau!$D28," - ",$F27," ",$G27),CONCATENATE("Carte N° : ",preparation_plateau!$D28," - ",$F27," ",$G27)))) ->  | I27: LERHE Melvin
A28: 26 | D28: =IF($F28="","",IF(index_classe!$K$1="OUI",CONCATENATE("Carte N° : ",preparation_cabasse!$D29," - ",preparation_cabasse!$B29),IF(preparation_cabasse!$C$2<>"",CONCATENATE("Carte N° : ",preparation_cabasse!$D29," - ",$F28," ",$G28),CONCATENATE("Carte N° : ",preparation_cabasse!$D29," - ",$F28," ",$G28)))) ->  | E28: =IF($F28="","",IF(index_classe!$K$1="OUI",CONCATENATE("Carte N° : ",preparation_plateau!$D29," - ",preparation_plateau!$B29),IF(preparation_plateau!$C$2<>"",CONCATENATE("Carte N° : ",preparation_plateau!$D29," - ",$F28," ",$G28),CONCATENATE("Carte N° : ",preparation_plateau!$D29," - ",$F28," ",$G28)))) ->  | I28: 9
A29: 27 | D29: =IF($F29="","",IF(index_classe!$K$1="OUI",CONCATENATE("Carte N° : ",preparation_cabasse!$D30," - ",preparation_cabasse!$B30),IF(preparation_cabasse!$C$2<>"",CONCATENATE("Carte N° : ",preparation_cabasse!$D30," - ",$F29," ",$G29),CONCATENATE("Carte N° : ",preparation_cabasse!$D30," - ",$F29," ",$G29)))) ->  | E29: =IF($F29="","",IF(index_classe!$K$1="OUI",CONCATENATE("Carte N° : ",preparation_plateau!$D30," - ",preparation_plateau!$B30),IF(preparation_plateau!$C$2<>"",CONCATENATE("Carte N° : ",preparation_plateau!$D30," - ",$F29," ",$G29),CONCATENATE("Carte N° : ",preparation_plateau!$D30," - ",$F29," ",$G29)))) ->  | I29: RI Niko
A30: 28 | D30: =IF($F30="","",IF(index_classe!$K$1="OUI",CONCATENATE("Carte N° : ",preparation_cabasse!$D31," - ",preparation_cabasse!$B31),IF(preparation_cabasse!$C$2<>"",CONCATENATE("Carte N° : ",preparation_cabasse!$D31," - ",$F30," ",$G30),CONCATENATE("Carte N° : ",preparation_cabasse!$D31," - ",$F30," ",$G30)))) ->  | E30: =IF($F30="","",IF(index_classe!$K$1="OUI",CONCATENATE("Carte N° : ",preparation_plateau!$D31," - ",preparation_plateau!$B31),IF(preparation_plateau!$C$2<>"",CONCATENATE("Carte N° : ",preparation_plateau!$D31," - ",$F30," ",$G30),CONCATENATE("Carte N° : ",preparation_plateau!$D31," - ",$F30," ",$G30)))) ->  | I30: THIER Andrea
A31: 29 | D31: =IF($F31="","",IF(index_classe!$K$1="OUI",CONCATENATE("Carte N° : ",preparation_cabasse!$D32," - ",preparation_cabasse!$B32),IF(preparation_cabasse!$C$2<>"",CONCATENATE("Carte N° : ",preparation_cabasse!$D32," - ",$F31," ",$G31),CONCATENATE("Carte N° : ",preparation_cabasse!$D32," - ",$F31," ",$G31)))) ->  | E31: =IF($F31="","",IF(index_classe!$K$1="OUI",CONCATENATE("Carte N° : ",preparation_plateau!$D32," - ",preparation_plateau!$B32),IF(preparation_plateau!$C$2<>"",CONCATENATE("Carte N° : ",preparation_plateau!$D32," - ",$F31," ",$G31),CONCATENATE("Carte N° : ",preparation_plateau!$D32," - ",$F31," ",$G31)))) ->  | I31: 10
A32: 30 | D32: =IF($F32="","",IF(index_classe!$K$1="OUI",CONCATENATE("Carte N° : ",preparation_cabasse!$D33," - ",preparation_cabasse!$B33),IF(preparation_cabasse!$C$2<>"",CONCATENATE("Carte N° : ",preparation_cabasse!$D33," - ",$F32," ",$G32),CONCATENATE("Carte N° : ",preparation_cabasse!$D33," - ",$F32," ",$G32)))) ->  | E32: =IF($F32="","",IF(index_classe!$K$1="OUI",CONCATENATE("Carte N° : ",preparation_plateau!$D33," - ",preparation_plateau!$B33),IF(preparation_plateau!$C$2<>"",CONCATENATE("Carte N° : ",preparation_plateau!$D33," - ",$F32," ",$G32),CONCATENATE("Carte N° : ",preparation_plateau!$D33," - ",$F32," ",$G32)))) ->  | I32: FA Dylan
A33: 31 | D33: =IF($F33="","",IF(index_classe!$K$1="OUI",CONCATENATE("Carte N° : ",preparation_cabasse!$D34," - ",preparation_cabasse!$B34),IF(preparation_cabasse!$C$2<>"",CONCATENATE("Carte N° : ",preparation_cabasse!$D34," - ",$F33," ",$G33),CONCATENATE("Carte N° : ",preparation_cabasse!$D34," - ",$F33," ",$G33)))) ->  | E33: =IF($F33="","",IF(index_classe!$K$1="OUI",CONCATENATE("Carte N° : ",preparation_plateau!$D34," - ",preparation_plateau!$B34),IF(preparation_plateau!$C$2<>"",CONCATENATE("Carte N° : ",preparation_plateau!$D34," - ",$F33," ",$G33),CONCATENATE("Carte N° : ",preparation_plateau!$D34," - ",$F33," ",$G33)))) ->  | I33: FLEIN Theo
A34: 32 | D34: =IF($F34="","",IF(index_classe!$K$1="OUI",CONCATENATE("Carte N° : ",preparation_cabasse!$D35," - ",preparation_cabasse!$B35),IF(preparation_cabasse!$C$2<>"",CONCATENATE("Carte N° : ",preparation_cabasse!$D35," - ",$F34," ",$G34),CONCATENATE("Carte N° : ",preparation_cabasse!$D35," - ",$F34," ",$G34)))) ->  | E34: =IF($F34="","",IF(index_classe!$K$1="OUI",CONCATENATE("Carte N° : ",preparation_plateau!$D35," - ",preparation_plateau!$B35),IF(preparation_plateau!$C$2<>"",CONCATENATE("Carte N° : ",preparation_plateau!$D35," - ",$F34," ",$G34),CONCATENATE("Carte N° : ",preparation_plateau!$D35," - ",$F34," ",$G34)))) ->  | I34: 11
A35: 33 | D35: =IF($F35="","",IF(index_classe!$K$1="OUI",CONCATENATE("Carte N° : ",preparation_cabasse!$D36," - ",preparation_cabasse!$B36),IF(preparation_cabasse!$C$2<>"",CONCATENATE("Carte N° : ",preparation_cabasse!$D36," - ",$F35," ",$G35),CONCATENATE("Carte N° : ",preparation_cabasse!$D36," - ",$F35," ",$G35)))) ->  | E35: =IF($F35="","",IF(index_classe!$K$1="OUI",CONCATENATE("Carte N° : ",preparation_plateau!$D36," - ",preparation_plateau!$B36),IF(preparation_plateau!$C$2<>"",CONCATENATE("Carte N° : ",preparation_plateau!$D36," - ",$F35," ",$G35),CONCATENATE("Carte N° : ",preparation_plateau!$D36," - ",$F35," ",$G35)))) ->  | I35: NAISSA Estelle
A36: 34 | D36: =IF($F36="","",IF(index_classe!$K$1="OUI",CONCATENATE("Carte N° : ",preparation_cabasse!$D37," - ",preparation_cabasse!$B37),IF(preparation_cabasse!$C$2<>"",CONCATENATE("Carte N° : ",preparation_cabasse!$D37," - ",$F36," ",$G36),CONCATENATE("Carte N° : ",preparation_cabasse!$D37," - ",$F36," ",$G36)))) ->  | E36: =IF($F36="","",IF(index_classe!$K$1="OUI",CONCATENATE("Carte N° : ",preparation_plateau!$D37," - ",preparation_plateau!$B37),IF(preparation_plateau!$C$2<>"",CONCATENATE("Carte N° : ",preparation_plateau!$D37," - ",$F36," ",$G36),CONCATENATE("Carte N° : ",preparation_plateau!$D37," - ",$F36," ",$G36)))) ->  | I36: TADEVA Khatmat
A37: 35 | D37: =IF($F37="","",IF(index_classe!$K$1="OUI",CONCATENATE("Carte N° : ",preparation_cabasse!$D38," - ",preparation_cabasse!$B38),IF(preparation_cabasse!$C$2<>"",CONCATENATE("Carte N° : ",preparation_cabasse!$D38," - ",$F37," ",$G37),CONCATENATE("Carte N° : ",preparation_cabasse!$D38," - ",$F37," ",$G37)))) ->  | E37: =IF($F37="","",IF(index_classe!$K$1="OUI",CONCATENATE("Carte N° : ",preparation_plateau!$D38," - ",preparation_plateau!$B38),IF(preparation_plateau!$C$2<>"",CONCATENATE("Carte N° : ",preparation_plateau!$D38," - ",$F37," ",$G37),CONCATENATE("Carte N° : ",preparation_plateau!$D38," - ",$F37," ",$G37)))) ->  | I37: (vide)
A38: 36 | D38: =IF($F38="","",IF(index_classe!$K$1="OUI",CONCATENATE("Carte N° : ",preparation_cabasse!#REF!," - ",preparation_cabasse!#REF!),IF(preparation_cabasse!$C$2<>"",CONCATENATE("Carte N° : ",preparation_cabasse!#REF!," - ",$F38," ",$G38),CONCATENATE("Carte N° : ",preparation_cabasse!#REF!," - ",$F38," ",$G38)))) ->  | E38: =IF($F38="","",IF(index_classe!$K$1="OUI",CONCATENATE("Carte N° : ",preparation_plateau!#REF!," - ",preparation_plateau!#REF!),IF(preparation_plateau!$C$2<>"",CONCATENATE("Carte N° : ",preparation_plateau!#REF!," - ",$F38," ",$G38),CONCATENATE("Carte N° : ",preparation_plateau!#REF!," - ",$F38," ",$G38)))) -> 

Sheet prepa_alea_cabasse
A2: >>>>>>>> Appuyer sur F9 pour générer de nouvelles données
A3: NOM | B3: PRENOM | C3: Index balise 1 | D3: N° balise 1 | E3: Index balise 2 | F3: N° Balise 2 | G3: Index balise 3 | H3: N° Balise 3 | I3: Index balise 4 | J3: N° Balise 4 | K3: Index balise 5 | L3: N° Balise 5 | M3: Index balise 6 | N3: N° Balise 6 | O3: Index balise 7 | P3: N° Balise 7 | Q3: Index balise 8 | R3: N° Balise 8 | S3: Index balise 9 | T3: N° Balise 9 | U3: Index balise 10 | V3: N° Balise 10
A4: =preparation_cabasse!B4 -> BENZ | B4: =preparation_cabasse!C4 -> Nawel | C4: =IF($A4="","",IF($A$40="PROCHES",RANDBETWEEN(1,21),IF($A$40="MEDIANES",RANDBETWEEN(22,44),IF($A$40="LOINTAINES",RANDBETWEEN(45,85),IF($A$40="PROCHES+MEDIANES",RANDBETWEEN(1,44),IF($A$40="MEDIANES+LOINTAINES",RANDBETWEEN(22,85),IF($A$40="TOUTES",RANDBETWEEN(1,85)))))))) -> 79 | D4: =IF(C4="","",VLOOKUP(C4,index_cabasse!$A$5:$O$89,2,FALSE)) -> 76 | E4: =IF($A4="","",IF($A$40="PROCHES",RANDBETWEEN(1,21),IF($A$40="MEDIANES",RANDBETWEEN(22,44),IF($A$40="LOINTAINES",RANDBETWEEN(45,85),IF($A$40="PROCHES+MEDIANES",RANDBETWEEN(1,44),IF($A$40="MEDIANES+LOINTAINES",RANDBETWEEN(22,85),IF($A$40="TOUTES",RANDBETWEEN(1,85)))))))) -> 25 | F4: =IF(E4="","",VLOOKUP(E4,index_cabasse!$A$5:$O$89,2,FALSE)) -> 14 | G4: =IF($A4="","",IF($A$40="PROCHES",RANDBETWEEN(1,21),IF($A$40="MEDIANES",RANDBETWEEN(22,44),IF($A$40="LOINTAINES",RANDBETWEEN(45,85),IF($A$40="PROCHES+MEDIANES",RANDBETWEEN(1,44),IF($A$40="MEDIANES+LOINTAINES",RANDBETWEEN(22,85),IF($A$40="TOUTES",RANDBETWEEN(1,85)))))))) -> 73 | H4: =IF(G4="","",VLOOKUP(G4,index_cabasse!$A$5:$O$89,2,FALSE)) -> 58 | I4: =IF($A4="","",IF($A$40="PROCHES",RANDBETWEEN(1,21),IF($A$40="MEDIANES",RANDBETWEEN(22,44),IF($A$40="LOINTAINES",RANDBETWEEN(45,85),IF($A$40="PROCHES+MEDIANES",RANDBETWEEN(1,44),IF($A$40="MEDIANES+LOINTAINES",RANDBETWEEN(22,85),IF($A$40="TOUTES",RANDBETWEEN(1,85)))))))) -> 62 | J4: =IF(I4="","",VLOOKUP(I4,index_cabasse!$A$5:$O$89,2,FALSE)) -> 41 | K4: =IF($A4="","",IF($A$40="PROCHES",RANDBETWEEN(1,21),IF($A$40="MEDIANES",RANDBETWEEN(22,44),IF($A$40="LOINTAINES",RANDBETWEEN(45,85),IF($A$40="PROCHES+MEDIANES",RANDBETWEEN(1,44),IF($A$40="MEDIANES+LOINTAINES",RANDBETWEEN(22,85),IF($A$40="TOUTES",RANDBETWEEN(1,85)))))))) -> 85 | L4: =IF(K4="","",VLOOKUP(K4,index_cabasse!$A$5:$O$89,2,FALSE)) -> 85 | M4: =IF($A4="","",IF($A$40="PROCHES",RANDBETWEEN(1,21),IF($A$40="MEDIANES",RANDBETWEEN(22,44),IF($A$40="LOINTAINES",RANDBETWEEN(45,85),IF($A$40="PROCHES+MEDIANES",RANDBETWEEN(1,44),IF($A$40="MEDIANES+LOINTAINES",RANDBETWEEN(22,85),IF($A$40="TOUTES",RANDBETWEEN(1,85)))))))) -> 65 | N4: =IF(M4="","",VLOOKUP(M4,index_cabasse!$A$5:$O$89,2,FALSE)) -> 45 | O4: =IF($A4="","",IF($A$40="PROCHES",RANDBETWEEN(1,21),IF($A$40="MEDIANES",RANDBETWEEN(22,44),IF($A$40="LOINTAINES",RANDBETWEEN(45,85),IF($A$40="PROCHES+MEDIANES",RANDBETWEEN(1,44),IF($A$40="MEDIANES+LOINTAINES",RANDBETWEEN(22,85),IF($A$40="TOUTES",RANDBETWEEN(1,85)))))))) -> 82 | P4: =IF(O4="","",VLOOKUP(O4,index_cabasse!$A$5:$O$89,2,FALSE)) -> 79 | Q4: =IF($A4="","",IF($A$40="PROCHES",RANDBETWEEN(1,21),IF($A$40="MEDIANES",RANDBETWEEN(22,44),IF($A$40="LOINTAINES",RANDBETWEEN(45,85),IF($A$40="PROCHES+MEDIANES",RANDBETWEEN(1,44),IF($A$40="MEDIANES+LOINTAINES",RANDBETWEEN(22,85),IF($A$40="TOUTES",RANDBETWEEN(1,85)))))))) -> 58 | R4: =IF(Q4="","",VLOOKUP(Q4,index_cabasse!$A$5:$O$89,2,FALSE)) -> 37 | S4: =IF($A4="","",IF($A$40="PROCHES",RANDBETWEEN(1,21),IF($A$40="MEDIANES",RANDBETWEEN(22,44),IF($A$40="LOINTAINES",RANDBETWEEN(45,85),IF($A$40="PROCHES+MEDIANES",RANDBETWEEN(1,44),IF($A$40="MEDIANES+LOINTAINES",RANDBETWEEN(22,85),IF($A$40="TOUTES",RANDBETWEEN(1,85)))))))) -> 79 | T4: =IF(S4="","",VLOOKUP(S4,index_cabasse!$A$5:$O$89,2,FALSE)) -> 76 | U4: =IF($A4="","",IF($A$40="PROCHES",RANDBETWEEN(1,21),IF($A$40="MEDIANES",RANDBETWEEN(22,44),IF($A$40="LOINTAINES",RANDBETWEEN(45,85),IF($A$40="PROCHES+MEDIANES",RANDBETWEEN(1,44),IF($A$40="MEDIANES+LOINTAINES",RANDBETWEEN(22,85),IF($A$40="TOUTES",RANDBETWEEN(1,85)))))))) -> 46 | V4: =IF(U4="","",VLOOKUP(U4,index_cabasse!$A$5:$O$89,2,FALSE)) -> 5
A5: =preparation_cabasse!B5 -> BERNA | B5: =preparation_cabasse!C5 -> Laurine | C5: =IF($A5="","",IF($A$40="PROCHES",RANDBETWEEN(1,21),IF($A$40="MEDIANES",RANDBETWEEN(22,44),IF($A$40="LOINTAINES",RANDBETWEEN(45,85),IF($A$40="PROCHES+MEDIANES",RANDBETWEEN(1,44),IF($A$40="MEDIANES+LOINTAINES",RANDBETWEEN(22,85),IF($A$40="TOUTES",RANDBETWEEN(1,85)))))))) -> 48 | D5: =IF(C5="","",VLOOKUP(C5,index_cabasse!$A$5:$O$89,2,FALSE)) -> 7 | E5: 1 | F5: =IF(E5="","",VLOOKUP(E5,index_cabasse!$A$5:$O$89,2,FALSE)) -> 16 | G5: 71 | H5: =IF(G5="","",VLOOKUP(G5,index_cabasse!$A$5:$O$89,2,FALSE)) -> 56 | I5: 18 | J5: =IF(I5="","",VLOOKUP(I5,index_cabasse!$A$5:$O$89,2,FALSE)) -> 66 | K5: 13 | L5: =IF(K5="","",VLOOKUP(K5,index_cabasse!$A$5:$O$89,2,FALSE)) -> 28 | M5: 29 | N5: =IF(M5="","",VLOOKUP(M5,index_cabasse!$A$5:$O$89,2,FALSE)) -> 31 | O5: 26 | P5: =IF(O5="","",VLOOKUP(O5,index_cabasse!$A$5:$O$89,2,FALSE)) -> 15 | Q5: 35 | R5: =IF(Q5="","",VLOOKUP(Q5,index_cabasse!$A$5:$O$89,2,FALSE)) -> 49 | S5: =IF($A5="","",IF($A$40="PROCHES",RANDBETWEEN(1,21),IF($A$40="MEDIANES",RANDBETWEEN(22,44),IF($A$40="LOINTAINES",RANDBETWEEN(45,85),IF($A$40="PROCHES+MEDIANES",RANDBETWEEN(1,44),IF($A$40="MEDIANES+LOINTAINES",RANDBETWEEN(22,85),IF($A$40="TOUTES",RANDBETWEEN(1,85)))))))) -> 17 | T5: =IF(S5="","",VLOOKUP(S5,index_cabasse!$A$5:$O$89,2,FALSE)) -> 65 | U5: =IF($A5="","",IF($A$40="PROCHES",RANDBETWEEN(1,21),IF($A$40="MEDIANES",RANDBETWEEN(22,44),IF($A$40="LOINTAINES",RANDBETWEEN(45,85),IF($A$40="PROCHES+MEDIANES",RANDBETWEEN(1,44),IF($A$40="MEDIANES+LOINTAINES",RANDBETWEEN(22,85),IF($A$40="TOUTES",RANDBETWEEN(1,85)))))))) -> 27 | V5: =IF(U5="","",VLOOKUP(U5,index_cabasse!$A$5:$O$89,2,FALSE)) -> 29 | Z5: PROCHES
A6: =preparation_cabasse!B6 -> CHEL | B6: =preparation_cabasse!C6 -> Sarah | C6: 44 | D6: =IF(C6="","",VLOOKUP(C6,index_cabasse!$A$5:$O$89,2,FALSE)) -> 83 | E6: 27 | F6: =IF(E6="","",VLOOKUP(E6,index_cabasse!$A$5:$O$89,2,FALSE)) -> 29 | G6: 64 | H6: =IF(G6="","",VLOOKUP(G6,index_cabasse!$A$5:$O$89,2,FALSE)) -> 43 | I6: 64 | J6: =IF(I6="","",VLOOKUP(I6,index_cabasse!$A$5:$O$89,2,FALSE)) -> 43 | K6: 67 | L6: =IF(K6="","",VLOOKUP(K6,index_cabasse!$A$5:$O$89,2,FALSE)) -> 52 | M6: 51 | N6: =IF(M6="","",VLOOKUP(M6,index_cabasse!$A$5:$O$89,2,FALSE)) -> 10 | O6: 19 | P6: =IF(O6="","",VLOOKUP(O6,index_cabasse!$A$5:$O$89,2,FALSE)) -> 67 | Q6: 6 | R6: =IF(Q6="","",VLOOKUP(Q6,index_cabasse!$A$5:$O$89,2,FALSE)) -> 21 | S6: 72 | T6: =IF(S6="","",VLOOKUP(S6,index_cabasse!$A$5:$O$89,2,FALSE)) -> 57 | U6: 23 | V6: =IF(U6="","",VLOOKUP(U6,index_cabasse!$A$5:$O$89,2,FALSE)) -> 2 | Z6: MEDIANES
A7: =preparation_cabasse!B7 -> CLAUD | B7: =preparation_cabasse!C7 -> Maxime | C7: 5 | D7: =IF(C7="","",VLOOKUP(C7,index_cabasse!$A$5:$O$89,2,FALSE)) -> 20 | E7: 73 | F7: =IF(E7="","",VLOOKUP(E7,index_cabasse!$A$5:$O$89,2,FALSE)) -> 58 | G7: 15 | H7: =IF(G7="","",VLOOKUP(G7,index_cabasse!$A$5:$O$89,2,FALSE)) -> 63 | I7: 67 | J7: =IF(I7="","",VLOOKUP(I7,index_cabasse!$A$5:$O$89,2,FALSE)) -> 52 | K7: 9 | L7: =IF(K7="","",VLOOKUP(K7,index_cabasse!$A$5:$O$89,2,FALSE)) -> 24 | M7: 51 | N7: =IF(M7="","",VLOOKUP(M7,index_cabasse!$A$5:$O$89,2,FALSE)) -> 10 | O7: 66 | P7: =IF(O7="","",VLOOKUP(O7,index_cabasse!$A$5:$O$89,2,FALSE)) -> 46 | Q7: 37 | R7: =IF(Q7="","",VLOOKUP(Q7,index_cabasse!$A$5:$O$89,2,FALSE)) -> 51 | S7: 13 | T7: =IF(S7="","",VLOOKUP(S7,index_cabasse!$A$5:$O$89,2,FALSE)) -> 28 | U7: 36 | V7: =IF(U7="","",VLOOKUP(U7,index_cabasse!$A$5:$O$89,2,FALSE)) -> 50 | Z7: LOINTAINES
A8: =preparation_cabasse!B8 -> NAISSA | B8: =preparation_cabasse!C8 -> Estelle | C8: 26 | D8: =IF(C8="","",VLOOKUP(C8,index_cabasse!$A$5:$O$89,2,FALSE)) -> 15 | E8: 33 | F8: =IF(E8="","",VLOOKUP(E8,index_cabasse!$A$5:$O$89,2,FALSE)) -> 47 | G8: 63 | H8: =IF(G8="","",VLOOKUP(G8,index_cabasse!$A$5:$O$89,2,FALSE)) -> 42 | I8: 84 | J8: =IF(I8="","",VLOOKUP(I8,index_cabasse!$A$5:$O$89,2,FALSE)) -> 84 | K8: 79 | L8: =IF(K8="","",VLOOKUP(K8,index_cabasse!$A$5:$O$89,2,FALSE)) -> 76 | M8: 18 | N8: =IF(M8="","",VLOOKUP(M8,index_cabasse!$A$5:$O$89,2,FALSE)) -> 66 | O8: 78 | P8: =IF(O8="","",VLOOKUP(O8,index_cabasse!$A$5:$O$89,2,FALSE)) -> 75 | Q8: 78 | R8: =IF(Q8="","",VLOOKUP(Q8,index_cabasse!$A$5:$O$89,2,FALSE)) -> 75 | S8: 9 | T8: =IF(S8="","",VLOOKUP(S8,index_cabasse!$A$5:$O$89,2,FALSE)) -> 24 | U8: 19 | V8: =IF(U8="","",VLOOKUP(U8,index_cabasse!$A$5:$O$89,2,FALSE)) -> 67 | Z8: PROCHES+MEDIANES
A9: =preparation_cabasse!B9 -> FA | B9: =preparation_cabasse!C9 -> Dylan | C9: 22 | D9: =IF(C9="","",VLOOKUP(C9,index_cabasse!$A$5:$O$89,2,FALSE)) -> 1 | E9: 70 | F9: =IF(E9="","",VLOOKUP(E9,index_cabasse!$A$5:$O$89,2,FALSE)) -> 55 | G9: 76 | H9: =IF(G9="","",VLOOKUP(G9,index_cabasse!$A$5:$O$89,2,FALSE)) -> 71 | I9: 27 | J9: =IF(I9="","",VLOOKUP(I9,index_cabasse!$A$5:$O$89,2,FALSE)) -> 29 | K9: 73 | L9: =IF(K9="","",VLOOKUP(K9,index_cabasse!$A$5:$O$89,2,FALSE)) -> 58 | M9: 37 | N9: =IF(M9="","",VLOOKUP(M9,index_cabasse!$A$5:$O$89,2,FALSE)) -> 51 | O9: 50 | P9: =IF(O9="","",VLOOKUP(O9,index_cabasse!$A$5:$O$89,2,FALSE)) -> 9 | Q9: 12 | R9: =IF(Q9="","",VLOOKUP(Q9,index_cabasse!$A$5:$O$89,2,FALSE)) -> 27 | S9: 3 | T9: =IF(S9="","",VLOOKUP(S9,index_cabasse!$A$5:$O$89,2,FALSE)) -> 18 | U9: 41 | V9: =IF(U9="","",VLOOKUP(U9,index_cabasse!$A$5:$O$89,2,FALSE)) -> 73 | Z9: MEDIANES+LOINTAINES
A10: =preparation_cabasse!B10 -> FLEIN | B10: =preparation_cabasse!C10 -> Theo | C10: 77 | D10: =IF(C10="","",VLOOKUP(C10,index_cabasse!$A$5:$O$89,2,FALSE)) -> 74 | E10: 35 | F10: =IF(E10="","",VLOOKUP(E10,index_cabasse!$A$5:$O$89,2,FALSE)) -> 49 | G10: 3 | H10: =IF(G10="","",VLOOKUP(G10,index_cabasse!$A$5:$O$89,2,FALSE)) -> 18 | I10: 12 | J10: =IF(I10="","",VLOOKUP(I10,index_cabasse!$A$5:$O$89,2,FALSE)) -> 27 | K10: 56 | L10: =IF(K10="","",VLOOKUP(K10,index_cabasse!$A$5:$O$89,2,FALSE)) -> 35 | M10: 42 | N10: =IF(M10="","",VLOOKUP(M10,index_cabasse!$A$5:$O$89,2,FALSE)) -> 81 | O10: 4 | P10: =IF(O10="","",VLOOKUP(O10,index_cabasse!$A$5:$O$89,2,FALSE)) -> 19 | Q10: 53 | R10: =IF(Q10="","",VLOOKUP(Q10,index_cabasse!$A$5:$O$89,2,FALSE)) -> 12 | S10: 77 | T10: =IF(S10="","",VLOOKUP(S10,index_cabasse!$A$5:$O$89,2,FALSE)) -> 74 | U10: 1 | V10: =IF(U10="","",VLOOKUP(U10,index_cabasse!$A$5:$O$89,2,FALSE)) -> 16 | Z10: TOUTES
A11: =preparation_cabasse!B11 -> JEAON | B11: =preparation_cabasse!C11 -> Alexis | C11: 15 | D11: =IF(C11="","",VLOOKUP(C11,index_cabasse!$A$5:$O$89,2,FALSE)) -> 63 | E11: 15 | F11: =IF(E11="","",VLOOKUP(E11,index_cabasse!$A$5:$O$89,2,FALSE)) -> 63 | G11: 15 | H11: =IF(G11="","",VLOOKUP(G11,index_cabasse!$A$5:$O$89,2,FALSE)) -> 63 | I11: 62 | J11: =IF(I11="","",VLOOKUP(I11,index_cabasse!$A$5:$O$89,2,FALSE)) -> 41 | K11: 5 | L11: =IF(K11="","",VLOOKUP(K11,index_cabasse!$A$5:$O$89,2,FALSE)) -> 20 | M11: 24 | N11: =IF(M11="","",VLOOKUP(M11,index_cabasse!$A$5:$O$89,2,FALSE)) -> 3 | O11: 31 | P11: =IF(O11="","",VLOOKUP(O11,index_cabasse!$A$5:$O$89,2,FALSE)) -> 34 | Q11: 83 | R11: =IF(Q11="","",VLOOKUP(Q11,index_cabasse!$A$5:$O$89,2,FALSE)) -> 80 | S11: 7 | T11: =IF(S11="","",VLOOKUP(S11,index_cabasse!$A$5:$O$89,2,FALSE)) -> 22 | U11: 10 | V11: =IF(U11="","",VLOOKUP(U11,index_cabasse!$A$5:$O$89,2,FALSE)) -> 25
A12: =preparation_cabasse!B12 -> KOLA | B12: =preparation_cabasse!C12 -> Alexandre | C12: 79 | D12: =IF(C12="","",VLOOKUP(C12,index_cabasse!$A$5:$O$89,2,FALSE)) -> 76 | E12: 8 | F12: =IF(E12="","",VLOOKUP(E12,index_cabasse!$A$5:$O$89,2,FALSE)) -> 23 | G12: 74 | H12: =IF(G12="","",VLOOKUP(G12,index_cabasse!$A$5:$O$89,2,FALSE)) -> 59 | I12: 73 | J12: =IF(I12="","",VLOOKUP(I12,index_cabasse!$A$5:$O$89,2,FALSE)) -> 58 | K12: 38 | L12: =IF(K12="","",VLOOKUP(K12,index_cabasse!$A$5:$O$89,2,FALSE)) -> 61 | M12: 42 | N12: =IF(M12="","",VLOOKUP(M12,index_cabasse!$A$5:$O$89,2,FALSE)) -> 81 | O12: 17 | P12: =IF(O12="","",VLOOKUP(O12,index_cabasse!$A$5:$O$89,2,FALSE)) -> 65 | Q12: 73 | R12: =IF(Q12="","",VLOOKUP(Q12,index_cabasse!$A$5:$O$89,2,FALSE)) -> 58 | S12: 48 | T12: =IF(S12="","",VLOOKUP(S12,index_cabasse!$A$5:$O$89,2,FALSE)) -> 7 | U12: 51 | V12: =IF(U12="","",VLOOKUP(U12,index_cabasse!$A$5:$O$89,2,FALSE)) -> 10
A13: =preparation_cabasse!B13 -> LERHE | B13: =preparation_cabasse!C13 -> Melvin | C13: 27 | D13: =IF(C13="","",VLOOKUP(C13,index_cabasse!$A$5:$O$89,2,FALSE)) -> 29 | E13: 84 | F13: =IF(E13="","",VLOOKUP(E13,index_cabasse!$A$5:$O$89,2,FALSE)) -> 84 | G13: 7 | H13: =IF(G13="","",VLOOKUP(G13,index_cabasse!$A$5:$O$89,2,FALSE)) -> 22 | I13: 83 | J13: =IF(I13="","",VLOOKUP(I13,index_cabasse!$A$5:$O$89,2,FALSE)) -> 80 | K13: 52 | L13: =IF(K13="","",VLOOKUP(K13,index_cabasse!$A$5:$O$89,2,FALSE)) -> 11 | M13: 39 | N13: =IF(M13="","",VLOOKUP(M13,index_cabasse!$A$5:$O$89,2,FALSE)) -> 70 | O13: 4 | P13: =IF(O13="","",VLOOKUP(O13,index_cabasse!$A$5:$O$89,2,FALSE)) -> 19 | Q13: 19 | R13: =IF(Q13="","",VLOOKUP(Q13,index_cabasse!$A$5:$O$89,2,FALSE)) -> 67 | S13: 34 | T13: =IF(S13="","",VLOOKUP(S13,index_cabasse!$A$5:$O$89,2,FALSE)) -> 48 | U13: 75 | V13: =IF(U13="","",VLOOKUP(U13,index_cabasse!$A$5:$O$89,2,FALSE)) -> 60
A14: =preparation_cabasse!B14 -> LOE | B14: =preparation_cabasse!C14 -> Mickael | C14: 8 | D14: =IF(C14="","",VLOOKUP(C14,index_cabasse!$A$5:$O$89,2,FALSE)) -> 23 | E14: 43 | F14: =IF(E14="","",VLOOKUP(E14,index_cabasse!$A$5:$O$89,2,FALSE)) -> 82 | G14: 26 | H14: =IF(G14="","",VLOOKUP(G14,index_cabasse!$A$5:$O$89,2,FALSE)) -> 15 | I14: 68 | J14: =IF(I14="","",VLOOKUP(I14,index_cabasse!$A$5:$O$89,2,FALSE)) -> 53 | K14: 67 | L14: =IF(K14="","",VLOOKUP(K14,index_cabasse!$A$5:$O$89,2,FALSE)) -> 52 | M14: 77 | N14: =IF(M14="","",VLOOKUP(M14,index_cabasse!$A$5:$O$89,2,FALSE)) -> 74 | O14: 61 | P14: =IF(O14="","",VLOOKUP(O14,index_cabasse!$A$5:$O$89,2,FALSE)) -> 40 | Q14: 67 | R14: =IF(Q14="","",VLOOKUP(Q14,index_cabasse!$A$5:$O$89,2,FALSE)) -> 52 | S14: 63 | T14: =IF(S14="","",VLOOKUP(S14,index_cabasse!$A$5:$O$89,2,FALSE)) -> 42 | U14: 71 | V14: =IF(U14="","",VLOOKUP(U14,index_cabasse!$A$5:$O$89,2,FALSE)) -> 56
A15: =preparation_cabasse!B15 -> MORET | B15: =preparation_cabasse!C15 -> Alice | C15: 40 | D15: =IF(C15="","",VLOOKUP(C15,index_cabasse!$A$5:$O$89,2,FALSE)) -> 72 | E15: 1 | F15: =IF(E15="","",VLOOKUP(E15,index_cabasse!$A$5:$O$89,2,FALSE)) -> 16 | G15: 54 | H15: =IF(G15="","",VLOOKUP(G15,index_cabasse!$A$5:$O$89,2,FALSE)) -> 13 | I15: 73 | J15: =IF(I15="","",VLOOKUP(I15,index_cabasse!$A$5:$O$89,2,FALSE)) -> 58 | K15: 45 | L15: =IF(K15="","",VLOOKUP(K15,index_cabasse!$A$5:$O$89,2,FALSE)) -> 4 | M15: 2 | N15: =IF(M15="","",VLOOKUP(M15,index_cabasse!$A$5:$O$89,2,FALSE)) -> 17 | O15: 46 | P15: =IF(O15="","",VLOOKUP(O15,index_cabasse!$A$5:$O$89,2,FALSE)) -> 5 | Q15: 33 | R15: =IF(Q15="","",VLOOKUP(Q15,index_cabasse!$A$5:$O$89,2,FALSE)) -> 47 | S15: 80 | T15: =IF(S15="","",VLOOKUP(S15,index_cabasse!$A$5:$O$89,2,FALSE)) -> 77 | U15: 12 | V15: =IF(U15="","",VLOOKUP(U15,index_cabasse!$A$5:$O$89,2,FALSE)) -> 27
A16: =preparation_cabasse!B16 -> NICAU | B16: =preparation_cabasse!C16 -> Romain | C16: 52 | D16: =IF(C16="","",VLOOKUP(C16,index_cabasse!$A$5:$O$89,2,FALSE)) -> 11 | E16: 67 | F16: =IF(E16="","",VLOOKUP(E16,index_cabasse!$A$5:$O$89,2,FALSE)) -> 52 | G16: 81 | H16: =IF(G16="","",VLOOKUP(G16,index_cabasse!$A$5:$O$89,2,FALSE)) -> 78 | I16: 85 | J16: =IF(I16="","",VLOOKUP(I16,index_cabasse!$A$5:$O$89,2,FALSE)) -> 85 | K16: 2 | L16: =IF(K16="","",VLOOKUP(K16,index_cabasse!$A$5:$O$89,2,FALSE)) -> 17 | M16: 82 | N16: =IF(M16="","",VLOOKUP(M16,index_cabasse!$A$5:$O$89,2,FALSE)) -> 79 | O16: 72 | P16: =IF(O16="","",VLOOKUP(O16,index_cabasse!$A$5:$O$89,2,FALSE)) -> 57 | Q16: 22 | R16: =IF(Q16="","",VLOOKUP(Q16,index_cabasse!$A$5:$O$89,2,FALSE)) -> 1 | S16: 59 | T16: =IF(S16="","",VLOOKUP(S16,index_cabasse!$A$5:$O$89,2,FALSE)) -> 38 | U16: 73 | V16: =IF(U16="","",VLOOKUP(U16,index_cabasse!$A$5:$O$89,2,FALSE)) -> 58
A17: =preparation_cabasse!B17 -> RUI | B17: =preparation_cabasse!C17 -> Desiderio | C17: 12 | D17: =IF(C17="","",VLOOKUP(C17,index_cabasse!$A$5:$O$89,2,FALSE)) -> 27 | E17: 37 | F17: =IF(E17="","",VLOOKUP(E17,index_cabasse!$A$5:$O$89,2,FALSE)) -> 51 | G17: 85 | H17: =IF(G17="","",VLOOKUP(G17,index_cabasse!$A$5:$O$89,2,FALSE)) -> 85 | I17: 64 | J17: =IF(I17="","",VLOOKUP(I17,index_cabasse!$A$5:$O$89,2,FALSE)) -> 43 | K17: 56 | L17: =IF(K17="","",VLOOKUP(K17,index_cabasse!$A$5:$O$89,2,FALSE)) -> 35 | M17: 64 | N17: =IF(M17="","",VLOOKUP(M17,index_cabasse!$A$5:$O$89,2,FALSE)) -> 43 | O17: 1 | P17: =IF(O17="","",VLOOKUP(O17,index_cabasse!$A$5:$O$89,2,FALSE)) -> 16 | Q17: 42 | R17: =IF(Q17="","",VLOOKUP(Q17,index_cabasse!$A$5:$O$89,2,FALSE)) -> 81 | S17: 60 | T17: =IF(S17="","",VLOOKUP(S17,index_cabasse!$A$5:$O$89,2,FALSE)) -> 39 | U17: 58 | V17: =IF(U17="","",VLOOKUP(U17,index_cabasse!$A$5:$O$89,2,FALSE)) -> 37
A18: =preparation_cabasse!B18 -> RI | B18: =preparation_cabasse!C18 -> Niko | C18: 26 | D18: =IF(C18="","",VLOOKUP(C18,index_cabasse!$A$5:$O$89,2,FALSE)) -> 15 | E18: 64 | F18: =IF(E18="","",VLOOKUP(E18,index_cabasse!$A$5:$O$89,2,FALSE)) -> 43 | G18: 6 | H18: =IF(G18="","",VLOOKUP(G18,index_cabasse!$A$5:$O$89,2,FALSE)) -> 21 | I18: 22 | J18: =IF(I18="","",VLOOKUP(I18,index_cabasse!$A$5:$O$89,2,FALSE)) -> 1 | K18: 76 | L18: =IF(K18="","",VLOOKUP(K18,index_cabasse!$A$5:$O$89,2,FALSE)) -> 71 | M18: 18 | N18: =IF(M18="","",VLOOKUP(M18,index_cabasse!$A$5:$O$89,2,FALSE)) -> 66 | O18: 14 | P18: =IF(O18="","",VLOOKUP(O18,index_cabasse!$A$5:$O$89,2,FALSE)) -> 62 | Q18: 80 | R18: =IF(Q18="","",VLOOKUP(Q18,index_cabasse!$A$5:$O$89,2,FALSE)) -> 77 | S18: 76 | T18: =IF(S18="","",VLOOKUP(S18,index_cabasse!$A$5:$O$89,2,FALSE)) -> 71 | U18: 57 | V18: =IF(U18="","",VLOOKUP(U18,index_cabasse!$A$5:$O$89,2,FALSE)) -> 36
A19: =preparation_cabasse!B19 -> SAL | B19: =preparation_cabasse!C19 -> Calvin | C19: 38 | D19: =IF(C19="","",VLOOKUP(C19,index_cabasse!$A$5:$O$89,2,FALSE)) -> 61 | E19: 56 | F19: =IF(E19="","",VLOOKUP(E19,index_cabasse!$A$5:$O$89,2,FALSE)) -> 35 | G19: 37 | H19: =IF(G19="","",VLOOKUP(G19,index_cabasse!$A$5:$O$89,2,FALSE)) -> 51 | I19: 74 | J19: =IF(I19="","",VLOOKUP(I19,index_cabasse!$A$5:$O$89,2,FALSE)) -> 59 | K19: 55 | L19: =IF(K19="","",VLOOKUP(K19,index_cabasse!$A$5:$O$89,2,FALSE)) -> 33 | M19: 3 | N19: =IF(M19="","",VLOOKUP(M19,index_cabasse!$A$5:$O$89,2,FALSE)) -> 18 | O19: 46 | P19: =IF(O19="","",VLOOKUP(O19,index_cabasse!$A$5:$O$89,2,FALSE)) -> 5 | Q19: 46 | R19: =IF(Q19="","",VLOOKUP(Q19,index_cabasse!$A$5:$O$89,2,FALSE)) -> 5 | S19: 69 | T19: =IF(S19="","",VLOOKUP(S19,index_cabasse!$A$5:$O$89,2,FALSE)) -> 54 | U19: 38 | V19: =IF(U19="","",VLOOKUP(U19,index_cabasse!$A$5:$O$89,2,FALSE)) -> 61
A20: =preparation_cabasse!B20 -> SIOUI | B20: =preparation_cabasse!C20 -> Salah | C20: 47 | D20: =IF(C20="","",VLOOKUP(C20,index_cabasse!$A$5:$O$89,2,FALSE)) -> 6 | E20: 44 | F20: =IF(E20="","",VLOOKUP(E20,index_cabasse!$A$5:$O$89,2,FALSE)) -> 83 | G20: 70 | H20: =IF(G20="","",VLOOKUP(G20,index_cabasse!$A$5:$O$89,2,FALSE)) -> 55 | I20: 71 | J20: =IF(I20="","",VLOOKUP(I20,index_cabasse!$A$5:$O$89,2,FALSE)) -> 56 | K20: 59 | L20: =IF(K20="","",VLOOKUP(K20,index_cabasse!$A$5:$O$89,2,FALSE)) -> 38 | M20: 78 | N20: =IF(M20="","",VLOOKUP(M20,index_cabasse!$A$5:$O$89,2,FALSE)) -> 75 | O20: 19 | P20: =IF(O20="","",VLOOKUP(O20,index_cabasse!$A$5:$O$89,2,FALSE)) -> 67 | Q20: 3 | R20: =IF(Q20="","",VLOOKUP(Q20,index_cabasse!$A$5:$O$89,2,FALSE)) -> 18 | S20: 21 | T20: =IF(S20="","",VLOOKUP(S20,index_cabasse!$A$5:$O$89,2,FALSE)) -> 69 | U20: 50 | V20: =IF(U20="","",VLOOKUP(U20,index_cabasse!$A$5:$O$89,2,FALSE)) -> 9
A21: =preparation_cabasse!B21 -> TADEVA | B21: =preparation_cabasse!C21 -> Khatmat | C21: 83 | D21: =IF(C21="","",VLOOKUP(C21,index_cabasse!$A$5:$O$89,2,FALSE)) -> 80 | E21: 33 | F21: =IF(E21="","",VLOOKUP(E21,index_cabasse!$A$5:$O$89,2,FALSE)) -> 47 | G21: 23 | H21: =IF(G21="","",VLOOKUP(G21,index_cabasse!$A$5:$O$89,2,FALSE)) -> 2 | I21: 35 | J21: =IF(I21="","",VLOOKUP(I21,index_cabasse!$A$5:$O$89,2,FALSE)) -> 49 | K21: 60 | L21: =IF(K21="","",VLOOKUP(K21,index_cabasse!$A$5:$O$89,2,FALSE)) -> 39 | M21: 28 | N21: =IF(M21="","",VLOOKUP(M21,index_cabasse!$A$5:$O$89,2,FALSE)) -> 30 | O21: 58 | P21: =IF(O21="","",VLOOKUP(O21,index_cabasse!$A$5:$O$89,2,FALSE)) -> 37 | Q21: 53 | R21: =IF(Q21="","",VLOOKUP(Q21,index_cabasse!$A$5:$O$89,2,FALSE)) -> 12 | S21: 18 | T21: =IF(S21="","",VLOOKUP(S21,index_cabasse!$A$5:$O$89,2,FALSE)) -> 66 | U21: 7 | V21: =IF(U21="","",VLOOKUP(U21,index_cabasse!$A$5:$O$89,2,FALSE)) -> 22
A22: =preparation_cabasse!B22 -> TEEC | B22: =preparation_cabasse!C22 -> Victor | C22: 42 | D22: =IF(C22="","",VLOOKUP(C22,index_cabasse!$A$5:$O$89,2,FALSE)) -> 81 | E22: 37 | F22: =IF(E22="","",VLOOKUP(E22,index_cabasse!$A$5:$O$89,2,FALSE)) -> 51 | G22: 52 | H22: =IF(G22="","",VLOOKUP(G22,index_cabasse!$A$5:$O$89,2,FALSE)) -> 11 | I22: 69 | J22: =IF(I22="","",VLOOKUP(I22,index_cabasse!$A$5:$O$89,2,FALSE)) -> 54 | K22: 73 | L22: =IF(K22="","",VLOOKUP(K22,index_cabasse!$A$5:$O$89,2,FALSE)) -> 58 | M22: 56 | N22: =IF(M22="","",VLOOKUP(M22,index_cabasse!$A$5:$O$89,2,FALSE)) -> 35 | O22: 39 | P22: =IF(O22="","",VLOOKUP(O22,index_cabasse!$A$5:$O$89,2,FALSE)) -> 70 | Q22: =IF($A22="","",IF($A$40="PROCHES",RANDBETWEEN(1,21),IF($A$40="MEDIANES",RANDBETWEEN(22,44),IF($A$40="LOINTAINES",RANDBETWEEN(45,85),IF($A$40="PROCHES+MEDIANES",RANDBETWEEN(1,44),IF($A$40="MEDIANES+LOINTAINES",RANDBETWEEN(22,85),IF($A$40="TOUTES",RANDBETWEEN(1,85)))))))) -> 48 | R22: =IF(Q22="","",VLOOKUP(Q22,index_cabasse!$A$5:$O$89,2,FALSE)) -> 7 | S22: 22 | T22: =IF(S22="","",VLOOKUP(S22,index_cabasse!$A$5:$O$89,2,FALSE)) -> 1 | U22: 39 | V22: =IF(U22="","",VLOOKUP(U22,index_cabasse!$A$5:$O$89,2,FALSE)) -> 70
A23: =preparation_cabasse!B23 -> TEJOR | B23: =preparation_cabasse!C23 -> Carla | C23: 51 | D23: =IF(C23="","",VLOOKUP(C23,index_cabasse!$A$5:$O$89,2,FALSE)) -> 10 | E23: 82 | F23: =IF(E23="","",VLOOKUP(E23,index_cabasse!$A$5:$O$89,2,FALSE)) -> 79 | G23: 47 | H23: =IF(G23="","",VLOOKUP(G23,index_cabasse!$A$5:$O$89,2,FALSE)) -> 6 | I23: 29 | J23: =IF(I23="","",VLOOKUP(I23,index_cabasse!$A$5:$O$89,2,FALSE)) -> 31 | K23: 53 | L23: =IF(K23="","",VLOOKUP(K23,index_cabasse!$A$5:$O$89,2,FALSE)) -> 12 | M23: 17 | N23: =IF(M23="","",VLOOKUP(M23,index_cabasse!$A$5:$O$89,2,FALSE)) -> 65 | O23: 51 | P23: =IF(O23="","",VLOOKUP(O23,index_cabasse!$A$5:$O$89,2,FALSE)) -> 10 | Q23: 40 | R23: =IF(Q23="","",VLOOKUP(Q23,index_cabasse!$A$5:$O$89,2,FALSE)) -> 72 | S23: 69 | T23: =IF(S23="","",VLOOKUP(S23,index_cabasse!$A$5:$O$89,2,FALSE)) -> 54 | U23: 59 | V23: =IF(U23="","",VLOOKUP(U23,index_cabasse!$A$5:$O$89,2,FALSE)) -> 38
A24: =preparation_cabasse!B24 -> THIER | B24: =preparation_cabasse!C24 -> Andrea | C24: 65 | D24: =IF(C24="","",VLOOKUP(C24,index_cabasse!$A$5:$O$89,2,FALSE)) -> 45 | E24: 78 | F24: =IF(E24="","",VLOOKUP(E24,index_cabasse!$A$5:$O$89,2,FALSE)) -> 75 | G24: 2 | H24: =IF(G24="","",VLOOKUP(G24,index_cabasse!$A$5:$O$89,2,FALSE)) -> 17 | I24: 80 | J24: =IF(I24="","",VLOOKUP(I24,index_cabasse!$A$5:$O$89,2,FALSE)) -> 77 | K24: 39 | L24: =IF(K24="","",VLOOKUP(K24,index_cabasse!$A$5:$O$89,2,FALSE)) -> 70 | M24: 71 | N24: =IF(M24="","",VLOOKUP(M24,index_cabasse!$A$5:$O$89,2,FALSE)) -> 56 | O24: 52 | P24: =IF(O24="","",VLOOKUP(O24,index_cabasse!$A$5:$O$89,2,FALSE)) -> 11 | Q24: 33 | R24: =IF(Q24="","",VLOOKUP(Q24,index_cabasse!$A$5:$O$89,2,FALSE)) -> 47 | S24: 19 | T24: =IF(S24="","",VLOOKUP(S24,index_cabasse!$A$5:$O$89,2,FALSE)) -> 67 | U24: 8 | V24: =IF(U24="","",VLOOKUP(U24,index_cabasse!$A$5:$O$89,2,FALSE)) -> 23
A25: =preparation_cabasse!B25 -> YI | B25: =preparation_cabasse!C25 -> William | C25: 56 | D25: =IF(C25="","",VLOOKUP(C25,index_cabasse!$A$5:$O$89,2,FALSE)) -> 35 | E25: 84 | F25: =IF(E25="","",VLOOKUP(E25,index_cabasse!$A$5:$O$89,2,FALSE)) -> 84 | G25: 37 | H25: =IF(G25="","",VLOOKUP(G25,index_cabasse!$A$5:$O$89,2,FALSE)) -> 51 | I25: 31 | J25: =IF(I25="","",VLOOKUP(I25,index_cabasse!$A$5:$O$89,2,FALSE)) -> 34 | K25: 63 | L25: =IF(K25="","",VLOOKUP(K25,index_cabasse!$A$5:$O$89,2,FALSE)) -> 42 | M25: 27 | N25: =IF(M25="","",VLOOKUP(M25,index_cabasse!$A$5:$O$89,2,FALSE)) -> 29 | O25: 76 | P25: =IF(O25="","",VLOOKUP(O25,index_cabasse!$A$5:$O$89,2,FALSE)) -> 71 | Q25: 54 | R25: =IF(Q25="","",VLOOKUP(Q25,index_cabasse!$A$5:$O$89,2,FALSE)) -> 13 | S25: 16 | T25: =IF(S25="","",VLOOKUP(S25,index_cabasse!$A$5:$O$89,2,FALSE)) -> 64 | U25: 32 | V25: =IF(U25="","",VLOOKUP(U25,index_cabasse!$A$5:$O$89,2,FALSE)) -> 44
A26: =preparation_cabasse!B26 ->  | B26: =preparation_cabasse!C26 ->  | D26: =IF(C26="","",VLOOKUP(C26,index_cabasse!$A$5:$O$89,2,FALSE)) ->  | F26: =IF(E26="","",VLOOKUP(E26,index_cabasse!$A$5:$O$89,2,FALSE)) ->  | H26: =IF(G26="","",VLOOKUP(G26,index_cabasse!$A$5:$O$89,2,FALSE)) ->  | J26: =IF(I26="","",VLOOKUP(I26,index_cabasse!$A$5:$O$89,2,FALSE)) ->  | L26: =IF(K26="","",VLOOKUP(K26,index_cabasse!$A$5:$O$89,2,FALSE)) ->  | N26: =IF(M26="","",VLOOKUP(M26,index_cabasse!$A$5:$O$89,2,FALSE)) ->  | P26: =IF(O26="","",VLOOKUP(O26,index_cabasse!$A$5:$O$89,2,FALSE)) ->  | R26: =IF(Q26="","",VLOOKUP(Q26,index_cabasse!$A$5:$O$89,2,FALSE)) ->  | T26: =IF(S26="","",VLOOKUP(S26,index_cabasse!$A$5:$O$89,2,FALSE)) ->  | V26: =IF(U26="","",VLOOKUP(U26,index_cabasse!$A$5:$O$89,2,FALSE)) -> 
A27: =preparation_cabasse!B27 ->  | B27: =preparation_cabasse!C27 ->  | D27: =IF(C27="","",VLOOKUP(C27,index_cabasse!$A$5:$O$89,2,FALSE)) ->  | F27: =IF(E27="","",VLOOKUP(E27,index_cabasse!$A$5:$O$89,2,FALSE)) ->  | H27: =IF(G27="","",VLOOKUP(G27,index_cabasse!$A$5:$O$89,2,FALSE)) ->  | J27: =IF(I27="","",VLOOKUP(I27,index_cabasse!$A$5:$O$89,2,FALSE)) ->  | L27: =IF(K27="","",VLOOKUP(K27,index_cabasse!$A$5:$O$89,2,FALSE)) ->  | N27: =IF(M27="","",VLOOKUP(M27,index_cabasse!$A$5:$O$89,2,FALSE)) ->  | P27: =IF(O27="","",VLOOKUP(O27,index_cabasse!$A$5:$O$89,2,FALSE)) ->  | R27: =IF(Q27="","",VLOOKUP(Q27,index_cabasse!$A$5:$O$89,2,FALSE)) ->  | T27: =IF(S27="","",VLOOKUP(S27,index_cabasse!$A$5:$O$89,2,FALSE)) ->  | V27: =IF(U27="","",VLOOKUP(U27,index_cabasse!$A$5:$O$89,2,FALSE)) -> 
A28: =preparation_cabasse!B28 ->  | B28: =preparation_cabasse!C28 ->  | D28: =IF(C28="","",VLOOKUP(C28,index_cabasse!$A$5:$O$89,2,FALSE)) ->  | F28: =IF(E28="","",VLOOKUP(E28,index_cabasse!$A$5:$O$89,2,FALSE)) ->  | H28: =IF(G28="","",VLOOKUP(G28,index_cabasse!$A$5:$O$89,2,FALSE)) ->  | J28: =IF(I28="","",VLOOKUP(I28,index_cabasse!$A$5:$O$89,2,FALSE)) ->  | L28: =IF(K28="","",VLOOKUP(K28,index_cabasse!$A$5:$O$89,2,FALSE)) ->  | N28: =IF(M28="","",VLOOKUP(M28,index_cabasse!$A$5:$O$89,2,FALSE)) ->  | P28: =IF(O28="","",VLOOKUP(O28,index_cabasse!$A$5:$O$89,2,FALSE)) ->  | R28: =IF(Q28="","",VLOOKUP(Q28,index_cabasse!$A$5:$O$89,2,FALSE)) ->  | T28: =IF(S28="","",VLOOKUP(S28,index_cabasse!$A$5:$O$89,2,FALSE)) ->  | V28: =IF(U28="","",VLOOKUP(U28,index_cabasse!$A$5:$O$89,2,FALSE)) -> 
A29: =preparation_cabasse!B29 ->  | B29: =preparation_cabasse!C29 ->  | D29: =IF(C29="","",VLOOKUP(C29,index_cabasse!$A$5:$O$89,2,FALSE)) ->  | F29: =IF(E29="","",VLOOKUP(E29,index_cabasse!$A$5:$O$89,2,FALSE)) ->  | H29: =IF(G29="","",VLOOKUP(G29,index_cabasse!$A$5:$O$89,2,FALSE)) ->  | J29: =IF(I29="","",VLOOKUP(I29,index_cabasse!$A$5:$O$89,2,FALSE)) ->  | L29: =IF(K29="","",VLOOKUP(K29,index_cabasse!$A$5:$O$89,2,FALSE)) ->  | N29: =IF(M29="","",VLOOKUP(M29,index_cabasse!$A$5:$O$89,2,FALSE)) ->  | P29: =IF(O29="","",VLOOKUP(O29,index_cabasse!$A$5:$O$89,2,FALSE)) ->  | R29: =IF(Q29="","",VLOOKUP(Q29,index_cabasse!$A$5:$O$89,2,FALSE)) ->  | T29: =IF(S29="","",VLOOKUP(S29,index_cabasse!$A$5:$O$89,2,FALSE)) ->  | V29: =IF(U29="","",VLOOKUP(U29,index_cabasse!$A$5:$O$89,2,FALSE)) -> 
A30: =preparation_cabasse!B30 ->  | B30: =preparation_cabasse!C30 ->  | D30: =IF(C30="","",VLOOKUP(C30,index_cabasse!$A$5:$O$89,2,FALSE)) ->  | F30: =IF(E30="","",VLOOKUP(E30,index_cabasse!$A$5:$O$89,2,FALSE)) ->  | H30: =IF(G30="","",VLOOKUP(G30,index_cabasse!$A$5:$O$89,2,FALSE)) ->  | J30: =IF(I30="","",VLOOKUP(I30,index_cabasse!$A$5:$O$89,2,FALSE)) ->  | L30: =IF(K30="","",VLOOKUP(K30,index_cabasse!$A$5:$O$89,2,FALSE)) ->  | N30: =IF(M30="","",VLOOKUP(M30,index_cabasse!$A$5:$O$89,2,FALSE)) ->  | P30: =IF(O30="","",VLOOKUP(O30,index_cabasse!$A$5:$O$89,2,FALSE)) ->  | R30: =IF(Q30="","",VLOOKUP(Q30,index_cabasse!$A$5:$O$89,2,FALSE)) ->  | T30: =IF(S30="","",VLOOKUP(S30,index_cabasse!$A$5:$O$89,2,FALSE)) ->  | V30: =IF(U30="","",VLOOKUP(U30,index_cabasse!$A$5:$O$89,2,FALSE)) -> 
A31: =preparation_cabasse!B31 ->  | B31: =preparation_cabasse!C31 ->  | D31: =IF(C31="","",VLOOKUP(C31,index_cabasse!$A$5:$O$89,2,FALSE)) ->  | F31: =IF(E31="","",VLOOKUP(E31,index_cabasse!$A$5:$O$89,2,FALSE)) ->  | H31: =IF(G31="","",VLOOKUP(G31,index_cabasse!$A$5:$O$89,2,FALSE)) ->  | J31: =IF(I31="","",VLOOKUP(I31,index_cabasse!$A$5:$O$89,2,FALSE)) ->  | L31: =IF(K31="","",VLOOKUP(K31,index_cabasse!$A$5:$O$89,2,FALSE)) ->  | N31: =IF(M31="","",VLOOKUP(M31,index_cabasse!$A$5:$O$89,2,FALSE)) ->  | P31: =IF(O31="","",VLOOKUP(O31,index_cabasse!$A$5:$O$89,2,FALSE)) ->  | R31: =IF(Q31="","",VLOOKUP(Q31,index_cabasse!$A$5:$O$89,2,FALSE)) ->  | T31: =IF(S31="","",VLOOKUP(S31,index_cabasse!$A$5:$O$89,2,FALSE)) ->  | V31: =IF(U31="","",VLOOKUP(U31,index_cabasse!$A$5:$O$89,2,FALSE)) -> 
A32: =preparation_cabasse!B32 ->  | B32: =preparation_cabasse!C32 ->  | D32: =IF(C32="","",VLOOKUP(C32,index_cabasse!$A$5:$O$89,2,FALSE)) ->  | F32: =IF(E32="","",VLOOKUP(E32,index_cabasse!$A$5:$O$89,2,FALSE)) ->  | H32: =IF(G32="","",VLOOKUP(G32,index_cabasse!$A$5:$O$89,2,FALSE)) ->  | J32: =IF(I32="","",VLOOKUP(I32,index_cabasse!$A$5:$O$89,2,FALSE)) ->  | L32: =IF(K32="","",VLOOKUP(K32,index_cabasse!$A$5:$O$89,2,FALSE)) ->  | N32: =IF(M32="","",VLOOKUP(M32,index_cabasse!$A$5:$O$89,2,FALSE)) ->  | P32: =IF(O32="","",VLOOKUP(O32,index_cabasse!$A$5:$O$89,2,FALSE)) ->  | R32: =IF(Q32="","",VLOOKUP(Q32,index_cabasse!$A$5:$O$89,2,FALSE)) ->  | T32: =IF(S32="","",VLOOKUP(S32,index_cabasse!$A$5:$O$89,2,FALSE)) ->  | V32: =IF(U32="","",VLOOKUP(U32,index_cabasse!$A$5:$O$89,2,FALSE)) -> 
A33: =preparation_cabasse!B33 ->  | B33: =preparation_cabasse!C33 ->  | D33: =IF(C33="","",VLOOKUP(C33,index_cabasse!$A$5:$O$89,2,FALSE)) ->  | F33: =IF(E33="","",VLOOKUP(E33,index_cabasse!$A$5:$O$89,2,FALSE)) ->  | H33: =IF(G33="","",VLOOKUP(G33,index_cabasse!$A$5:$O$89,2,FALSE)) ->  | J33: =IF(I33="","",VLOOKUP(I33,index_cabasse!$A$5:$O$89,2,FALSE)) ->  | L33: =IF(K33="","",VLOOKUP(K33,index_cabasse!$A$5:$O$89,2,FALSE)) ->  | N33: =IF(M33="","",VLOOKUP(M33,index_cabasse!$A$5:$O$89,2,FALSE)) ->  | P33: =IF(O33="","",VLOOKUP(O33,index_cabasse!$A$5:$O$89,2,FALSE)) ->  | R33: =IF(Q33="","",VLOOKUP(Q33,index_cabasse!$A$5:$O$89,2,FALSE)) ->  | T33: =IF(S33="","",VLOOKUP(S33,index_cabasse!$A$5:$O$89,2,FALSE)) ->  | V33: =IF(U33="","",VLOOKUP(U33,index_cabasse!$A$5:$O$89,2,FALSE)) -> 
A34: =preparation_cabasse!B34 ->  | B34: =preparation_cabasse!C34 ->  | D34: =IF(C34="","",VLOOKUP(C34,index_cabasse!$A$5:$O$89,2,FALSE)) ->  | F34: =IF(E34="","",VLOOKUP(E34,index_cabasse!$A$5:$O$89,2,FALSE)) ->  | H34: =IF(G34="","",VLOOKUP(G34,index_cabasse!$A$5:$O$89,2,FALSE)) ->  | J34: =IF(I34="","",VLOOKUP(I34,index_cabasse!$A$5:$O$89,2,FALSE)) ->  | L34: =IF(K34="","",VLOOKUP(K34,index_cabasse!$A$5:$O$89,2,FALSE)) ->  | N34: =IF(M34="","",VLOOKUP(M34,index_cabasse!$A$5:$O$89,2,FALSE)) ->  | P34: =IF(O34="","",VLOOKUP(O34,index_cabasse!$A$5:$O$89,2,FALSE)) ->  | R34: =IF(Q34="","",VLOOKUP(Q34,index_cabasse!$A$5:$O$89,2,FALSE)) ->  | T34: =IF(S34="","",VLOOKUP(S34,index_cabasse!$A$5:$O$89,2,FALSE)) ->  | V34: =IF(U34="","",VLOOKUP(U34,index_cabasse!$A$5:$O$89,2,FALSE)) -> 
A35: =preparation_cabasse!B35 ->  | B35: =preparation_cabasse!C35 ->  | D35: =IF(C35="","",VLOOKUP(C35,index_cabasse!$A$5:$O$89,2,FALSE)) ->  | F35: =IF(E35="","",VLOOKUP(E35,index_cabasse!$A$5:$O$89,2,FALSE)) ->  | H35: =IF(G35="","",VLOOKUP(G35,index_cabasse!$A$5:$O$89,2,FALSE)) ->  | J35: =IF(I35="","",VLOOKUP(I35,index_cabasse!$A$5:$O$89,2,FALSE)) ->  | L35: =IF(K35="","",VLOOKUP(K35,index_cabasse!$A$5:$O$89,2,FALSE)) ->  | N35: =IF(M35="","",VLOOKUP(M35,index_cabasse!$A$5:$O$89,2,FALSE)) ->  | P35: =IF(O35="","",VLOOKUP(O35,index_cabasse!$A$5:$O$89,2,FALSE)) ->  | R35: =IF(Q35="","",VLOOKUP(Q35,index_cabasse!$A$5:$O$89,2,FALSE)) ->  | T35: =IF(S35="","",VLOOKUP(S35,index_cabasse!$A$5:$O$89,2,FALSE)) ->  | V35: =IF(U35="","",VLOOKUP(U35,index_cabasse!$A$5:$O$89,2,FALSE)) -> 
A36: =preparation_cabasse!B36 ->  | B36: =preparation_cabasse!C36 ->  | D36: =IF(C36="","",VLOOKUP(C36,index_cabasse!$A$5:$O$89,2,FALSE)) ->  | F36: =IF(E36="","",VLOOKUP(E36,index_cabasse!$A$5:$O$89,2,FALSE)) ->  | H36: =IF(G36="","",VLOOKUP(G36,index_cabasse!$A$5:$O$89,2,FALSE)) ->  | J36: =IF(I36="","",VLOOKUP(I36,index_cabasse!$A$5:$O$89,2,FALSE)) ->  | L36: =IF(K36="","",VLOOKUP(K36,index_cabasse!$A$5:$O$89,2,FALSE)) ->  | N36: =IF(M36="","",VLOOKUP(M36,index_cabasse!$A$5:$O$89,2,FALSE)) ->  | P36: =IF(O36="","",VLOOKUP(O36,index_cabasse!$A$5:$O$89,2,FALSE)) ->  | R36: =IF(Q36="","",VLOOKUP(Q36,index_cabasse!$A$5:$O$89,2,FALSE)) ->  | T36: =IF(S36="","",VLOOKUP(S36,index_cabasse!$A$5:$O$89,2,FALSE)) ->  | V36: =IF(U36="","",VLOOKUP(U36,index_cabasse!$A$5:$O$89,2,FALSE)) -> 
A37: =preparation_cabasse!B37 ->  | B37: =preparation_cabasse!C37 ->  | D37: =IF(C37="","",VLOOKUP(C37,index_cabasse!$A$5:$O$89,2,FALSE)) ->  | F37: =IF(E37="","",VLOOKUP(E37,index_cabasse!$A$5:$O$89,2,FALSE)) ->  | H37: =IF(G37="","",VLOOKUP(G37,index_cabasse!$A$5:$O$89,2,FALSE)) ->  | J37: =IF(I37="","",VLOOKUP(I37,index_cabasse!$A$5:$O$89,2,FALSE)) ->  | L37: =IF(K37="","",VLOOKUP(K37,index_cabasse!$A$5:$O$89,2,FALSE)) ->  | N37: =IF(M37="","",VLOOKUP(M37,index_cabasse!$A$5:$O$89,2,FALSE)) ->  | P37: =IF(O37="","",VLOOKUP(O37,index_cabasse!$A$5:$O$89,2,FALSE)) ->  | R37: =IF(Q37="","",VLOOKUP(Q37,index_cabasse!$A$5:$O$89,2,FALSE)) ->  | T37: =IF(S37="","",VLOOKUP(S37,index_cabasse!$A$5:$O$89,2,FALSE)) ->  | V37: =IF(U37="","",VLOOKUP(U37,index_cabasse!$A$5:$O$89,2,FALSE)) -> 
A38: =preparation_cabasse!B38 ->  | B38: =preparation_cabasse!C38 ->  | D38: =IF(C38="","",VLOOKUP(C38,index_cabasse!$A$5:$O$89,2,FALSE)) ->  | F38: =IF(E38="","",VLOOKUP(E38,index_cabasse!$A$5:$O$89,2,FALSE)) ->  | H38: =IF(G38="","",VLOOKUP(G38,index_cabasse!$A$5:$O$89,2,FALSE)) ->  | J38: =IF(I38="","",VLOOKUP(I38,index_cabasse!$A$5:$O$89,2,FALSE)) ->  | L38: =IF(K38="","",VLOOKUP(K38,index_cabasse!$A$5:$O$89,2,FALSE)) ->  | N38: =IF(M38="","",VLOOKUP(M38,index_cabasse!$A$5:$O$89,2,FALSE)) ->  | P38: =IF(O38="","",VLOOKUP(O38,index_cabasse!$A$5:$O$89,2,FALSE)) ->  | R38: =IF(Q38="","",VLOOKUP(Q38,index_cabasse!$A$5:$O$89,2,FALSE)) ->  | T38: =IF(S38="","",VLOOKUP(S38,index_cabasse!$A$5:$O$89,2,FALSE)) ->  | V38: =IF(U38="","",VLOOKUP(U38,index_cabasse!$A$5:$O$89,2,FALSE)) -> 
A39: CHOIX DES BALISES
A40: TOUTES | B40: <<<<<<<<<<

Sheet preparation_cabasse
B1: CABASSE | F1: Cellule "N° CARTE" prioritaire par rapport à la colonne "N° CARTE" (si cellule "C2"vide alors la colonne est prise en compte). | AL1: 0
B2: N° CARTE | C2: 10 | F2: Combien de code(s) sur chaque coupon ? | K2: 5 | N2: SEANCE N° : | S2: DATE : | AL2: 1
B3: NOM | C3: PRENOM | D3: N° CARTE | E3: N° CARTE | F3: N° BALISE 1 | G3: CODE 1 | H3: Solution 1 | I3: N° BALISE 2 | J3: CODE 2 | K3: Solution 2 | L3: N° BALISE 3 | M3: CODE 3 | N3: Solution 3 | O3: N° BALISE 4 | P3: CODE 4 | Q3: Solution 4 | R3: N° BALISE 5 | S3: CODE 5 | T3: Solution 5 | U3: N° BALISE 6 | V3: CODE 6 | W3: Solution 6 | X3: N° BALISE 7 | Y3: CODE 7 | Z3: Solution 7 | AA3: N° BALISE 8 | AB3: CODE 8 | AC3: Solution 8 | AD3: N° BALISE 9 | AE3: CODE 9 | AF3: Solution 9 | AG3: N° BALISE 10 | AH3: CODE 10 | AI3: Solution 10 | AL3: 2
A4: 1 | B4: =IF(index_classe!F3="","",IF(index_classe!$K$1="NON",index_classe!F3,"Groupe 1")) -> BENZ | C4: =IF(index_classe!G3="","",IF(index_classe!$K$1="NON",index_classe!G3,">>>>>")) -> Nawel | D4: =IF($C$2<>"",$C$2,E4) -> 10 | F4: 18 | G4: =IF(F4="","",IF($C$2<>"",VLOOKUP(F4,index_cabasse!$B$5:$O$89,$C$2+2,FALSE),VLOOKUP(F4,index_cabasse!$B$5:$O$89,$D4+2,FALSE))) -> EEK | H4: =IF(G4="","",VLOOKUP(F4,index_cabasse!$B$5:$O$89,2,FALSE)) -> 4798 | I4: 43 | J4: =IF(I4="","",IF($C$2<>"",VLOOKUP(I4,index_cabasse!$B$5:$O$89,$C$2+2,FALSE),VLOOKUP(I4,index_cabasse!$B$5:$O$89,$D4+2,FALSE))) -> FFK | K4: =IF(J4="","",VLOOKUP(I4,index_cabasse!$B$5:$O$89,2,FALSE)) -> 7011 | L4: 85 | M4: =IF(L4="","",IF($C$2<>"",VLOOKUP(L4,index_cabasse!$B$5:$O$89,$C$2+2,FALSE),VLOOKUP(L4,index_cabasse!$B$5:$O$89,$D4+2,FALSE))) -> HHB | N4: =IF(M4="","",VLOOKUP(L4,index_cabasse!$B$5:$O$89,2,FALSE)) -> 6129 | O4: 22 | P4: =IF(O4="","",IF($C$2<>"",VLOOKUP(O4,index_cabasse!$B$5:$O$89,$C$2+2,FALSE),VLOOKUP(O4,index_cabasse!$B$5:$O$89,$D4+2,FALSE))) -> EEO | Q4: =IF(P4="","",VLOOKUP(O4,index_cabasse!$B$5:$O$89,2,FALSE)) -> 5338 | R4: 48 | S4: =IF(R4="","",IF($C$2<>"",VLOOKUP(R4,index_cabasse!$B$5:$O$89,$C$2+2,FALSE),VLOOKUP(R4,index_cabasse!$B$5:$O$89,$D4+2,FALSE))) -> FFP | T4: =IF(S4="","",VLOOKUP(R4,index_cabasse!$B$5:$O$89,2,FALSE)) -> 4945 | U4: 5 | V4: =IF(U4="","",IF($C$2<>"",VLOOKUP(U4,index_cabasse!$B$5:$O$89,$C$2+2,FALSE),VLOOKUP(U4,index_cabasse!$B$5:$O$89,$D4+2,FALSE))) -> DW | W4: =IF(V4="","",VLOOKUP(U4,index_cabasse!$B$5:$O$89,2,FALSE)) -> 3231 | X4: 52 | Y4: =IF(X4="","",IF($C$2<>"",VLOOKUP(X4,index_cabasse!$B$5:$O$89,$C$2+2,FALSE),VLOOKUP(X4,index_cabasse!$B$5:$O$89,$D4+2,FALSE))) -> FFT | Z4: =IF(Y4="","",VLOOKUP(X4,index_cabasse!$B$5:$O$89,2,FALSE)) -> 7641 | AA4: 37 | AB4: =IF(AA4="","",IF($C$2<>"",VLOOKUP(AA4,index_cabasse!$B$5:$O$89,$C$2+2,FALSE),VLOOKUP(AA4,index_cabasse!$B$5:$O$89,$D4+2,FALSE))) -> FFD | AC4: =IF(AB4="","",VLOOKUP(AA4,index_cabasse!$B$5:$O$89,2,FALSE)) -> 5751 | AD4: 76 | AE4: =IF(AD4="","",IF($C$2<>"",VLOOKUP(AD4,index_cabasse!$B$5:$O$89,$C$2+2,FALSE),VLOOKUP(AD4,index_cabasse!$B$5:$O$89,$D4+2,FALSE))) -> GGS | AF4: =IF(AE4="","",VLOOKUP(AD4,index_cabasse!$B$5:$O$89,2,FALSE)) -> 9405 | AG4: 15 | AH4: =IF(AG4="","",IF($C$2<>"",VLOOKUP(AG4,index_cabasse!$B$5:$O$89,$C$2+2,FALSE),VLOOKUP(AG4,index_cabasse!$B$5:$O$89,$D4+2,FALSE))) -> EEH | AI4: =IF(AH4="","",VLOOKUP(AG4,index_cabasse!$B$5:$O$89,2,FALSE)) -> 6209 | AL4: 3
A5: 2 | B5: =IF(index_classe!F4="","",IF(index_classe!$K$1="NON",index_classe!F4,IF(A5>index_classe!$P$1,"","Groupe 2"))) -> BERNA | C5: =IF(index_classe!G4="","",IF(index_classe!$K$1="NON",index_classe!G4,IF(A5>index_classe!$P$1,"",">>>>>"))) -> Laurine | D5: =IF($C$2<>"",$C$2,E5) -> 10 | F5: 8 | G5: =IF(F5="","",IF($C$2<>"",VLOOKUP(F5,index_cabasse!$B$5:$O$89,$C$2+2,FALSE),VLOOKUP(F5,index_cabasse!$B$5:$O$89,$D5+2,FALSE))) -> DDZ | H5: =IF(G5="","",VLOOKUP(F5,index_cabasse!$B$5:$O$89,2,FALSE)) -> 3861 | I5: 68 | J5: =IF(I5="","",IF($C$2<>"",VLOOKUP(I5,index_cabasse!$B$5:$O$89,$C$2+2,FALSE),VLOOKUP(I5,index_cabasse!$B$5:$O$89,$D5+2,FALSE))) -> GGK | K5: =IF(J5="","",VLOOKUP(I5,index_cabasse!$B$5:$O$89,2,FALSE)) -> 7093 | L5: 33 | M5: =IF(L5="","",IF($C$2<>"",VLOOKUP(L5,index_cabasse!$B$5:$O$89,$C$2+2,FALSE),VLOOKUP(L5,index_cabasse!$B$5:$O$89,$D5+2,FALSE))) -> EEZ | N5: =IF(M5="","",VLOOKUP(L5,index_cabasse!$B$5:$O$89,2,FALSE)) -> 5121 | O5: 29 | P5: =IF(O5="","",IF($C$2<>"",VLOOKUP(O5,index_cabasse!$B$5:$O$89,$C$2+2,FALSE),VLOOKUP(O5,index_cabasse!$B$5:$O$89,$D5+2,FALSE))) -> EEV | Q5: =IF(P5="","",VLOOKUP(O5,index_cabasse!$B$5:$O$89,2,FALSE)) -> 6051 | R5: 41 | S5: =IF(R5="","",IF($C$2<>"",VLOOKUP(R5,index_cabasse!$B$5:$O$89,$C$2+2,FALSE),VLOOKUP(R5,index_cabasse!$B$5:$O$89,$D5+2,FALSE))) -> FFI | T5: =IF(S5="","",VLOOKUP(R5,index_cabasse!$B$5:$O$89,2,FALSE)) -> 6591 | U5: 11 | V5: =IF(U5="","",IF($C$2<>"",VLOOKUP(U5,index_cabasse!$B$5:$O$89,$C$2+2,FALSE),VLOOKUP(U5,index_cabasse!$B$5:$O$89,$D5+2,FALSE))) -> EEC | W5: =IF(V5="","",VLOOKUP(U5,index_cabasse!$B$5:$O$89,2,FALSE)) -> 4491 | X5: 6 | Y5: =IF(X5="","",IF($C$2<>"",VLOOKUP(X5,index_cabasse!$B$5:$O$89,$C$2+2,FALSE),VLOOKUP(X5,index_cabasse!$B$5:$O$89,$D5+2,FALSE))) -> DDX | Z5: =IF(Y5="","",VLOOKUP(X5,index_cabasse!$B$5:$O$89,2,FALSE)) -> 3441 | AA5: 84 | AB5: =IF(AA5="","",IF($C$2<>"",VLOOKUP(AA5,index_cabasse!$B$5:$O$89,$C$2+2,FALSE),VLOOKUP(AA5,index_cabasse!$B$5:$O$89,$D5+2,FALSE))) -> HHA | AC5: =IF(AB5="","",VLOOKUP(AA5,index_cabasse!$B$5:$O$89,2,FALSE)) -> 6675 | AD5: 1 | AE5: =IF(AD5="","",IF($C$2<>"",VLOOKUP(AD5,index_cabasse!$B$5:$O$89,$C$2+2,FALSE),VLOOKUP(AD5,index_cabasse!$B$5:$O$89,$D5+2,FALSE))) -> DDS | AF5: =IF(AE5="","",VLOOKUP(AD5,index_cabasse!$B$5:$O$89,2,FALSE)) -> 6841 | AG5: 57 | AH5: =IF(AG5="","",IF($C$2<>"",VLOOKUP(AG5,index_cabasse!$B$5:$O$89,$C$2+2,FALSE),VLOOKUP(AG5,index_cabasse!$B$5:$O$89,$D5+2,FALSE))) -> FFY | AI5: =IF(AH5="","",VLOOKUP(AG5,index_cabasse!$B$5:$O$89,2,FALSE)) -> 8691 | AL5: 4
A6: 3 | B6: =IF(index_classe!F5="","",IF(index_classe!$K$1="NON",index_classe!F5,IF(A6>index_classe!$P$1,"","Groupe 3"))) -> CHEL | C6: =IF(index_classe!G5="","",IF(index_classe!$K$1="NON",index_classe!G5,IF(A6>index_classe!$P$1,"",">>>>>"))) -> Sarah | D6: 10 | F6: 54 | G6: =IF(F6="","",IF($C$2<>"",VLOOKUP(F6,index_cabasse!$B$5:$O$89,$C$2+2,FALSE),VLOOKUP(F6,index_cabasse!$B$5:$O$89,$D6+2,FALSE))) -> FFV | H6: =IF(G6="","",VLOOKUP(F6,index_cabasse!$B$5:$O$89,2,FALSE)) -> 8061 | I6: 42 | J6: =IF(I6="","",IF($C$2<>"",VLOOKUP(I6,index_cabasse!$B$5:$O$89,$C$2+2,FALSE),VLOOKUP(I6,index_cabasse!$B$5:$O$89,$D6+2,FALSE))) -> FFJ | K6: =IF(J6="","",VLOOKUP(I6,index_cabasse!$B$5:$O$89,2,FALSE)) -> 6801 | L6: 71 | M6: =IF(L6="","",IF($C$2<>"",VLOOKUP(L6,index_cabasse!$B$5:$O$89,$C$2+2,FALSE),VLOOKUP(L6,index_cabasse!$B$5:$O$89,$D6+2,FALSE))) -> GGN | N6: =IF(M6="","",VLOOKUP(L6,index_cabasse!$B$5:$O$89,2,FALSE)) -> 9531 | O6: 53 | P6: =IF(O6="","",IF($C$2<>"",VLOOKUP(O6,index_cabasse!$B$5:$O$89,$C$2+2,FALSE),VLOOKUP(O6,index_cabasse!$B$5:$O$89,$D6+2,FALSE))) -> FFU | Q6: =IF(P6="","",VLOOKUP(O6,index_cabasse!$B$5:$O$89,2,FALSE)) -> 7851 | R6: 9 | S6: =IF(R6="","",IF($C$2<>"",VLOOKUP(R6,index_cabasse!$B$5:$O$89,$C$2+2,FALSE),VLOOKUP(R6,index_cabasse!$B$5:$O$89,$D6+2,FALSE))) -> EEA | T6: =IF(S6="","",VLOOKUP(R6,index_cabasse!$B$5:$O$89,2,FALSE)) -> 4071 | U6: 19 | V6: =IF(U6="","",IF($C$2<>"",VLOOKUP(U6,index_cabasse!$B$5:$O$89,$C$2+2,FALSE),VLOOKUP(U6,index_cabasse!$B$5:$O$89,$D6+2,FALSE))) -> EEL | W6: =IF(V6="","",VLOOKUP(U6,index_cabasse!$B$5:$O$89,2,FALSE)) -> 4933 | X6: 17 | Y6: =IF(X6="","",IF($C$2<>"",VLOOKUP(X6,index_cabasse!$B$5:$O$89,$C$2+2,FALSE),VLOOKUP(X6,index_cabasse!$B$5:$O$89,$D6+2,FALSE))) -> EEJ | Z6: =IF(Y6="","",VLOOKUP(X6,index_cabasse!$B$5:$O$89,2,FALSE)) -> 4663 | AA6: 10 | AB6: =IF(AA6="","",IF($C$2<>"",VLOOKUP(AA6,index_cabasse!$B$5:$O$89,$C$2+2,FALSE),VLOOKUP(AA6,index_cabasse!$B$5:$O$89,$D6+2,FALSE))) -> EEB | AC6: =IF(AB6="","",VLOOKUP(AA6,index_cabasse!$B$5:$O$89,2,FALSE)) -> 4281 | AD6: 53 | AE6: =IF(AD6="","",IF($C$2<>"",VLOOKUP(AD6,index_cabasse!$B$5:$O$89,$C$2+2,FALSE),VLOOKUP(AD6,index_cabasse!$B$5:$O$89,$D6+2,FALSE))) -> FFU | AF6: =IF(AE6="","",VLOOKUP(AD6,index_cabasse!$B$5:$O$89,2,FALSE)) -> 7851 | AG6: 11 | AH6: =IF(AG6="","",IF($C$2<>"",VLOOKUP(AG6,index_cabasse!$B$5:$O$89,$C$2+2,FALSE),VLOOKUP(AG6,index_cabasse!$B$5:$O$89,$D6+2,FALSE))) -> EEC | AI6: =IF(AH6="","",VLOOKUP(AG6,index_cabasse!$B$5:$O$89,2,FALSE)) -> 4491 | AL6: 5
A7: 4 | B7: =IF(index_classe!F6="","",IF(index_classe!$K$1="NON",index_classe!F6,IF(A7>index_classe!$P$1,"","Groupe 4"))) -> CLAUD | C7: =IF(index_classe!G6="","",IF(index_classe!$K$1="NON",index_classe!G6,IF(A7>index_classe!$P$1,"",">>>>>"))) -> Maxime | D7: 10 | F7: 71 | G7: =IF(F7="","",IF($C$2<>"",VLOOKUP(F7,index_cabasse!$B$5:$O$89,$C$2+2,FALSE),VLOOKUP(F7,index_cabasse!$B$5:$O$89,$D7+2,FALSE))) -> GGN | H7: =IF(G7="","",VLOOKUP(F7,index_cabasse!$B$5:$O$89,2,FALSE)) -> 9531 | I7: 62 | J7: =IF(I7="","",IF($C$2<>"",VLOOKUP(I7,index_cabasse!$B$5:$O$89,$C$2+2,FALSE),VLOOKUP(I7,index_cabasse!$B$5:$O$89,$D7+2,FALSE))) -> GGD | K7: =IF(J7="","",VLOOKUP(I7,index_cabasse!$B$5:$O$89,2,FALSE)) -> 6283 | L7: 20 | M7: =IF(L7="","",IF($C$2<>"",VLOOKUP(L7,index_cabasse!$B$5:$O$89,$C$2+2,FALSE),VLOOKUP(L7,index_cabasse!$B$5:$O$89,$D7+2,FALSE))) -> EEM | N7: =IF(M7="","",VLOOKUP(L7,index_cabasse!$B$5:$O$89,2,FALSE)) -> 5068 | O7: 67 | P7: =IF(O7="","",IF($C$2<>"",VLOOKUP(O7,index_cabasse!$B$5:$O$89,$C$2+2,FALSE),VLOOKUP(O7,index_cabasse!$B$5:$O$89,$D7+2,FALSE))) -> GGJ | Q7: =IF(P7="","",VLOOKUP(O7,index_cabasse!$B$5:$O$89,2,FALSE)) -> 6958 | R7: 56 | S7: =IF(R7="","",IF($C$2<>"",VLOOKUP(R7,index_cabasse!$B$5:$O$89,$C$2+2,FALSE),VLOOKUP(R7,index_cabasse!$B$5:$O$89,$D7+2,FALSE))) -> FFX | T7: =IF(S7="","",VLOOKUP(R7,index_cabasse!$B$5:$O$89,2,FALSE)) -> 8481 | U7: 44 | V7: =IF(U7="","",IF($C$2<>"",VLOOKUP(U7,index_cabasse!$B$5:$O$89,$C$2+2,FALSE),VLOOKUP(U7,index_cabasse!$B$5:$O$89,$D7+2,FALSE))) -> FFL | W7: =IF(V7="","",VLOOKUP(U7,index_cabasse!$B$5:$O$89,2,FALSE)) -> 5261 | X7: 15 | Y7: =IF(X7="","",IF($C$2<>"",VLOOKUP(X7,index_cabasse!$B$5:$O$89,$C$2+2,FALSE),VLOOKUP(X7,index_cabasse!$B$5:$O$89,$D7+2,FALSE))) -> EEH | Z7: =IF(Y7="","",VLOOKUP(X7,index_cabasse!$B$5:$O$89,2,FALSE)) -> 6209 | AA7: 66 | AB7: =IF(AA7="","",IF($C$2<>"",VLOOKUP(AA7,index_cabasse!$B$5:$O$89,$C$2+2,FALSE),VLOOKUP(AA7,index_cabasse!$B$5:$O$89,$D7+2,FALSE))) -> GGI | AC7: =IF(AB7="","",VLOOKUP(AA7,index_cabasse!$B$5:$O$89,2,FALSE)) -> 6823 | AD7: 5 | AE7: =IF(AD7="","",IF($C$2<>"",VLOOKUP(AD7,index_cabasse!$B$5:$O$89,$C$2+2,FALSE),VLOOKUP(AD7,index_cabasse!$B$5:$O$89,$D7+2,FALSE))) -> DW | AF7: =IF(AE7="","",VLOOKUP(AD7,index_cabasse!$B$5:$O$89,2,FALSE)) -> 3231 | AG7: 9 | AH7: =IF(AG7="","",IF($C$2<>"",VLOOKUP(AG7,index_cabasse!$B$5:$O$89,$C$2+2,FALSE),VLOOKUP(AG7,index_cabasse!$B$5:$O$89,$D7+2,FALSE))) -> EEA | AI7: =IF(AH7="","",VLOOKUP(AG7,index_cabasse!$B$5:$O$89,2,FALSE)) -> 4071 | AL7: 6
A8: 5 | B8: =IF(index_classe!F7="","",IF(index_classe!$K$1="NON",index_classe!F7,IF(A8>index_classe!$P$1,"","Groupe 5"))) -> NAISSA | C8: =IF(index_classe!G7="","",IF(index_classe!$K$1="NON",index_classe!G7,IF(A8>index_classe!$P$1,"",">>>>>"))) -> Estelle | D8: 10 | F8: 73 | G8: =IF(F8="","",IF($C$2<>"",VLOOKUP(F8,index_cabasse!$B$5:$O$89,$C$2+2,FALSE),VLOOKUP(F8,index_cabasse!$B$5:$O$89,$D8+2,FALSE))) -> GGP | H8: =IF(G8="","",VLOOKUP(F8,index_cabasse!$B$5:$O$89,2,FALSE)) -> 3839 | I8: 43 | J8: =IF(I8="","",IF($C$2<>"",VLOOKUP(I8,index_cabasse!$B$5:$O$89,$C$2+2,FALSE),VLOOKUP(I8,index_cabasse!$B$5:$O$89,$D8+2,FALSE))) -> FFK | K8: =IF(J8="","",VLOOKUP(I8,index_cabasse!$B$5:$O$89,2,FALSE)) -> 7011 | L8: 16 | M8: =IF(L8="","",IF($C$2<>"",VLOOKUP(L8,index_cabasse!$B$5:$O$89,$C$2+2,FALSE),VLOOKUP(L8,index_cabasse!$B$5:$O$89,$D8+2,FALSE))) -> EEI | N8: =IF(M8="","",VLOOKUP(L8,index_cabasse!$B$5:$O$89,2,FALSE)) -> 4528 | O8: 74 | P8: =IF(O8="","",IF($C$2<>"",VLOOKUP(O8,index_cabasse!$B$5:$O$89,$C$2+2,FALSE),VLOOKUP(O8,index_cabasse!$B$5:$O$89,$D8+2,FALSE))) -> GGQ | Q8: =IF(P8="","",VLOOKUP(O8,index_cabasse!$B$5:$O$89,2,FALSE)) -> 9741 | R8: 55 | S8: =IF(R8="","",IF($C$2<>"",VLOOKUP(R8,index_cabasse!$B$5:$O$89,$C$2+2,FALSE),VLOOKUP(R8,index_cabasse!$B$5:$O$89,$D8+2,FALSE))) -> FFW | T8: =IF(S8="","",VLOOKUP(R8,index_cabasse!$B$5:$O$89,2,FALSE)) -> 8271 | U8: 52 | V8: =IF(U8="","",IF($C$2<>"",VLOOKUP(U8,index_cabasse!$B$5:$O$89,$C$2+2,FALSE),VLOOKUP(U8,index_cabasse!$B$5:$O$89,$D8+2,FALSE))) -> FFT | W8: =IF(V8="","",VLOOKUP(U8,index_cabasse!$B$5:$O$89,2,FALSE)) -> 7641 | X8: 61 | Y8: =IF(X8="","",IF($C$2<>"",VLOOKUP(X8,index_cabasse!$B$5:$O$89,$C$2+2,FALSE),VLOOKUP(X8,index_cabasse!$B$5:$O$89,$D8+2,FALSE))) -> GGC | Z8: =IF(Y8="","",VLOOKUP(X8,index_cabasse!$B$5:$O$89,2,FALSE)) -> 4313 | AA8: 38 | AB8: =IF(AA8="","",IF($C$2<>"",VLOOKUP(AA8,index_cabasse!$B$5:$O$89,$C$2+2,FALSE),VLOOKUP(AA8,index_cabasse!$B$5:$O$89,$D8+2,FALSE))) -> FFE | AC8: =IF(AB8="","",VLOOKUP(AA8,index_cabasse!$B$5:$O$89,2,FALSE)) -> 5961 | AD8: 71 | AE8: =IF(AD8="","",IF($C$2<>"",VLOOKUP(AD8,index_cabasse!$B$5:$O$89,$C$2+2,FALSE),VLOOKUP(AD8,index_cabasse!$B$5:$O$89,$D8+2,FALSE))) -> GGN | AF8: =IF(AE8="","",VLOOKUP(AD8,index_cabasse!$B$5:$O$89,2,FALSE)) -> 9531 | AG8: 24 | AH8: =IF(AG8="","",IF($C$2<>"",VLOOKUP(AG8,index_cabasse!$B$5:$O$89,$C$2+2,FALSE),VLOOKUP(AG8,index_cabasse!$B$5:$O$89,$D8+2,FALSE))) -> EEQ | AI8: =IF(AH8="","",VLOOKUP(AG8,index_cabasse!$B$5:$O$89,2,FALSE)) -> 5608 | AL8: 7
A9: 6 | B9: =IF(index_classe!F8="","",IF(index_classe!$K$1="NON",index_classe!F8,IF(A9>index_classe!$P$1,"","Groupe 6"))) -> FA | C9: =IF(index_classe!G8="","",IF(index_classe!$K$1="NON",index_classe!G8,IF(A9>index_classe!$P$1,"",">>>>>"))) -> Dylan | D9: 10 | F9: 67 | G9: =IF(F9="","",IF($C$2<>"",VLOOKUP(F9,index_cabasse!$B$5:$O$89,$C$2+2,FALSE),VLOOKUP(F9,index_cabasse!$B$5:$O$89,$D9+2,FALSE))) -> GGJ | H9: =IF(G9="","",VLOOKUP(F9,index_cabasse!$B$5:$O$89,2,FALSE)) -> 6958 | I9: 73 | J9: =IF(I9="","",IF($C$2<>"",VLOOKUP(I9,index_cabasse!$B$5:$O$89,$C$2+2,FALSE),VLOOKUP(I9,index_cabasse!$B$5:$O$89,$D9+2,FALSE))) -> GGP | K9: =IF(J9="","",VLOOKUP(I9,index_cabasse!$B$5:$O$89,2,FALSE)) -> 3839 | L9: 78 | M9: =IF(L9="","",IF($C$2<>"",VLOOKUP(L9,index_cabasse!$B$5:$O$89,$C$2+2,FALSE),VLOOKUP(L9,index_cabasse!$B$5:$O$89,$D9+2,FALSE))) -> GGU | N9: =IF(M9="","",VLOOKUP(L9,index_cabasse!$B$5:$O$89,2,FALSE)) -> 8313 | O9: 71 | P9: =IF(O9="","",IF($C$2<>"",VLOOKUP(O9,index_cabasse!$B$5:$O$89,$C$2+2,FALSE),VLOOKUP(O9,index_cabasse!$B$5:$O$89,$D9+2,FALSE))) -> GGN | Q9: =IF(P9="","",VLOOKUP(O9,index_cabasse!$B$5:$O$89,2,FALSE)) -> 9531 | R9: 12 | S9: =IF(R9="","",IF($C$2<>"",VLOOKUP(R9,index_cabasse!$B$5:$O$89,$C$2+2,FALSE),VLOOKUP(R9,index_cabasse!$B$5:$O$89,$D9+2,FALSE))) -> EED | T9: =IF(S9="","",VLOOKUP(R9,index_cabasse!$B$5:$O$89,2,FALSE)) -> 4701 | U9: 11 | V9: =IF(U9="","",IF($C$2<>"",VLOOKUP(U9,index_cabasse!$B$5:$O$89,$C$2+2,FALSE),VLOOKUP(U9,index_cabasse!$B$5:$O$89,$D9+2,FALSE))) -> EEC | W9: =IF(V9="","",VLOOKUP(U9,index_cabasse!$B$5:$O$89,2,FALSE)) -> 4491 | X9: 31 | Y9: =IF(X9="","",IF($C$2<>"",VLOOKUP(X9,index_cabasse!$B$5:$O$89,$C$2+2,FALSE),VLOOKUP(X9,index_cabasse!$B$5:$O$89,$D9+2,FALSE))) -> EEX | Z9: =IF(Y9="","",VLOOKUP(X9,index_cabasse!$B$5:$O$89,2,FALSE)) -> 5735 | AA9: 19 | AB9: =IF(AA9="","",IF($C$2<>"",VLOOKUP(AA9,index_cabasse!$B$5:$O$89,$C$2+2,FALSE),VLOOKUP(AA9,index_cabasse!$B$5:$O$89,$D9+2,FALSE))) -> EEL | AC9: =IF(AB9="","",VLOOKUP(AA9,index_cabasse!$B$5:$O$89,2,FALSE)) -> 4933 | AD9: 73 | AE9: =IF(AD9="","",IF($C$2<>"",VLOOKUP(AD9,index_cabasse!$B$5:$O$89,$C$2+2,FALSE),VLOOKUP(AD9,index_cabasse!$B$5:$O$89,$D9+2,FALSE))) -> GGP | AF9: =IF(AE9="","",VLOOKUP(AD9,index_cabasse!$B$5:$O$89,2,FALSE)) -> 3839 | AG9: 12 | AH9: =IF(AG9="","",IF($C$2<>"",VLOOKUP(AG9,index_cabasse!$B$5:$O$89,$C$2+2,FALSE),VLOOKUP(AG9,index_cabasse!$B$5:$O$89,$D9+2,FALSE))) -> EED | AI9: =IF(AH9="","",VLOOKUP(AG9,index_cabasse!$B$5:$O$89,2,FALSE)) -> 4701 | AL9: 8
A10: 7 | B10: =IF(index_classe!F9="","",IF(index_classe!$K$1="NON",index_classe!F9,IF(A10>index_classe!$P$1,"","Groupe 7"))) -> FLEIN | C10: =IF(index_classe!G9="","",IF(index_classe!$K$1="NON",index_classe!G9,IF(A10>index_classe!$P$1,"",">>>>>"))) -> Theo | D10: 10 | F10: 3 | G10: =IF(F10="","",IF($C$2<>"",VLOOKUP(F10,index_cabasse!$B$5:$O$89,$C$2+2,FALSE),VLOOKUP(F10,index_cabasse!$B$5:$O$89,$D10+2,FALSE))) -> DDU | H10: =IF(G10="","",VLOOKUP(F10,index_cabasse!$B$5:$O$89,2,FALSE)) -> 6525 | I10: 20 | J10: =IF(I10="","",IF($C$2<>"",VLOOKUP(I10,index_cabasse!$B$5:$O$89,$C$2+2,FALSE),VLOOKUP(I10,index_cabasse!$B$5:$O$89,$D10+2,FALSE))) -> EEM | K10: =IF(J10="","",VLOOKUP(I10,index_cabasse!$B$5:$O$89,2,FALSE)) -> 5068 | L10: 62 | M10: =IF(L10="","",IF($C$2<>"",VLOOKUP(L10,index_cabasse!$B$5:$O$89,$C$2+2,FALSE),VLOOKUP(L10,index_cabasse!$B$5:$O$89,$D10+2,FALSE))) -> GGD | N10: =IF(M10="","",VLOOKUP(L10,index_cabasse!$B$5:$O$89,2,FALSE)) -> 6283 | O10: 64 | P10: =IF(O10="","",IF($C$2<>"",VLOOKUP(O10,index_cabasse!$B$5:$O$89,$C$2+2,FALSE),VLOOKUP(O10,index_cabasse!$B$5:$O$89,$D10+2,FALSE))) -> GGF | Q10: =IF(P10="","",VLOOKUP(O10,index_cabasse!$B$5:$O$89,2,FALSE)) -> 6553 | R10: 67 | S10: =IF(R10="","",IF($C$2<>"",VLOOKUP(R10,index_cabasse!$B$5:$O$89,$C$2+2,FALSE),VLOOKUP(R10,index_cabasse!$B$5:$O$89,$D10+2,FALSE))) -> GGJ | T10: =IF(S10="","",VLOOKUP(R10,index_cabasse!$B$5:$O$89,2,FALSE)) -> 6958 | U10: 51 | V10: =IF(U10="","",IF($C$2<>"",VLOOKUP(U10,index_cabasse!$B$5:$O$89,$C$2+2,FALSE),VLOOKUP(U10,index_cabasse!$B$5:$O$89,$D10+2,FALSE))) -> FFS | W10: =IF(V10="","",VLOOKUP(U10,index_cabasse!$B$5:$O$89,2,FALSE)) -> 4471 | X10: 83 | Y10: =IF(X10="","",IF($C$2<>"",VLOOKUP(X10,index_cabasse!$B$5:$O$89,$C$2+2,FALSE),VLOOKUP(X10,index_cabasse!$B$5:$O$89,$D10+2,FALSE))) -> GGZ | Z10: =IF(Y10="","",VLOOKUP(X10,index_cabasse!$B$5:$O$89,2,FALSE)) -> 3365 | AA10: 8 | AB10: =IF(AA10="","",IF($C$2<>"",VLOOKUP(AA10,index_cabasse!$B$5:$O$89,$C$2+2,FALSE),VLOOKUP(AA10,index_cabasse!$B$5:$O$89,$D10+2,FALSE))) -> DDZ | AC10: =IF(AB10="","",VLOOKUP(AA10,index_cabasse!$B$5:$O$89,2,FALSE)) -> 3861 | AD10: 68 | AE10: =IF(AD10="","",IF($C$2<>"",VLOOKUP(AD10,index_cabasse!$B$5:$O$89,$C$2+2,FALSE),VLOOKUP(AD10,index_cabasse!$B$5:$O$89,$D10+2,FALSE))) -> GGK | AF10: =IF(AE10="","",VLOOKUP(AD10,index_cabasse!$B$5:$O$89,2,FALSE)) -> 7093 | AG10: 13 | AH10: =IF(AG10="","",IF($C$2<>"",VLOOKUP(AG10,index_cabasse!$B$5:$O$89,$C$2+2,FALSE),VLOOKUP(AG10,index_cabasse!$B$5:$O$89,$D10+2,FALSE))) -> EEF | AI10: =IF(AH10="","",VLOOKUP(AG10,index_cabasse!$B$5:$O$89,2,FALSE)) -> 4911 | AL10: 9
A11: 8 | B11: =IF(index_classe!F10="","",IF(index_classe!$K$1="NON",index_classe!F10,IF(A11>index_classe!$P$1,"","Groupe 8"))) -> JEAON | C11: =IF(index_classe!G10="","",IF(index_classe!$K$1="NON",index_classe!G10,IF(A11>index_classe!$P$1,"",">>>>>"))) -> Alexis | D11: 10 | F11: 62 | G11: =IF(F11="","",IF($C$2<>"",VLOOKUP(F11,index_cabasse!$B$5:$O$89,$C$2+2,FALSE),VLOOKUP(F11,index_cabasse!$B$5:$O$89,$D11+2,FALSE))) -> GGD | H11: =IF(G11="","",VLOOKUP(F11,index_cabasse!$B$5:$O$89,2,FALSE)) -> 6283 | I11: 1 | J11: =IF(I11="","",IF($C$2<>"",VLOOKUP(I11,index_cabasse!$B$5:$O$89,$C$2+2,FALSE),VLOOKUP(I11,index_cabasse!$B$5:$O$89,$D11+2,FALSE))) -> DDS | K11: =IF(J11="","",VLOOKUP(I11,index_cabasse!$B$5:$O$89,2,FALSE)) -> 6841 | L11: 53 | M11: =IF(L11="","",IF($C$2<>"",VLOOKUP(L11,index_cabasse!$B$5:$O$89,$C$2+2,FALSE),VLOOKUP(L11,index_cabasse!$B$5:$O$89,$D11+2,FALSE))) -> FFU | N11: =IF(M11="","",VLOOKUP(L11,index_cabasse!$B$5:$O$89,2,FALSE)) -> 7851 | O11: 52 | P11: =IF(O11="","",IF($C$2<>"",VLOOKUP(O11,index_cabasse!$B$5:$O$89,$C$2+2,FALSE),VLOOKUP(O11,index_cabasse!$B$5:$O$89,$D11+2,FALSE))) -> FFT | Q11: =IF(P11="","",VLOOKUP(O11,index_cabasse!$B$5:$O$89,2,FALSE)) -> 7641 | R11: 68 | S11: =IF(R11="","",IF($C$2<>"",VLOOKUP(R11,index_cabasse!$B$5:$O$89,$C$2+2,FALSE),VLOOKUP(R11,index_cabasse!$B$5:$O$89,$D11+2,FALSE))) -> GGK | T11: =IF(S11="","",VLOOKUP(R11,index_cabasse!$B$5:$O$89,2,FALSE)) -> 7093 | U11: 13 | V11: =IF(U11="","",IF($C$2<>"",VLOOKUP(U11,index_cabasse!$B$5:$O$89,$C$2+2,FALSE),VLOOKUP(U11,index_cabasse!$B$5:$O$89,$D11+2,FALSE))) -> EEF | W11: =IF(V11="","",VLOOKUP(U11,index_cabasse!$B$5:$O$89,2,FALSE)) -> 4911 | X11: 79 | Y11: =IF(X11="","",IF($C$2<>"",VLOOKUP(X11,index_cabasse!$B$5:$O$89,$C$2+2,FALSE),VLOOKUP(X11,index_cabasse!$B$5:$O$89,$D11+2,FALSE))) -> GGV | Z11: =IF(Y11="","",VLOOKUP(X11,index_cabasse!$B$5:$O$89,2,FALSE)) -> 7767 | AA11: 31 | AB11: =IF(AA11="","",IF($C$2<>"",VLOOKUP(AA11,index_cabasse!$B$5:$O$89,$C$2+2,FALSE),VLOOKUP(AA11,index_cabasse!$B$5:$O$89,$D11+2,FALSE))) -> EEX | AC11: =IF(AB11="","",VLOOKUP(AA11,index_cabasse!$B$5:$O$89,2,FALSE)) -> 5735 | AD11: 16 | AE11: =IF(AD11="","",IF($C$2<>"",VLOOKUP(AD11,index_cabasse!$B$5:$O$89,$C$2+2,FALSE),VLOOKUP(AD11,index_cabasse!$B$5:$O$89,$D11+2,FALSE))) -> EEI | AF11: =IF(AE11="","",VLOOKUP(AD11,index_cabasse!$B$5:$O$89,2,FALSE)) -> 4528 | AG11: 75 | AH11: =IF(AG11="","",IF($C$2<>"",VLOOKUP(AG11,index_cabasse!$B$5:$O$89,$C$2+2,FALSE),VLOOKUP(AG11,index_cabasse!$B$5:$O$89,$D11+2,FALSE))) -> GGR | AI11: =IF(AH11="","",VLOOKUP(AG11,index_cabasse!$B$5:$O$89,2,FALSE)) -> 9951 | AL11: 10
A12: 9 | B12: =IF(index_classe!F11="","",IF(index_classe!$K$1="NON",index_classe!F11,IF(A12>index_classe!$P$1,"","Groupe 9"))) -> KOLA | C12: =IF(index_classe!G11="","",IF(index_classe!$K$1="NON",index_classe!G11,IF(A12>index_classe!$P$1,"",">>>>>"))) -> Alexandre | D12: 10 | F12: 79 | G12: =IF(F12="","",IF($C$2<>"",VLOOKUP(F12,index_cabasse!$B$5:$O$89,$C$2+2,FALSE),VLOOKUP(F12,index_cabasse!$B$5:$O$89,$D12+2,FALSE))) -> GGV | H12: =IF(G12="","",VLOOKUP(F12,index_cabasse!$B$5:$O$89,2,FALSE)) -> 7767 | I12: 22 | J12: =IF(I12="","",IF($C$2<>"",VLOOKUP(I12,index_cabasse!$B$5:$O$89,$C$2+2,FALSE),VLOOKUP(I12,index_cabasse!$B$5:$O$89,$D12+2,FALSE))) -> EEO | K12: =IF(J12="","",VLOOKUP(I12,index_cabasse!$B$5:$O$89,2,FALSE)) -> 5338 | L12: 45 | M12: =IF(L12="","",IF($C$2<>"",VLOOKUP(L12,index_cabasse!$B$5:$O$89,$C$2+2,FALSE),VLOOKUP(L12,index_cabasse!$B$5:$O$89,$D12+2,FALSE))) -> FFM | N12: =IF(M12="","",VLOOKUP(L12,index_cabasse!$B$5:$O$89,2,FALSE)) -> 7221 | O12: 2 | P12: =IF(O12="","",IF($C$2<>"",VLOOKUP(O12,index_cabasse!$B$5:$O$89,$C$2+2,FALSE),VLOOKUP(O12,index_cabasse!$B$5:$O$89,$D12+2,FALSE))) -> DDT | Q12: =IF(P12="","",VLOOKUP(O12,index_cabasse!$B$5:$O$89,2,FALSE)) -> 6683 | R12: 4 | S12: =IF(R12="","",IF($C$2<>"",VLOOKUP(R12,index_cabasse!$B$5:$O$89,$C$2+2,FALSE),VLOOKUP(R12,index_cabasse!$B$5:$O$89,$D12+2,FALSE))) -> DDV | T12: =IF(S12="","",VLOOKUP(R12,index_cabasse!$B$5:$O$89,2,FALSE)) -> 3021 | U12: 60 | V12: =IF(U12="","",IF($C$2<>"",VLOOKUP(U12,index_cabasse!$B$5:$O$89,$C$2+2,FALSE),VLOOKUP(U12,index_cabasse!$B$5:$O$89,$D12+2,FALSE))) -> GGB | W12: =IF(V12="","",VLOOKUP(U12,index_cabasse!$B$5:$O$89,2,FALSE)) -> 9321 | X12: 32 | Y12: =IF(X12="","",IF($C$2<>"",VLOOKUP(X12,index_cabasse!$B$5:$O$89,$C$2+2,FALSE),VLOOKUP(X12,index_cabasse!$B$5:$O$89,$D12+2,FALSE))) -> EEY | Z12: =IF(Y12="","",VLOOKUP(X12,index_cabasse!$B$5:$O$89,2,FALSE)) -> 5577 | AA12: 39 | AB12: =IF(AA12="","",IF($C$2<>"",VLOOKUP(AA12,index_cabasse!$B$5:$O$89,$C$2+2,FALSE),VLOOKUP(AA12,index_cabasse!$B$5:$O$89,$D12+2,FALSE))) -> FFG | AC12: =IF(AB12="","",VLOOKUP(AA12,index_cabasse!$B$5:$O$89,2,FALSE)) -> 6171 | AD12: 8 | AE12: =IF(AD12="","",IF($C$2<>"",VLOOKUP(AD12,index_cabasse!$B$5:$O$89,$C$2+2,FALSE),VLOOKUP(AD12,index_cabasse!$B$5:$O$89,$D12+2,FALSE))) -> DDZ | AF12: =IF(AE12="","",VLOOKUP(AD12,index_cabasse!$B$5:$O$89,2,FALSE)) -> 3861 | AG12: 22 | AH12: =IF(AG12="","",IF($C$2<>"",VLOOKUP(AG12,index_cabasse!$B$5:$O$89,$C$2+2,FALSE),VLOOKUP(AG12,index_cabasse!$B$5:$O$89,$D12+2,FALSE))) -> EEO | AI12: =IF(AH12="","",VLOOKUP(AG12,index_cabasse!$B$5:$O$89,2,FALSE)) -> 5338 | AL12: 11
A13: 10 | B13: =IF(index_classe!F12="","",IF(index_classe!$K$1="NON",index_classe!F12,IF(A13>index_classe!$P$1,"","Groupe 10"))) -> LERHE | C13: =IF(index_classe!G12="","",IF(index_classe!$K$1="NON",index_classe!G12,IF(A13>index_classe!$P$1,"",">>>>>"))) -> Melvin | D13: 10 | F13: 70 | G13: =IF(F13="","",IF($C$2<>"",VLOOKUP(F13,index_cabasse!$B$5:$O$89,$C$2+2,FALSE),VLOOKUP(F13,index_cabasse!$B$5:$O$89,$D13+2,FALSE))) -> GGM | H13: =IF(G13="","",VLOOKUP(F13,index_cabasse!$B$5:$O$89,2,FALSE)) -> 4155 | I13: 38 | J13: =IF(I13="","",IF($C$2<>"",VLOOKUP(I13,index_cabasse!$B$5:$O$89,$C$2+2,FALSE),VLOOKUP(I13,index_cabasse!$B$5:$O$89,$D13+2,FALSE))) -> FFE | K13: =IF(J13="","",VLOOKUP(I13,index_cabasse!$B$5:$O$89,2,FALSE)) -> 5961 | L13: 28 | M13: =IF(L13="","",IF($C$2<>"",VLOOKUP(L13,index_cabasse!$B$5:$O$89,$C$2+2,FALSE),VLOOKUP(L13,index_cabasse!$B$5:$O$89,$D13+2,FALSE))) -> EEU | N13: =IF(M13="","",VLOOKUP(L13,index_cabasse!$B$5:$O$89,2,FALSE)) -> 6148 | O13: 27 | P13: =IF(O13="","",IF($C$2<>"",VLOOKUP(O13,index_cabasse!$B$5:$O$89,$C$2+2,FALSE),VLOOKUP(O13,index_cabasse!$B$5:$O$89,$D13+2,FALSE))) -> EET | Q13: =IF(P13="","",VLOOKUP(O13,index_cabasse!$B$5:$O$89,2,FALSE)) -> 6013 | R13: 5 | S13: =IF(R13="","",IF($C$2<>"",VLOOKUP(R13,index_cabasse!$B$5:$O$89,$C$2+2,FALSE),VLOOKUP(R13,index_cabasse!$B$5:$O$89,$D13+2,FALSE))) -> DW | T13: =IF(S13="","",VLOOKUP(R13,index_cabasse!$B$5:$O$89,2,FALSE)) -> 3231 | U13: 21 | V13: =IF(U13="","",IF($C$2<>"",VLOOKUP(U13,index_cabasse!$B$5:$O$89,$C$2+2,FALSE),VLOOKUP(U13,index_cabasse!$B$5:$O$89,$D13+2,FALSE))) -> EEN | W13: =IF(V13="","",VLOOKUP(U13,index_cabasse!$B$5:$O$89,2,FALSE)) -> 5203 | X13: 37 | Y13: =IF(X13="","",IF($C$2<>"",VLOOKUP(X13,index_cabasse!$B$5:$O$89,$C$2+2,FALSE),VLOOKUP(X13,index_cabasse!$B$5:$O$89,$D13+2,FALSE))) -> FFD | Z13: =IF(Y13="","",VLOOKUP(X13,index_cabasse!$B$5:$O$89,2,FALSE)) -> 5751 | AA13: 39 | AB13: =IF(AA13="","",IF($C$2<>"",VLOOKUP(AA13,index_cabasse!$B$5:$O$89,$C$2+2,FALSE),VLOOKUP(AA13,index_cabasse!$B$5:$O$89,$D13+2,FALSE))) -> FFG | AC13: =IF(AB13="","",VLOOKUP(AA13,index_cabasse!$B$5:$O$89,2,FALSE)) -> 6171 | AD13: 84 | AE13: =IF(AD13="","",IF($C$2<>"",VLOOKUP(AD13,index_cabasse!$B$5:$O$89,$C$2+2,FALSE),VLOOKUP(AD13,index_cabasse!$B$5:$O$89,$D13+2,FALSE))) -> HHA | AF13: =IF(AE13="","",VLOOKUP(AD13,index_cabasse!$B$5:$O$89,2,FALSE)) -> 6675 | AG13: 49 | AH13: =IF(AG13="","",IF($C$2<>"",VLOOKUP(AG13,index_cabasse!$B$5:$O$89,$C$2+2,FALSE),VLOOKUP(AG13,index_cabasse!$B$5:$O$89,$D13+2,FALSE))) -> FFQ | AI13: =IF(AH13="","",VLOOKUP(AG13,index_cabasse!$B$5:$O$89,2,FALSE)) -> 4787 | AL13: 12
A14: 11 | B14: =IF(index_classe!F13="","",IF(index_classe!$K$1="NON",index_classe!F13,IF(A14>index_classe!$P$1,"","Groupe 11"))) -> LOE | C14: =IF(index_classe!G13="","",IF(index_classe!$K$1="NON",index_classe!G13,IF(A14>index_classe!$P$1,"",">>>>>"))) -> Mickael | D14: 10 | F14: 40 | G14: =IF(F14="","",IF($C$2<>"",VLOOKUP(F14,index_cabasse!$B$5:$O$89,$C$2+2,FALSE),VLOOKUP(F14,index_cabasse!$B$5:$O$89,$D14+2,FALSE))) -> FFH | H14: =IF(G14="","",VLOOKUP(F14,index_cabasse!$B$5:$O$89,2,FALSE)) -> 6381 | I14: 3 | J14: =IF(I14="","",IF($C$2<>"",VLOOKUP(I14,index_cabasse!$B$5:$O$89,$C$2+2,FALSE),VLOOKUP(I14,index_cabasse!$B$5:$O$89,$D14+2,FALSE))) -> DDU | K14: =IF(J14="","",VLOOKUP(I14,index_cabasse!$B$5:$O$89,2,FALSE)) -> 6525 | L14: 77 | M14: =IF(L14="","",IF($C$2<>"",VLOOKUP(L14,index_cabasse!$B$5:$O$89,$C$2+2,FALSE),VLOOKUP(L14,index_cabasse!$B$5:$O$89,$D14+2,FALSE))) -> GGT | N14: =IF(M14="","",VLOOKUP(L14,index_cabasse!$B$5:$O$89,2,FALSE)) -> 8859 | O14: 71 | P14: =IF(O14="","",IF($C$2<>"",VLOOKUP(O14,index_cabasse!$B$5:$O$89,$C$2+2,FALSE),VLOOKUP(O14,index_cabasse!$B$5:$O$89,$D14+2,FALSE))) -> GGN | Q14: =IF(P14="","",VLOOKUP(O14,index_cabasse!$B$5:$O$89,2,FALSE)) -> 9531 | R14: 77 | S14: =IF(R14="","",IF($C$2<>"",VLOOKUP(R14,index_cabasse!$B$5:$O$89,$C$2+2,FALSE),VLOOKUP(R14,index_cabasse!$B$5:$O$89,$D14+2,FALSE))) -> GGT | T14: =IF(S14="","",VLOOKUP(R14,index_cabasse!$B$5:$O$89,2,FALSE)) -> 8859 | U14: 75 | V14: =IF(U14="","",IF($C$2<>"",VLOOKUP(U14,index_cabasse!$B$5:$O$89,$C$2+2,FALSE),VLOOKUP(U14,index_cabasse!$B$5:$O$89,$D14+2,FALSE))) -> GGR | W14: =IF(V14="","",VLOOKUP(U14,index_cabasse!$B$5:$O$89,2,FALSE)) -> 9951 | X14: 39 | Y14: =IF(X14="","",IF($C$2<>"",VLOOKUP(X14,index_cabasse!$B$5:$O$89,$C$2+2,FALSE),VLOOKUP(X14,index_cabasse!$B$5:$O$89,$D14+2,FALSE))) -> FFG | Z14: =IF(Y14="","",VLOOKUP(X14,index_cabasse!$B$5:$O$89,2,FALSE)) -> 6171 | AA14: 32 | AB14: =IF(AA14="","",IF($C$2<>"",VLOOKUP(AA14,index_cabasse!$B$5:$O$89,$C$2+2,FALSE),VLOOKUP(AA14,index_cabasse!$B$5:$O$89,$D14+2,FALSE))) -> EEY | AC14: =IF(AB14="","",VLOOKUP(AA14,index_cabasse!$B$5:$O$89,2,FALSE)) -> 5577 | AD14: 19 | AE14: =IF(AD14="","",IF($C$2<>"",VLOOKUP(AD14,index_cabasse!$B$5:$O$89,$C$2+2,FALSE),VLOOKUP(AD14,index_cabasse!$B$5:$O$89,$D14+2,FALSE))) -> EEL | AF14: =IF(AE14="","",VLOOKUP(AD14,index_cabasse!$B$5:$O$89,2,FALSE)) -> 4933 | AG14: 55 | AH14: =IF(AG14="","",IF($C$2<>"",VLOOKUP(AG14,index_cabasse!$B$5:$O$89,$C$2+2,FALSE),VLOOKUP(AG14,index_cabasse!$B$5:$O$89,$D14+2,FALSE))) -> FFW | AI14: =IF(AH14="","",VLOOKUP(AG14,index_cabasse!$B$5:$O$89,2,FALSE)) -> 8271
A15: 12 | B15: =IF(index_classe!F14="","",IF(index_classe!$K$1="NON",index_classe!F14,IF(A15>index_classe!$P$1,"","Groupe 12"))) -> MORET | C15: =IF(index_classe!G14="","",IF(index_classe!$K$1="NON",index_classe!G14,IF(A15>index_classe!$P$1,"",">>>>>"))) -> Alice | D15: 10 | F15: 54 | G15: =IF(F15="","",IF($C$2<>"",VLOOKUP(F15,index_cabasse!$B$5:$O$89,$C$2+2,FALSE),VLOOKUP(F15,index_cabasse!$B$5:$O$89,$D15+2,FALSE))) -> FFV | H15: =IF(G15="","",VLOOKUP(F15,index_cabasse!$B$5:$O$89,2,FALSE)) -> 8061 | I15: 30 | J15: =IF(I15="","",IF($C$2<>"",VLOOKUP(I15,index_cabasse!$B$5:$O$89,$C$2+2,FALSE),VLOOKUP(I15,index_cabasse!$B$5:$O$89,$D15+2,FALSE))) -> EEW | K15: =IF(J15="","",VLOOKUP(I15,index_cabasse!$B$5:$O$89,2,FALSE)) -> 5893 | L15: 13 | M15: =IF(L15="","",IF($C$2<>"",VLOOKUP(L15,index_cabasse!$B$5:$O$89,$C$2+2,FALSE),VLOOKUP(L15,index_cabasse!$B$5:$O$89,$D15+2,FALSE))) -> EEF | N15: =IF(M15="","",VLOOKUP(L15,index_cabasse!$B$5:$O$89,2,FALSE)) -> 4911 | O15: 33 | P15: =IF(O15="","",IF($C$2<>"",VLOOKUP(O15,index_cabasse!$B$5:$O$89,$C$2+2,FALSE),VLOOKUP(O15,index_cabasse!$B$5:$O$89,$D15+2,FALSE))) -> EEZ | Q15: =IF(P15="","",VLOOKUP(O15,index_cabasse!$B$5:$O$89,2,FALSE)) -> 5121 | R15: 6 | S15: =IF(R15="","",IF($C$2<>"",VLOOKUP(R15,index_cabasse!$B$5:$O$89,$C$2+2,FALSE),VLOOKUP(R15,index_cabasse!$B$5:$O$89,$D15+2,FALSE))) -> DDX | T15: =IF(S15="","",VLOOKUP(R15,index_cabasse!$B$5:$O$89,2,FALSE)) -> 3441 | U15: 32 | V15: =IF(U15="","",IF($C$2<>"",VLOOKUP(U15,index_cabasse!$B$5:$O$89,$C$2+2,FALSE),VLOOKUP(U15,index_cabasse!$B$5:$O$89,$D15+2,FALSE))) -> EEY | W15: =IF(V15="","",VLOOKUP(U15,index_cabasse!$B$5:$O$89,2,FALSE)) -> 5577 | X15: 6 | Y15: =IF(X15="","",IF($C$2<>"",VLOOKUP(X15,index_cabasse!$B$5:$O$89,$C$2+2,FALSE),VLOOKUP(X15,index_cabasse!$B$5:$O$89,$D15+2,FALSE))) -> DDX | Z15: =IF(Y15="","",VLOOKUP(X15,index_cabasse!$B$5:$O$89,2,FALSE)) -> 3441 | AA15: 53 | AB15: =IF(AA15="","",IF($C$2<>"",VLOOKUP(AA15,index_cabasse!$B$5:$O$89,$C$2+2,FALSE),VLOOKUP(AA15,index_cabasse!$B$5:$O$89,$D15+2,FALSE))) -> FFU | AC15: =IF(AB15="","",VLOOKUP(AA15,index_cabasse!$B$5:$O$89,2,FALSE)) -> 7851 | AD15: 72 | AE15: =IF(AD15="","",IF($C$2<>"",VLOOKUP(AD15,index_cabasse!$B$5:$O$89,$C$2+2,FALSE),VLOOKUP(AD15,index_cabasse!$B$5:$O$89,$D15+2,FALSE))) -> GGO | AF15: =IF(AE15="","",VLOOKUP(AD15,index_cabasse!$B$5:$O$89,2,FALSE)) -> 3997 | AG15: 9 | AH15: =IF(AG15="","",IF($C$2<>"",VLOOKUP(AG15,index_cabasse!$B$5:$O$89,$C$2+2,FALSE),VLOOKUP(AG15,index_cabasse!$B$5:$O$89,$D15+2,FALSE))) -> EEA | AI15: =IF(AH15="","",VLOOKUP(AG15,index_cabasse!$B$5:$O$89,2,FALSE)) -> 4071
A16: 13 | B16: =IF(index_classe!F15="","",IF(index_classe!$K$1="NON",index_classe!F15,IF(A16>index_classe!$P$1,"","Groupe 13"))) -> NICAU | C16: =IF(index_classe!G15="","",IF(index_classe!$K$1="NON",index_classe!G15,IF(A16>index_classe!$P$1,"",">>>>>"))) -> Romain | D16: 10 | F16: 9 | G16: =IF(F16="","",IF($C$2<>"",VLOOKUP(F16,index_cabasse!$B$5:$O$89,$C$2+2,FALSE),VLOOKUP(F16,index_cabasse!$B$5:$O$89,$D16+2,FALSE))) -> EEA | H16: =IF(G16="","",VLOOKUP(F16,index_cabasse!$B$5:$O$89,2,FALSE)) -> 4071 | I16: 10 | J16: =IF(I16="","",IF($C$2<>"",VLOOKUP(I16,index_cabasse!$B$5:$O$89,$C$2+2,FALSE),VLOOKUP(I16,index_cabasse!$B$5:$O$89,$D16+2,FALSE))) -> EEB | K16: =IF(J16="","",VLOOKUP(I16,index_cabasse!$B$5:$O$89,2,FALSE)) -> 4281 | L16: 66 | M16: =IF(L16="","",IF($C$2<>"",VLOOKUP(L16,index_cabasse!$B$5:$O$89,$C$2+2,FALSE),VLOOKUP(L16,index_cabasse!$B$5:$O$89,$D16+2,FALSE))) -> GGI | N16: =IF(M16="","",VLOOKUP(L16,index_cabasse!$B$5:$O$89,2,FALSE)) -> 6823 | O16: 49 | P16: =IF(O16="","",IF($C$2<>"",VLOOKUP(O16,index_cabasse!$B$5:$O$89,$C$2+2,FALSE),VLOOKUP(O16,index_cabasse!$B$5:$O$89,$D16+2,FALSE))) -> FFQ | Q16: =IF(P16="","",VLOOKUP(O16,index_cabasse!$B$5:$O$89,2,FALSE)) -> 4787 | R16: 66 | S16: =IF(R16="","",IF($C$2<>"",VLOOKUP(R16,index_cabasse!$B$5:$O$89,$C$2+2,FALSE),VLOOKUP(R16,index_cabasse!$B$5:$O$89,$D16+2,FALSE))) -> GGI | T16: =IF(S16="","",VLOOKUP(R16,index_cabasse!$B$5:$O$89,2,FALSE)) -> 6823 | U16: 39 | V16: =IF(U16="","",IF($C$2<>"",VLOOKUP(U16,index_cabasse!$B$5:$O$89,$C$2+2,FALSE),VLOOKUP(U16,index_cabasse!$B$5:$O$89,$D16+2,FALSE))) -> FFG | W16: =IF(V16="","",VLOOKUP(U16,index_cabasse!$B$5:$O$89,2,FALSE)) -> 6171 | X16: 80 | Y16: =IF(X16="","",IF($C$2<>"",VLOOKUP(X16,index_cabasse!$B$5:$O$89,$C$2+2,FALSE),VLOOKUP(X16,index_cabasse!$B$5:$O$89,$D16+2,FALSE))) -> GGW | Z16: =IF(Y16="","",VLOOKUP(X16,index_cabasse!$B$5:$O$89,2,FALSE)) -> 7221 | AA16: 44 | AB16: =IF(AA16="","",IF($C$2<>"",VLOOKUP(AA16,index_cabasse!$B$5:$O$89,$C$2+2,FALSE),VLOOKUP(AA16,index_cabasse!$B$5:$O$89,$D16+2,FALSE))) -> FFL | AC16: =IF(AB16="","",VLOOKUP(AA16,index_cabasse!$B$5:$O$89,2,FALSE)) -> 5261 | AD16: 48 | AE16: =IF(AD16="","",IF($C$2<>"",VLOOKUP(AD16,index_cabasse!$B$5:$O$89,$C$2+2,FALSE),VLOOKUP(AD16,index_cabasse!$B$5:$O$89,$D16+2,FALSE))) -> FFP | AF16: =IF(AE16="","",VLOOKUP(AD16,index_cabasse!$B$5:$O$89,2,FALSE)) -> 4945 | AG16: 61 | AH16: =IF(AG16="","",IF($C$2<>"",VLOOKUP(AG16,index_cabasse!$B$5:$O$89,$C$2+2,FALSE),VLOOKUP(AG16,index_cabasse!$B$5:$O$89,$D16+2,FALSE))) -> GGC | AI16: =IF(AH16="","",VLOOKUP(AG16,index_cabasse!$B$5:$O$89,2,FALSE)) -> 4313
A17: 14 | B17: =IF(index_classe!F16="","",IF(index_classe!$K$1="NON",index_classe!F16,IF(A17>index_classe!$P$1,"","Groupe 14"))) -> RUI | C17: =IF(index_classe!G16="","",IF(index_classe!$K$1="NON",index_classe!G16,IF(A17>index_classe!$P$1,"",">>>>>"))) -> Desiderio | D17: 10 | F17: 3 | G17: =IF(F17="","",IF($C$2<>"",VLOOKUP(F17,index_cabasse!$B$5:$O$89,$C$2+2,FALSE),VLOOKUP(F17,index_cabasse!$B$5:$O$89,$D17+2,FALSE))) -> DDU | H17: =IF(G17="","",VLOOKUP(F17,index_cabasse!$B$5:$O$89,2,FALSE)) -> 6525 | I17: 6 | J17: =IF(I17="","",IF($C$2<>"",VLOOKUP(I17,index_cabasse!$B$5:$O$89,$C$2+2,FALSE),VLOOKUP(I17,index_cabasse!$B$5:$O$89,$D17+2,FALSE))) -> DDX | K17: =IF(J17="","",VLOOKUP(I17,index_cabasse!$B$5:$O$89,2,FALSE)) -> 3441 | L17: 9 | M17: =IF(L17="","",IF($C$2<>"",VLOOKUP(L17,index_cabasse!$B$5:$O$89,$C$2+2,FALSE),VLOOKUP(L17,index_cabasse!$B$5:$O$89,$D17+2,FALSE))) -> EEA | N17: =IF(M17="","",VLOOKUP(L17,index_cabasse!$B$5:$O$89,2,FALSE)) -> 4071 | O17: 80 | P17: =IF(O17="","",IF($C$2<>"",VLOOKUP(O17,index_cabasse!$B$5:$O$89,$C$2+2,FALSE),VLOOKUP(O17,index_cabasse!$B$5:$O$89,$D17+2,FALSE))) -> GGW | Q17: =IF(P17="","",VLOOKUP(O17,index_cabasse!$B$5:$O$89,2,FALSE)) -> 7221 | R17: 39 | S17: =IF(R17="","",IF($C$2<>"",VLOOKUP(R17,index_cabasse!$B$5:$O$89,$C$2+2,FALSE),VLOOKUP(R17,index_cabasse!$B$5:$O$89,$D17+2,FALSE))) -> FFG | T17: =IF(S17="","",VLOOKUP(R17,index_cabasse!$B$5:$O$89,2,FALSE)) -> 6171 | U17: 14 | V17: =IF(U17="","",IF($C$2<>"",VLOOKUP(U17,index_cabasse!$B$5:$O$89,$C$2+2,FALSE),VLOOKUP(U17,index_cabasse!$B$5:$O$89,$D17+2,FALSE))) -> EEG | W17: =IF(V17="","",VLOOKUP(U17,index_cabasse!$B$5:$O$89,2,FALSE)) -> 6367 | X17: 14 | Y17: =IF(X17="","",IF($C$2<>"",VLOOKUP(X17,index_cabasse!$B$5:$O$89,$C$2+2,FALSE),VLOOKUP(X17,index_cabasse!$B$5:$O$89,$D17+2,FALSE))) -> EEG | Z17: =IF(Y17="","",VLOOKUP(X17,index_cabasse!$B$5:$O$89,2,FALSE)) -> 6367 | AA17: 67 | AB17: =IF(AA17="","",IF($C$2<>"",VLOOKUP(AA17,index_cabasse!$B$5:$O$89,$C$2+2,FALSE),VLOOKUP(AA17,index_cabasse!$B$5:$O$89,$D17+2,FALSE))) -> GGJ | AC17: =IF(AB17="","",VLOOKUP(AA17,index_cabasse!$B$5:$O$89,2,FALSE)) -> 6958 | AD17: 25 | AE17: =IF(AD17="","",IF($C$2<>"",VLOOKUP(AD17,index_cabasse!$B$5:$O$89,$C$2+2,FALSE),VLOOKUP(AD17,index_cabasse!$B$5:$O$89,$D17+2,FALSE))) -> EER | AF17: =IF(AE17="","",VLOOKUP(AD17,index_cabasse!$B$5:$O$89,2,FALSE)) -> 5743 | AG17: 77 | AH17: =IF(AG17="","",IF($C$2<>"",VLOOKUP(AG17,index_cabasse!$B$5:$O$89,$C$2+2,FALSE),VLOOKUP(AG17,index_cabasse!$B$5:$O$89,$D17+2,FALSE))) -> GGT | AI17: =IF(AH17="","",VLOOKUP(AG17,index_cabasse!$B$5:$O$89,2,FALSE)) -> 8859
A18: 15 | B18: =IF(index_classe!F17="","",IF(index_classe!$K$1="NON",index_classe!F17,IF(A18>index_classe!$P$1,"","Groupe 15"))) -> RI | C18: =IF(index_classe!G17="","",IF(index_classe!$K$1="NON",index_classe!G17,IF(A18>index_classe!$P$1,"",">>>>>"))) -> Niko | D18: 10 | F18: 26 | G18: =IF(F18="","",IF($C$2<>"",VLOOKUP(F18,index_cabasse!$B$5:$O$89,$C$2+2,FALSE),VLOOKUP(F18,index_cabasse!$B$5:$O$89,$D18+2,FALSE))) -> EES | H18: =IF(G18="","",VLOOKUP(F18,index_cabasse!$B$5:$O$89,2,FALSE)) -> 5878 | I18: 43 | J18: =IF(I18="","",IF($C$2<>"",VLOOKUP(I18,index_cabasse!$B$5:$O$89,$C$2+2,FALSE),VLOOKUP(I18,index_cabasse!$B$5:$O$89,$D18+2,FALSE))) -> FFK | K18: =IF(J18="","",VLOOKUP(I18,index_cabasse!$B$5:$O$89,2,FALSE)) -> 7011 | L18: 49 | M18: =IF(L18="","",IF($C$2<>"",VLOOKUP(L18,index_cabasse!$B$5:$O$89,$C$2+2,FALSE),VLOOKUP(L18,index_cabasse!$B$5:$O$89,$D18+2,FALSE))) -> FFQ | N18: =IF(M18="","",VLOOKUP(L18,index_cabasse!$B$5:$O$89,2,FALSE)) -> 4787 | O18: 12 | P18: =IF(O18="","",IF($C$2<>"",VLOOKUP(O18,index_cabasse!$B$5:$O$89,$C$2+2,FALSE),VLOOKUP(O18,index_cabasse!$B$5:$O$89,$D18+2,FALSE))) -> EED | Q18: =IF(P18="","",VLOOKUP(O18,index_cabasse!$B$5:$O$89,2,FALSE)) -> 4701 | R18: 71 | S18: =IF(R18="","",IF($C$2<>"",VLOOKUP(R18,index_cabasse!$B$5:$O$89,$C$2+2,FALSE),VLOOKUP(R18,index_cabasse!$B$5:$O$89,$D18+2,FALSE))) -> GGN | T18: =IF(S18="","",VLOOKUP(R18,index_cabasse!$B$5:$O$89,2,FALSE)) -> 9531 | U18: 41 | V18: =IF(U18="","",IF($C$2<>"",VLOOKUP(U18,index_cabasse!$B$5:$O$89,$C$2+2,FALSE),VLOOKUP(U18,index_cabasse!$B$5:$O$89,$D18+2,FALSE))) -> FFI | W18: =IF(V18="","",VLOOKUP(U18,index_cabasse!$B$5:$O$89,2,FALSE)) -> 6591 | X18: 41 | Y18: =IF(X18="","",IF($C$2<>"",VLOOKUP(X18,index_cabasse!$B$5:$O$89,$C$2+2,FALSE),VLOOKUP(X18,index_cabasse!$B$5:$O$89,$D18+2,FALSE))) -> FFI | Z18: =IF(Y18="","",VLOOKUP(X18,index_cabasse!$B$5:$O$89,2,FALSE)) -> 6591 | AA18: 57 | AB18: =IF(AA18="","",IF($C$2<>"",VLOOKUP(AA18,index_cabasse!$B$5:$O$89,$C$2+2,FALSE),VLOOKUP(AA18,index_cabasse!$B$5:$O$89,$D18+2,FALSE))) -> FFY | AC18: =IF(AB18="","",VLOOKUP(AA18,index_cabasse!$B$5:$O$89,2,FALSE)) -> 8691 | AD18: 58 | AE18: =IF(AD18="","",IF($C$2<>"",VLOOKUP(AD18,index_cabasse!$B$5:$O$89,$C$2+2,FALSE),VLOOKUP(AD18,index_cabasse!$B$5:$O$89,$D18+2,FALSE))) -> FFZ | AF18: =IF(AE18="","",VLOOKUP(AD18,index_cabasse!$B$5:$O$89,2,FALSE)) -> 8901 | AG18: 48 | AH18: =IF(AG18="","",IF($C$2<>"",VLOOKUP(AG18,index_cabasse!$B$5:$O$89,$C$2+2,FALSE),VLOOKUP(AG18,index_cabasse!$B$5:$O$89,$D18+2,FALSE))) -> FFP | AI18: =IF(AH18="","",VLOOKUP(AG18,index_cabasse!$B$5:$O$89,2,FALSE)) -> 4945
A19: 16 | B19: =IF(index_classe!F18="","",IF(index_classe!$K$1="NON",index_classe!F18,IF(A19>index_classe!$P$1,"","Groupe 16"))) -> SAL | C19: =IF(index_classe!G18="","",IF(index_classe!$K$1="NON",index_classe!G18,IF(A19>index_classe!$P$1,"",">>>>>"))) -> Calvin | D19: 10 | F19: 52 | G19: =IF(F19="","",IF($C$2<>"",VLOOKUP(F19,index_cabasse!$B$5:$O$89,$C$2+2,FALSE),VLOOKUP(F19,index_cabasse!$B$5:$O$89,$D19+2,FALSE))) -> FFT | H19: =IF(G19="","",VLOOKUP(F19,index_cabasse!$B$5:$O$89,2,FALSE)) -> 7641 | I19: 30 | J19: =IF(I19="","",IF($C$2<>"",VLOOKUP(I19,index_cabasse!$B$5:$O$89,$C$2+2,FALSE),VLOOKUP(I19,index_cabasse!$B$5:$O$89,$D19+2,FALSE))) -> EEW | K19: =IF(J19="","",VLOOKUP(I19,index_cabasse!$B$5:$O$89,2,FALSE)) -> 5893 | L19: 84 | M19: =IF(L19="","",IF($C$2<>"",VLOOKUP(L19,index_cabasse!$B$5:$O$89,$C$2+2,FALSE),VLOOKUP(L19,index_cabasse!$B$5:$O$89,$D19+2,FALSE))) -> HHA | N19: =IF(M19="","",VLOOKUP(L19,index_cabasse!$B$5:$O$89,2,FALSE)) -> 6675 | O19: 83 | P19: =IF(O19="","",IF($C$2<>"",VLOOKUP(O19,index_cabasse!$B$5:$O$89,$C$2+2,FALSE),VLOOKUP(O19,index_cabasse!$B$5:$O$89,$D19+2,FALSE))) -> GGZ | Q19: =IF(P19="","",VLOOKUP(O19,index_cabasse!$B$5:$O$89,2,FALSE)) -> 3365 | R19: 9 | S19: =IF(R19="","",IF($C$2<>"",VLOOKUP(R19,index_cabasse!$B$5:$O$89,$C$2+2,FALSE),VLOOKUP(R19,index_cabasse!$B$5:$O$89,$D19+2,FALSE))) -> EEA | T19: =IF(S19="","",VLOOKUP(R19,index_cabasse!$B$5:$O$89,2,FALSE)) -> 4071 | U19: 55 | V19: =IF(U19="","",IF($C$2<>"",VLOOKUP(U19,index_cabasse!$B$5:$O$89,$C$2+2,FALSE),VLOOKUP(U19,index_cabasse!$B$5:$O$89,$D19+2,FALSE))) -> FFW | W19: =IF(V19="","",VLOOKUP(U19,index_cabasse!$B$5:$O$89,2,FALSE)) -> 8271 | X19: 15 | Y19: =IF(X19="","",IF($C$2<>"",VLOOKUP(X19,index_cabasse!$B$5:$O$89,$C$2+2,FALSE),VLOOKUP(X19,index_cabasse!$B$5:$O$89,$D19+2,FALSE))) -> EEH | Z19: =IF(Y19="","",VLOOKUP(X19,index_cabasse!$B$5:$O$89,2,FALSE)) -> 6209 | AA19: 37 | AB19: =IF(AA19="","",IF($C$2<>"",VLOOKUP(AA19,index_cabasse!$B$5:$O$89,$C$2+2,FALSE),VLOOKUP(AA19,index_cabasse!$B$5:$O$89,$D19+2,FALSE))) -> FFD | AC19: =IF(AB19="","",VLOOKUP(AA19,index_cabasse!$B$5:$O$89,2,FALSE)) -> 5751 | AD19: 70 | AE19: =IF(AD19="","",IF($C$2<>"",VLOOKUP(AD19,index_cabasse!$B$5:$O$89,$C$2+2,FALSE),VLOOKUP(AD19,index_cabasse!$B$5:$O$89,$D19+2,FALSE))) -> GGM | AF19: =IF(AE19="","",VLOOKUP(AD19,index_cabasse!$B$5:$O$89,2,FALSE)) -> 4155 | AG19: 1 | AH19: =IF(AG19="","",IF($C$2<>"",VLOOKUP(AG19,index_cabasse!$B$5:$O$89,$C$2+2,FALSE),VLOOKUP(AG19,index_cabasse!$B$5:$O$89,$D19+2,FALSE))) -> DDS | AI19: =IF(AH19="","",VLOOKUP(AG19,index_cabasse!$B$5:$O$89,2,FALSE)) -> 6841
A20: 17 | B20: =IF(index_classe!F19="","",IF(index_classe!$K$1="NON",index_classe!F19,IF(A20>index_classe!$P$1,"","Groupe 17"))) -> SIOUI | C20: =IF(index_classe!G19="","",IF(index_classe!$K$1="NON",index_classe!G19,IF(A20>index_classe!$P$1,"",">>>>>"))) -> Salah | D20: 10 | F20: 57 | G20: =IF(F20="","",IF($C$2<>"",VLOOKUP(F20,index_cabasse!$B$5:$O$89,$C$2+2,FALSE),VLOOKUP(F20,index_cabasse!$B$5:$O$89,$D20+2,FALSE))) -> FFY | H20: =IF(G20="","",VLOOKUP(F20,index_cabasse!$B$5:$O$89,2,FALSE)) -> 8691 | I20: 42 | J20: =IF(I20="","",IF($C$2<>"",VLOOKUP(I20,index_cabasse!$B$5:$O$89,$C$2+2,FALSE),VLOOKUP(I20,index_cabasse!$B$5:$O$89,$D20+2,FALSE))) -> FFJ | K20: =IF(J20="","",VLOOKUP(I20,index_cabasse!$B$5:$O$89,2,FALSE)) -> 6801 | L20: 46 | M20: =IF(L20="","",IF($C$2<>"",VLOOKUP(L20,index_cabasse!$B$5:$O$89,$C$2+2,FALSE),VLOOKUP(L20,index_cabasse!$B$5:$O$89,$D20+2,FALSE))) -> FFN | N20: =IF(M20="","",VLOOKUP(L20,index_cabasse!$B$5:$O$89,2,FALSE)) -> 7431 | O20: 1 | P20: =IF(O20="","",IF($C$2<>"",VLOOKUP(O20,index_cabasse!$B$5:$O$89,$C$2+2,FALSE),VLOOKUP(O20,index_cabasse!$B$5:$O$89,$D20+2,FALSE))) -> DDS | Q20: =IF(P20="","",VLOOKUP(O20,index_cabasse!$B$5:$O$89,2,FALSE)) -> 6841 | R20: 41 | S20: =IF(R20="","",IF($C$2<>"",VLOOKUP(R20,index_cabasse!$B$5:$O$89,$C$2+2,FALSE),VLOOKUP(R20,index_cabasse!$B$5:$O$89,$D20+2,FALSE))) -> FFI | T20: =IF(S20="","",VLOOKUP(R20,index_cabasse!$B$5:$O$89,2,FALSE)) -> 6591 | U20: 72 | V20: =IF(U20="","",IF($C$2<>"",VLOOKUP(U20,index_cabasse!$B$5:$O$89,$C$2+2,FALSE),VLOOKUP(U20,index_cabasse!$B$5:$O$89,$D20+2,FALSE))) -> GGO | W20: =IF(V20="","",VLOOKUP(U20,index_cabasse!$B$5:$O$89,2,FALSE)) -> 3997 | X20: 69 | Y20: =IF(X20="","",IF($C$2<>"",VLOOKUP(X20,index_cabasse!$B$5:$O$89,$C$2+2,FALSE),VLOOKUP(X20,index_cabasse!$B$5:$O$89,$D20+2,FALSE))) -> GGL | Z20: =IF(Y20="","",VLOOKUP(X20,index_cabasse!$B$5:$O$89,2,FALSE)) -> 7228 | AA20: 64 | AB20: =IF(AA20="","",IF($C$2<>"",VLOOKUP(AA20,index_cabasse!$B$5:$O$89,$C$2+2,FALSE),VLOOKUP(AA20,index_cabasse!$B$5:$O$89,$D20+2,FALSE))) -> GGF | AC20: =IF(AB20="","",VLOOKUP(AA20,index_cabasse!$B$5:$O$89,2,FALSE)) -> 6553 | AD20: 38 | AE20: =IF(AD20="","",IF($C$2<>"",VLOOKUP(AD20,index_cabasse!$B$5:$O$89,$C$2+2,FALSE),VLOOKUP(AD20,index_cabasse!$B$5:$O$89,$D20+2,FALSE))) -> FFE | AF20: =IF(AE20="","",VLOOKUP(AD20,index_cabasse!$B$5:$O$89,2,FALSE)) -> 5961 | AG20: 57 | AH20: =IF(AG20="","",IF($C$2<>"",VLOOKUP(AG20,index_cabasse!$B$5:$O$89,$C$2+2,FALSE),VLOOKUP(AG20,index_cabasse!$B$5:$O$89,$D20+2,FALSE))) -> FFY | AI20: =IF(AH20="","",VLOOKUP(AG20,index_cabasse!$B$5:$O$89,2,FALSE)) -> 8691
A21: 18 | B21: =IF(index_classe!F20="","",IF(index_classe!$K$1="NON",index_classe!F20,IF(A21>index_classe!$P$1,"","Groupe 18"))) -> TADEVA | C21: =IF(index_classe!G20="","",IF(index_classe!$K$1="NON",index_classe!G20,IF(A21>index_classe!$P$1,"",">>>>>"))) -> Khatmat | D21: 10 | F21: 66 | G21: =IF(F21="","",IF($C$2<>"",VLOOKUP(F21,index_cabasse!$B$5:$O$89,$C$2+2,FALSE),VLOOKUP(F21,index_cabasse!$B$5:$O$89,$D21+2,FALSE))) -> GGI | H21: =IF(G21="","",VLOOKUP(F21,index_cabasse!$B$5:$O$89,2,FALSE)) -> 6823 | I21: 29 | J21: =IF(I21="","",IF($C$2<>"",VLOOKUP(I21,index_cabasse!$B$5:$O$89,$C$2+2,FALSE),VLOOKUP(I21,index_cabasse!$B$5:$O$89,$D21+2,FALSE))) -> EEV | K21: =IF(J21="","",VLOOKUP(I21,index_cabasse!$B$5:$O$89,2,FALSE)) -> 6051 | L21: 14 | M21: =IF(L21="","",IF($C$2<>"",VLOOKUP(L21,index_cabasse!$B$5:$O$89,$C$2+2,FALSE),VLOOKUP(L21,index_cabasse!$B$5:$O$89,$D21+2,FALSE))) -> EEG | N21: =IF(M21="","",VLOOKUP(L21,index_cabasse!$B$5:$O$89,2,FALSE)) -> 6367 | O21: 76 | P21: =IF(O21="","",IF($C$2<>"",VLOOKUP(O21,index_cabasse!$B$5:$O$89,$C$2+2,FALSE),VLOOKUP(O21,index_cabasse!$B$5:$O$89,$D21+2,FALSE))) -> GGS | Q21: =IF(P21="","",VLOOKUP(O21,index_cabasse!$B$5:$O$89,2,FALSE)) -> 9405 | R21: 53 | S21: =IF(R21="","",IF($C$2<>"",VLOOKUP(R21,index_cabasse!$B$5:$O$89,$C$2+2,FALSE),VLOOKUP(R21,index_cabasse!$B$5:$O$89,$D21+2,FALSE))) -> FFU | T21: =IF(S21="","",VLOOKUP(R21,index_cabasse!$B$5:$O$89,2,FALSE)) -> 7851 | U21: 12 | V21: =IF(U21="","",IF($C$2<>"",VLOOKUP(U21,index_cabasse!$B$5:$O$89,$C$2+2,FALSE),VLOOKUP(U21,index_cabasse!$B$5:$O$89,$D21+2,FALSE))) -> EED | W21: =IF(V21="","",VLOOKUP(U21,index_cabasse!$B$5:$O$89,2,FALSE)) -> 4701 | X21: 59 | Y21: =IF(X21="","",IF($C$2<>"",VLOOKUP(X21,index_cabasse!$B$5:$O$89,$C$2+2,FALSE),VLOOKUP(X21,index_cabasse!$B$5:$O$89,$D21+2,FALSE))) -> GGA | Z21: =IF(Y21="","",VLOOKUP(X21,index_cabasse!$B$5:$O$89,2,FALSE)) -> 9111 | AA21: 47 | AB21: =IF(AA21="","",IF($C$2<>"",VLOOKUP(AA21,index_cabasse!$B$5:$O$89,$C$2+2,FALSE),VLOOKUP(AA21,index_cabasse!$B$5:$O$89,$D21+2,FALSE))) -> FFO | AC21: =IF(AB21="","",VLOOKUP(AA21,index_cabasse!$B$5:$O$89,2,FALSE)) -> 5103 | AD21: 66 | AE21: =IF(AD21="","",IF($C$2<>"",VLOOKUP(AD21,index_cabasse!$B$5:$O$89,$C$2+2,FALSE),VLOOKUP(AD21,index_cabasse!$B$5:$O$89,$D21+2,FALSE))) -> GGI | AF21: =IF(AE21="","",VLOOKUP(AD21,index_cabasse!$B$5:$O$89,2,FALSE)) -> 6823 | AG21: 79 | AH21: =IF(AG21="","",IF($C$2<>"",VLOOKUP(AG21,index_cabasse!$B$5:$O$89,$C$2+2,FALSE),VLOOKUP(AG21,index_cabasse!$B$5:$O$89,$D21+2,FALSE))) -> GGV | AI21: =IF(AH21="","",VLOOKUP(AG21,index_cabasse!$B$5:$O$89,2,FALSE)) -> 7767
A22: 19 | B22: =IF(index_classe!F21="","",IF(index_classe!$K$1="NON",index_classe!F21,IF(A22>index_classe!$P$1,"","Groupe 19"))) -> TEEC | C22: =IF(index_classe!G21="","",IF(index_classe!$K$1="NON",index_classe!G21,IF(A22>index_classe!$P$1,"",">>>>>"))) -> Victor | D22: 10 | F22: 54 | G22: =IF(F22="","",IF($C$2<>"",VLOOKUP(F22,index_cabasse!$B$5:$O$89,$C$2+2,FALSE),VLOOKUP(F22,index_cabasse!$B$5:$O$89,$D22+2,FALSE))) -> FFV | H22: =IF(G22="","",VLOOKUP(F22,index_cabasse!$B$5:$O$89,2,FALSE)) -> 8061 | I22: 79 | J22: =IF(I22="","",IF($C$2<>"",VLOOKUP(I22,index_cabasse!$B$5:$O$89,$C$2+2,FALSE),VLOOKUP(I22,index_cabasse!$B$5:$O$89,$D22+2,FALSE))) -> GGV | K22: =IF(J22="","",VLOOKUP(I22,index_cabasse!$B$5:$O$89,2,FALSE)) -> 7767 | L22: 51 | M22: =IF(L22="","",IF($C$2<>"",VLOOKUP(L22,index_cabasse!$B$5:$O$89,$C$2+2,FALSE),VLOOKUP(L22,index_cabasse!$B$5:$O$89,$D22+2,FALSE))) -> FFS | N22: =IF(M22="","",VLOOKUP(L22,index_cabasse!$B$5:$O$89,2,FALSE)) -> 4471 | O22: 79 | P22: =IF(O22="","",IF($C$2<>"",VLOOKUP(O22,index_cabasse!$B$5:$O$89,$C$2+2,FALSE),VLOOKUP(O22,index_cabasse!$B$5:$O$89,$D22+2,FALSE))) -> GGV | Q22: =IF(P22="","",VLOOKUP(O22,index_cabasse!$B$5:$O$89,2,FALSE)) -> 7767 | R22: 48 | S22: =IF(R22="","",IF($C$2<>"",VLOOKUP(R22,index_cabasse!$B$5:$O$89,$C$2+2,FALSE),VLOOKUP(R22,index_cabasse!$B$5:$O$89,$D22+2,FALSE))) -> FFP | T22: =IF(S22="","",VLOOKUP(R22,index_cabasse!$B$5:$O$89,2,FALSE)) -> 4945 | U22: 82 | V22: =IF(U22="","",IF($C$2<>"",VLOOKUP(U22,index_cabasse!$B$5:$O$89,$C$2+2,FALSE),VLOOKUP(U22,index_cabasse!$B$5:$O$89,$D22+2,FALSE))) -> GGY | W22: =IF(V22="","",VLOOKUP(U22,index_cabasse!$B$5:$O$89,2,FALSE)) -> 3523 | X22: 9 | Y22: =IF(X22="","",IF($C$2<>"",VLOOKUP(X22,index_cabasse!$B$5:$O$89,$C$2+2,FALSE),VLOOKUP(X22,index_cabasse!$B$5:$O$89,$D22+2,FALSE))) -> EEA | Z22: =IF(Y22="","",VLOOKUP(X22,index_cabasse!$B$5:$O$89,2,FALSE)) -> 4071 | AA22: 25 | AB22: =IF(AA22="","",IF($C$2<>"",VLOOKUP(AA22,index_cabasse!$B$5:$O$89,$C$2+2,FALSE),VLOOKUP(AA22,index_cabasse!$B$5:$O$89,$D22+2,FALSE))) -> EER | AC22: =IF(AB22="","",VLOOKUP(AA22,index_cabasse!$B$5:$O$89,2,FALSE)) -> 5743 | AD22: 37 | AE22: =IF(AD22="","",IF($C$2<>"",VLOOKUP(AD22,index_cabasse!$B$5:$O$89,$C$2+2,FALSE),VLOOKUP(AD22,index_cabasse!$B$5:$O$89,$D22+2,FALSE))) -> FFD | AF22: =IF(AE22="","",VLOOKUP(AD22,index_cabasse!$B$5:$O$89,2,FALSE)) -> 5751 | AG22: 45 | AH22: =IF(AG22="","",IF($C$2<>"",VLOOKUP(AG22,index_cabasse!$B$5:$O$89,$C$2+2,FALSE),VLOOKUP(AG22,index_cabasse!$B$5:$O$89,$D22+2,FALSE))) -> FFM | AI22: =IF(AH22="","",VLOOKUP(AG22,index_cabasse!$B$5:$O$89,2,FALSE)) -> 7221
A23: 20 | B23: =IF(index_classe!F22="","",IF(index_classe!$K$1="NON",index_classe!F22,IF(A23>index_classe!$P$1,"","Groupe 20"))) -> TEJOR | C23: =IF(index_classe!G22="","",IF(index_classe!$K$1="NON",index_classe!G22,IF(A23>index_classe!$P$1,"",">>>>>"))) -> Carla | D23: 10 | F23: 25 | G23: =IF(F23="","",IF($C$2<>"",VLOOKUP(F23,index_cabasse!$B$5:$O$89,$C$2+2,FALSE),VLOOKUP(F23,index_cabasse!$B$5:$O$89,$D23+2,FALSE))) -> EER | H23: =IF(G23="","",VLOOKUP(F23,index_cabasse!$B$5:$O$89,2,FALSE)) -> 5743 | I23: 69 | J23: =IF(I23="","",IF($C$2<>"",VLOOKUP(I23,index_cabasse!$B$5:$O$89,$C$2+2,FALSE),VLOOKUP(I23,index_cabasse!$B$5:$O$89,$D23+2,FALSE))) -> GGL | K23: =IF(J23="","",VLOOKUP(I23,index_cabasse!$B$5:$O$89,2,FALSE)) -> 7228 | L23: 65 | M23: =IF(L23="","",IF($C$2<>"",VLOOKUP(L23,index_cabasse!$B$5:$O$89,$C$2+2,FALSE),VLOOKUP(L23,index_cabasse!$B$5:$O$89,$D23+2,FALSE))) -> GGH | N23: =IF(M23="","",VLOOKUP(L23,index_cabasse!$B$5:$O$89,2,FALSE)) -> 6688 | O23: 61 | P23: =IF(O23="","",IF($C$2<>"",VLOOKUP(O23,index_cabasse!$B$5:$O$89,$C$2+2,FALSE),VLOOKUP(O23,index_cabasse!$B$5:$O$89,$D23+2,FALSE))) -> GGC | Q23: =IF(P23="","",VLOOKUP(O23,index_cabasse!$B$5:$O$89,2,FALSE)) -> 4313 | R23: 46 | S23: =IF(R23="","",IF($C$2<>"",VLOOKUP(R23,index_cabasse!$B$5:$O$89,$C$2+2,FALSE),VLOOKUP(R23,index_cabasse!$B$5:$O$89,$D23+2,FALSE))) -> FFN | T23: =IF(S23="","",VLOOKUP(R23,index_cabasse!$B$5:$O$89,2,FALSE)) -> 7431 | U23: 68 | V23: =IF(U23="","",IF($C$2<>"",VLOOKUP(U23,index_cabasse!$B$5:$O$89,$C$2+2,FALSE),VLOOKUP(U23,index_cabasse!$B$5:$O$89,$D23+2,FALSE))) -> GGK | W23: =IF(V23="","",VLOOKUP(U23,index_cabasse!$B$5:$O$89,2,FALSE)) -> 7093 | X23: 24 | Y23: =IF(X23="","",IF($C$2<>"",VLOOKUP(X23,index_cabasse!$B$5:$O$89,$C$2+2,FALSE),VLOOKUP(X23,index_cabasse!$B$5:$O$89,$D23+2,FALSE))) -> EEQ | Z23: =IF(Y23="","",VLOOKUP(X23,index_cabasse!$B$5:$O$89,2,FALSE)) -> 5608 | AA23: 23 | AB23: =IF(AA23="","",IF($C$2<>"",VLOOKUP(AA23,index_cabasse!$B$5:$O$89,$C$2+2,FALSE),VLOOKUP(AA23,index_cabasse!$B$5:$O$89,$D23+2,FALSE))) -> EEP | AC23: =IF(AB23="","",VLOOKUP(AA23,index_cabasse!$B$5:$O$89,2,FALSE)) -> 5473 | AD23: 14 | AE23: =IF(AD23="","",IF($C$2<>"",VLOOKUP(AD23,index_cabasse!$B$5:$O$89,$C$2+2,FALSE),VLOOKUP(AD23,index_cabasse!$B$5:$O$89,$D23+2,FALSE))) -> EEG | AF23: =IF(AE23="","",VLOOKUP(AD23,index_cabasse!$B$5:$O$89,2,FALSE)) -> 6367 | AG23: 39 | AH23: =IF(AG23="","",IF($C$2<>"",VLOOKUP(AG23,index_cabasse!$B$5:$O$89,$C$2+2,FALSE),VLOOKUP(AG23,index_cabasse!$B$5:$O$89,$D23+2,FALSE))) -> FFG | AI23: =IF(AH23="","",VLOOKUP(AG23,index_cabasse!$B$5:$O$89,2,FALSE)) -> 6171
A24: 21 | B24: =IF(index_classe!F23="","",IF(index_classe!$K$1="NON",index_classe!F23,IF(A24>index_classe!$P$1,"","Groupe 21"))) -> THIER | C24: =IF(index_classe!G23="","",IF(index_classe!$K$1="NON",index_classe!G23,IF(A24>index_classe!$P$1,"",">>>>>"))) -> Andrea | D24: 10 | F24: 71 | G24: =IF(F24="","",IF($C$2<>"",VLOOKUP(F24,index_cabasse!$B$5:$O$89,$C$2+2,FALSE),VLOOKUP(F24,index_cabasse!$B$5:$O$89,$D24+2,FALSE))) -> GGN | H24: =IF(G24="","",VLOOKUP(F24,index_cabasse!$B$5:$O$89,2,FALSE)) -> 9531 | I24: 52 | J24: =IF(I24="","",IF($C$2<>"",VLOOKUP(I24,index_cabasse!$B$5:$O$89,$C$2+2,FALSE),VLOOKUP(I24,index_cabasse!$B$5:$O$89,$D24+2,FALSE))) -> FFT | K24: =IF(J24="","",VLOOKUP(I24,index_cabasse!$B$5:$O$89,2,FALSE)) -> 7641 | L24: 12 | M24: =IF(L24="","",IF($C$2<>"",VLOOKUP(L24,index_cabasse!$B$5:$O$89,$C$2+2,FALSE),VLOOKUP(L24,index_cabasse!$B$5:$O$89,$D24+2,FALSE))) -> EED | N24: =IF(M24="","",VLOOKUP(L24,index_cabasse!$B$5:$O$89,2,FALSE)) -> 4701 | O24: 64 | P24: =IF(O24="","",IF($C$2<>"",VLOOKUP(O24,index_cabasse!$B$5:$O$89,$C$2+2,FALSE),VLOOKUP(O24,index_cabasse!$B$5:$O$89,$D24+2,FALSE))) -> GGF | Q24: =IF(P24="","",VLOOKUP(O24,index_cabasse!$B$5:$O$89,2,FALSE)) -> 6553 | R24: 26 | S24: =IF(R24="","",IF($C$2<>"",VLOOKUP(R24,index_cabasse!$B$5:$O$89,$C$2+2,FALSE),VLOOKUP(R24,index_cabasse!$B$5:$O$89,$D24+2,FALSE))) -> EES | T24: =IF(S24="","",VLOOKUP(R24,index_cabasse!$B$5:$O$89,2,FALSE)) -> 5878 | U24: 7 | V24: =IF(U24="","",IF($C$2<>"",VLOOKUP(U24,index_cabasse!$B$5:$O$89,$C$2+2,FALSE),VLOOKUP(U24,index_cabasse!$B$5:$O$89,$D24+2,FALSE))) -> DDY | W24: =IF(V24="","",VLOOKUP(U24,index_cabasse!$B$5:$O$89,2,FALSE)) -> 3651 | X24: 14 | Y24: =IF(X24="","",IF($C$2<>"",VLOOKUP(X24,index_cabasse!$B$5:$O$89,$C$2+2,FALSE),VLOOKUP(X24,index_cabasse!$B$5:$O$89,$D24+2,FALSE))) -> EEG | Z24: =IF(Y24="","",VLOOKUP(X24,index_cabasse!$B$5:$O$89,2,FALSE)) -> 6367 | AA24: 63 | AB24: =IF(AA24="","",IF($C$2<>"",VLOOKUP(AA24,index_cabasse!$B$5:$O$89,$C$2+2,FALSE),VLOOKUP(AA24,index_cabasse!$B$5:$O$89,$D24+2,FALSE))) -> GGE | AC24: =IF(AB24="","",VLOOKUP(AA24,index_cabasse!$B$5:$O$89,2,FALSE)) -> 6418 | AD24: 51 | AE24: =IF(AD24="","",IF($C$2<>"",VLOOKUP(AD24,index_cabasse!$B$5:$O$89,$C$2+2,FALSE),VLOOKUP(AD24,index_cabasse!$B$5:$O$89,$D24+2,FALSE))) -> FFS | AF24: =IF(AE24="","",VLOOKUP(AD24,index_cabasse!$B$5:$O$89,2,FALSE)) -> 4471 | AG24: 9 | AH24: =IF(AG24="","",IF($C$2<>"",VLOOKUP(AG24,index_cabasse!$B$5:$O$89,$C$2+2,FALSE),VLOOKUP(AG24,index_cabasse!$B$5:$O$89,$D24+2,FALSE))) -> EEA | AI24: =IF(AH24="","",VLOOKUP(AG24,index_cabasse!$B$5:$O$89,2,FALSE)) -> 4071
A25: 22 | B25: =IF(index_classe!F24="","",IF(index_classe!$K$1="NON",index_classe!F24,IF(A25>index_classe!$P$1,"","Groupe 22"))) -> YI | C25: =IF(index_classe!G24="","",IF(index_classe!$K$1="NON",index_classe!G24,IF(A25>index_classe!$P$1,"",">>>>>"))) -> William | D25: 10 | F25: 8 | G25: =IF(F25="","",IF($C$2<>"",VLOOKUP(F25,index_cabasse!$B$5:$O$89,$C$2+2,FALSE),VLOOKUP(F25,index_cabasse!$B$5:$O$89,$D25+2,FALSE))) -> DDZ | H25: =IF(G25="","",VLOOKUP(F25,index_cabasse!$B$5:$O$89,2,FALSE)) -> 3861 | I25: 33 | J25: =IF(I25="","",IF($C$2<>"",VLOOKUP(I25,index_cabasse!$B$5:$O$89,$C$2+2,FALSE),VLOOKUP(I25,index_cabasse!$B$5:$O$89,$D25+2,FALSE))) -> EEZ | K25: =IF(J25="","",VLOOKUP(I25,index_cabasse!$B$5:$O$89,2,FALSE)) -> 5121 | L25: 69 | M25: =IF(L25="","",IF($C$2<>"",VLOOKUP(L25,index_cabasse!$B$5:$O$89,$C$2+2,FALSE),VLOOKUP(L25,index_cabasse!$B$5:$O$89,$D25+2,FALSE))) -> GGL | N25: =IF(M25="","",VLOOKUP(L25,index_cabasse!$B$5:$O$89,2,FALSE)) -> 7228 | O25: 15 | P25: =IF(O25="","",IF($C$2<>"",VLOOKUP(O25,index_cabasse!$B$5:$O$89,$C$2+2,FALSE),VLOOKUP(O25,index_cabasse!$B$5:$O$89,$D25+2,FALSE))) -> EEH | Q25: =IF(P25="","",VLOOKUP(O25,index_cabasse!$B$5:$O$89,2,FALSE)) -> 6209 | R25: 44 | S25: =IF(R25="","",IF($C$2<>"",VLOOKUP(R25,index_cabasse!$B$5:$O$89,$C$2+2,FALSE),VLOOKUP(R25,index_cabasse!$B$5:$O$89,$D25+2,FALSE))) -> FFL | T25: =IF(S25="","",VLOOKUP(R25,index_cabasse!$B$5:$O$89,2,FALSE)) -> 5261 | U25: 28 | V25: =IF(U25="","",IF($C$2<>"",VLOOKUP(U25,index_cabasse!$B$5:$O$89,$C$2+2,FALSE),VLOOKUP(U25,index_cabasse!$B$5:$O$89,$D25+2,FALSE))) -> EEU | W25: =IF(V25="","",VLOOKUP(U25,index_cabasse!$B$5:$O$89,2,FALSE)) -> 6148 | X25: 74 | Y25: =IF(X25="","",IF($C$2<>"",VLOOKUP(X25,index_cabasse!$B$5:$O$89,$C$2+2,FALSE),VLOOKUP(X25,index_cabasse!$B$5:$O$89,$D25+2,FALSE))) -> GGQ | Z25: =IF(Y25="","",VLOOKUP(X25,index_cabasse!$B$5:$O$89,2,FALSE)) -> 9741 | AA25: 15 | AB25: =IF(AA25="","",IF($C$2<>"",VLOOKUP(AA25,index_cabasse!$B$5:$O$89,$C$2+2,FALSE),VLOOKUP(AA25,index_cabasse!$B$5:$O$89,$D25+2,FALSE))) -> EEH | AC25: =IF(AB25="","",VLOOKUP(AA25,index_cabasse!$B$5:$O$89,2,FALSE)) -> 6209 | AD25: 9 | AE25: =IF(AD25="","",IF($C$2<>"",VLOOKUP(AD25,index_cabasse!$B$5:$O$89,$C$2+2,FALSE),VLOOKUP(AD25,index_cabasse!$B$5:$O$89,$D25+2,FALSE))) -> EEA | AF25: =IF(AE25="","",VLOOKUP(AD25,index_cabasse!$B$5:$O$89,2,FALSE)) -> 4071 | AG25: 48 | AH25: =IF(AG25="","",IF($C$2<>"",VLOOKUP(AG25,index_cabasse!$B$5:$O$89,$C$2+2,FALSE),VLOOKUP(AG25,index_cabasse!$B$5:$O$89,$D25+2,FALSE))) -> FFP | AI25: =IF(AH25="","",VLOOKUP(AG25,index_cabasse!$B$5:$O$89,2,FALSE)) -> 4945
A26: 23 | B26: =IF(index_classe!F25="","",IF(index_classe!$K$1="NON",index_classe!F25,IF(A26>index_classe!$P$1,"","Groupe 23"))) ->  | C26: =IF(index_classe!G25="","",IF(index_classe!$K$1="NON",index_classe!G25,IF(A26>index_classe!$P$1,"",">>>>>"))) ->  | D26: 10 | G26: =IF(F26="","",IF($C$2<>"",VLOOKUP(F26,index_cabasse!$B$5:$O$89,$C$2+2,FALSE),VLOOKUP(F26,index_cabasse!$B$5:$O$89,$D26+2,FALSE))) ->  | H26: =IF(G26="","",VLOOKUP(F26,index_cabasse!$B$5:$O$89,2,FALSE)) ->  | J26: =IF(I26="","",IF($C$2<>"",VLOOKUP(I26,index_cabasse!$B$5:$O$89,$C$2+2,FALSE),VLOOKUP(I26,index_cabasse!$B$5:$O$89,$D26+2,FALSE))) ->  | K26: =IF(J26="","",VLOOKUP(I26,index_cabasse!$B$5:$O$89,2,FALSE)) ->  | M26: =IF(L26="","",IF($C$2<>"",VLOOKUP(L26,index_cabasse!$B$5:$O$89,$C$2+2,FALSE),VLOOKUP(L26,index_cabasse!$B$5:$O$89,$D26+2,FALSE))) ->  | N26: =IF(M26="","",VLOOKUP(L26,index_cabasse!$B$5:$O$89,2,FALSE)) ->  | P26: =IF(O26="","",IF($C$2<>"",VLOOKUP(O26,index_cabasse!$B$5:$O$89,$C$2+2,FALSE),VLOOKUP(O26,index_cabasse!$B$5:$O$89,$D26+2,FALSE))) ->  | Q26: =IF(P26="","",VLOOKUP(O26,index_cabasse!$B$5:$O$89,2,FALSE)) ->  | S26: =IF(R26="","",IF($C$2<>"",VLOOKUP(R26,index_cabasse!$B$5:$O$89,$C$2+2,FALSE),VLOOKUP(R26,index_cabasse!$B$5:$O$89,$D26+2,FALSE))) ->  | T26: =IF(S26="","",VLOOKUP(R26,index_cabasse!$B$5:$O$89,2,FALSE)) ->  | V26: =IF(U26="","",IF($C$2<>"",VLOOKUP(U26,index_cabasse!$B$5:$O$89,$C$2+2,FALSE),VLOOKUP(U26,index_cabasse!$B$5:$O$89,$D26+2,FALSE))) ->  | W26: =IF(V26="","",VLOOKUP(U26,index_cabasse!$B$5:$O$89,2,FALSE)) ->  | Y26: =IF(X26="","",IF($C$2<>"",VLOOKUP(X26,index_cabasse!$B$5:$O$89,$C$2+2,FALSE),VLOOKUP(X26,index_cabasse!$B$5:$O$89,$D26+2,FALSE))) ->  | Z26: =IF(Y26="","",VLOOKUP(X26,index_cabasse!$B$5:$O$89,2,FALSE)) ->  | AB26: =IF(AA26="","",IF($C$2<>"",VLOOKUP(AA26,index_cabasse!$B$5:$O$89,$C$2+2,FALSE),VLOOKUP(AA26,index_cabasse!$B$5:$O$89,$D26+2,FALSE))) ->  | AC26: =IF(AB26="","",VLOOKUP(AA26,index_cabasse!$B$5:$O$89,2,FALSE)) ->  | AE26: =IF(AD26="","",IF($C$2<>"",VLOOKUP(AD26,index_cabasse!$B$5:$O$89,$C$2+2,FALSE),VLOOKUP(AD26,index_cabasse!$B$5:$O$89,$D26+2,FALSE))) ->  | AF26: =IF(AE26="","",VLOOKUP(AD26,index_cabasse!$B$5:$O$89,2,FALSE)) ->  | AH26: =IF(AG26="","",IF($C$2<>"",VLOOKUP(AG26,index_cabasse!$B$5:$O$89,$C$2+2,FALSE),VLOOKUP(AG26,index_cabasse!$B$5:$O$89,$D26+2,FALSE))) ->  | AI26: =IF(AH26="","",VLOOKUP(AG26,index_cabasse!$B$5:$O$89,2,FALSE)) -> 
A27: 24 | B27: =IF(index_classe!F26="","",IF(index_classe!$K$1="NON",index_classe!F26,IF(A27>index_classe!$P$1,"","Groupe 24"))) ->  | C27: =IF(index_classe!G26="","",IF(index_classe!$K$1="NON",index_classe!G26,IF(A27>index_classe!$P$1,"",">>>>>"))) ->  | D27: 10 | G27: =IF(F27="","",IF($C$2<>"",VLOOKUP(F27,index_cabasse!$B$5:$O$89,$C$2+2,FALSE),VLOOKUP(F27,index_cabasse!$B$5:$O$89,$D27+2,FALSE))) ->  | H27: =IF(G27="","",VLOOKUP(F27,index_cabasse!$B$5:$O$89,2,FALSE)) ->  | J27: =IF(I27="","",IF($C$2<>"",VLOOKUP(I27,index_cabasse!$B$5:$O$89,$C$2+2,FALSE),VLOOKUP(I27,index_cabasse!$B$5:$O$89,$D27+2,FALSE))) ->  | K27: =IF(J27="","",VLOOKUP(I27,index_cabasse!$B$5:$O$89,2,FALSE)) ->  | M27: =IF(L27="","",IF($C$2<>"",VLOOKUP(L27,index_cabasse!$B$5:$O$89,$C$2+2,FALSE),VLOOKUP(L27,index_cabasse!$B$5:$O$89,$D27+2,FALSE))) ->  | N27: =IF(M27="","",VLOOKUP(L27,index_cabasse!$B$5:$O$89,2,FALSE)) ->  | P27: =IF(O27="","",IF($C$2<>"",VLOOKUP(O27,index_cabasse!$B$5:$O$89,$C$2+2,FALSE),VLOOKUP(O27,index_cabasse!$B$5:$O$89,$D27+2,FALSE))) ->  | Q27: =IF(P27="","",VLOOKUP(O27,index_cabasse!$B$5:$O$89,2,FALSE)) ->  | S27: =IF(R27="","",IF($C$2<>"",VLOOKUP(R27,index_cabasse!$B$5:$O$89,$C$2+2,FALSE),VLOOKUP(R27,index_cabasse!$B$5:$O$89,$D27+2,FALSE))) ->  | T27: =IF(S27="","",VLOOKUP(R27,index_cabasse!$B$5:$O$89,2,FALSE)) ->  | V27: =IF(U27="","",IF($C$2<>"",VLOOKUP(U27,index_cabasse!$B$5:$O$89,$C$2+2,FALSE),VLOOKUP(U27,index_cabasse!$B$5:$O$89,$D27+2,FALSE))) ->  | W27: =IF(V27="","",VLOOKUP(U27,index_cabasse!$B$5:$O$89,2,FALSE)) ->  | Y27: =IF(X27="","",IF($C$2<>"",VLOOKUP(X27,index_cabasse!$B$5:$O$89,$C$2+2,FALSE),VLOOKUP(X27,index_cabasse!$B$5:$O$89,$D27+2,FALSE))) ->  | Z27: =IF(Y27="","",VLOOKUP(X27,index_cabasse!$B$5:$O$89,2,FALSE)) ->  | AB27: =IF(AA27="","",IF($C$2<>"",VLOOKUP(AA27,index_cabasse!$B$5:$O$89,$C$2+2,FALSE),VLOOKUP(AA27,index_cabasse!$B$5:$O$89,$D27+2,FALSE))) ->  | AC27: =IF(AB27="","",VLOOKUP(AA27,index_cabasse!$B$5:$O$89,2,FALSE)) ->  | AE27: =IF(AD27="","",IF($C$2<>"",VLOOKUP(AD27,index_cabasse!$B$5:$O$89,$C$2+2,FALSE),VLOOKUP(AD27,index_cabasse!$B$5:$O$89,$D27+2,FALSE))) ->  | AF27: =IF(AE27="","",VLOOKUP(AD27,index_cabasse!$B$5:$O$89,2,FALSE)) ->  | AH27: =IF(AG27="","",IF($C$2<>"",VLOOKUP(AG27,index_cabasse!$B$5:$O$89,$C$2+2,FALSE),VLOOKUP(AG27,index_cabasse!$B$5:$O$89,$D27+2,FALSE))) ->  | AI27: =IF(AH27="","",VLOOKUP(AG27,index_cabasse!$B$5:$O$89,2,FALSE)) -> 
A28: 25 | B28: =IF(index_classe!F27="","",IF(index_classe!$K$1="NON",index_classe!F27,IF(A28>index_classe!$P$1,"","Groupe 25"))) ->  | C28: =IF(index_classe!G27="","",IF(index_classe!$K$1="NON",index_classe!G27,IF(A28>index_classe!$P$1,"",">>>>>"))) ->  | D28: 10 | G28: =IF(F28="","",IF($C$2<>"",VLOOKUP(F28,index_cabasse!$B$5:$O$89,$C$2+2,FALSE),VLOOKUP(F28,index_cabasse!$B$5:$O$89,$D28+2,FALSE))) ->  | H28: =IF(G28="","",VLOOKUP(F28,index_cabasse!$B$5:$O$89,2,FALSE)) ->  | J28: =IF(I28="","",IF($C$2<>"",VLOOKUP(I28,index_cabasse!$B$5:$O$89,$C$2+2,FALSE),VLOOKUP(I28,index_cabasse!$B$5:$O$89,$D28+2,FALSE))) ->  | K28: =IF(J28="","",VLOOKUP(I28,index_cabasse!$B$5:$O$89,2,FALSE)) ->  | M28: =IF(L28="","",IF($C$2<>"",VLOOKUP(L28,index_cabasse!$B$5:$O$89,$C$2+2,FALSE),VLOOKUP(L28,index_cabasse!$B$5:$O$89,$D28+2,FALSE))) ->  | N28: =IF(M28="","",VLOOKUP(L28,index_cabasse!$B$5:$O$89,2,FALSE)) ->  | P28: =IF(O28="","",IF($C$2<>"",VLOOKUP(O28,index_cabasse!$B$5:$O$89,$C$2+2,FALSE),VLOOKUP(O28,index_cabasse!$B$5:$O$89,$D28+2,FALSE))) ->  | Q28: =IF(P28="","",VLOOKUP(O28,index_cabasse!$B$5:$O$89,2,FALSE)) ->  | S28: =IF(R28="","",IF($C$2<>"",VLOOKUP(R28,index_cabasse!$B$5:$O$89,$C$2+2,FALSE),VLOOKUP(R28,index_cabasse!$B$5:$O$89,$D28+2,FALSE))) ->  | T28: =IF(S28="","",VLOOKUP(R28,index_cabasse!$B$5:$O$89,2,FALSE)) ->  | V28: =IF(U28="","",IF($C$2<>"",VLOOKUP(U28,index_cabasse!$B$5:$O$89,$C$2+2,FALSE),VLOOKUP(U28,index_cabasse!$B$5:$O$89,$D28+2,FALSE))) ->  | W28: =IF(V28="","",VLOOKUP(U28,index_cabasse!$B$5:$O$89,2,FALSE)) ->  | Y28: =IF(X28="","",IF($C$2<>"",VLOOKUP(X28,index_cabasse!$B$5:$O$89,$C$2+2,FALSE),VLOOKUP(X28,index_cabasse!$B$5:$O$89,$D28+2,FALSE))) ->  | Z28: =IF(Y28="","",VLOOKUP(X28,index_cabasse!$B$5:$O$89,2,FALSE)) ->  | AB28: =IF(AA28="","",IF($C$2<>"",VLOOKUP(AA28,index_cabasse!$B$5:$O$89,$C$2+2,FALSE),VLOOKUP(AA28,index_cabasse!$B$5:$O$89,$D28+2,FALSE))) ->  | AC28: =IF(AB28="","",VLOOKUP(AA28,index_cabasse!$B$5:$O$89,2,FALSE)) ->  | AE28: =IF(AD28="","",IF($C$2<>"",VLOOKUP(AD28,index_cabasse!$B$5:$O$89,$C$2+2,FALSE),VLOOKUP(AD28,index_cabasse!$B$5:$O$89,$D28+2,FALSE))) ->  | AF28: =IF(AE28="","",VLOOKUP(AD28,index_cabasse!$B$5:$O$89,2,FALSE)) ->  | AH28: =IF(AG28="","",IF($C$2<>"",VLOOKUP(AG28,index_cabasse!$B$5:$O$89,$C$2+2,FALSE),VLOOKUP(AG28,index_cabasse!$B$5:$O$89,$D28+2,FALSE))) ->  | AI28: =IF(AH28="","",VLOOKUP(AG28,index_cabasse!$B$5:$O$89,2,FALSE)) -> 
A29: 26 | B29: =IF(index_classe!F28="","",IF(index_classe!$K$1="NON",index_classe!F28,IF(A29>index_classe!$P$1,"","Groupe 26"))) ->  | C29: =IF(index_classe!G28="","",IF(index_classe!$K$1="NON",index_classe!G28,IF(A29>index_classe!$P$1,"",">>>>>"))) ->  | D29: 10 | G29: =IF(F29="","",IF($C$2<>"",VLOOKUP(F29,index_cabasse!$B$5:$O$89,$C$2+2,FALSE),VLOOKUP(F29,index_cabasse!$B$5:$O$89,$D29+2,FALSE))) ->  | H29: =IF(G29="","",VLOOKUP(F29,index_cabasse!$B$5:$O$89,2,FALSE)) ->  | J29: =IF(I29="","",IF($C$2<>"",VLOOKUP(I29,index_cabasse!$B$5:$O$89,$C$2+2,FALSE),VLOOKUP(I29,index_cabasse!$B$5:$O$89,$D29+2,FALSE))) ->  | K29: =IF(J29="","",VLOOKUP(I29,index_cabasse!$B$5:$O$89,2,FALSE)) ->  | M29: =IF(L29="","",IF($C$2<>"",VLOOKUP(L29,index_cabasse!$B$5:$O$89,$C$2+2,FALSE),VLOOKUP(L29,index_cabasse!$B$5:$O$89,$D29+2,FALSE))) ->  | N29: =IF(M29="","",VLOOKUP(L29,index_cabasse!$B$5:$O$89,2,FALSE)) ->  | P29: =IF(O29="","",IF($C$2<>"",VLOOKUP(O29,index_cabasse!$B$5:$O$89,$C$2+2,FALSE),VLOOKUP(O29,index_cabasse!$B$5:$O$89,$D29+2,FALSE))) ->  | Q29: =IF(P29="","",VLOOKUP(O29,index_cabasse!$B$5:$O$89,2,FALSE)) ->  | S29: =IF(R29="","",IF($C$2<>"",VLOOKUP(R29,index_cabasse!$B$5:$O$89,$C$2+2,FALSE),VLOOKUP(R29,index_cabasse!$B$5:$O$89,$D29+2,FALSE))) ->  | T29: =IF(S29="","",VLOOKUP(R29,index_cabasse!$B$5:$O$89,2,FALSE)) ->  | V29: =IF(U29="","",IF($C$2<>"",VLOOKUP(U29,index_cabasse!$B$5:$O$89,$C$2+2,FALSE),VLOOKUP(U29,index_cabasse!$B$5:$O$89,$D29+2,FALSE))) ->  | W29: =IF(V29="","",VLOOKUP(U29,index_cabasse!$B$5:$O$89,2,FALSE)) ->  | Y29: =IF(X29="","",IF($C$2<>"",VLOOKUP(X29,index_cabasse!$B$5:$O$89,$C$2+2,FALSE),VLOOKUP(X29,index_cabasse!$B$5:$O$89,$D29+2,FALSE))) ->  | Z29: =IF(Y29="","",VLOOKUP(X29,index_cabasse!$B$5:$O$89,2,FALSE)) ->  | AB29: =IF(AA29="","",IF($C$2<>"",VLOOKUP(AA29,index_cabasse!$B$5:$O$89,$C$2+2,FALSE),VLOOKUP(AA29,index_cabasse!$B$5:$O$89,$D29+2,FALSE))) ->  | AC29: =IF(AB29="","",VLOOKUP(AA29,index_cabasse!$B$5:$O$89,2,FALSE)) ->  | AE29: =IF(AD29="","",IF($C$2<>"",VLOOKUP(AD29,index_cabasse!$B$5:$O$89,$C$2+2,FALSE),VLOOKUP(AD29,index_cabasse!$B$5:$O$89,$D29+2,FALSE))) ->  | AF29: =IF(AE29="","",VLOOKUP(AD29,index_cabasse!$B$5:$O$89,2,FALSE)) ->  | AH29: =IF(AG29="","",IF($C$2<>"",VLOOKUP(AG29,index_cabasse!$B$5:$O$89,$C$2+2,FALSE),VLOOKUP(AG29,index_cabasse!$B$5:$O$89,$D29+2,FALSE))) ->  | AI29: =IF(AH29="","",VLOOKUP(AG29,index_cabasse!$B$5:$O$89,2,FALSE)) -> 
A30: 27 | B30: =IF(index_classe!F29="","",IF(index_classe!$K$1="NON",index_classe!F29,IF(A30>index_classe!$P$1,"","Groupe 27"))) ->  | C30: =IF(index_classe!G29="","",IF(index_classe!$K$1="NON",index_classe!G29,IF(A30>index_classe!$P$1,"",">>>>>"))) ->  | D30: 10 | G30: =IF(F30="","",IF($C$2<>"",VLOOKUP(F30,index_cabasse!$B$5:$O$89,$C$2+2,FALSE),VLOOKUP(F30,index_cabasse!$B$5:$O$89,$D30+2,FALSE))) ->  | H30: =IF(G30="","",VLOOKUP(F30,index_cabasse!$B$5:$O$89,2,FALSE)) ->  | J30: =IF(I30="","",IF($C$2<>"",VLOOKUP(I30,index_cabasse!$B$5:$O$89,$C$2+2,FALSE),VLOOKUP(I30,index_cabasse!$B$5:$O$89,$D30+2,FALSE))) ->  | K30: =IF(J30="","",VLOOKUP(I30,index_cabasse!$B$5:$O$89,2,FALSE)) ->  | M30: =IF(L30="","",IF($C$2<>"",VLOOKUP(L30,index_cabasse!$B$5:$O$89,$C$2+2,FALSE),VLOOKUP(L30,index_cabasse!$B$5:$O$89,$D30+2,FALSE))) ->  | N30: =IF(M30="","",VLOOKUP(L30,index_cabasse!$B$5:$O$89,2,FALSE)) ->  | P30: =IF(O30="","",IF($C$2<>"",VLOOKUP(O30,index_cabasse!$B$5:$O$89,$C$2+2,FALSE),VLOOKUP(O30,index_cabasse!$B$5:$O$89,$D30+2,FALSE))) ->  | Q30: =IF(P30="","",VLOOKUP(O30,index_cabasse!$B$5:$O$89,2,FALSE)) ->  | S30: =IF(R30="","",IF($C$2<>"",VLOOKUP(R30,index_cabasse!$B$5:$O$89,$C$2+2,FALSE),VLOOKUP(R30,index_cabasse!$B$5:$O$89,$D30+2,FALSE))) ->  | T30: =IF(S30="","",VLOOKUP(R30,index_cabasse!$B$5:$O$89,2,FALSE)) ->  | V30: =IF(U30="","",IF($C$2<>"",VLOOKUP(U30,index_cabasse!$B$5:$O$89,$C$2+2,FALSE),VLOOKUP(U30,index_cabasse!$B$5:$O$89,$D30+2,FALSE))) ->  | W30: =IF(V30="","",VLOOKUP(U30,index_cabasse!$B$5:$O$89,2,FALSE)) ->  | Y30: =IF(X30="","",IF($C$2<>"",VLOOKUP(X30,index_cabasse!$B$5:$O$89,$C$2+2,FALSE),VLOOKUP(X30,index_cabasse!$B$5:$O$89,$D30+2,FALSE))) ->  | Z30: =IF(Y30="","",VLOOKUP(X30,index_cabasse!$B$5:$O$89,2,FALSE)) ->  | AB30: =IF(AA30="","",IF($C$2<>"",VLOOKUP(AA30,index_cabasse!$B$5:$O$89,$C$2+2,FALSE),VLOOKUP(AA30,index_cabasse!$B$5:$O$89,$D30+2,FALSE))) ->  | AC30: =IF(AB30="","",VLOOKUP(AA30,index_cabasse!$B$5:$O$89,2,FALSE)) ->  | AE30: =IF(AD30="","",IF($C$2<>"",VLOOKUP(AD30,index_cabasse!$B$5:$O$89,$C$2+2,FALSE),VLOOKUP(AD30,index_cabasse!$B$5:$O$89,$D30+2,FALSE))) ->  | AF30: =IF(AE30="","",VLOOKUP(AD30,index_cabasse!$B$5:$O$89,2,FALSE)) ->  | AH30: =IF(AG30="","",IF($C$2<>"",VLOOKUP(AG30,index_cabasse!$B$5:$O$89,$C$2+2,FALSE),VLOOKUP(AG30,index_cabasse!$B$5:$O$89,$D30+2,FALSE))) ->  | AI30: =IF(AH30="","",VLOOKUP(AG30,index_cabasse!$B$5:$O$89,2,FALSE)) -> 
A31: 28 | B31: =IF(index_classe!F30="","",IF(index_classe!$K$1="NON",index_classe!F30,IF(A31>index_classe!$P$1,"","Groupe x"))) ->  | C31: =IF(index_classe!G30="","",IF(index_classe!$K$1="NON",index_classe!G30,IF(A31>index_classe!$P$1,"",">>>>>"))) ->  | D31: 10 | G31: =IF(F31="","",IF($C$2<>"",VLOOKUP(F31,index_cabasse!$B$5:$O$89,$C$2+2,FALSE),VLOOKUP(F31,index_cabasse!$B$5:$O$89,$D31+2,FALSE))) ->  | H31: =IF(G31="","",VLOOKUP(F31,index_cabasse!$B$5:$O$89,2,FALSE)) ->  | J31: =IF(I31="","",IF($C$2<>"",VLOOKUP(I31,index_cabasse!$B$5:$O$89,$C$2+2,FALSE),VLOOKUP(I31,index_cabasse!$B$5:$O$89,$D31+2,FALSE))) ->  | K31: =IF(J31="","",VLOOKUP(I31,index_cabasse!$B$5:$O$89,2,FALSE)) ->  | M31: =IF(L31="","",IF($C$2<>"",VLOOKUP(L31,index_cabasse!$B$5:$O$89,$C$2+2,FALSE),VLOOKUP(L31,index_cabasse!$B$5:$O$89,$D31+2,FALSE))) ->  | N31: =IF(M31="","",VLOOKUP(L31,index_cabasse!$B$5:$O$89,2,FALSE)) ->  | P31: =IF(O31="","",IF($C$2<>"",VLOOKUP(O31,index_cabasse!$B$5:$O$89,$C$2+2,FALSE),VLOOKUP(O31,index_cabasse!$B$5:$O$89,$D31+2,FALSE))) ->  | Q31: =IF(P31="","",VLOOKUP(O31,index_cabasse!$B$5:$O$89,2,FALSE)) ->  | S31: =IF(R31="","",IF($C$2<>"",VLOOKUP(R31,index_cabasse!$B$5:$O$89,$C$2+2,FALSE),VLOOKUP(R31,index_cabasse!$B$5:$O$89,$D31+2,FALSE))) ->  | T31: =IF(S31="","",VLOOKUP(R31,index_cabasse!$B$5:$O$89,2,FALSE)) ->  | V31: =IF(U31="","",IF($C$2<>"",VLOOKUP(U31,index_cabasse!$B$5:$O$89,$C$2+2,FALSE),VLOOKUP(U31,index_cabasse!$B$5:$O$89,$D31+2,FALSE))) ->  | W31: =IF(V31="","",VLOOKUP(U31,index_cabasse!$B$5:$O$89,2,FALSE)) ->  | Y31: =IF(X31="","",IF($C$2<>"",VLOOKUP(X31,index_cabasse!$B$5:$O$89,$C$2+2,FALSE),VLOOKUP(X31,index_cabasse!$B$5:$O$89,$D31+2,FALSE))) ->  | Z31: =IF(Y31="","",VLOOKUP(X31,index_cabasse!$B$5:$O$89,2,FALSE)) ->  | AB31: =IF(AA31="","",IF($C$2<>"",VLOOKUP(AA31,index_cabasse!$B$5:$O$89,$C$2+2,FALSE),VLOOKUP(AA31,index_cabasse!$B$5:$O$89,$D31+2,FALSE))) ->  | AC31: =IF(AB31="","",VLOOKUP(AA31,index_cabasse!$B$5:$O$89,2,FALSE)) ->  | AE31: =IF(AD31="","",IF($C$2<>"",VLOOKUP(AD31,index_cabasse!$B$5:$O$89,$C$2+2,FALSE),VLOOKUP(AD31,index_cabasse!$B$5:$O$89,$D31+2,FALSE))) ->  | AF31: =IF(AE31="","",VLOOKUP(AD31,index_cabasse!$B$5:$O$89,2,FALSE)) ->  | AH31: =IF(AG31="","",IF($C$2<>"",VLOOKUP(AG31,index_cabasse!$B$5:$O$89,$C$2+2,FALSE),VLOOKUP(AG31,index_cabasse!$B$5:$O$89,$D31+2,FALSE))) ->  | AI31: =IF(AH31="","",VLOOKUP(AG31,index_cabasse!$B$5:$O$89,2,FALSE)) -> 
A32: 29 | B32: =IF(index_classe!F31="","",IF(index_classe!$K$1="NON",index_classe!F31,IF(A32>index_classe!$P$1,"","Groupe x"))) ->  | C32: =IF(index_classe!G31="","",IF(index_classe!$K$1="NON",index_classe!G31,IF(A32>index_classe!$P$1,"",">>>>>"))) ->  | D32: 10 | G32: =IF(F32="","",IF($C$2<>"",VLOOKUP(F32,index_cabasse!$B$5:$O$89,$C$2+2,FALSE),VLOOKUP(F32,index_cabasse!$B$5:$O$89,$D32+2,FALSE))) ->  | H32: =IF(G32="","",VLOOKUP(F32,index_cabasse!$B$5:$O$89,2,FALSE)) ->  | J32: =IF(I32="","",IF($C$2<>"",VLOOKUP(I32,index_cabasse!$B$5:$O$89,$C$2+2,FALSE),VLOOKUP(I32,index_cabasse!$B$5:$O$89,$D32+2,FALSE))) ->  | K32: =IF(J32="","",VLOOKUP(I32,index_cabasse!$B$5:$O$89,2,FALSE)) ->  | M32: =IF(L32="","",IF($C$2<>"",VLOOKUP(L32,index_cabasse!$B$5:$O$89,$C$2+2,FALSE),VLOOKUP(L32,index_cabasse!$B$5:$O$89,$D32+2,FALSE))) ->  | N32: =IF(M32="","",VLOOKUP(L32,index_cabasse!$B$5:$O$89,2,FALSE)) ->  | P32: =IF(O32="","",IF($C$2<>"",VLOOKUP(O32,index_cabasse!$B$5:$O$89,$C$2+2,FALSE),VLOOKUP(O32,index_cabasse!$B$5:$O$89,$D32+2,FALSE))) ->  | Q32: =IF(P32="","",VLOOKUP(O32,index_cabasse!$B$5:$O$89,2,FALSE)) ->  | S32: =IF(R32="","",IF($C$2<>"",VLOOKUP(R32,index_cabasse!$B$5:$O$89,$C$2+2,FALSE),VLOOKUP(R32,index_cabasse!$B$5:$O$89,$D32+2,FALSE))) ->  | T32: =IF(S32="","",VLOOKUP(R32,index_cabasse!$B$5:$O$89,2,FALSE)) ->  | V32: =IF(U32="","",IF($C$2<>"",VLOOKUP(U32,index_cabasse!$B$5:$O$89,$C$2+2,FALSE),VLOOKUP(U32,index_cabasse!$B$5:$O$89,$D32+2,FALSE))) ->  | W32: =IF(V32="","",VLOOKUP(U32,index_cabasse!$B$5:$O$89,2,FALSE)) ->  | Y32: =IF(X32="","",IF($C$2<>"",VLOOKUP(X32,index_cabasse!$B$5:$O$89,$C$2+2,FALSE),VLOOKUP(X32,index_cabasse!$B$5:$O$89,$D32+2,FALSE))) ->  | Z32: =IF(Y32="","",VLOOKUP(X32,index_cabasse!$B$5:$O$89,2,FALSE)) ->  | AB32: =IF(AA32="","",IF($C$2<>"",VLOOKUP(AA32,index_cabasse!$B$5:$O$89,$C$2+2,FALSE),VLOOKUP(AA32,index_cabasse!$B$5:$O$89,$D32+2,FALSE))) ->  | AC32: =IF(AB32="","",VLOOKUP(AA32,index_cabasse!$B$5:$O$89,2,FALSE)) ->  | AE32: =IF(AD32="","",IF($C$2<>"",VLOOKUP(AD32,index_cabasse!$B$5:$O$89,$C$2+2,FALSE),VLOOKUP(AD32,index_cabasse!$B$5:$O$89,$D32+2,FALSE))) ->  | AF32: =IF(AE32="","",VLOOKUP(AD32,index_cabasse!$B$5:$O$89,2,FALSE)) ->  | AH32: =IF(AG32="","",IF($C$2<>"",VLOOKUP(AG32,index_cabasse!$B$5:$O$89,$C$2+2,FALSE),VLOOKUP(AG32,index_cabasse!$B$5:$O$89,$D32+2,FALSE))) ->  | AI32: =IF(AH32="","",VLOOKUP(AG32,index_cabasse!$B$5:$O$89,2,FALSE)) -> 
A33: 30 | B33: =IF(index_classe!F32="","",IF(index_classe!$K$1="NON",index_classe!F32,IF(A33>index_classe!$P$1,"","Groupe x"))) ->  | C33: =IF(index_classe!G32="","",IF(index_classe!$K$1="NON",index_classe!G32,IF(A33>index_classe!$P$1,"",">>>>>"))) ->  | D33: 10 | G33: =IF(F33="","",IF($C$2<>"",VLOOKUP(F33,index_cabasse!$B$5:$O$89,$C$2+2,FALSE),VLOOKUP(F33,index_cabasse!$B$5:$O$89,$D33+2,FALSE))) ->  | H33: =IF(G33="","",VLOOKUP(F33,index_cabasse!$B$5:$O$89,2,FALSE)) ->  | J33: =IF(I33="","",IF($C$2<>"",VLOOKUP(I33,index_cabasse!$B$5:$O$89,$C$2+2,FALSE),VLOOKUP(I33,index_cabasse!$B$5:$O$89,$D33+2,FALSE))) ->  | K33: =IF(J33="","",VLOOKUP(I33,index_cabasse!$B$5:$O$89,2,FALSE)) ->  | M33: =IF(L33="","",IF($C$2<>"",VLOOKUP(L33,index_cabasse!$B$5:$O$89,$C$2+2,FALSE),VLOOKUP(L33,index_cabasse!$B$5:$O$89,$D33+2,FALSE))) ->  | N33: =IF(M33="","",VLOOKUP(L33,index_cabasse!$B$5:$O$89,2,FALSE)) ->  | P33: =IF(O33="","",IF($C$2<>"",VLOOKUP(O33,index_cabasse!$B$5:$O$89,$C$2+2,FALSE),VLOOKUP(O33,index_cabasse!$B$5:$O$89,$D33+2,FALSE))) ->  | Q33: =IF(P33="","",VLOOKUP(O33,index_cabasse!$B$5:$O$89,2,FALSE)) ->  | S33: =IF(R33="","",IF($C$2<>"",VLOOKUP(R33,index_cabasse!$B$5:$O$89,$C$2+2,FALSE),VLOOKUP(R33,index_cabasse!$B$5:$O$89,$D33+2,FALSE))) ->  | T33: =IF(S33="","",VLOOKUP(R33,index_cabasse!$B$5:$O$89,2,FALSE)) ->  | V33: =IF(U33="","",IF($C$2<>"",VLOOKUP(U33,index_cabasse!$B$5:$O$89,$C$2+2,FALSE),VLOOKUP(U33,index_cabasse!$B$5:$O$89,$D33+2,FALSE))) ->  | W33: =IF(V33="","",VLOOKUP(U33,index_cabasse!$B$5:$O$89,2,FALSE)) ->  | Y33: =IF(X33="","",IF($C$2<>"",VLOOKUP(X33,index_cabasse!$B$5:$O$89,$C$2+2,FALSE),VLOOKUP(X33,index_cabasse!$B$5:$O$89,$D33+2,FALSE))) ->  | Z33: =IF(Y33="","",VLOOKUP(X33,index_cabasse!$B$5:$O$89,2,FALSE)) ->  | AB33: =IF(AA33="","",IF($C$2<>"",VLOOKUP(AA33,index_cabasse!$B$5:$O$89,$C$2+2,FALSE),VLOOKUP(AA33,index_cabasse!$B$5:$O$89,$D33+2,FALSE))) ->  | AC33: =IF(AB33="","",VLOOKUP(AA33,index_cabasse!$B$5:$O$89,2,FALSE)) ->  | AE33: =IF(AD33="","",IF($C$2<>"",VLOOKUP(AD33,index_cabasse!$B$5:$O$89,$C$2+2,FALSE),VLOOKUP(AD33,index_cabasse!$B$5:$O$89,$D33+2,FALSE))) ->  | AF33: =IF(AE33="","",VLOOKUP(AD33,index_cabasse!$B$5:$O$89,2,FALSE)) ->  | AH33: =IF(AG33="","",IF($C$2<>"",VLOOKUP(AG33,index_cabasse!$B$5:$O$89,$C$2+2,FALSE),VLOOKUP(AG33,index_cabasse!$B$5:$O$89,$D33+2,FALSE))) ->  | AI33: =IF(AH33="","",VLOOKUP(AG33,index_cabasse!$B$5:$O$89,2,FALSE)) -> 
A34: 31 | B34: =IF(index_classe!F33="","",IF(index_classe!$K$1="NON",index_classe!F33,IF(A34>index_classe!$P$1,"","Groupe x"))) ->  | C34: =IF(index_classe!G33="","",IF(index_classe!$K$1="NON",index_classe!G33,IF(A34>index_classe!$P$1,"",">>>>>"))) ->  | D34: 10 | G34: =IF(F34="","",IF($C$2<>"",VLOOKUP(F34,index_cabasse!$B$5:$O$89,$C$2+2,FALSE),VLOOKUP(F34,index_cabasse!$B$5:$O$89,$D34+2,FALSE))) ->  | H34: =IF(G34="","",VLOOKUP(F34,index_cabasse!$B$5:$O$89,2,FALSE)) ->  | J34: =IF(I34="","",IF($C$2<>"",VLOOKUP(I34,index_cabasse!$B$5:$O$89,$C$2+2,FALSE),VLOOKUP(I34,index_cabasse!$B$5:$O$89,$D34+2,FALSE))) ->  | K34: =IF(J34="","",VLOOKUP(I34,index_cabasse!$B$5:$O$89,2,FALSE)) ->  | M34: =IF(L34="","",IF($C$2<>"",VLOOKUP(L34,index_cabasse!$B$5:$O$89,$C$2+2,FALSE),VLOOKUP(L34,index_cabasse!$B$5:$O$89,$D34+2,FALSE))) ->  | N34: =IF(M34="","",VLOOKUP(L34,index_cabasse!$B$5:$O$89,2,FALSE)) ->  | P34: =IF(O34="","",IF($C$2<>"",VLOOKUP(O34,index_cabasse!$B$5:$O$89,$C$2+2,FALSE),VLOOKUP(O34,index_cabasse!$B$5:$O$89,$D34+2,FALSE))) ->  | Q34: =IF(P34="","",VLOOKUP(O34,index_cabasse!$B$5:$O$89,2,FALSE)) ->  | S34: =IF(R34="","",IF($C$2<>"",VLOOKUP(R34,index_cabasse!$B$5:$O$89,$C$2+2,FALSE),VLOOKUP(R34,index_cabasse!$B$5:$O$89,$D34+2,FALSE))) ->  | T34: =IF(S34="","",VLOOKUP(R34,index_cabasse!$B$5:$O$89,2,FALSE)) ->  | V34: =IF(U34="","",IF($C$2<>"",VLOOKUP(U34,index_cabasse!$B$5:$O$89,$C$2+2,FALSE),VLOOKUP(U34,index_cabasse!$B$5:$O$89,$D34+2,FALSE))) ->  | W34: =IF(V34="","",VLOOKUP(U34,index_cabasse!$B$5:$O$89,2,FALSE)) ->  | Y34: =IF(X34="","",IF($C$2<>"",VLOOKUP(X34,index_cabasse!$B$5:$O$89,$C$2+2,FALSE),VLOOKUP(X34,index_cabasse!$B$5:$O$89,$D34+2,FALSE))) ->  | Z34: =IF(Y34="","",VLOOKUP(X34,index_cabasse!$B$5:$O$89,2,FALSE)) ->  | AB34: =IF(AA34="","",IF($C$2<>"",VLOOKUP(AA34,index_cabasse!$B$5:$O$89,$C$2+2,FALSE),VLOOKUP(AA34,index_cabasse!$B$5:$O$89,$D34+2,FALSE))) ->  | AC34: =IF(AB34="","",VLOOKUP(AA34,index_cabasse!$B$5:$O$89,2,FALSE)) ->  | AE34: =IF(AD34="","",IF($C$2<>"",VLOOKUP(AD34,index_cabasse!$B$5:$O$89,$C$2+2,FALSE),VLOOKUP(AD34,index_cabasse!$B$5:$O$89,$D34+2,FALSE))) ->  | AF34: =IF(AE34="","",VLOOKUP(AD34,index_cabasse!$B$5:$O$89,2,FALSE)) ->  | AH34: =IF(AG34="","",IF($C$2<>"",VLOOKUP(AG34,index_cabasse!$B$5:$O$89,$C$2+2,FALSE),VLOOKUP(AG34,index_cabasse!$B$5:$O$89,$D34+2,FALSE))) ->  | AI34: =IF(AH34="","",VLOOKUP(AG34,index_cabasse!$B$5:$O$89,2,FALSE)) -> 
A35: 32 | B35: =IF(index_classe!F34="","",IF(index_classe!$K$1="NON",index_classe!F34,IF(A35>index_classe!$P$1,"","Groupe x"))) ->  | C35: =IF(index_classe!G34="","",IF(index_classe!$K$1="NON",index_classe!G34,IF(A35>index_classe!$P$1,"",">>>>>"))) ->  | D35: 10 | G35: =IF(F35="","",IF($C$2<>"",VLOOKUP(F35,index_cabasse!$B$5:$O$89,$C$2+2,FALSE),VLOOKUP(F35,index_cabasse!$B$5:$O$89,$D35+2,FALSE))) ->  | H35: =IF(G35="","",VLOOKUP(F35,index_cabasse!$B$5:$O$89,2,FALSE)) ->  | J35: =IF(I35="","",IF($C$2<>"",VLOOKUP(I35,index_cabasse!$B$5:$O$89,$C$2+2,FALSE),VLOOKUP(I35,index_cabasse!$B$5:$O$89,$D35+2,FALSE))) ->  | K35: =IF(J35="","",VLOOKUP(I35,index_cabasse!$B$5:$O$89,2,FALSE)) ->  | M35: =IF(L35="","",IF($C$2<>"",VLOOKUP(L35,index_cabasse!$B$5:$O$89,$C$2+2,FALSE),VLOOKUP(L35,index_cabasse!$B$5:$O$89,$D35+2,FALSE))) ->  | N35: =IF(M35="","",VLOOKUP(L35,index_cabasse!$B$5:$O$89,2,FALSE)) ->  | P35: =IF(O35="","",IF($C$2<>"",VLOOKUP(O35,index_cabasse!$B$5:$O$89,$C$2+2,FALSE),VLOOKUP(O35,index_cabasse!$B$5:$O$89,$D35+2,FALSE))) ->  | Q35: =IF(P35="","",VLOOKUP(O35,index_cabasse!$B$5:$O$89,2,FALSE)) ->  | S35: =IF(R35="","",IF($C$2<>"",VLOOKUP(R35,index_cabasse!$B$5:$O$89,$C$2+2,FALSE),VLOOKUP(R35,index_cabasse!$B$5:$O$89,$D35+2,FALSE))) ->  | T35: =IF(S35="","",VLOOKUP(R35,index_cabasse!$B$5:$O$89,2,FALSE)) ->  | V35: =IF(U35="","",IF($C$2<>"",VLOOKUP(U35,index_cabasse!$B$5:$O$89,$C$2+2,FALSE),VLOOKUP(U35,index_cabasse!$B$5:$O$89,$D35+2,FALSE))) ->  | W35: =IF(V35="","",VLOOKUP(U35,index_cabasse!$B$5:$O$89,2,FALSE)) ->  | Y35: =IF(X35="","",IF($C$2<>"",VLOOKUP(X35,index_cabasse!$B$5:$O$89,$C$2+2,FALSE),VLOOKUP(X35,index_cabasse!$B$5:$O$89,$D35+2,FALSE))) ->  | Z35: =IF(Y35="","",VLOOKUP(X35,index_cabasse!$B$5:$O$89,2,FALSE)) ->  | AB35: =IF(AA35="","",IF($C$2<>"",VLOOKUP(AA35,index_cabasse!$B$5:$O$89,$C$2+2,FALSE),VLOOKUP(AA35,index_cabasse!$B$5:$O$89,$D35+2,FALSE))) ->  | AC35: =IF(AB35="","",VLOOKUP(AA35,index_cabasse!$B$5:$O$89,2,FALSE)) ->  | AE35: =IF(AD35="","",IF($C$2<>"",VLOOKUP(AD35,index_cabasse!$B$5:$O$89,$C$2+2,FALSE),VLOOKUP(AD35,index_cabasse!$B$5:$O$89,$D35+2,FALSE))) ->  | AF35: =IF(AE35="","",VLOOKUP(AD35,index_cabasse!$B$5:$O$89,2,FALSE)) ->  | AH35: =IF(AG35="","",IF($C$2<>"",VLOOKUP(AG35,index_cabasse!$B$5:$O$89,$C$2+2,FALSE),VLOOKUP(AG35,index_cabasse!$B$5:$O$89,$D35+2,FALSE))) ->  | AI35: =IF(AH35="","",VLOOKUP(AG35,index_cabasse!$B$5:$O$89,2,FALSE)) -> 
A36: 33 | B36: =IF(index_classe!F35="","",IF(index_classe!$K$1="NON",index_classe!F35,IF(A36>index_classe!$P$1,"","Groupe x"))) ->  | C36: =IF(index_classe!G35="","",IF(index_classe!$K$1="NON",index_classe!G35,IF(A36>index_classe!$P$1,"",">>>>>"))) ->  | D36: 10 | G36: =IF(F36="","",IF($C$2<>"",VLOOKUP(F36,index_cabasse!$B$5:$O$89,$C$2+2,FALSE),VLOOKUP(F36,index_cabasse!$B$5:$O$89,$D36+2,FALSE))) ->  | H36: =IF(G36="","",VLOOKUP(F36,index_cabasse!$B$5:$O$89,2,FALSE)) ->  | J36: =IF(I36="","",IF($C$2<>"",VLOOKUP(I36,index_cabasse!$B$5:$O$89,$C$2+2,FALSE),VLOOKUP(I36,index_cabasse!$B$5:$O$89,$D36+2,FALSE))) ->  | K36: =IF(J36="","",VLOOKUP(I36,index_cabasse!$B$5:$O$89,2,FALSE)) ->  | M36: =IF(L36="","",IF($C$2<>"",VLOOKUP(L36,index_cabasse!$B$5:$O$89,$C$2+2,FALSE),VLOOKUP(L36,index_cabasse!$B$5:$O$89,$D36+2,FALSE))) ->  | N36: =IF(M36="","",VLOOKUP(L36,index_cabasse!$B$5:$O$89,2,FALSE)) ->  | P36: =IF(O36="","",IF($C$2<>"",VLOOKUP(O36,index_cabasse!$B$5:$O$89,$C$2+2,FALSE),VLOOKUP(O36,index_cabasse!$B$5:$O$89,$D36+2,FALSE))) ->  | Q36: =IF(P36="","",VLOOKUP(O36,index_cabasse!$B$5:$O$89,2,FALSE)) ->  | S36: =IF(R36="","",IF($C$2<>"",VLOOKUP(R36,index_cabasse!$B$5:$O$89,$C$2+2,FALSE),VLOOKUP(R36,index_cabasse!$B$5:$O$89,$D36+2,FALSE))) ->  | T36: =IF(S36="","",VLOOKUP(R36,index_cabasse!$B$5:$O$89,2,FALSE)) ->  | V36: =IF(U36="","",IF($C$2<>"",VLOOKUP(U36,index_cabasse!$B$5:$O$89,$C$2+2,FALSE),VLOOKUP(U36,index_cabasse!$B$5:$O$89,$D36+2,FALSE))) ->  | W36: =IF(V36="","",VLOOKUP(U36,index_cabasse!$B$5:$O$89,2,FALSE)) ->  | Y36: =IF(X36="","",IF($C$2<>"",VLOOKUP(X36,index_cabasse!$B$5:$O$89,$C$2+2,FALSE),VLOOKUP(X36,index_cabasse!$B$5:$O$89,$D36+2,FALSE))) ->  | Z36: =IF(Y36="","",VLOOKUP(X36,index_cabasse!$B$5:$O$89,2,FALSE)) ->  | AB36: =IF(AA36="","",IF($C$2<>"",VLOOKUP(AA36,index_cabasse!$B$5:$O$89,$C$2+2,FALSE),VLOOKUP(AA36,index_cabasse!$B$5:$O$89,$D36+2,FALSE))) ->  | AC36: =IF(AB36="","",VLOOKUP(AA36,index_cabasse!$B$5:$O$89,2,FALSE)) ->  | AE36: =IF(AD36="","",IF($C$2<>"",VLOOKUP(AD36,index_cabasse!$B$5:$O$89,$C$2+2,FALSE),VLOOKUP(AD36,index_cabasse!$B$5:$O$89,$D36+2,FALSE))) ->  | AF36: =IF(AE36="","",VLOOKUP(AD36,index_cabasse!$B$5:$O$89,2,FALSE)) ->  | AH36: =IF(AG36="","",IF($C$2<>"",VLOOKUP(AG36,index_cabasse!$B$5:$O$89,$C$2+2,FALSE),VLOOKUP(AG36,index_cabasse!$B$5:$O$89,$D36+2,FALSE))) ->  | AI36: =IF(AH36="","",VLOOKUP(AG36,index_cabasse!$B$5:$O$89,2,FALSE)) -> 
A37: 34 | B37: =IF(index_classe!F36="","",IF(index_classe!$K$1="NON",index_classe!F36,IF(A37>index_classe!$P$1,"","Groupe x"))) ->  | C37: =IF(index_classe!G36="","",IF(index_classe!$K$1="NON",index_classe!G36,IF(A37>index_classe!$P$1,"",">>>>>"))) ->  | D37: 10 | G37: =IF(F37="","",IF($C$2<>"",VLOOKUP(F37,index_cabasse!$B$5:$O$89,$C$2+2,FALSE),VLOOKUP(F37,index_cabasse!$B$5:$O$89,$D37+2,FALSE))) ->  | H37: =IF(G37="","",VLOOKUP(F37,index_cabasse!$B$5:$O$89,2,FALSE)) ->  | J37: =IF(I37="","",IF($C$2<>"",VLOOKUP(I37,index_cabasse!$B$5:$O$89,$C$2+2,FALSE),VLOOKUP(I37,index_cabasse!$B$5:$O$89,$D37+2,FALSE))) ->  | K37: =IF(J37="","",VLOOKUP(I37,index_cabasse!$B$5:$O$89,2,FALSE)) ->  | M37: =IF(L37="","",IF($C$2<>"",VLOOKUP(L37,index_cabasse!$B$5:$O$89,$C$2+2,FALSE),VLOOKUP(L37,index_cabasse!$B$5:$O$89,$D37+2,FALSE))) ->  | N37: =IF(M37="","",VLOOKUP(L37,index_cabasse!$B$5:$O$89,2,FALSE)) ->  | P37: =IF(O37="","",IF($C$2<>"",VLOOKUP(O37,index_cabasse!$B$5:$O$89,$C$2+2,FALSE),VLOOKUP(O37,index_cabasse!$B$5:$O$89,$D37+2,FALSE))) ->  | Q37: =IF(P37="","",VLOOKUP(O37,index_cabasse!$B$5:$O$89,2,FALSE)) ->  | S37: =IF(R37="","",IF($C$2<>"",VLOOKUP(R37,index_cabasse!$B$5:$O$89,$C$2+2,FALSE),VLOOKUP(R37,index_cabasse!$B$5:$O$89,$D37+2,FALSE))) ->  | T37: =IF(S37="","",VLOOKUP(R37,index_cabasse!$B$5:$O$89,2,FALSE)) ->  | V37: =IF(U37="","",IF($C$2<>"",VLOOKUP(U37,index_cabasse!$B$5:$O$89,$C$2+2,FALSE),VLOOKUP(U37,index_cabasse!$B$5:$O$89,$D37+2,FALSE))) ->  | W37: =IF(V37="","",VLOOKUP(U37,index_cabasse!$B$5:$O$89,2,FALSE)) ->  | Y37: =IF(X37="","",IF($C$2<>"",VLOOKUP(X37,index_cabasse!$B$5:$O$89,$C$2+2,FALSE),VLOOKUP(X37,index_cabasse!$B$5:$O$89,$D37+2,FALSE))) ->  | Z37: =IF(Y37="","",VLOOKUP(X37,index_cabasse!$B$5:$O$89,2,FALSE)) ->  | AB37: =IF(AA37="","",IF($C$2<>"",VLOOKUP(AA37,index_cabasse!$B$5:$O$89,$C$2+2,FALSE),VLOOKUP(AA37,index_cabasse!$B$5:$O$89,$D37+2,FALSE))) ->  | AC37: =IF(AB37="","",VLOOKUP(AA37,index_cabasse!$B$5:$O$89,2,FALSE)) ->  | AE37: =IF(AD37="","",IF($C$2<>"",VLOOKUP(AD37,index_cabasse!$B$5:$O$89,$C$2+2,FALSE),VLOOKUP(AD37,index_cabasse!$B$5:$O$89,$D37+2,FALSE))) ->  | AF37: =IF(AE37="","",VLOOKUP(AD37,index_cabasse!$B$5:$O$89,2,FALSE)) ->  | AH37: =IF(AG37="","",IF($C$2<>"",VLOOKUP(AG37,index_cabasse!$B$5:$O$89,$C$2+2,FALSE),VLOOKUP(AG37,index_cabasse!$B$5:$O$89,$D37+2,FALSE))) ->  | AI37: =IF(AH37="","",VLOOKUP(AG37,index_cabasse!$B$5:$O$89,2,FALSE)) -> 
A38: 35 | B38: =IF(index_classe!F37="","",IF(index_classe!$K$1="NON",index_classe!F37,IF(A38>index_classe!$P$1,"","Groupe x"))) ->  | C38: =IF(index_classe!G37="","",IF(index_classe!$K$1="NON",index_classe!G37,IF(A38>index_classe!$P$1,"",">>>>>"))) ->  | D38: 10 | G38: =IF(F38="","",IF($C$2<>"",VLOOKUP(F38,index_cabasse!$B$5:$O$89,$C$2+2,FALSE),VLOOKUP(F38,index_cabasse!$B$5:$O$89,$D38+2,FALSE))) ->  | H38: =IF(G38="","",VLOOKUP(F38,index_cabasse!$B$5:$O$89,2,FALSE)) ->  | J38: =IF(I38="","",IF($C$2<>"",VLOOKUP(I38,index_cabasse!$B$5:$O$89,$C$2+2,FALSE),VLOOKUP(I38,index_cabasse!$B$5:$O$89,$D38+2,FALSE))) ->  | K38: =IF(J38="","",VLOOKUP(I38,index_cabasse!$B$5:$O$89,2,FALSE)) ->  | M38: =IF(L38="","",IF($C$2<>"",VLOOKUP(L38,index_cabasse!$B$5:$O$89,$C$2+2,FALSE),VLOOKUP(L38,index_cabasse!$B$5:$O$89,$D38+2,FALSE))) ->  | N38: =IF(M38="","",VLOOKUP(L38,index_cabasse!$B$5:$O$89,2,FALSE)) ->  | P38: =IF(O38="","",IF($C$2<>"",VLOOKUP(O38,index_cabasse!$B$5:$O$89,$C$2+2,FALSE),VLOOKUP(O38,index_cabasse!$B$5:$O$89,$D38+2,FALSE))) ->  | Q38: =IF(P38="","",VLOOKUP(O38,index_cabasse!$B$5:$O$89,2,FALSE)) ->  | S38: =IF(R38="","",IF($C$2<>"",VLOOKUP(R38,index_cabasse!$B$5:$O$89,$C$2+2,FALSE),VLOOKUP(R38,index_cabasse!$B$5:$O$89,$D38+2,FALSE))) ->  | T38: =IF(S38="","",VLOOKUP(R38,index_cabasse!$B$5:$O$89,2,FALSE)) ->  | V38: =IF(U38="","",IF($C$2<>"",VLOOKUP(U38,index_cabasse!$B$5:$O$89,$C$2+2,FALSE),VLOOKUP(U38,index_cabasse!$B$5:$O$89,$D38+2,FALSE))) ->  | W38: =IF(V38="","",VLOOKUP(U38,index_cabasse!$B$5:$O$89,2,FALSE)) ->  | Y38: =IF(X38="","",IF($C$2<>"",VLOOKUP(X38,index_cabasse!$B$5:$O$89,$C$2+2,FALSE),VLOOKUP(X38,index_cabasse!$B$5:$O$89,$D38+2,FALSE))) ->  | Z38: =IF(Y38="","",VLOOKUP(X38,index_cabasse!$B$5:$O$89,2,FALSE)) ->  | AB38: =IF(AA38="","",IF($C$2<>"",VLOOKUP(AA38,index_cabasse!$B$5:$O$89,$C$2+2,FALSE),VLOOKUP(AA38,index_cabasse!$B$5:$O$89,$D38+2,FALSE))) ->  | AC38: =IF(AB38="","",VLOOKUP(AA38,index_cabasse!$B$5:$O$89,2,FALSE)) ->  | AE38: =IF(AD38="","",IF($C$2<>"",VLOOKUP(AD38,index_cabasse!$B$5:$O$89,$C$2+2,FALSE),VLOOKUP(AD38,index_cabasse!$B$5:$O$89,$D38+2,FALSE))) ->  | AF38: =IF(AE38="","",VLOOKUP(AD38,index_cabasse!$B$5:$O$89,2,FALSE)) ->  | AH38: =IF(AG38="","",IF($C$2<>"",VLOOKUP(AG38,index_cabasse!$B$5:$O$89,$C$2+2,FALSE),VLOOKUP(AG38,index_cabasse!$B$5:$O$89,$D38+2,FALSE))) ->  | AI38: =IF(AH38="","",VLOOKUP(AG38,index_cabasse!$B$5:$O$89,2,FALSE)) -> 

Sheet coupons_cabasse
B2: DATE : | D2: =index_classe!$D3 -> Carte N° : 10 - BENZ Nawel | F2: DATE : | H2: =index_classe!$D4 -> Carte N° : 10 - BERNA Laurine | J2: DATE : | L2: =index_classe!$D19 -> Carte N° : 10 - SIOUI Salah | N2: DATE : | P2: =index_classe!$D20 -> Carte N° : 10 - TADEVA Khatmat
B3: CODE | C3: Numéro BALISE | D3: HEURE LIMITE: | F3: CODE | G3: Numéro BALISE | H3: HEURE LIMITE: | J3: CODE | K3: Numéro BALISE | L3: HEURE LIMITE: | N3: CODE | O3: Numéro BALISE | P3: HEURE LIMITE:
B5: =IF(preparation_cabasse!$K$2>=1,preparation_cabasse!$G4,"") -> EEK | D5: Dpt : Arr : Net : | F5: =IF(preparation_cabasse!$K$2>=1,preparation_cabasse!$G5,"") -> DDZ | H5: Dpt : Arr : Net : | J5: =IF(preparation_cabasse!$K$2>=1,preparation_cabasse!$G20,"") -> FFY | L5: Dpt : Arr : Net : | N5: =IF(preparation_cabasse!$K$2>=1,preparation_cabasse!$G21,"") -> GGI | P5: Dpt : Arr : Net :
B6: =IF(preparation_cabasse!$K$2>=2,preparation_cabasse!$J4,"") -> FFK | D6: Dpt : Arr : Net : | F6: =IF(preparation_cabasse!$K$2>=2,preparation_cabasse!$J5,"") -> GGK | H6: Dpt : Arr : Net : | J6: =IF(preparation_cabasse!$K$2>=2,preparation_cabasse!$J20,"") -> FFJ | L6: Dpt : Arr : Net : | N6: =IF(preparation_cabasse!$K$2>=2,preparation_cabasse!$J21,"") -> EEV | P6: Dpt : Arr : Net :
B7: =IF(preparation_cabasse!$K$2>=3,preparation_cabasse!$M4,"") -> HHB | D7: Dpt : Arr : Net : | F7: =IF(preparation_cabasse!$K$2>=3,preparation_cabasse!$M5,"") -> EEZ | H7: Dpt : Arr : Net : | J7: =IF(preparation_cabasse!$K$2>=3,preparation_cabasse!$M20,"") -> FFN | L7: Dpt : Arr : Net : | N7: =IF(preparation_cabasse!$K$2>=3,preparation_cabasse!$M21,"") -> EEG | P7: Dpt : Arr : Net :
B8: =IF(preparation_cabasse!$K$2>=4,preparation_cabasse!$P4,"") -> EEO | D8: Dpt : Arr : Net : | F8: =IF(preparation_cabasse!$K$2>=4,preparation_cabasse!$P5,"") -> EEV | H8: Dpt : Arr : Net : | J8: =IF(preparation_cabasse!$K$2>=4,preparation_cabasse!$P20,"") -> DDS | L8: Dpt : Arr : Net : | N8: =IF(preparation_cabasse!$K$2>=4,preparation_cabasse!$P21,"") -> GGS | P8: Dpt : Arr : Net :
B9: =IF(preparation_cabasse!$K$2>=5,preparation_cabasse!$S4,"") -> FFP | D9: Dpt : Arr : Net : | F9: =IF(preparation_cabasse!$K$2>=5,preparation_cabasse!$S5,"") -> FFI | H9: Dpt : Arr : Net : | J9: =IF(preparation_cabasse!$K$2>=5,preparation_cabasse!$S20,"") -> FFI | L9: Dpt : Arr : Net : | N9: =IF(preparation_cabasse!$K$2>=5,preparation_cabasse!$S21,"") -> FFU | P9: Dpt : Arr : Net :
B10: =IF(preparation_cabasse!$K$2>=6,preparation_cabasse!$V4,"") ->  | D10: Dpt : Arr : Net : | F10: =IF(preparation_cabasse!$K$2>=6,preparation_cabasse!$V5,"") ->  | H10: Dpt : Arr : Net : | J10: =IF(preparation_cabasse!$K$2>=6,preparation_cabasse!$V20,"") ->  | L10: Dpt : Arr : Net : | N10: =IF(preparation_cabasse!$K$2>=6,preparation_cabasse!$V21,"") ->  | P10: Dpt : Arr : Net :
B11: =IF(preparation_cabasse!$K$2>=7,preparation_cabasse!$Y4,"") ->  | D11: Dpt : Arr : Net : | F11: =IF(preparation_cabasse!$K$2>=7,preparation_cabasse!$Y5,"") ->  | H11: Dpt : Arr : Net : | J11: =IF(preparation_cabasse!$K$2>=7,preparation_cabasse!$Y20,"") ->  | L11: Dpt : Arr : Net : | N11: =IF(preparation_cabasse!$K$2>=7,preparation_cabasse!$Y21,"") ->  | P11: Dpt : Arr : Net :
B12: =IF(preparation_cabasse!$K$2>=8,preparation_cabasse!$AB4,"") ->  | D12: Dpt : Arr : Net : | F12: =IF(preparation_cabasse!$K$2>=8,preparation_cabasse!$AB5,"") ->  | H12: Dpt : Arr : Net : | J12: =IF(preparation_cabasse!$K$2>=8,preparation_cabasse!$AB20,"") ->  | L12: Dpt : Arr : Net : | N12: =IF(preparation_cabasse!$K$2>=8,preparation_cabasse!$AB21,"") ->  | P12: Dpt : Arr : Net :
B13: =IF(preparation_cabasse!$K$2>=9,preparation_cabasse!$AE4,"") ->  | D13: Dpt : Arr : Net : | F13: =IF(preparation_cabasse!$K$2>=9,preparation_cabasse!$AE5,"") ->  | H13: Dpt : Arr : Net : | J13: =IF(preparation_cabasse!$K$2>=9,preparation_cabasse!$AE20,"") ->  | L13: Dpt : Arr : Net : | N13: =IF(preparation_cabasse!$K$2>=9,preparation_cabasse!$AE21,"") ->  | P13: Dpt : Arr : Net :
B14: =IF(preparation_cabasse!$K$2>=10,preparation_cabasse!$AH4,"") ->  | D14: Dpt : Arr : Net : | F14: =IF(preparation_cabasse!$K$2>=10,preparation_cabasse!$AH5,"") ->  | H14: Dpt : Arr : Net : | J14: =IF(preparation_cabasse!$K$2>=10,preparation_cabasse!$AH20,"") ->  | L14: Dpt : Arr : Net : | N14: =IF(preparation_cabasse!$K$2>=10,preparation_cabasse!$AH21,"") ->  | P14: Dpt : Arr : Net :
B15: Bilan | D15: Tps net : | F15: Bilan | H15: Tps net : | J15: Bilan | L15: Tps net : | N15: Bilan | P15: Tps net :
B16: TEL. CLG : 04 90 58 11 32 | F16: TEL. CLG : 04 90 58 11 32 | J16: TEL. CLG : 04 90 58 11 32 | N16: TEL. CLG : 04 90 58 11 32
B19: DATE : | D19: =index_classe!$D5 -> Carte N° : 10 - CHEL Sarah | F19: DATE : | H19: =index_classe!$D6 -> Carte N° : 10 - CLAUD Maxime | J19: DATE : | L19: =index_classe!$D21 -> Carte N° : 10 - TEEC Victor | N19: DATE : | P19: =index_classe!$D22 -> Carte N° : 10 - TEJOR Carla
B20: CODE | C20: Numéro BALISE | D20: HEURE LIMITE: | F20: CODE | G20: Numéro BALISE | H20: HEURE LIMITE: | J20: CODE | K20: Numéro BALISE | L20: HEURE LIMITE: | N20: CODE | O20: Numéro BALISE | P20: HEURE LIMITE:
B22: =IF(preparation_cabasse!$K$2>=1,preparation_cabasse!$G6,"") -> FFV | D22: Dpt : Arr : Net : | F22: =IF(preparation_cabasse!$K$2>=1,preparation_cabasse!$G7,"") -> GGN | H22: Dpt : Arr : Net : | J22: =IF(preparation_cabasse!$K$2>=1,preparation_cabasse!$G22,"") -> FFV | L22: Dpt : Arr : Net : | N22: =IF(preparation_cabasse!$K$2>=1,preparation_cabasse!$G23,"") -> EER | P22: Dpt : Arr : Net :
B23: =IF(preparation_cabasse!$K$2>=2,preparation_cabasse!$J6,"") -> FFJ | D23: Dpt : Arr : Net : | F23: =IF(preparation_cabasse!$K$2>=2,preparation_cabasse!$J7,"") -> GGD | H23: Dpt : Arr : Net : | J23: =IF(preparation_cabasse!$K$2>=2,preparation_cabasse!$J22,"") -> GGV | L23: Dpt : Arr : Net : | N23: =IF(preparation_cabasse!$K$2>=2,preparation_cabasse!$J23,"") -> GGL | P23: Dpt : Arr : Net :
B24: =IF(preparation_cabasse!$K$2>=3,preparation_cabasse!$M6,"") -> GGN | D24: Dpt : Arr : Net : | F24: =IF(preparation_cabasse!$K$2>=3,preparation_cabasse!$M7,"") -> EEM | H24: Dpt : Arr : Net : | J24: =IF(preparation_cabasse!$K$2>=3,preparation_cabasse!$M22,"") -> FFS | L24: Dpt : Arr : Net : | N24: =IF(preparation_cabasse!$K$2>=3,preparation_cabasse!$M23,"") -> GGH | P24: Dpt : Arr : Net :
B25: =IF(preparation_cabasse!$K$2>=4,preparation_cabasse!$P6,"") -> FFU | D25: Dpt : Arr : Net : | F25: =IF(preparation_cabasse!$K$2>=4,preparation_cabasse!$P7,"") -> GGJ | H25: Dpt : Arr : Net : | J25: =IF(preparation_cabasse!$K$2>=4,preparation_cabasse!$P22,"") -> GGV | L25: Dpt : Arr : Net : | N25: =IF(preparation_cabasse!$K$2>=4,preparation_cabasse!$P23,"") -> GGC | P25: Dpt : Arr : Net :
B26: =IF(preparation_cabasse!$K$2>=5,preparation_cabasse!$S6,"") -> EEA | D26: Dpt : Arr : Net : | F26: =IF(preparation_cabasse!$K$2>=5,preparation_cabasse!$S7,"") -> FFX | H26: Dpt : Arr : Net : | J26: =IF(preparation_cabasse!$K$2>=5,preparation_cabasse!$S22,"") -> FFP | L26: Dpt : Arr : Net : | N26: =IF(preparation_cabasse!$K$2>=5,preparation_cabasse!$S23,"") -> FFN | P26: Dpt : Arr : Net :
B27: =IF(preparation_cabasse!$K$2>=6,preparation_cabasse!$V6,"") ->  | D27: Dpt : Arr : Net : | F27: =IF(preparation_cabasse!$K$2>=6,preparation_cabasse!$V7,"") ->  | H27: Dpt : Arr : Net : | J27: =IF(preparation_cabasse!$K$2>=6,preparation_cabasse!$V22,"") ->  | L27: Dpt : Arr : Net : | N27: =IF(preparation_cabasse!$K$2>=6,preparation_cabasse!$V23,"") ->  | P27: Dpt : Arr : Net :
B28: =IF(preparation_cabasse!$K$2>=7,preparation_cabasse!$Y6,"") ->  | D28: Dpt : Arr : Net : | F28: =IF(preparation_cabasse!$K$2>=7,preparation_cabasse!$Y7,"") ->  | H28: Dpt : Arr : Net : | J28: =IF(preparation_cabasse!$K$2>=7,preparation_cabasse!$Y22,"") ->  | L28: Dpt : Arr : Net : | N28: =IF(preparation_cabasse!$K$2>=7,preparation_cabasse!$Y23,"") ->  | P28: Dpt : Arr : Net :
B29: =IF(preparation_cabasse!$K$2>=8,preparation_cabasse!$AB6,"") ->  | D29: Dpt : Arr : Net : | F29: =IF(preparation_cabasse!$K$2>=8,preparation_cabasse!$AB7,"") ->  | H29: Dpt : Arr : Net : | J29: =IF(preparation_cabasse!$K$2>=8,preparation_cabasse!$AB22,"") ->  | L29: Dpt : Arr : Net : | N29: =IF(preparation_cabasse!$K$2>=8,preparation_cabasse!$AB23,"") ->  | P29: Dpt : Arr : Net :
B30: =IF(preparation_cabasse!$K$2>=9,preparation_cabasse!$AE6,"") ->  | D30: Dpt : Arr : Net : | F30: =IF(preparation_cabasse!$K$2>=9,preparation_cabasse!$AE7,"") ->  | H30: Dpt : Arr : Net : | J30: =IF(preparation_cabasse!$K$2>=9,preparation_cabasse!$AE22,"") ->  | L30: Dpt : Arr : Net : | N30: =IF(preparation_cabasse!$K$2>=9,preparation_cabasse!$AE23,"") ->  | P30: Dpt : Arr : Net :
B31: =IF(preparation_cabasse!$K$2>=10,preparation_cabasse!$AH6,"") ->  | D31: Dpt : Arr : Net : | F31: =IF(preparation_cabasse!$K$2>=10,preparation_cabasse!$AH7,"") ->  | H31: Dpt : Arr : Net : | J31: =IF(preparation_cabasse!$K$2>=10,preparation_cabasse!$AH22,"") ->  | L31: Dpt : Arr : Net : | N31: =IF(preparation_cabasse!$K$2>=10,preparation_cabasse!$AH23,"") ->  | P31: Dpt : Arr : Net :
B32: Bilan | D32: Tps net : | F32: Bilan | H32: Tps net : | J32: Bilan | L32: Tps net : | N32: Bilan | P32: Tps net :
B33: TEL. CLG : 04 90 58 11 32 | F33: TEL. CLG : 04 90 58 11 32 | J33: TEL. CLG : 04 90 58 11 32 | N33: TEL. CLG : 04 90 58 11 32
B36: DATE : | D36: =index_classe!$D7 -> Carte N° : 10 - NAISSA Estelle | F36: DATE : | H36: =index_classe!$D8 -> Carte N° : 10 - FA Dylan | J36: DATE : | L36: =index_classe!$D23 -> Carte N° : 10 - THIER Andrea | N36: DATE : | P36: =index_classe!$D24 -> Carte N° : 10 - YI William
B37: CODE | C37: Numéro BALISE | D37: HEURE LIMITE: | F37: CODE | G37: Numéro BALISE | H37: HEURE LIMITE: | J37: CODE | K37: Numéro BALISE | L37: HEURE LIMITE: | N37: CODE | O37: Numéro BALISE | P37: HEURE LIMITE:
B39: =IF(preparation_cabasse!$K$2>=1,preparation_cabasse!$G8,"") -> GGP | D39: Dpt : Arr : Net : | F39: =IF(preparation_cabasse!$K$2>=1,preparation_cabasse!$G9,"") -> GGJ | H39: Dpt : Arr : Net : | J39: =IF(preparation_cabasse!$K$2>=1,preparation_cabasse!$G24,"") -> GGN | L39: Dpt : Arr : Net : | N39: =IF(preparation_cabasse!$K$2>=1,preparation_cabasse!$G25,"") -> DDZ | P39: Dpt : Arr : Net :
B40: =IF(preparation_cabasse!$K$2>=2,preparation_cabasse!$J8,"") -> FFK | D40: Dpt : Arr : Net : | F40: =IF(preparation_cabasse!$K$2>=2,preparation_cabasse!$J9,"") -> GGP | H40: Dpt : Arr : Net : | J40: =IF(preparation_cabasse!$K$2>=2,preparation_cabasse!$J24,"") -> FFT | L40: Dpt : Arr : Net : | N40: =IF(preparation_cabasse!$K$2>=2,preparation_cabasse!$J25,"") -> EEZ | P40: Dpt : Arr : Net :
B41: =IF(preparation_cabasse!$K$2>=3,preparation_cabasse!$M8,"") -> EEI | D41: Dpt : Arr : Net : | F41: =IF(preparation_cabasse!$K$2>=3,preparation_cabasse!$M9,"") -> GGU | H41: Dpt : Arr : Net : | J41: =IF(preparation_cabasse!$K$2>=3,preparation_cabasse!$M24,"") -> EED | L41: Dpt : Arr : Net : | N41: =IF(preparation_cabasse!$K$2>=3,preparation_cabasse!$M25,"") -> GGL | P41: Dpt : Arr : Net :
B42: =IF(preparation_cabasse!$K$2>=4,preparation_cabasse!$P8,"") -> GGQ | D42: Dpt : Arr : Net : | F42: =IF(preparation_cabasse!$K$2>=4,preparation_cabasse!$P9,"") -> GGN | H42: Dpt : Arr : Net : | J42: =IF(preparation_cabasse!$K$2>=4,preparation_cabasse!$P24,"") -> GGF | L42: Dpt : Arr : Net : | N42: =IF(preparation_cabasse!$K$2>=4,preparation_cabasse!$P25,"") -> EEH | P42: Dpt : Arr : Net :
B43: =IF(preparation_cabasse!$K$2>=5,preparation_cabasse!$S8,"") -> FFW | D43: Dpt : Arr : Net : | F43: =IF(preparation_cabasse!$K$2>=5,preparation_cabasse!$S9,"") -> EED | H43: Dpt : Arr : Net : | J43: =IF(preparation_cabasse!$K$2>=5,preparation_cabasse!$S24,"") -> EES | L43: Dpt : Arr : Net : | N43: =IF(preparation_cabasse!$K$2>=5,preparation_cabasse!$S25,"") -> FFL | P43: Dpt : Arr : Net :
B44: =IF(preparation_cabasse!$K$2>=6,preparation_cabasse!$V8,"") ->  | D44: Dpt : Arr : Net : | F44: =IF(preparation_cabasse!$K$2>=6,preparation_cabasse!$V9,"") ->  | H44: Dpt : Arr : Net : | J44: =IF(preparation_cabasse!$K$2>=6,preparation_cabasse!$V24,"") ->  | L44: Dpt : Arr : Net : | N44: =IF(preparation_cabasse!$K$2>=6,preparation_cabasse!$V25,"") ->  | P44: Dpt : Arr : Net :
B45: =IF(preparation_cabasse!$K$2>=7,preparation_cabasse!$Y8,"") ->  | D45: Dpt : Arr : Net : | F45: =IF(preparation_cabasse!$K$2>=7,preparation_cabasse!$Y9,"") ->  | H45: Dpt : Arr : Net : | J45: =IF(preparation_cabasse!$K$2>=7,preparation_cabasse!$Y24,"") ->  | L45: Dpt : Arr : Net : | N45: =IF(preparation_cabasse!$K$2>=7,preparation_cabasse!$Y25,"") ->  | P45: Dpt : Arr : Net :
B46: =IF(preparation_cabasse!$K$2>=8,preparation_cabasse!$AB8,"") ->  | D46: Dpt : Arr : Net : | F46: =IF(preparation_cabasse!$K$2>=8,preparation_cabasse!$AB9,"") ->  | H46: Dpt : Arr : Net : | J46: =IF(preparation_cabasse!$K$2>=8,preparation_cabasse!$AB24,"") ->  | L46: Dpt : Arr : Net : | N46: =IF(preparation_cabasse!$K$2>=8,preparation_cabasse!$AB25,"") ->  | P46: Dpt : Arr : Net :
B47: =IF(preparation_cabasse!$K$2>=9,preparation_cabasse!$AE8,"") ->  | D47: Dpt : Arr : Net : | F47: =IF(preparation_cabasse!$K$2>=9,preparation_cabasse!$AE9,"") ->  | H47: Dpt : Arr : Net : | J47: =IF(preparation_cabasse!$K$2>=9,preparation_cabasse!$AE24,"") ->  | L47: Dpt : Arr : Net : | N47: =IF(preparation_cabasse!$K$2>=9,preparation_cabasse!$AE25,"") ->  | P47: Dpt : Arr : Net :
B48: =IF(preparation_cabasse!$K$2>=10,preparation_cabasse!$AH8,"") ->  | D48: Dpt : Arr : Net : | F48: =IF(preparation_cabasse!$K$2>=10,preparation_cabasse!$AH9,"") ->  | H48: Dpt : Arr : Net : | J48: =IF(preparation_cabasse!$K$2>=10,preparation_cabasse!$AH24,"") ->  | L48: Dpt : Arr : Net : | N48: =IF(preparation_cabasse!$K$2>=10,preparation_cabasse!$AH25,"") ->  | P48: Dpt : Arr : Net :
B49: Bilan | D49: Tps net : | F49: Bilan | H49: Tps net : | J49: Bilan | L49: Tps net : | N49: Bilan | P49: Tps net :
B50: TEL. CLG : 04 90 58 11 32 | F50: TEL. CLG : 04 90 58 11 32 | J50: TEL. CLG : 04 90 58 11 32 | N50: TEL. CLG : 04 90 58 11 32
B53: DATE : | D53: =index_classe!$D9 -> Carte N° : 10 - FLEIN Theo | F53: DATE : | H53: =index_classe!$D10 -> Carte N° : 10 - JEAON Alexis | J53: DATE : | L53: =index_classe!$D25 ->  | N53: DATE : | P53: =index_classe!$D26 -> 
B54: CODE | C54: Numéro BALISE | D54: HEURE LIMITE: | F54: CODE | G54: Numéro BALISE | H54: HEURE LIMITE: | J54: CODE | K54: Numéro BALISE | L54: HEURE LIMITE: | N54: CODE | O54: Numéro BALISE | P54: HEURE LIMITE:
B56: =IF(preparation_cabasse!$K$2>=1,preparation_cabasse!$G10,"") -> DDU | D56: Dpt : Arr : Net : | F56: =IF(preparation_cabasse!$K$2>=1,preparation_cabasse!$G11,"") -> GGD | H56: Dpt : Arr : Net : | J56: =IF(preparation_cabasse!$K$2>=1,preparation_cabasse!$G26,"") ->  | L56: Dpt : Arr : Net : | N56: =IF(preparation_cabasse!$K$2>=1,preparation_cabasse!$G27,"") ->  | P56: Dpt : Arr : Net :
B57: =IF(preparation_cabasse!$K$2>=2,preparation_cabasse!$J10,"") -> EEM | D57: Dpt : Arr : Net : | F57: =IF(preparation_cabasse!$K$2>=2,preparation_cabasse!$J11,"") -> DDS | H57: Dpt : Arr : Net : | J57: =IF(preparation_cabasse!$K$2>=2,preparation_cabasse!$J26,"") ->  | L57: Dpt : Arr : Net : | N57: =IF(preparation_cabasse!$K$2>=2,preparation_cabasse!$J27,"") ->  | P57: Dpt : Arr : Net :
B58: =IF(preparation_cabasse!$K$2>=3,preparation_cabasse!$M10,"") -> GGD | D58: Dpt : Arr : Net : | F58: =IF(preparation_cabasse!$K$2>=3,preparation_cabasse!$M11,"") -> FFU | H58: Dpt : Arr : Net : | J58: =IF(preparation_cabasse!$K$2>=3,preparation_cabasse!$M26,"") ->  | L58: Dpt : Arr : Net : | N58: =IF(preparation_cabasse!$K$2>=3,preparation_cabasse!$M27,"") ->  | P58: Dpt : Arr : Net :
B59: =IF(preparation_cabasse!$K$2>=4,preparation_cabasse!$P10,"") -> GGF | D59: Dpt : Arr : Net : | F59: =IF(preparation_cabasse!$K$2>=4,preparation_cabasse!$P11,"") -> FFT | H59: Dpt : Arr : Net : | J59: =IF(preparation_cabasse!$K$2>=4,preparation_cabasse!$P26,"") ->  | L59: Dpt : Arr : Net : | N59: =IF(preparation_cabasse!$K$2>=4,preparation_cabasse!$P27,"") ->  | P59: Dpt : Arr : Net :
B60: =IF(preparation_cabasse!$K$2>=5,preparation_cabasse!$S10,"") -> GGJ | D60: Dpt : Arr : Net : | F60: =IF(preparation_cabasse!$K$2>=5,preparation_cabasse!$S11,"") -> GGK | H60: Dpt : Arr : Net : | J60: =IF(preparation_cabasse!$K$2>=5,preparation_cabasse!$S26,"") ->  | L60: Dpt : Arr : Net : | N60: =IF(preparation_cabasse!$K$2>=5,preparation_cabasse!$S27,"") ->  | P60: Dpt : Arr : Net :
B61: =IF(preparation_cabasse!$K$2>=6,preparation_cabasse!$V10,"") ->  | D61: Dpt : Arr : Net : | F61: =IF(preparation_cabasse!$K$2>=6,preparation_cabasse!$V11,"") ->  | H61: Dpt : Arr : Net : | J61: =IF(preparation_cabasse!$K$2>=6,preparation_cabasse!$V26,"") ->  | L61: Dpt : Arr : Net : | N61: =IF(preparation_cabasse!$K$2>=6,preparation_cabasse!$V27,"") ->  | P61: Dpt : Arr : Net :
B62: =IF(preparation_cabasse!$K$2>=7,preparation_cabasse!$Y10,"") ->  | D62: Dpt : Arr : Net : | F62: =IF(preparation_cabasse!$K$2>=7,preparation_cabasse!$Y11,"") ->  | H62: Dpt : Arr : Net : | J62: =IF(preparation_cabasse!$K$2>=7,preparation_cabasse!$Y26,"") ->  | L62: Dpt : Arr : Net : | N62: =IF(preparation_cabasse!$K$2>=7,preparation_cabasse!$Y27,"") ->  | P62: Dpt : Arr : Net :
B63: =IF(preparation_cabasse!$K$2>=8,preparation_cabasse!$AB10,"") ->  | D63: Dpt : Arr : Net : | F63: =IF(preparation_cabasse!$K$2>=8,preparation_cabasse!$AB11,"") ->  | H63: Dpt : Arr : Net : | J63: =IF(preparation_cabasse!$K$2>=8,preparation_cabasse!$AB26,"") ->  | L63: Dpt : Arr : Net : | N63: =IF(preparation_cabasse!$K$2>=8,preparation_cabasse!$AB27,"") ->  | P63: Dpt : Arr : Net :
B64: =IF(preparation_cabasse!$K$2>=9,preparation_cabasse!$AE25,"") ->  | D64: Dpt : Arr : Net : | F64: =IF(preparation_cabasse!$K$2>=9,preparation_cabasse!$AE11,"") ->  | H64: Dpt : Arr : Net : | J64: =IF(preparation_cabasse!$K$2>=9,preparation_cabasse!$AE26,"") ->  | L64: Dpt : Arr : Net : | N64: =IF(preparation_cabasse!$K$2>=9,preparation_cabasse!$AE27,"") ->  | P64: Dpt : Arr : Net :
B65: =IF(preparation_cabasse!$K$2>=10,preparation_cabasse!$AH10,"") ->  | D65: Dpt : Arr : Net : | F65: =IF(preparation_cabasse!$K$2>=10,preparation_cabasse!$AH11,"") ->  | H65: Dpt : Arr : Net : | J65: =IF(preparation_cabasse!$K$2>=10,preparation_cabasse!$AH26,"") ->  | L65: Dpt : Arr : Net : | N65: =IF(preparation_cabasse!$K$2>=10,preparation_cabasse!$AH27,"") ->  | P65: Dpt : Arr : Net :
B66: Bilan | D66: Tps net : | F66: Bilan | H66: Tps net : | J66: Bilan | L66: Tps net : | N66: Bilan | P66: Tps net :
B67: TEL. CLG : 04 90 58 11 32 | F67: TEL. CLG : 04 90 58 11 32 | J67: TEL. CLG : 04 90 58 11 32 | N67: TEL. CLG : 04 90 58 11 32
B70: DATE : | D70: =index_classe!$D11 -> Carte N° : 10 - KOLA Alexandre | F70: DATE : | H70: =index_classe!$D12 -> Carte N° : 10 - LERHE Melvin | J70: DATE : | L70: =index_classe!$D27 ->  | N70: DATE : | P70: =index_classe!$D28 -> 
B71: CODE | C71: Numéro BALISE | D71: HEURE LIMITE: | F71: CODE | G71: Numéro BALISE | H71: HEURE LIMITE: | J71: CODE | K71: Numéro BALISE | L71: HEURE LIMITE: | N71: CODE | O71: Numéro BALISE | P71: HEURE LIMITE:
B73: =IF(preparation_cabasse!$K$2>=1,preparation_cabasse!$G12,"") -> GGV | D73: Dpt : Arr : Net : | F73: =IF(preparation_cabasse!$K$2>=1,preparation_cabasse!$G13,"") -> GGM | H73: Dpt : Arr : Net : | J73: =IF(preparation_cabasse!$K$2>=1,preparation_cabasse!$G28,"") ->  | L73: Dpt : Arr : Net : | N73: =IF(preparation_cabasse!$K$2>=1,preparation_cabasse!$G29,"") ->  | P73: Dpt : Arr : Net :
B74: =IF(preparation_cabasse!$K$2>=2,preparation_cabasse!$J12,"") -> EEO | D74: Dpt : Arr : Net : | F74: =IF(preparation_cabasse!$K$2>=2,preparation_cabasse!$J13,"") -> FFE | H74: Dpt : Arr : Net : | J74: =IF(preparation_cabasse!$K$2>=2,preparation_cabasse!$J28,"") ->  | L74: Dpt : Arr : Net : | N74: =IF(preparation_cabasse!$K$2>=2,preparation_cabasse!$J29,"") ->  | P74: Dpt : Arr : Net :
B75: =IF(preparation_cabasse!$K$2>=3,preparation_cabasse!$M12,"") -> FFM | D75: Dpt : Arr : Net : | F75: =IF(preparation_cabasse!$K$2>=3,preparation_cabasse!$M13,"") -> EEU | H75: Dpt : Arr : Net : | J75: =IF(preparation_cabasse!$K$2>=3,preparation_cabasse!$M28,"") ->  | L75: Dpt : Arr : Net : | N75: =IF(preparation_cabasse!$K$2>=3,preparation_cabasse!$M29,"") ->  | P75: Dpt : Arr : Net :
B76: =IF(preparation_cabasse!$K$2>=4,preparation_cabasse!$P12,"") -> DDT | D76: Dpt : Arr : Net : | F76: =IF(preparation_cabasse!$K$2>=4,preparation_cabasse!$P13,"") -> EET | H76: Dpt : Arr : Net : | J76: =IF(preparation_cabasse!$K$2>=4,preparation_cabasse!$P28,"") ->  | L76: Dpt : Arr : Net : | N76: =IF(preparation_cabasse!$K$2>=4,preparation_cabasse!$P29,"") ->  | P76: Dpt : Arr : Net :
B77: =IF(preparation_cabasse!$K$2>=5,preparation_cabasse!$S12,"") -> DDV | D77: Dpt : Arr : Net : | F77: =IF(preparation_cabasse!$K$2>=5,preparation_cabasse!$S13,"") -> DW | H77: Dpt : Arr : Net : | J77: =IF(preparation_cabasse!$K$2>=5,preparation_cabasse!$S28,"") ->  | L77: Dpt : Arr : Net : | N77: =IF(preparation_cabasse!$K$2>=5,preparation_cabasse!$S29,"") ->  | P77: Dpt : Arr : Net :
B78: =IF(preparation_cabasse!$K$2>=6,preparation_cabasse!$V12,"") ->  | D78: Dpt : Arr : Net : | F78: =IF(preparation_cabasse!$K$2>=6,preparation_cabasse!$V13,"") ->  | H78: Dpt : Arr : Net : | J78: =IF(preparation_cabasse!$K$2>=6,preparation_cabasse!$V28,"") ->  | L78: Dpt : Arr : Net : | N78: =IF(preparation_cabasse!$K$2>=6,preparation_cabasse!$V29,"") ->  | P78: Dpt : Arr : Net :
B79: =IF(preparation_cabasse!$K$2>=7,preparation_cabasse!$Y12,"") ->  | D79: Dpt : Arr : Net : | F79: =IF(preparation_cabasse!$K$2>=7,preparation_cabasse!$Y13,"") ->  | H79: Dpt : Arr : Net : | J79: =IF(preparation_cabasse!$K$2>=7,preparation_cabasse!$Y28,"") ->  | L79: Dpt : Arr : Net : | N79: =IF(preparation_cabasse!$K$2>=7,preparation_cabasse!$Y29,"") ->  | P79: Dpt : Arr : Net :
B80: =IF(preparation_cabasse!$K$2>=8,preparation_cabasse!$AB12,"") ->  | D80: Dpt : Arr : Net : | F80: =IF(preparation_cabasse!$K$2>=8,preparation_cabasse!$AB13,"") ->  | H80: Dpt : Arr : Net : | J80: =IF(preparation_cabasse!$K$2>=8,preparation_cabasse!$AB28,"") ->  | L80: Dpt : Arr : Net : | N80: =IF(preparation_cabasse!$K$2>=8,preparation_cabasse!$AB29,"") ->  | P80: Dpt : Arr : Net :
B81: =IF(preparation_cabasse!$K$2>=9,preparation_cabasse!$AE12,"") ->  | D81: Dpt : Arr : Net : | F81: =IF(preparation_cabasse!$K$2>=9,preparation_cabasse!$AE13,"") ->  | H81: Dpt : Arr : Net : | J81: =IF(preparation_cabasse!$K$2>=9,preparation_cabasse!$AE28,"") ->  | L81: Dpt : Arr : Net : | N81: =IF(preparation_cabasse!$K$2>=9,preparation_cabasse!$AE29,"") ->  | P81: Dpt : Arr : Net :
B82: =IF(preparation_cabasse!$K$2>=10,preparation_cabasse!$AH12,"") ->  | D82: Dpt : Arr : Net : | F82: =IF(preparation_cabasse!$K$2>=10,preparation_cabasse!$AH13,"") ->  | H82: Dpt : Arr : Net : | J82: =IF(preparation_cabasse!$K$2>=10,preparation_cabasse!$AH28,"") ->  | L82: Dpt : Arr : Net : | N82: =IF(preparation_cabasse!$K$2>=10,preparation_cabasse!$AH29,"") ->  | P82: Dpt : Arr : Net :
B83: Bilan | D83: Tps net : | F83: Bilan | H83: Tps net : | J83: Bilan | L83: Tps net : | N83: Bilan | P83: Tps net :
B84: TEL. CLG : 04 90 58 11 32 | F84: TEL. CLG : 04 90 58 11 32 | J84: TEL. CLG : 04 90 58 11 32 | N84: TEL. CLG : 04 90 58 11 32
B87: DATE : | D87: =index_classe!$D13 -> Carte N° : 10 - LOE Mickael | F87: DATE : | H87: =index_classe!$D14 -> Carte N° : 10 - MORET Alice | J87: DATE : | L87: =index_classe!$D29 ->  | N87: DATE : | P87: =index_classe!$D30 -> 
B88: CODE | C88: Numéro BALISE | D88: HEURE LIMITE: | F88: CODE | G88: Numéro BALISE | H88: HEURE LIMITE: | J88: CODE | K88: Numéro BALISE | L88: HEURE LIMITE: | N88: CODE | O88: Numéro BALISE | P88: HEURE LIMITE:
B90: =IF(preparation_cabasse!$K$2>=1,preparation_cabasse!$G14,"") -> FFH | D90: Dpt : Arr : Net : | F90: =IF(preparation_cabasse!$K$2>=1,preparation_cabasse!$G15,"") -> FFV | H90: Dpt : Arr : Net : | J90: =IF(preparation_cabasse!$K$2>=1,preparation_cabasse!$G30,"") ->  | L90: Dpt : Arr : Net : | N90: =IF(preparation_cabasse!$K$2>=1,preparation_cabasse!$G31,"") ->  | P90: Dpt : Arr : Net :
B91: =IF(preparation_cabasse!$K$2>=2,preparation_cabasse!$J14,"") -> DDU | D91: Dpt : Arr : Net : | F91: =IF(preparation_cabasse!$K$2>=2,preparation_cabasse!$J15,"") -> EEW | H91: Dpt : Arr : Net : | J91: =IF(preparation_cabasse!$K$2>=2,preparation_cabasse!$J30,"") ->  | L91: Dpt : Arr : Net : | N91: =IF(preparation_cabasse!$K$2>=2,preparation_cabasse!$J31,"") ->  | P91: Dpt : Arr : Net :
B92: =IF(preparation_cabasse!$K$2>=3,preparation_cabasse!$M14,"") -> GGT | D92: Dpt : Arr : Net : | F92: =IF(preparation_cabasse!$K$2>=3,preparation_cabasse!$M15,"") -> EEF | H92: Dpt : Arr : Net : | J92: =IF(preparation_cabasse!$K$2>=3,preparation_cabasse!$M30,"") ->  | L92: Dpt : Arr : Net : | N92: =IF(preparation_cabasse!$K$2>=3,preparation_cabasse!$M31,"") ->  | P92: Dpt : Arr : Net :
B93: =IF(preparation_cabasse!$K$2>=4,preparation_cabasse!$P14,"") -> GGN | D93: Dpt : Arr : Net : | F93: =IF(preparation_cabasse!$K$2>=4,preparation_cabasse!$P15,"") -> EEZ | H93: Dpt : Arr : Net : | J93: =IF(preparation_cabasse!$K$2>=4,preparation_cabasse!$P30,"") ->  | L93: Dpt : Arr : Net : | N93: =IF(preparation_cabasse!$K$2>=4,preparation_cabasse!$P31,"") ->  | P93: Dpt : Arr : Net :
B94: =IF(preparation_cabasse!$K$2>=5,preparation_cabasse!$S14,"") -> GGT | D94: Dpt : Arr : Net : | F94: =IF(preparation_cabasse!$K$2>=5,preparation_cabasse!$S15,"") -> DDX | H94: Dpt : Arr : Net : | J94: =IF(preparation_cabasse!$K$2>=5,preparation_cabasse!$S30,"") ->  | L94: Dpt : Arr : Net : | N94: =IF(preparation_cabasse!$K$2>=5,preparation_cabasse!$S31,"") ->  | P94: Dpt : Arr : Net :
B95: =IF(preparation_cabasse!$K$2>=6,preparation_cabasse!$V14,"") ->  | D95: Dpt : Arr : Net : | F95: =IF(preparation_cabasse!$K$2>=6,preparation_cabasse!$V15,"") ->  | H95: Dpt : Arr : Net : | J95: =IF(preparation_cabasse!$K$2>=6,preparation_cabasse!$V30,"") ->  | L95: Dpt : Arr : Net : | N95: =IF(preparation_cabasse!$K$2>=6,preparation_cabasse!$V31,"") ->  | P95: Dpt : Arr : Net :
B96: =IF(preparation_cabasse!$K$2>=7,preparation_cabasse!$Y14,"") ->  | D96: Dpt : Arr : Net : | F96: =IF(preparation_cabasse!$K$2>=7,preparation_cabasse!$Y15,"") ->  | H96: Dpt : Arr : Net : | J96: =IF(preparation_cabasse!$K$2>=7,preparation_cabasse!$Y30,"") ->  | L96: Dpt : Arr : Net : | N96: =IF(preparation_cabasse!$K$2>=7,preparation_cabasse!$Y31,"") ->  | P96: Dpt : Arr : Net :
B97: =IF(preparation_cabasse!$K$2>=8,preparation_cabasse!$AB14,"") ->  | D97: Dpt : Arr : Net : | F97: =IF(preparation_cabasse!$K$2>=8,preparation_cabasse!$AB15,"") ->  | H97: Dpt : Arr : Net : | J97: =IF(preparation_cabasse!$K$2>=8,preparation_cabasse!$AB30,"") ->  | L97: Dpt : Arr : Net : | N97: =IF(preparation_cabasse!$K$2>=8,preparation_cabasse!$AB31,"") ->  | P97: Dpt : Arr : Net :
B98: =IF(preparation_cabasse!$K$2>=9,preparation_cabasse!$AE14,"") ->  | D98: Dpt : Arr : Net : | F98: =IF(preparation_cabasse!$K$2>=9,preparation_cabasse!$AE15,"") ->  | H98: Dpt : Arr : Net : | J98: =IF(preparation_cabasse!$K$2>=9,preparation_cabasse!$AE30,"") ->  | L98: Dpt : Arr : Net : | N98: =IF(preparation_cabasse!$K$2>=9,preparation_cabasse!$AE31,"") ->  | P98: Dpt : Arr : Net :
B99: =IF(preparation_cabasse!$K$2>=10,preparation_cabasse!$AH14,"") ->  | D99: Dpt : Arr : Net : | F99: =IF(preparation_cabasse!$K$2>=10,preparation_cabasse!$AH15,"") ->  | H99: Dpt : Arr : Net : | J99: =IF(preparation_cabasse!$K$2>=10,preparation_cabasse!$AH30,"") ->  | L99: Dpt : Arr : Net : | N99: =IF(preparation_cabasse!$K$2>=10,preparation_cabasse!$AH31,"") ->  | P99: Dpt : Arr : Net :
B100: Bilan | D100: Tps net : | F100: Bilan | H100: Tps net : | J100: Bilan | L100: Tps net : | N100: Bilan | P100: Tps net :
B101: TEL. CLG : 04 90 58 11 32 | F101: TEL. CLG : 04 90 58 11 32 | J101: TEL. CLG : 04 90 58 11 32 | N101: TEL. CLG : 04 90 58 11 32
B104: DATE : | D104: =index_classe!$D15 -> Carte N° : 10 - NICAU Romain | F104: DATE : | H104: =index_classe!$D16 -> Carte N° : 10 - RUI Desiderio | J104: DATE : | L104: =index_classe!$D31 ->  | N104: DATE : | P104: =index_classe!$D32 -> 
B105: CODE | C105: Numéro BALISE | D105: HEURE LIMITE: | F105: CODE | G105: Numéro BALISE | H105: HEURE LIMITE: | J105: CODE | K105: Numéro BALISE | L105: HEURE LIMITE: | N105: CODE | O105: Numéro BALISE | P105: HEURE LIMITE:
B107: =IF(preparation_cabasse!$K$2>=1,preparation_cabasse!$G16,"") -> EEA | D107: Dpt : Arr : Net : | F107: =IF(preparation_cabasse!$K$2>=1,preparation_cabasse!$G17,"") -> DDU | H107: Dpt : Arr : Net : | J107: =IF(preparation_cabasse!$K$2>=1,preparation_cabasse!$G32,"") ->  | L107: Dpt : Arr : Net : | N107: =IF(preparation_cabasse!$K$2>=1,preparation_cabasse!$G33,"") ->  | P107: Dpt : Arr : Net :
B108: =IF(preparation_cabasse!$K$2>=2,preparation_cabasse!$J16,"") -> EEB | D108: Dpt : Arr : Net : | F108: =IF(preparation_cabasse!$K$2>=2,preparation_cabasse!$J17,"") -> DDX | H108: Dpt : Arr : Net : | J108: =IF(preparation_cabasse!$K$2>=2,preparation_cabasse!$J32,"") ->  | L108: Dpt : Arr : Net : | N108: =IF(preparation_cabasse!$K$2>=2,preparation_cabasse!$J33,"") ->  | P108: Dpt : Arr : Net :
B109: =IF(preparation_cabasse!$K$2>=3,preparation_cabasse!$M16,"") -> GGI | D109: Dpt : Arr : Net : | F109: =IF(preparation_cabasse!$K$2>=3,preparation_cabasse!$M17,"") -> EEA | H109: Dpt : Arr : Net : | J109: =IF(preparation_cabasse!$K$2>=3,preparation_cabasse!$M32,"") ->  | L109: Dpt : Arr : Net : | N109: =IF(preparation_cabasse!$K$2>=3,preparation_cabasse!$M33,"") ->  | P109: Dpt : Arr : Net :
B110: =IF(preparation_cabasse!$K$2>=4,preparation_cabasse!$P16,"") -> FFQ | D110: Dpt : Arr : Net : | F110: =IF(preparation_cabasse!$K$2>=4,preparation_cabasse!$P17,"") -> GGW | H110: Dpt : Arr : Net : | J110: =IF(preparation_cabasse!$K$2>=4,preparation_cabasse!$P32,"") ->  | L110: Dpt : Arr : Net : | N110: =IF(preparation_cabasse!$K$2>=4,preparation_cabasse!$P33,"") ->  | P110: Dpt : Arr : Net :
B111: =IF(preparation_cabasse!$K$2>=5,preparation_cabasse!$S16,"") -> GGI | D111: Dpt : Arr : Net : | F111: =IF(preparation_cabasse!$K$2>=5,preparation_cabasse!$S17,"") -> FFG | H111: Dpt : Arr : Net : | J111: =IF(preparation_cabasse!$K$2>=5,preparation_cabasse!$S32,"") ->  | L111: Dpt : Arr : Net : | N111: =IF(preparation_cabasse!$K$2>=5,preparation_cabasse!$S33,"") ->  | P111: Dpt : Arr : Net :
B112: =IF(preparation_cabasse!$K$2>=6,preparation_cabasse!$V16,"") ->  | D112: Dpt : Arr : Net : | F112: =IF(preparation_cabasse!$K$2>=6,preparation_cabasse!$V17,"") ->  | H112: Dpt : Arr : Net : | J112: =IF(preparation_cabasse!$K$2>=6,preparation_cabasse!$V32,"") ->  | L112: Dpt : Arr : Net : | N112: =IF(preparation_cabasse!$K$2>=6,preparation_cabasse!$V33,"") ->  | P112: Dpt : Arr : Net :
B113: =IF(preparation_cabasse!$K$2>=7,preparation_cabasse!$Y16,"") ->  | D113: Dpt : Arr : Net : | F113: =IF(preparation_cabasse!$K$2>=7,preparation_cabasse!$Y17,"") ->  | H113: Dpt : Arr : Net : | J113: =IF(preparation_cabasse!$K$2>=7,preparation_cabasse!$Y32,"") ->  | L113: Dpt : Arr : Net : | N113: =IF(preparation_cabasse!$K$2>=7,preparation_cabasse!$Y33,"") ->  | P113: Dpt : Arr : Net :
B114: =IF(preparation_cabasse!$K$2>=8,preparation_cabasse!$AB16,"") ->  | D114: Dpt : Arr : Net : | F114: =IF(preparation_cabasse!$K$2>=8,preparation_cabasse!$AB17,"") ->  | H114: Dpt : Arr : Net : | J114: =IF(preparation_cabasse!$K$2>=8,preparation_cabasse!$AB32,"") ->  | L114: Dpt : Arr : Net : | N114: =IF(preparation_cabasse!$K$2>=8,preparation_cabasse!$AB33,"") ->  | P114: Dpt : Arr : Net :
B115: =IF(preparation_cabasse!$K$2>=9,preparation_cabasse!$AE16,"") ->  | D115: Dpt : Arr : Net : | F115: =IF(preparation_cabasse!$K$2>=9,preparation_cabasse!$AE17,"") ->  | H115: Dpt : Arr : Net : | J115: =IF(preparation_cabasse!$K$2>=9,preparation_cabasse!$AE32,"") ->  | L115: Dpt : Arr : Net : | N115: =IF(preparation_cabasse!$K$2>=9,preparation_cabasse!$AE33,"") ->  | P115: Dpt : Arr : Net :
B116: =IF(preparation_cabasse!$K$2>=10,preparation_cabasse!$AH16,"") ->  | D116: Dpt : Arr : Net : | F116: =IF(preparation_cabasse!$K$2>=10,preparation_cabasse!$AH17,"") ->  | H116: Dpt : Arr : Net : | J116: =IF(preparation_cabasse!$K$2>=10,preparation_cabasse!$AH32,"") ->  | L116: Dpt : Arr : Net : | N116: =IF(preparation_cabasse!$K$2>=10,preparation_cabasse!$AH33,"") ->  | P116: Dpt : Arr : Net :
B117: Bilan | D117: Tps net : | F117: Bilan | H117: Tps net : | J117: Bilan | L117: Tps net : | N117: Bilan | P117: Tps net :
B118: TEL. CLG : 04 90 58 11 32 | F118: TEL. CLG : 04 90 58 11 32 | J118: TEL. CLG : 04 90 58 11 32 | N118: TEL. CLG : 04 90 58 11 32
B121: DATE : | D121: =index_classe!$D17 -> Carte N° : 10 - RI Niko | F121: DATE : | H121: =index_classe!$D18 -> Carte N° : 10 - SAL Calvin | J121: DATE : | L121: =index_classe!$D33 ->  | N121: DATE : | P121: =index_classe!$D34 -> 
B122: CODE | C122: Numéro BALISE | D122: HEURE LIMITE: | F122: CODE | G122: Numéro BALISE | H122: HEURE LIMITE: | J122: CODE | K122: Numéro BALISE | L122: HEURE LIMITE: | N122: CODE | O122: Numéro BALISE | P122: HEURE LIMITE:
B124: =IF(preparation_cabasse!$K$2>=1,preparation_cabasse!$G18,"") -> EES | D124: Dpt : Arr : Net : | F124: =IF(preparation_cabasse!$K$2>=1,preparation_cabasse!$G19,"") -> FFT | H124: Dpt : Arr : Net : | J124: =IF(preparation_cabasse!$K$2>=1,preparation_cabasse!$G34,"") ->  | L124: Dpt : Arr : Net : | N124: =IF(preparation_cabasse!$K$2>=1,preparation_cabasse!$G35,"") ->  | P124: Dpt : Arr : Net :
B125: =IF(preparation_cabasse!$K$2>=2,preparation_cabasse!$J18,"") -> FFK | D125: Dpt : Arr : Net : | F125: =IF(preparation_cabasse!$K$2>=2,preparation_cabasse!$J19,"") -> EEW | H125: Dpt : Arr : Net : | J125: =IF(preparation_cabasse!$K$2>=2,preparation_cabasse!$J34,"") ->  | L125: Dpt : Arr : Net : | N125: =IF(preparation_cabasse!$K$2>=2,preparation_cabasse!$J35,"") ->  | P125: Dpt : Arr : Net :
B126: =IF(preparation_cabasse!$K$2>=3,preparation_cabasse!$M18,"") -> FFQ | D126: Dpt : Arr : Net : | F126: =IF(preparation_cabasse!$K$2>=3,preparation_cabasse!$M19,"") -> HHA | H126: Dpt : Arr : Net : | J126: =IF(preparation_cabasse!$K$2>=3,preparation_cabasse!$M34,"") ->  | L126: Dpt : Arr : Net : | N126: =IF(preparation_cabasse!$K$2>=3,preparation_cabasse!$M35,"") ->  | P126: Dpt : Arr : Net :
B127: =IF(preparation_cabasse!$K$2>=4,preparation_cabasse!$P18,"") -> EED | D127: Dpt : Arr : Net : | F127: =IF(preparation_cabasse!$K$2>=4,preparation_cabasse!$P19,"") -> GGZ | H127: Dpt : Arr : Net : | J127: =IF(preparation_cabasse!$K$2>=4,preparation_cabasse!$P34,"") ->  | L127: Dpt : Arr : Net : | N127: =IF(preparation_cabasse!$K$2>=4,preparation_cabasse!$P35,"") ->  | P127: Dpt : Arr : Net :
B128: =IF(preparation_cabasse!$K$2>=5,preparation_cabasse!$S18,"") -> GGN | D128: Dpt : Arr : Net : | F128: =IF(preparation_cabasse!$K$2>=5,preparation_cabasse!$S19,"") -> EEA | H128: Dpt : Arr : Net : | J128: =IF(preparation_cabasse!$K$2>=5,preparation_cabasse!$S34,"") ->  | L128: Dpt : Arr : Net : | N128: =IF(preparation_cabasse!$K$2>=5,preparation_cabasse!$S35,"") ->  | P128: Dpt : Arr : Net :
B129: =IF(preparation_cabasse!$K$2>=6,preparation_cabasse!$V18,"") ->  | D129: Dpt : Arr : Net : | F129: =IF(preparation_cabasse!$K$2>=6,preparation_cabasse!$V19,"") ->  | H129: Dpt : Arr : Net : | J129: =IF(preparation_cabasse!$K$2>=6,preparation_cabasse!$V34,"") ->  | L129: Dpt : Arr : Net : | N129: =IF(preparation_cabasse!$K$2>=6,preparation_cabasse!$V35,"") ->  | P129: Dpt : Arr : Net :
B130: =IF(preparation_cabasse!$K$2>=7,preparation_cabasse!$Y18,"") ->  | D130: Dpt : Arr : Net : | F130: =IF(preparation_cabasse!$K$2>=7,preparation_cabasse!$Y19,"") ->  | H130: Dpt : Arr : Net : | J130: =IF(preparation_cabasse!$K$2>=7,preparation_cabasse!$Y34,"") ->  | L130: Dpt : Arr : Net : | N130: =IF(preparation_cabasse!$K$2>=7,preparation_cabasse!$Y35,"") ->  | P130: Dpt : Arr : Net :
B131: =IF(preparation_cabasse!$K$2>=8,preparation_cabasse!$AB18,"") ->  | D131: Dpt : Arr : Net : | F131: =IF(preparation_cabasse!$K$2>=8,preparation_cabasse!$AB19,"") ->  | H131: Dpt : Arr : Net : | J131: =IF(preparation_cabasse!$K$2>=8,preparation_cabasse!$AB34,"") ->  | L131: Dpt : Arr : Net : | N131: =IF(preparation_cabasse!$K$2>=8,preparation_cabasse!$AB35,"") ->  | P131: Dpt : Arr : Net :
B132: =IF(preparation_cabasse!$K$2>=9,preparation_cabasse!$AE18,"") ->  | D132: Dpt : Arr : Net : | F132: =IF(preparation_cabasse!$K$2>=9,preparation_cabasse!$AE19,"") ->  | H132: Dpt : Arr : Net : | J132: =IF(preparation_cabasse!$K$2>=9,preparation_cabasse!$AE34,"") ->  | L132: Dpt : Arr : Net : | N132: =IF(preparation_cabasse!$K$2>=9,preparation_cabasse!$AE35,"") ->  | P132: Dpt : Arr : Net :
B133: =IF(preparation_cabasse!$K$2>=10,preparation_cabasse!$AH18,"") ->  | D133: Dpt : Arr : Net : | F133: =IF(preparation_cabasse!$K$2>=10,preparation_cabasse!$AH19,"") ->  | H133: Dpt : Arr : Net : | J133: =IF(preparation_cabasse!$K$2>=10,preparation_cabasse!$AH34,"") ->  | L133: Dpt : Arr : Net : | N133: =IF(preparation_cabasse!$K$2>=10,preparation_cabasse!$AH35,"") ->  | P133: Dpt : Arr : Net :
B134: Bilan | D134: Tps net : | F134: Bilan | H134: Tps net : | J134: Bilan | L134: Tps net : | N134: Bilan | P134: Tps net :
B135: TEL. CLG : 04 90 58 11 32 | F135: TEL. CLG : 04 90 58 11 32 | J135: TEL. CLG : 04 90 58 11 32 | N135: TEL. CLG : 04 90 58 11 32

Sheet coupons_cabasse_chiffres
B2: DATE : | D2: =index_classe!$D3 -> Carte N° : 10 - BENZ Nawel | F2: DATE : | H2: =index_classe!$D4 -> Carte N° : 10 - BERNA Laurine | J2: DATE : | L2: =index_classe!$D19 -> Carte N° : 10 - SIOUI Salah | N2: DATE : | P2: =index_classe!$D20 -> Carte N° : 10 - TADEVA Khatmat
B3: CODE | C3: Numéro BALISE | D3: HEURE LIMITE: | F3: CODE | G3: Numéro BALISE | H3: HEURE LIMITE: | J3: CODE | K3: Numéro BALISE | L3: HEURE LIMITE: | N3: CODE | O3: Numéro BALISE | P3: HEURE LIMITE:
B5: =IF(preparation_cabasse!$K$2>=1,preparation_cabasse!$F4,"") -> 18 | D5: Dpt : Arr : Net : | F5: =IF(preparation_cabasse!$K$2>=1,preparation_cabasse!$F5,"") -> 8 | H5: Dpt : Arr : Net : | J5: =IF(preparation_cabasse!$K$2>=1,preparation_cabasse!$F20,"") -> 57 | L5: Dpt : Arr : Net : | N5: =IF(preparation_cabasse!$K$2>=1,preparation_cabasse!$F21,"") -> 66 | P5: Dpt : Arr : Net :
B6: =IF(preparation_cabasse!$K$2>=2,preparation_cabasse!$I4,"") -> 43 | D6: Dpt : Arr : Net : | F6: =IF(preparation_cabasse!$K$2>=2,preparation_cabasse!$I5,"") -> 68 | H6: Dpt : Arr : Net : | J6: =IF(preparation_cabasse!$K$2>=2,preparation_cabasse!$I20,"") -> 42 | L6: Dpt : Arr : Net : | N6: =IF(preparation_cabasse!$K$2>=2,preparation_cabasse!$I21,"") -> 29 | P6: Dpt : Arr : Net :
B7: =IF(preparation_cabasse!$K$2>=3,preparation_cabasse!$L4,"") -> 85 | D7: Dpt : Arr : Net : | F7: =IF(preparation_cabasse!$K$2>=3,preparation_cabasse!$L5,"") -> 33 | H7: Dpt : Arr : Net : | J7: =IF(preparation_cabasse!$K$2>=3,preparation_cabasse!$L20,"") -> 46 | L7: Dpt : Arr : Net : | N7: =IF(preparation_cabasse!$K$2>=3,preparation_cabasse!$L21,"") -> 14 | P7: Dpt : Arr : Net :
B8: =IF(preparation_cabasse!$K$2>=4,preparation_cabasse!$O4,"") -> 22 | D8: Dpt : Arr : Net : | F8: =IF(preparation_cabasse!$K$2>=4,preparation_cabasse!$O5,"") -> 29 | H8: Dpt : Arr : Net : | J8: =IF(preparation_cabasse!$K$2>=4,preparation_cabasse!$O20,"") -> 1 | L8: Dpt : Arr : Net : | N8: =IF(preparation_cabasse!$K$2>=4,preparation_cabasse!$O21,"") -> 76 | P8: Dpt : Arr : Net :
B9: =IF(preparation_cabasse!$K$2>=5,preparation_cabasse!$R4,"") -> 48 | D9: Dpt : Arr : Net : | F9: =IF(preparation_cabasse!$K$2>=5,preparation_cabasse!$R5,"") -> 41 | H9: Dpt : Arr : Net : | J9: =IF(preparation_cabasse!$K$2>=5,preparation_cabasse!$R20,"") -> 41 | L9: Dpt : Arr : Net : | N9: =IF(preparation_cabasse!$K$2>=5,preparation_cabasse!$R21,"") -> 53 | P9: Dpt : Arr : Net :
B10: =IF(preparation_cabasse!$K$2>=6,preparation_cabasse!$U4,"") ->  | D10: Dpt : Arr : Net : | F10: =IF(preparation_cabasse!$K$2>=6,preparation_cabasse!$U5,"") ->  | H10: Dpt : Arr : Net : | J10: =IF(preparation_cabasse!$K$2>=6,preparation_cabasse!$U20,"") ->  | L10: Dpt : Arr : Net : | N10: =IF(preparation_cabasse!$K$2>=6,preparation_cabasse!$U21,"") ->  | P10: Dpt : Arr : Net :
B11: =IF(preparation_cabasse!$K$2>=7,preparation_cabasse!$X4,"") ->  | D11: Dpt : Arr : Net : | F11: =IF(preparation_cabasse!$K$2>=7,preparation_cabasse!$X5,"") ->  | H11: Dpt : Arr : Net : | J11: =IF(preparation_cabasse!$K$2>=7,preparation_cabasse!$X20,"") ->  | L11: Dpt : Arr : Net : | N11: =IF(preparation_cabasse!$K$2>=7,preparation_cabasse!$X21,"") ->  | P11: Dpt : Arr : Net :
B12: =IF(preparation_cabasse!$K$2>=8,preparation_cabasse!$AA4,"") ->  | D12: Dpt : Arr : Net : | F12: =IF(preparation_cabasse!$K$2>=8,preparation_cabasse!$AA5,"") ->  | H12: Dpt : Arr : Net : | J12: =IF(preparation_cabasse!$K$2>=8,preparation_cabasse!$AA20,"") ->  | L12: Dpt : Arr : Net : | N12: =IF(preparation_cabasse!$K$2>=8,preparation_cabasse!$AA21,"") ->  | P12: Dpt : Arr : Net :
B13: =IF(preparation_cabasse!$K$2>=9,preparation_cabasse!$AD4,"") ->  | D13: Dpt : Arr : Net : | F13: =IF(preparation_cabasse!$K$2>=9,preparation_cabasse!$AD5,"") ->  | H13: Dpt : Arr : Net : | J13: =IF(preparation_cabasse!$K$2>=9,preparation_cabasse!$AD20,"") ->  | L13: Dpt : Arr : Net : | N13: =IF(preparation_cabasse!$K$2>=9,preparation_cabasse!$AD21,"") ->  | P13: Dpt : Arr : Net :
B14: =IF(preparation_cabasse!$K$2>=10,preparation_cabasse!$AG4,"") ->  | D14: Dpt : Arr : Net : | F14: =IF(preparation_cabasse!$K$2>=10,preparation_cabasse!$AG5,"") ->  | H14: Dpt : Arr : Net : | J14: =IF(preparation_cabasse!$K$2>=10,preparation_cabasse!$AG20,"") ->  | L14: Dpt : Arr : Net : | N14: =IF(preparation_cabasse!$K$2>=10,preparation_cabasse!$AG21,"") ->  | P14: Dpt : Arr : Net :
B15: Bilan | D15: Tps net : | F15: Bilan | H15: Tps net : | J15: Bilan | L15: Tps net : | N15: Bilan | P15: Tps net :
B16: TEL. CLG : 04 90 58 11 32 | F16: TEL. CLG : 04 90 58 11 32 | J16: TEL. CLG : 04 90 58 11 32 | N16: TEL. CLG : 04 90 58 11 32
B19: DATE : | D19: =index_classe!$D5 -> Carte N° : 10 - CHEL Sarah | F19: DATE : | H19: =index_classe!$D6 -> Carte N° : 10 - CLAUD Maxime | J19: DATE : | L19: =index_classe!$D21 -> Carte N° : 10 - TEEC Victor | N19: DATE : | P19: =index_classe!$D22 -> Carte N° : 10 - TEJOR Carla
B20: CODE | C20: Numéro BALISE | D20: HEURE LIMITE: | F20: CODE | G20: Numéro BALISE | H20: HEURE LIMITE: | J20: CODE | K20: Numéro BALISE | L20: HEURE LIMITE: | N20: CODE | O20: Numéro BALISE | P20: HEURE LIMITE:
B22: =IF(preparation_cabasse!$K$2>=1,preparation_cabasse!$F6,"") -> 54 | D22: Dpt : Arr : Net : | F22: =IF(preparation_cabasse!$K$2>=1,preparation_cabasse!$F7,"") -> 71 | H22: Dpt : Arr : Net : | J22: =IF(preparation_cabasse!$K$2>=1,preparation_cabasse!$F22,"") -> 54 | L22: Dpt : Arr : Net : | N22: =IF(preparation_cabasse!$K$2>=1,preparation_cabasse!$F23,"") -> 25 | P22: Dpt : Arr : Net :
B23: =IF(preparation_cabasse!$K$2>=2,preparation_cabasse!$I6,"") -> 42 | D23: Dpt : Arr : Net : | F23: =IF(preparation_cabasse!$K$2>=2,preparation_cabasse!$I7,"") -> 62 | H23: Dpt : Arr : Net : | J23: =IF(preparation_cabasse!$K$2>=2,preparation_cabasse!$I22,"") -> 79 | L23: Dpt : Arr : Net : | N23: =IF(preparation_cabasse!$K$2>=2,preparation_cabasse!$I23,"") -> 69 | P23: Dpt : Arr : Net :
B24: =IF(preparation_cabasse!$K$2>=3,preparation_cabasse!$L6,"") -> 71 | D24: Dpt : Arr : Net : | F24: =IF(preparation_cabasse!$K$2>=3,preparation_cabasse!$L7,"") -> 20 | H24: Dpt : Arr : Net : | J24: =IF(preparation_cabasse!$K$2>=3,preparation_cabasse!$L22,"") -> 51 | L24: Dpt : Arr : Net : | N24: =IF(preparation_cabasse!$K$2>=3,preparation_cabasse!$L23,"") -> 65 | P24: Dpt : Arr : Net :
B25: =IF(preparation_cabasse!$K$2>=4,preparation_cabasse!$O6,"") -> 53 | D25: Dpt : Arr : Net : | F25: =IF(preparation_cabasse!$K$2>=4,preparation_cabasse!$O7,"") -> 67 | H25: Dpt : Arr : Net : | J25: =IF(preparation_cabasse!$K$2>=4,preparation_cabasse!$O22,"") -> 79 | L25: Dpt : Arr : Net : | N25: =IF(preparation_cabasse!$K$2>=4,preparation_cabasse!$O23,"") -> 61 | P25: Dpt : Arr : Net :
B26: =IF(preparation_cabasse!$K$2>=5,preparation_cabasse!$R6,"") -> 9 | D26: Dpt : Arr : Net : | F26: =IF(preparation_cabasse!$K$2>=5,preparation_cabasse!$R7,"") -> 56 | H26: Dpt : Arr : Net : | J26: =IF(preparation_cabasse!$K$2>=5,preparation_cabasse!$R22,"") -> 48 | L26: Dpt : Arr : Net : | N26: =IF(preparation_cabasse!$K$2>=5,preparation_cabasse!$R23,"") -> 46 | P26: Dpt : Arr : Net :
B27: =IF(preparation_cabasse!$K$2>=6,preparation_cabasse!$U6,"") ->  | D27: Dpt : Arr : Net : | F27: =IF(preparation_cabasse!$K$2>=6,preparation_cabasse!$U7,"") ->  | H27: Dpt : Arr : Net : | J27: =IF(preparation_cabasse!$K$2>=6,preparation_cabasse!$U22,"") ->  | L27: Dpt : Arr : Net : | N27: =IF(preparation_cabasse!$K$2>=6,preparation_cabasse!$U23,"") ->  | P27: Dpt : Arr : Net :
B28: =IF(preparation_cabasse!$K$2>=7,preparation_cabasse!$X6,"") ->  | D28: Dpt : Arr : Net : | F28: =IF(preparation_cabasse!$K$2>=7,preparation_cabasse!$X7,"") ->  | H28: Dpt : Arr : Net : | J28: =IF(preparation_cabasse!$K$2>=7,preparation_cabasse!$X22,"") ->  | L28: Dpt : Arr : Net : | N28: =IF(preparation_cabasse!$K$2>=7,preparation_cabasse!$X23,"") ->  | P28: Dpt : Arr : Net :
B29: =IF(preparation_cabasse!$K$2>=8,preparation_cabasse!$AA6,"") ->  | D29: Dpt : Arr : Net : | F29: =IF(preparation_cabasse!$K$2>=8,preparation_cabasse!$AA7,"") ->  | H29: Dpt : Arr : Net : | J29: =IF(preparation_cabasse!$K$2>=8,preparation_cabasse!$AA22,"") ->  | L29: Dpt : Arr : Net : | N29: =IF(preparation_cabasse!$K$2>=8,preparation_cabasse!$AA23,"") ->  | P29: Dpt : Arr : Net :
B30: =IF(preparation_cabasse!$K$2>=9,preparation_cabasse!$AD6,"") ->  | D30: Dpt : Arr : Net : | F30: =IF(preparation_cabasse!$K$2>=9,preparation_cabasse!$AD7,"") ->  | H30: Dpt : Arr : Net : | J30: =IF(preparation_cabasse!$K$2>=9,preparation_cabasse!$AD22,"") ->  | L30: Dpt : Arr : Net : | N30: =IF(preparation_cabasse!$K$2>=9,preparation_cabasse!$AD23,"") ->  | P30: Dpt : Arr : Net :
B31: =IF(preparation_cabasse!$K$2>=10,preparation_cabasse!$AG6,"") ->  | D31: Dpt : Arr : Net : | F31: =IF(preparation_cabasse!$K$2>=10,preparation_cabasse!$AG7,"") ->  | H31: Dpt : Arr : Net : | J31: =IF(preparation_cabasse!$K$2>=10,preparation_cabasse!$AG22,"") ->  | L31: Dpt : Arr : Net : | N31: =IF(preparation_cabasse!$K$2>=10,preparation_cabasse!$AG23,"") ->  | P31: Dpt : Arr : Net :
B32: Bilan | D32: Tps net : | F32: Bilan | H32: Tps net : | J32: Bilan | L32: Tps net : | N32: Bilan | P32: Tps net :
B33: TEL. CLG : 04 90 58 11 32 | F33: TEL. CLG : 04 90 58 11 32 | J33: TEL. CLG : 04 90 58 11 32 | N33: TEL. CLG : 04 90 58 11 32
B36: DATE : | D36: =index_classe!$D7 -> Carte N° : 10 - NAISSA Estelle | F36: DATE : | H36: =index_classe!$D8 -> Carte N° : 10 - FA Dylan | J36: DATE : | L36: =index_classe!$D23 -> Carte N° : 10 - THIER Andrea | N36: DATE : | P36: =index_classe!$D24 -> Carte N° : 10 - YI William
B37: CODE | C37: Numéro BALISE | D37: HEURE LIMITE: | F37: CODE | G37: Numéro BALISE | H37: HEURE LIMITE: | J37: CODE | K37: Numéro BALISE | L37: HEURE LIMITE: | N37: CODE | O37: Numéro BALISE | P37: HEURE LIMITE:
B39: =IF(preparation_cabasse!$K$2>=1,preparation_cabasse!$F8,"") -> 73 | D39: Dpt : Arr : Net : | F39: =IF(preparation_cabasse!$K$2>=1,preparation_cabasse!$F9,"") -> 67 | H39: Dpt : Arr : Net : | J39: =IF(preparation_cabasse!$K$2>=1,preparation_cabasse!$F24,"") -> 71 | L39: Dpt : Arr : Net : | N39: =IF(preparation_cabasse!$K$2>=1,preparation_cabasse!$F25,"") -> 8 | P39: Dpt : Arr : Net :
B40: =IF(preparation_cabasse!$K$2>=2,preparation_cabasse!$I8,"") -> 43 | D40: Dpt : Arr : Net : | F40: =IF(preparation_cabasse!$K$2>=2,preparation_cabasse!$I9,"") -> 73 | H40: Dpt : Arr : Net : | J40: =IF(preparation_cabasse!$K$2>=2,preparation_cabasse!$I24,"") -> 52 | L40: Dpt : Arr : Net : | N40: =IF(preparation_cabasse!$K$2>=2,preparation_cabasse!$I25,"") -> 33 | P40: Dpt : Arr : Net :
B41: =IF(preparation_cabasse!$K$2>=3,preparation_cabasse!$L8,"") -> 16 | D41: Dpt : Arr : Net : | F41: =IF(preparation_cabasse!$K$2>=3,preparation_cabasse!$L9,"") -> 78 | H41: Dpt : Arr : Net : | J41: =IF(preparation_cabasse!$K$2>=3,preparation_cabasse!$L24,"") -> 12 | L41: Dpt : Arr : Net : | N41: =IF(preparation_cabasse!$K$2>=3,preparation_cabasse!$L25,"") -> 69 | P41: Dpt : Arr : Net :
B42: =IF(preparation_cabasse!$K$2>=4,preparation_cabasse!$O8,"") -> 74 | D42: Dpt : Arr : Net : | F42: =IF(preparation_cabasse!$K$2>=4,preparation_cabasse!$O9,"") -> 71 | H42: Dpt : Arr : Net : | J42: =IF(preparation_cabasse!$K$2>=4,preparation_cabasse!$O24,"") -> 64 | L42: Dpt : Arr : Net : | N42: =IF(preparation_cabasse!$K$2>=4,preparation_cabasse!$O25,"") -> 15 | P42: Dpt : Arr : Net :
B43: =IF(preparation_cabasse!$K$2>=5,preparation_cabasse!$R8,"") -> 55 | D43: Dpt : Arr : Net : | F43: =IF(preparation_cabasse!$K$2>=5,preparation_cabasse!$R9,"") -> 12 | H43: Dpt : Arr : Net : | J43: =IF(preparation_cabasse!$K$2>=5,preparation_cabasse!$R24,"") -> 26 | L43: Dpt : Arr : Net : | N43: =IF(preparation_cabasse!$K$2>=5,preparation_cabasse!$R25,"") -> 44 | P43: Dpt : Arr : Net :
B44: =IF(preparation_cabasse!$K$2>=6,preparation_cabasse!$U8,"") ->  | D44: Dpt : Arr : Net : | F44: =IF(preparation_cabasse!$K$2>=6,preparation_cabasse!$U9,"") ->  | H44: Dpt : Arr : Net : | J44: =IF(preparation_cabasse!$K$2>=6,preparation_cabasse!$U24,"") ->  | L44: Dpt : Arr : Net : | N44: =IF(preparation_cabasse!$K$2>=6,preparation_cabasse!$U25,"") ->  | P44: Dpt : Arr : Net :
B45: =IF(preparation_cabasse!$K$2>=7,preparation_cabasse!$X8,"") ->  | D45: Dpt : Arr : Net : | F45: =IF(preparation_cabasse!$K$2>=7,preparation_cabasse!$X9,"") ->  | H45: Dpt : Arr : Net : | J45: =IF(preparation_cabasse!$K$2>=7,preparation_cabasse!$X24,"") ->  | L45: Dpt : Arr : Net : | N45: =IF(preparation_cabasse!$K$2>=7,preparation_cabasse!$X25,"") ->  | P45: Dpt : Arr : Net :
B46: =IF(preparation_cabasse!$K$2>=8,preparation_cabasse!$AA8,"") ->  | D46: Dpt : Arr : Net : | F46: =IF(preparation_cabasse!$K$2>=8,preparation_cabasse!$AA9,"") ->  | H46: Dpt : Arr : Net : | J46: =IF(preparation_cabasse!$K$2>=8,preparation_cabasse!$AA24,"") ->  | L46: Dpt : Arr : Net : | N46: =IF(preparation_cabasse!$K$2>=8,preparation_cabasse!$AA25,"") ->  | P46: Dpt : Arr : Net :
B47: =IF(preparation_cabasse!$K$2>=9,preparation_cabasse!$AD8,"") ->  | D47: Dpt : Arr : Net : | F47: =IF(preparation_cabasse!$K$2>=9,preparation_cabasse!$AD9,"") ->  | H47: Dpt : Arr : Net : | J47: =IF(preparation_cabasse!$K$2>=9,preparation_cabasse!$AD24,"") ->  | L47: Dpt : Arr : Net : | N47: =IF(preparation_cabasse!$K$2>=9,preparation_cabasse!$AD25,"") ->  | P47: Dpt : Arr : Net :
B48: =IF(preparation_cabasse!$K$2>=10,preparation_cabasse!$AG8,"") ->  | D48: Dpt : Arr : Net : | F48: =IF(preparation_cabasse!$K$2>=10,preparation_cabasse!$AG9,"") ->  | H48: Dpt : Arr : Net : | J48: =IF(preparation_cabasse!$K$2>=10,preparation_cabasse!$AG24,"") ->  | L48: Dpt : Arr : Net : | N48: =IF(preparation_cabasse!$K$2>=10,preparation_cabasse!$AG25,"") ->  | P48: Dpt : Arr : Net :
B49: Bilan | D49: Tps net : | F49: Bilan | H49: Tps net : | J49: Bilan | L49: Tps net : | N49: Bilan | P49: Tps net :
B50: TEL. CLG : 04 90 58 11 32 | F50: TEL. CLG : 04 90 58 11 32 | J50: TEL. CLG : 04 90 58 11 32 | N50: TEL. CLG : 04 90 58 11 32
B53: DATE : | D53: =index_classe!$D9 -> Carte N° : 10 - FLEIN Theo | F53: DATE : | H53: =index_classe!$D10 -> Carte N° : 10 - JEAON Alexis | J53: DATE : | L53: =index_classe!$D25 ->  | N53: DATE : | P53: =index_classe!$D26 -> 
B54: CODE | C54: Numéro BALISE | D54: HEURE LIMITE: | F54: CODE | G54: Numéro BALISE | H54: HEURE LIMITE: | J54: CODE | K54: Numéro BALISE | L54: HEURE LIMITE: | N54: CODE | O54: Numéro BALISE | P54: HEURE LIMITE:
B56: =IF(preparation_cabasse!$K$2>=1,preparation_cabasse!$F10,"") -> 3 | D56: Dpt : Arr : Net : | F56: =IF(preparation_cabasse!$K$2>=1,preparation_cabasse!$F11,"") -> 62 | H56: Dpt : Arr : Net : | J56: =IF(preparation_cabasse!$K$2>=1,preparation_cabasse!$F26,"") ->  | L56: Dpt : Arr : Net : | N56: =IF(preparation_cabasse!$K$2>=1,preparation_cabasse!$F27,"") ->  | P56: Dpt : Arr : Net :
B57: =IF(preparation_cabasse!$K$2>=2,preparation_cabasse!$I10,"") -> 20 | D57: Dpt : Arr : Net : | F57: =IF(preparation_cabasse!$K$2>=2,preparation_cabasse!$I11,"") -> 1 | H57: Dpt : Arr : Net : | J57: =IF(preparation_cabasse!$K$2>=2,preparation_cabasse!$I26,"") ->  | L57: Dpt : Arr : Net : | N57: =IF(preparation_cabasse!$K$2>=2,preparation_cabasse!$I27,"") ->  | P57: Dpt : Arr : Net :
B58: =IF(preparation_cabasse!$K$2>=3,preparation_cabasse!$L10,"") -> 62 | D58: Dpt : Arr : Net : | F58: =IF(preparation_cabasse!$K$2>=3,preparation_cabasse!$L11,"") -> 53 | H58: Dpt : Arr : Net : | J58: =IF(preparation_cabasse!$K$2>=3,preparation_cabasse!$L26,"") ->  | L58: Dpt : Arr : Net : | N58: =IF(preparation_cabasse!$K$2>=3,preparation_cabasse!$L27,"") ->  | P58: Dpt : Arr : Net :
B59: =IF(preparation_cabasse!$K$2>=4,preparation_cabasse!$O10,"") -> 64 | D59: Dpt : Arr : Net : | F59: =IF(preparation_cabasse!$K$2>=4,preparation_cabasse!$O11,"") -> 52 | H59: Dpt : Arr : Net : | J59: =IF(preparation_cabasse!$K$2>=4,preparation_cabasse!$O26,"") ->  | L59: Dpt : Arr : Net : | N59: =IF(preparation_cabasse!$K$2>=4,preparation_cabasse!$O27,"") ->  | P59: Dpt : Arr : Net :
B60: =IF(preparation_cabasse!$K$2>=5,preparation_cabasse!$R10,"") -> 67 | D60: Dpt : Arr : Net : | F60: =IF(preparation_cabasse!$K$2>=5,preparation_cabasse!$R11,"") -> 68 | H60: Dpt : Arr : Net : | J60: =IF(preparation_cabasse!$K$2>=5,preparation_cabasse!$R26,"") ->  | L60: Dpt : Arr : Net : | N60: =IF(preparation_cabasse!$K$2>=5,preparation_cabasse!$R27,"") ->  | P60: Dpt : Arr : Net :
B61: =IF(preparation_cabasse!$K$2>=6,preparation_cabasse!$U10,"") ->  | D61: Dpt : Arr : Net : | F61: =IF(preparation_cabasse!$K$2>=6,preparation_cabasse!$U11,"") ->  | H61: Dpt : Arr : Net : | J61: =IF(preparation_cabasse!$K$2>=6,preparation_cabasse!$U26,"") ->  | L61: Dpt : Arr : Net : | N61: =IF(preparation_cabasse!$K$2>=6,preparation_cabasse!$U27,"") ->  | P61: Dpt : Arr : Net :
B62: =IF(preparation_cabasse!$K$2>=7,preparation_cabasse!$X10,"") ->  | D62: Dpt : Arr : Net : | F62: =IF(preparation_cabasse!$K$2>=7,preparation_cabasse!$X11,"") ->  | H62: Dpt : Arr : Net : | J62: =IF(preparation_cabasse!$K$2>=7,preparation_cabasse!$X26,"") ->  | L62: Dpt : Arr : Net : | N62: =IF(preparation_cabasse!$K$2>=7,preparation_cabasse!$X27,"") ->  | P62: Dpt : Arr : Net :
B63: =IF(preparation_cabasse!$K$2>=8,preparation_cabasse!$AA10,"") ->  | D63: Dpt : Arr : Net : | F63: =IF(preparation_cabasse!$K$2>=8,preparation_cabasse!$AA11,"") ->  | H63: Dpt : Arr : Net : | J63: =IF(preparation_cabasse!$K$2>=8,preparation_cabasse!$AA26,"") ->  | L63: Dpt : Arr : Net : | N63: =IF(preparation_cabasse!$K$2>=8,preparation_cabasse!$AA27,"") ->  | P63: Dpt : Arr : Net :
B64: =IF(preparation_cabasse!$K$2>=9,preparation_cabasse!$AD25,"") ->  | D64: Dpt : Arr : Net : | F64: =IF(preparation_cabasse!$K$2>=9,preparation_cabasse!$AD11,"") ->  | H64: Dpt : Arr : Net : | J64: =IF(preparation_cabasse!$K$2>=9,preparation_cabasse!$AD26,"") ->  | L64: Dpt : Arr : Net : | N64: =IF(preparation_cabasse!$K$2>=9,preparation_cabasse!$AD27,"") ->  | P64: Dpt : Arr : Net :
B65: =IF(preparation_cabasse!$K$2>=10,preparation_cabasse!$AG10,"") ->  | D65: Dpt : Arr : Net : | F65: =IF(preparation_cabasse!$K$2>=10,preparation_cabasse!$AG11,"") ->  | H65: Dpt : Arr : Net : | J65: =IF(preparation_cabasse!$K$2>=10,preparation_cabasse!$AG26,"") ->  | L65: Dpt : Arr : Net : | N65: =IF(preparation_cabasse!$K$2>=10,preparation_cabasse!$AG27,"") ->  | P65: Dpt : Arr : Net :
B66: Bilan | D66: Tps net : | F66: Bilan | H66: Tps net : | J66: Bilan | L66: Tps net : | N66: Bilan | P66: Tps net :
B67: TEL. CLG : 04 90 58 11 32 | F67: TEL. CLG : 04 90 58 11 32 | J67: TEL. CLG : 04 90 58 11 32 | N67: TEL. CLG : 04 90 58 11 32
B70: DATE : | D70: =index_classe!$D11 -> Carte N° : 10 - KOLA Alexandre | F70: DATE : | H70: =index_classe!$D12 -> Carte N° : 10 - LERHE Melvin | J70: DATE : | L70: =index_classe!$D27 ->  | N70: DATE : | P70: =index_classe!$D28 -> 
B71: CODE | C71: Numéro BALISE | D71: HEURE LIMITE: | F71: CODE | G71: Numéro BALISE | H71: HEURE LIMITE: | J71: CODE | K71: Numéro BALISE | L71: HEURE LIMITE: | N71: CODE | O71: Numéro BALISE | P71: HEURE LIMITE:
B73: =IF(preparation_cabasse!$K$2>=1,preparation_cabasse!$F12,"") -> 79 | D73: Dpt : Arr : Net : | F73: =IF(preparation_cabasse!$K$2>=1,preparation_cabasse!$F13,"") -> 70 | H73: Dpt : Arr : Net : | J73: =IF(preparation_cabasse!$K$2>=1,preparation_cabasse!$F28,"") ->  | L73: Dpt : Arr : Net : | N73: =IF(preparation_cabasse!$K$2>=1,preparation_cabasse!$F29,"") ->  | P73: Dpt : Arr : Net :
B74: =IF(preparation_cabasse!$K$2>=2,preparation_cabasse!$I12,"") -> 22 | D74: Dpt : Arr : Net : | F74: =IF(preparation_cabasse!$K$2>=2,preparation_cabasse!$I13,"") -> 38 | H74: Dpt : Arr : Net : | J74: =IF(preparation_cabasse!$K$2>=2,preparation_cabasse!$I28,"") ->  | L74: Dpt : Arr : Net : | N74: =IF(preparation_cabasse!$K$2>=2,preparation_cabasse!$I29,"") ->  | P74: Dpt : Arr : Net :
B75: =IF(preparation_cabasse!$K$2>=3,preparation_cabasse!$L12,"") -> 45 | D75: Dpt : Arr : Net : | F75: =IF(preparation_cabasse!$K$2>=3,preparation_cabasse!$L13,"") -> 28 | H75: Dpt : Arr : Net : | J75: =IF(preparation_cabasse!$K$2>=3,preparation_cabasse!$L28,"") ->  | L75: Dpt : Arr : Net : | N75: =IF(preparation_cabasse!$K$2>=3,preparation_cabasse!$L29,"") ->  | P75: Dpt : Arr : Net :
B76: =IF(preparation_cabasse!$K$2>=4,preparation_cabasse!$O12,"") -> 2 | D76: Dpt : Arr : Net : | F76: =IF(preparation_cabasse!$K$2>=4,preparation_cabasse!$O13,"") -> 27 | H76: Dpt : Arr : Net : | J76: =IF(preparation_cabasse!$K$2>=4,preparation_cabasse!$O28,"") ->  | L76: Dpt : Arr : Net : | N76: =IF(preparation_cabasse!$K$2>=4,preparation_cabasse!$O29,"") ->  | P76: Dpt : Arr : Net :
B77: =IF(preparation_cabasse!$K$2>=5,preparation_cabasse!$R12,"") -> 4 | D77: Dpt : Arr : Net : | F77: =IF(preparation_cabasse!$K$2>=5,preparation_cabasse!$R13,"") -> 5 | H77: Dpt : Arr : Net : | J77: =IF(preparation_cabasse!$K$2>=5,preparation_cabasse!$R28,"") ->  | L77: Dpt : Arr : Net : | N77: =IF(preparation_cabasse!$K$2>=5,preparation_cabasse!$R29,"") ->  | P77: Dpt : Arr : Net :
B78: =IF(preparation_cabasse!$K$2>=6,preparation_cabasse!$U12,"") ->  | D78: Dpt : Arr : Net : | F78: =IF(preparation_cabasse!$K$2>=6,preparation_cabasse!$U13,"") ->  | H78: Dpt : Arr : Net : | J78: =IF(preparation_cabasse!$K$2>=6,preparation_cabasse!$U28,"") ->  | L78: Dpt : Arr : Net : | N78: =IF(preparation_cabasse!$K$2>=6,preparation_cabasse!$U29,"") ->  | P78: Dpt : Arr : Net :
B79: =IF(preparation_cabasse!$K$2>=7,preparation_cabasse!$X12,"") ->  | D79: Dpt : Arr : Net : | F79: =IF(preparation_cabasse!$K$2>=7,preparation_cabasse!$X13,"") ->  | H79: Dpt : Arr : Net : | J79: =IF(preparation_cabasse!$K$2>=7,preparation_cabasse!$X28,"") ->  | L79: Dpt : Arr : Net : | N79: =IF(preparation_cabasse!$K$2>=7,preparation_cabasse!$X29,"") ->  | P79: Dpt : Arr : Net :
B80: =IF(preparation_cabasse!$K$2>=8,preparation_cabasse!$AA12,"") ->  | D80: Dpt : Arr : Net : | F80: =IF(preparation_cabasse!$K$2>=8,preparation_cabasse!$AA13,"") ->  | H80: Dpt : Arr : Net : | J80: =IF(preparation_cabasse!$K$2>=8,preparation_cabasse!$AA28,"") ->  | L80: Dpt : Arr : Net : | N80: =IF(preparation_cabasse!$K$2>=8,preparation_cabasse!$AA29,"") ->  | P80: Dpt : Arr : Net :
B81: =IF(preparation_cabasse!$K$2>=9,preparation_cabasse!$AD12,"") ->  | D81: Dpt : Arr : Net : | F81: =IF(preparation_cabasse!$K$2>=9,preparation_cabasse!$AD13,"") ->  | H81: Dpt : Arr : Net : | J81: =IF(preparation_cabasse!$K$2>=9,preparation_cabasse!$AD28,"") ->  | L81: Dpt : Arr : Net : | N81: =IF(preparation_cabasse!$K$2>=9,preparation_cabasse!$AD29,"") ->  | P81: Dpt : Arr : Net :
B82: =IF(preparation_cabasse!$K$2>=10,preparation_cabasse!$AG12,"") ->  | D82: Dpt : Arr : Net : | F82: =IF(preparation_cabasse!$K$2>=10,preparation_cabasse!$AG13,"") ->  | H82: Dpt : Arr : Net : | J82: =IF(preparation_cabasse!$K$2>=10,preparation_cabasse!$AG28,"") ->  | L82: Dpt : Arr : Net : | N82: =IF(preparation_cabasse!$K$2>=10,preparation_cabasse!$AG29,"") ->  | P82: Dpt : Arr : Net :
B83: Bilan | D83: Tps net : | F83: Bilan | H83: Tps net : | J83: Bilan | L83: Tps net : | N83: Bilan | P83: Tps net :
B84: TEL. CLG : 04 90 58 11 32 | F84: TEL. CLG : 04 90 58 11 32 | J84: TEL. CLG : 04 90 58 11 32 | N84: TEL. CLG : 04 90 58 11 32
B87: DATE : | D87: =index_classe!$D13 -> Carte N° : 10 - LOE Mickael | F87: DATE : | H87: =index_classe!$D14 -> Carte N° : 10 - MORET Alice | J87: DATE : | L87: =index_classe!$D29 ->  | N87: DATE : | P87: =index_classe!$D30 -> 
B88: CODE | C88: Numéro BALISE | D88: HEURE LIMITE: | F88: CODE | G88: Numéro BALISE | H88: HEURE LIMITE: | J88: CODE | K88: Numéro BALISE | L88: HEURE LIMITE: | N88: CODE | O88: Numéro BALISE | P88: HEURE LIMITE:
B90: =IF(preparation_cabasse!$K$2>=1,preparation_cabasse!$F14,"") -> 40 | D90: Dpt : Arr : Net : | F90: =IF(preparation_cabasse!$K$2>=1,preparation_cabasse!$F15,"") -> 54 | H90: Dpt : Arr : Net : | J90: =IF(preparation_cabasse!$K$2>=1,preparation_cabasse!$F30,"") ->  | L90: Dpt : Arr : Net : | N90: =IF(preparation_cabasse!$K$2>=1,preparation_cabasse!$F31,"") ->  | P90: Dpt : Arr : Net :
B91: =IF(preparation_cabasse!$K$2>=2,preparation_cabasse!$I14,"") -> 3 | D91: Dpt : Arr : Net : | F91: =IF(preparation_cabasse!$K$2>=2,preparation_cabasse!$I15,"") -> 30 | H91: Dpt : Arr : Net : | J91: =IF(preparation_cabasse!$K$2>=2,preparation_cabasse!$I30,"") ->  | L91: Dpt : Arr : Net : | N91: =IF(preparation_cabasse!$K$2>=2,preparation_cabasse!$I31,"") ->  | P91: Dpt : Arr : Net :
B92: =IF(preparation_cabasse!$K$2>=3,preparation_cabasse!$L14,"") -> 77 | D92: Dpt : Arr : Net : | F92: =IF(preparation_cabasse!$K$2>=3,preparation_cabasse!$L15,"") -> 13 | H92: Dpt : Arr : Net : | J92: =IF(preparation_cabasse!$K$2>=3,preparation_cabasse!$L30,"") ->  | L92: Dpt : Arr : Net : | N92: =IF(preparation_cabasse!$K$2>=3,preparation_cabasse!$L31,"") ->  | P92: Dpt : Arr : Net :
B93: =IF(preparation_cabasse!$K$2>=4,preparation_cabasse!$O14,"") -> 71 | D93: Dpt : Arr : Net : | F93: =IF(preparation_cabasse!$K$2>=4,preparation_cabasse!$O15,"") -> 33 | H93: Dpt : Arr : Net : | J93: =IF(preparation_cabasse!$K$2>=4,preparation_cabasse!$O30,"") ->  | L93: Dpt : Arr : Net : | N93: =IF(preparation_cabasse!$K$2>=4,preparation_cabasse!$O31,"") ->  | P93: Dpt : Arr : Net :
B94: =IF(preparation_cabasse!$K$2>=5,preparation_cabasse!$R14,"") -> 77 | D94: Dpt : Arr : Net : | F94: =IF(preparation_cabasse!$K$2>=5,preparation_cabasse!$R15,"") -> 6 | H94: Dpt : Arr : Net : | J94: =IF(preparation_cabasse!$K$2>=5,preparation_cabasse!$R30,"") ->  | L94: Dpt : Arr : Net : | N94: =IF(preparation_cabasse!$K$2>=5,preparation_cabasse!$R31,"") ->  | P94: Dpt : Arr : Net :
B95: =IF(preparation_cabasse!$K$2>=6,preparation_cabasse!$U14,"") ->  | D95: Dpt : Arr : Net : | F95: =IF(preparation_cabasse!$K$2>=6,preparation_cabasse!$U15,"") ->  | H95: Dpt : Arr : Net : | J95: =IF(preparation_cabasse!$K$2>=6,preparation_cabasse!$U30,"") ->  | L95: Dpt : Arr : Net : | N95: =IF(preparation_cabasse!$K$2>=6,preparation_cabasse!$U31,"") ->  | P95: Dpt : Arr : Net :
B96: =IF(preparation_cabasse!$K$2>=7,preparation_cabasse!$X14,"") ->  | D96: Dpt : Arr : Net : | F96: =IF(preparation_cabasse!$K$2>=7,preparation_cabasse!$X15,"") ->  | H96: Dpt : Arr : Net : | J96: =IF(preparation_cabasse!$K$2>=7,preparation_cabasse!$X30,"") ->  | L96: Dpt : Arr : Net : | N96: =IF(preparation_cabasse!$K$2>=7,preparation_cabasse!$X31,"") ->  | P96: Dpt : Arr : Net :
B97: =IF(preparation_cabasse!$K$2>=8,preparation_cabasse!$AA14,"") ->  | D97: Dpt : Arr : Net : | F97: =IF(preparation_cabasse!$K$2>=8,preparation_cabasse!$AA15,"") ->  | H97: Dpt : Arr : Net : | J97: =IF(preparation_cabasse!$K$2>=8,preparation_cabasse!$AA30,"") ->  | L97: Dpt : Arr : Net : | N97: =IF(preparation_cabasse!$K$2>=8,preparation_cabasse!$AA31,"") ->  | P97: Dpt : Arr : Net :
B98: =IF(preparation_cabasse!$K$2>=9,preparation_cabasse!$AD14,"") ->  | D98: Dpt : Arr : Net : | F98: =IF(preparation_cabasse!$K$2>=9,preparation_cabasse!$AD15,"") ->  | H98: Dpt : Arr : Net : | J98: =IF(preparation_cabasse!$K$2>=9,preparation_cabasse!$AD30,"") ->  | L98: Dpt : Arr : Net : | N98: =IF(preparation_cabasse!$K$2>=9,preparation_cabasse!$AD31,"") ->  | P98: Dpt : Arr : Net :
B99: =IF(preparation_cabasse!$K$2>=10,preparation_cabasse!$AG14,"") ->  | D99: Dpt : Arr : Net : | F99: =IF(preparation_cabasse!$K$2>=10,preparation_cabasse!$AG15,"") ->  | H99: Dpt : Arr : Net : | J99: =IF(preparation_cabasse!$K$2>=10,preparation_cabasse!$AG30,"") ->  | L99: Dpt : Arr : Net : | N99: =IF(preparation_cabasse!$K$2>=10,preparation_cabasse!$AG31,"") ->  | P99: Dpt : Arr : Net :
B100: Bilan | D100: Tps net : | F100: Bilan | H100: Tps net : | J100: Bilan | L100: Tps net : | N100: Bilan | P100: Tps net :
B101: TEL. CLG : 04 90 58 11 32 | F101: TEL. CLG : 04 90 58 11 32 | J101: TEL. CLG : 04 90 58 11 32 | N101: TEL. CLG : 04 90 58 11 32
B104: DATE : | D104: =index_classe!$D15 -> Carte N° : 10 - NICAU Romain | F104: DATE : | H104: =index_classe!$D16 -> Carte N° : 10 - RUI Desiderio | J104: DATE : | L104: =index_classe!$D31 ->  | N104: DATE : | P104: =index_classe!$D32 -> 
B105: CODE | C105: Numéro BALISE | D105: HEURE LIMITE: | F105: CODE | G105: Numéro BALISE | H105: HEURE LIMITE: | J105: CODE | K105: Numéro BALISE | L105: HEURE LIMITE: | N105: CODE | O105: Numéro BALISE | P105: HEURE LIMITE:
B107: =IF(preparation_cabasse!$K$2>=1,preparation_cabasse!$F16,"") -> 9 | D107: Dpt : Arr : Net : | F107: =IF(preparation_cabasse!$K$2>=1,preparation_cabasse!$F17,"") -> 3 | H107: Dpt : Arr : Net : | J107: =IF(preparation_cabasse!$K$2>=1,preparation_cabasse!$F32,"") ->  | L107: Dpt : Arr : Net : | N107: =IF(preparation_cabasse!$K$2>=1,preparation_cabasse!$F33,"") ->  | P107: Dpt : Arr : Net :
B108: =IF(preparation_cabasse!$K$2>=2,preparation_cabasse!$I16,"") -> 10 | D108: Dpt : Arr : Net : | F108: =IF(preparation_cabasse!$K$2>=2,preparation_cabasse!$I17,"") -> 6 | H108: Dpt : Arr : Net : | J108: =IF(preparation_cabasse!$K$2>=2,preparation_cabasse!$I32,"") ->  | L108: Dpt : Arr : Net : | N108: =IF(preparation_cabasse!$K$2>=2,preparation_cabasse!$I33,"") ->  | P108: Dpt : Arr : Net :
B109: =IF(preparation_cabasse!$K$2>=3,preparation_cabasse!$L16,"") -> 66 | D109: Dpt : Arr : Net : | F109: =IF(preparation_cabasse!$K$2>=3,preparation_cabasse!$L17,"") -> 9 | H109: Dpt : Arr : Net : | J109: =IF(preparation_cabasse!$K$2>=3,preparation_cabasse!$L32,"") ->  | L109: Dpt : Arr : Net : | N109: =IF(preparation_cabasse!$K$2>=3,preparation_cabasse!$L33,"") ->  | P109: Dpt : Arr : Net :
B110: =IF(preparation_cabasse!$K$2>=4,preparation_cabasse!$O16,"") -> 49 | D110: Dpt : Arr : Net : | F110: =IF(preparation_cabasse!$K$2>=4,preparation_cabasse!$O17,"") -> 80 | H110: Dpt : Arr : Net : | J110: =IF(preparation_cabasse!$K$2>=4,preparation_cabasse!$O32,"") ->  | L110: Dpt : Arr : Net : | N110: =IF(preparation_cabasse!$K$2>=4,preparation_cabasse!$O33,"") ->  | P110: Dpt : Arr : Net :
B111: =IF(preparation_cabasse!$K$2>=5,preparation_cabasse!$R16,"") -> 66 | D111: Dpt : Arr : Net : | F111: =IF(preparation_cabasse!$K$2>=5,preparation_cabasse!$R17,"") -> 39 | H111: Dpt : Arr : Net : | J111: =IF(preparation_cabasse!$K$2>=5,preparation_cabasse!$R32,"") ->  | L111: Dpt : Arr : Net : | N111: =IF(preparation_cabasse!$K$2>=5,preparation_cabasse!$R33,"") ->  | P111: Dpt : Arr : Net :
B112: =IF(preparation_cabasse!$K$2>=6,preparation_cabasse!$U16,"") ->  | D112: Dpt : Arr : Net : | F112: =IF(preparation_cabasse!$K$2>=6,preparation_cabasse!$U17,"") ->  | H112: Dpt : Arr : Net : | J112: =IF(preparation_cabasse!$K$2>=6,preparation_cabasse!$U32,"") ->  | L112: Dpt : Arr : Net : | N112: =IF(preparation_cabasse!$K$2>=6,preparation_cabasse!$U33,"") ->  | P112: Dpt : Arr : Net :
B113: =IF(preparation_cabasse!$K$2>=7,preparation_cabasse!$X16,"") ->  | D113: Dpt : Arr : Net : | F113: =IF(preparation_cabasse!$K$2>=7,preparation_cabasse!$X17,"") ->  | H113: Dpt : Arr : Net : | J113: =IF(preparation_cabasse!$K$2>=7,preparation_cabasse!$X32,"") ->  | L113: Dpt : Arr : Net : | N113: =IF(preparation_cabasse!$K$2>=7,preparation_cabasse!$X33,"") ->  | P113: Dpt : Arr : Net :
B114: =IF(preparation_cabasse!$K$2>=8,preparation_cabasse!$AA16,"") ->  | D114: Dpt : Arr : Net : | F114: =IF(preparation_cabasse!$K$2>=8,preparation_cabasse!$AA17,"") ->  | H114: Dpt : Arr : Net : | J114: =IF(preparation_cabasse!$K$2>=8,preparation_cabasse!$AA32,"") ->  | L114: Dpt : Arr : Net : | N114: =IF(preparation_cabasse!$K$2>=8,preparation_cabasse!$AA33,"") ->  | P114: Dpt : Arr : Net :
B115: =IF(preparation_cabasse!$K$2>=9,preparation_cabasse!$AD16,"") ->  | D115: Dpt : Arr : Net : | F115: =IF(preparation_cabasse!$K$2>=9,preparation_cabasse!$AD17,"") ->  | H115: Dpt : Arr : Net : | J115: =IF(preparation_cabasse!$K$2>=9,preparation_cabasse!$AD32,"") ->  | L115: Dpt : Arr : Net : | N115: =IF(preparation_cabasse!$K$2>=9,preparation_cabasse!$AD33,"") ->  | P115: Dpt : Arr : Net :
B116: =IF(preparation_cabasse!$K$2>=10,preparation_cabasse!$AG16,"") ->  | D116: Dpt : Arr : Net : | F116: =IF(preparation_cabasse!$K$2>=10,preparation_cabasse!$AG17,"") ->  | H116: Dpt : Arr : Net : | J116: =IF(preparation_cabasse!$K$2>=10,preparation_cabasse!$AG32,"") ->  | L116: Dpt : Arr : Net : | N116: =IF(preparation_cabasse!$K$2>=10,preparation_cabasse!$AG33,"") ->  | P116: Dpt : Arr : Net :
B117: Bilan | D117: Tps net : | F117: Bilan | H117: Tps net : | J117: Bilan | L117: Tps net : | N117: Bilan | P117: Tps net :
B118: TEL. CLG : 04 90 58 11 32 | F118: TEL. CLG : 04 90 58 11 32 | J118: TEL. CLG : 04 90 58 11 32 | N118: TEL. CLG : 04 90 58 11 32
B121: DATE : | D121: =index_classe!$D17 -> Carte N° : 10 - RI Niko | F121: DATE : | H121: =index_classe!$D18 -> Carte N° : 10 - SAL Calvin | J121: DATE : | L121: =index_classe!$D33 ->  | N121: DATE : | P121: =index_classe!$D34 -> 
B122: CODE | C122: Numéro BALISE | D122: HEURE LIMITE: | F122: CODE | G122: Numéro BALISE | H122: HEURE LIMITE: | J122: CODE | K122: Numéro BALISE | L122: HEURE LIMITE: | N122: CODE | O122: Numéro BALISE | P122: HEURE LIMITE:
B124: =IF(preparation_cabasse!$K$2>=1,preparation_cabasse!$F18,"") -> 26 | D124: Dpt : Arr : Net : | F124: =IF(preparation_cabasse!$K$2>=1,preparation_cabasse!$F19,"") -> 52 | H124: Dpt : Arr : Net : | J124: =IF(preparation_cabasse!$K$2>=1,preparation_cabasse!$F34,"") ->  | L124: Dpt : Arr : Net : | N124: =IF(preparation_cabasse!$K$2>=1,preparation_cabasse!$F35,"") ->  | P124: Dpt : Arr : Net :
B125: =IF(preparation_cabasse!$K$2>=2,preparation_cabasse!$I18,"") -> 43 | D125: Dpt : Arr : Net : | F125: =IF(preparation_cabasse!$K$2>=2,preparation_cabasse!$I19,"") -> 30 | H125: Dpt : Arr : Net : | J125: =IF(preparation_cabasse!$K$2>=2,preparation_cabasse!$I34,"") ->  | L125: Dpt : Arr : Net : | N125: =IF(preparation_cabasse!$K$2>=2,preparation_cabasse!$I35,"") ->  | P125: Dpt : Arr : Net :
B126: =IF(preparation_cabasse!$K$2>=3,preparation_cabasse!$L18,"") -> 49 | D126: Dpt : Arr : Net : | F126: =IF(preparation_cabasse!$K$2>=3,preparation_cabasse!$L19,"") -> 84 | H126: Dpt : Arr : Net : | J126: =IF(preparation_cabasse!$K$2>=3,preparation_cabasse!$L34,"") ->  | L126: Dpt : Arr : Net : | N126: =IF(preparation_cabasse!$K$2>=3,preparation_cabasse!$L35,"") ->  | P126: Dpt : Arr : Net :
B127: =IF(preparation_cabasse!$K$2>=4,preparation_cabasse!$O18,"") -> 12 | D127: Dpt : Arr : Net : | F127: =IF(preparation_cabasse!$K$2>=4,preparation_cabasse!$O19,"") -> 83 | H127: Dpt : Arr : Net : | J127: =IF(preparation_cabasse!$K$2>=4,preparation_cabasse!$O34,"") ->  | L127: Dpt : Arr : Net : | N127: =IF(preparation_cabasse!$K$2>=4,preparation_cabasse!$O35,"") ->  | P127: Dpt : Arr : Net :
B128: =IF(preparation_cabasse!$K$2>=5,preparation_cabasse!$R18,"") -> 71 | D128: Dpt : Arr : Net : | F128: =IF(preparation_cabasse!$K$2>=5,preparation_cabasse!$R19,"") -> 9 | H128: Dpt : Arr : Net : | J128: =IF(preparation_cabasse!$K$2>=5,preparation_cabasse!$R34,"") ->  | L128: Dpt : Arr : Net : | N128: =IF(preparation_cabasse!$K$2>=5,preparation_cabasse!$R35,"") ->  | P128: Dpt : Arr : Net :
B129: =IF(preparation_cabasse!$K$2>=6,preparation_cabasse!$U18,"") ->  | D129: Dpt : Arr : Net : | F129: =IF(preparation_cabasse!$K$2>=6,preparation_cabasse!$U19,"") ->  | H129: Dpt : Arr : Net : | J129: =IF(preparation_cabasse!$K$2>=6,preparation_cabasse!$U34,"") ->  | L129: Dpt : Arr : Net : | N129: =IF(preparation_cabasse!$K$2>=6,preparation_cabasse!$U35,"") ->  | P129: Dpt : Arr : Net :
B130: =IF(preparation_cabasse!$K$2>=7,preparation_cabasse!$X18,"") ->  | D130: Dpt : Arr : Net : | F130: =IF(preparation_cabasse!$K$2>=7,preparation_cabasse!$X19,"") ->  | H130: Dpt : Arr : Net : | J130: =IF(preparation_cabasse!$K$2>=7,preparation_cabasse!$X34,"") ->  | L130: Dpt : Arr : Net : | N130: =IF(preparation_cabasse!$K$2>=7,preparation_cabasse!$X35,"") ->  | P130: Dpt : Arr : Net :
B131: =IF(preparation_cabasse!$K$2>=8,preparation_cabasse!$AA18,"") ->  | D131: Dpt : Arr : Net : | F131: =IF(preparation_cabasse!$K$2>=8,preparation_cabasse!$AA19,"") ->  | H131: Dpt : Arr : Net : | J131: =IF(preparation_cabasse!$K$2>=8,preparation_cabasse!$AA34,"") ->  | L131: Dpt : Arr : Net : | N131: =IF(preparation_cabasse!$K$2>=8,preparation_cabasse!$AA35,"") ->  | P131: Dpt : Arr : Net :
B132: =IF(preparation_cabasse!$K$2>=9,preparation_cabasse!$AD18,"") ->  | D132: Dpt : Arr : Net : | F132: =IF(preparation_cabasse!$K$2>=9,preparation_cabasse!$AD19,"") ->  | H132: Dpt : Arr : Net : | J132: =IF(preparation_cabasse!$K$2>=9,preparation_cabasse!$AD34,"") ->  | L132: Dpt : Arr : Net : | N132: =IF(preparation_cabasse!$K$2>=9,preparation_cabasse!$AD35,"") ->  | P132: Dpt : Arr : Net :
B133: =IF(preparation_cabasse!$K$2>=10,preparation_cabasse!$AG18,"") ->  | D133: Dpt : Arr : Net : | F133: =IF(preparation_cabasse!$K$2>=10,preparation_cabasse!$AG19,"") ->  | H133: Dpt : Arr : Net : | J133: =IF(preparation_cabasse!$K$2>=10,preparation_cabasse!$AG34,"") ->  | L133: Dpt : Arr : Net : | N133: =IF(preparation_cabasse!$K$2>=10,preparation_cabasse!$AG35,"") ->  | P133: Dpt : Arr : Net :
B134: Bilan | D134: Tps net : | F134: Bilan | H134: Tps net : | J134: Bilan | L134: Tps net : | N134: Bilan | P134: Tps net :
B135: TEL. CLG : 04 90 58 11 32 | F135: TEL. CLG : 04 90 58 11 32 | J135: TEL. CLG : 04 90 58 11 32 | N135: TEL. CLG : 04 90 58 11 32

Sheet prepa_alea_plateau
A2: >>>>>>>> Appuyer sur F9 pour générer de nouvelles données
A3: NOM | B3: PRENOM | C3: Index balise 1 | D3: N° balise 1 | E3: Index balise 2 | F3: N° Balise 2 | G3: Index balise 3 | H3: N° Balise 3 | I3: Index balise 4 | J3: N° Balise 4 | K3: Index balise 5 | L3: N° Balise 5 | M3: Index balise 6 | N3: N° Balise 6 | O3: Index balise 7 | P3: N° Balise 7 | Q3: Index balise 8 | R3: N° Balise 8 | S3: Index balise 9 | T3: N° Balise 9 | U3: Index balise 10 | V3: N° Balise 10
A4: =preparation_plateau!B4 -> BENZ | B4: =preparation_plateau!C4 -> Nawel | C4: =IF($A4="","",IF($A$40="PROCHES",RANDBETWEEN(1,22),IF($A$40="MEDIANES",RANDBETWEEN(23,44),IF($A$40="LOINTAINES",RANDBETWEEN(45,65),IF($A$40="PROCHES+MEDIANES",RANDBETWEEN(1,44),IF($A$40="MEDIANES+LOINTAINES",RANDBETWEEN(23,65),IF($A$40="TOUTES",RANDBETWEEN(1,65)))))))) -> 5 | D4: =IF(C4="","",VLOOKUP(C4,index_plateau!$A$5:$O$69,2,FALSE)) -> 5 | E4: =IF($A4="","",IF($A$40="PROCHES",RANDBETWEEN(1,22),IF($A$40="MEDIANES",RANDBETWEEN(23,44),IF($A$40="LOINTAINES",RANDBETWEEN(45,65),IF($A$40="PROCHES+MEDIANES",RANDBETWEEN(1,44),IF($A$40="MEDIANES+LOINTAINES",RANDBETWEEN(23,65),IF($A$40="TOUTES",RANDBETWEEN(1,65)))))))) -> 48 | F4: =IF(E4="","",VLOOKUP(E4,index_plateau!$A$5:$O$69,2,FALSE)) -> 17 | G4: =IF($A4="","",IF($A$40="PROCHES",RANDBETWEEN(1,22),IF($A$40="MEDIANES",RANDBETWEEN(23,44),IF($A$40="LOINTAINES",RANDBETWEEN(45,65),IF($A$40="PROCHES+MEDIANES",RANDBETWEEN(1,44),IF($A$40="MEDIANES+LOINTAINES",RANDBETWEEN(23,65),IF($A$40="TOUTES",RANDBETWEEN(1,65)))))))) -> 31 | H4: =IF(G4="","",VLOOKUP(G4,index_plateau!$A$5:$O$69,2,FALSE)) -> 23 | I4: =IF($A4="","",IF($A$40="PROCHES",RANDBETWEEN(1,22),IF($A$40="MEDIANES",RANDBETWEEN(23,44),IF($A$40="LOINTAINES",RANDBETWEEN(45,65),IF($A$40="PROCHES+MEDIANES",RANDBETWEEN(1,44),IF($A$40="MEDIANES+LOINTAINES",RANDBETWEEN(23,65),IF($A$40="TOUTES",RANDBETWEEN(1,65)))))))) -> 34 | J4: =IF(I4="","",VLOOKUP(I4,index_plateau!$A$5:$O$69,2,FALSE)) -> 61 | K4: =IF($A4="","",IF($A$40="PROCHES",RANDBETWEEN(1,22),IF($A$40="MEDIANES",RANDBETWEEN(23,44),IF($A$40="LOINTAINES",RANDBETWEEN(45,65),IF($A$40="PROCHES+MEDIANES",RANDBETWEEN(1,44),IF($A$40="MEDIANES+LOINTAINES",RANDBETWEEN(23,65),IF($A$40="TOUTES",RANDBETWEEN(1,65)))))))) -> 52 | L4: =IF(K4="","",VLOOKUP(K4,index_plateau!$A$5:$O$69,2,FALSE)) -> 22 | M4: =IF($A4="","",IF($A$40="PROCHES",RANDBETWEEN(1,22),IF($A$40="MEDIANES",RANDBETWEEN(23,44),IF($A$40="LOINTAINES",RANDBETWEEN(45,65),IF($A$40="PROCHES+MEDIANES",RANDBETWEEN(1,44),IF($A$40="MEDIANES+LOINTAINES",RANDBETWEEN(23,65),IF($A$40="TOUTES",RANDBETWEEN(1,65)))))))) -> 44 | N4: =IF(M4="","",VLOOKUP(M4,index_plateau!$A$5:$O$69,2,FALSE)) -> 93 | O4: =IF($A4="","",IF($A$40="PROCHES",RANDBETWEEN(1,22),IF($A$40="MEDIANES",RANDBETWEEN(23,44),IF($A$40="LOINTAINES",RANDBETWEEN(45,65),IF($A$40="PROCHES+MEDIANES",RANDBETWEEN(1,44),IF($A$40="MEDIANES+LOINTAINES",RANDBETWEEN(23,65),IF($A$40="TOUTES",RANDBETWEEN(1,65)))))))) -> 33 | P4: =IF(O4="","",VLOOKUP(O4,index_plateau!$A$5:$O$69,2,FALSE)) -> 59 | Q4: =IF($A4="","",IF($A$40="PROCHES",RANDBETWEEN(1,22),IF($A$40="MEDIANES",RANDBETWEEN(23,44),IF($A$40="LOINTAINES",RANDBETWEEN(45,65),IF($A$40="PROCHES+MEDIANES",RANDBETWEEN(1,44),IF($A$40="MEDIANES+LOINTAINES",RANDBETWEEN(23,65),IF($A$40="TOUTES",RANDBETWEEN(1,65)))))))) -> 39 | R4: =IF(Q4="","",VLOOKUP(Q4,index_plateau!$A$5:$O$69,2,FALSE)) -> 84 | S4: =IF($A4="","",IF($A$40="PROCHES",RANDBETWEEN(1,22),IF($A$40="MEDIANES",RANDBETWEEN(23,44),IF($A$40="LOINTAINES",RANDBETWEEN(45,65),IF($A$40="PROCHES+MEDIANES",RANDBETWEEN(1,44),IF($A$40="MEDIANES+LOINTAINES",RANDBETWEEN(23,65),IF($A$40="TOUTES",RANDBETWEEN(1,65)))))))) -> 30 | T4: =IF(S4="","",VLOOKUP(S4,index_plateau!$A$5:$O$69,2,FALSE)) -> 21 | U4: =IF($A4="","",IF($A$40="PROCHES",RANDBETWEEN(1,22),IF($A$40="MEDIANES",RANDBETWEEN(23,44),IF($A$40="LOINTAINES",RANDBETWEEN(45,65),IF($A$40="PROCHES+MEDIANES",RANDBETWEEN(1,44),IF($A$40="MEDIANES+LOINTAINES",RANDBETWEEN(23,65),IF($A$40="TOUTES",RANDBETWEEN(1,65)))))))) -> 17 | V4: =IF(U4="","",VLOOKUP(U4,index_plateau!$A$5:$O$69,2,FALSE)) -> 67
A5: =preparation_plateau!B5 -> BERNA | B5: =preparation_plateau!C5 -> Laurine | C5: =IF($A5="","",IF($A$40="PROCHES",RANDBETWEEN(1,22),IF($A$40="MEDIANES",RANDBETWEEN(23,44),IF($A$40="LOINTAINES",RANDBETWEEN(45,65),IF($A$40="PROCHES+MEDIANES",RANDBETWEEN(1,44),IF($A$40="MEDIANES+LOINTAINES",RANDBETWEEN(23,65),IF($A$40="TOUTES",RANDBETWEEN(1,65)))))))) -> 51 | D5: =IF(C5="","",VLOOKUP(C5,index_plateau!$A$5:$O$69,2,FALSE)) -> 20 | E5: 43 | F5: =IF(E5="","",VLOOKUP(E5,index_plateau!$A$5:$O$69,2,FALSE)) -> 92 | G5: 6 | H5: =IF(G5="","",VLOOKUP(G5,index_plateau!$A$5:$O$69,2,FALSE)) -> 8 | I5: 8 | J5: =IF(I5="","",VLOOKUP(I5,index_plateau!$A$5:$O$69,2,FALSE)) -> 27 | K5: 39 | L5: =IF(K5="","",VLOOKUP(K5,index_plateau!$A$5:$O$69,2,FALSE)) -> 84 | M5: 55 | N5: =IF(M5="","",VLOOKUP(M5,index_plateau!$A$5:$O$69,2,FALSE)) -> 53 | O5: 62 | P5: =IF(O5="","",VLOOKUP(O5,index_plateau!$A$5:$O$69,2,FALSE)) -> 85 | Q5: 3 | R5: =IF(Q5="","",VLOOKUP(Q5,index_plateau!$A$5:$O$69,2,FALSE)) -> 3 | S5: =IF($A5="","",IF($A$40="PROCHES",RANDBETWEEN(1,22),IF($A$40="MEDIANES",RANDBETWEEN(23,44),IF($A$40="LOINTAINES",RANDBETWEEN(45,65),IF($A$40="PROCHES+MEDIANES",RANDBETWEEN(1,44),IF($A$40="MEDIANES+LOINTAINES",RANDBETWEEN(23,65),IF($A$40="TOUTES",RANDBETWEEN(1,65)))))))) -> 3 | T5: =IF(S5="","",VLOOKUP(S5,index_plateau!$A$5:$O$69,2,FALSE)) -> 3 | U5: =IF($A5="","",IF($A$40="PROCHES",RANDBETWEEN(1,22),IF($A$40="MEDIANES",RANDBETWEEN(23,44),IF($A$40="LOINTAINES",RANDBETWEEN(45,65),IF($A$40="PROCHES+MEDIANES",RANDBETWEEN(1,44),IF($A$40="MEDIANES+LOINTAINES",RANDBETWEEN(23,65),IF($A$40="TOUTES",RANDBETWEEN(1,65)))))))) -> 26 | V5: =IF(U5="","",VLOOKUP(U5,index_plateau!$A$5:$O$69,2,FALSE)) -> 10 | Z5: PROCHES
A6: =preparation_plateau!B6 -> CHEL | B6: =preparation_plateau!C6 -> Sarah | C6: 35 | D6: =IF(C6="","",VLOOKUP(C6,index_plateau!$A$5:$O$69,2,FALSE)) -> 62 | E6: 59 | F6: =IF(E6="","",VLOOKUP(E6,index_plateau!$A$5:$O$69,2,FALSE)) -> 57 | G6: 44 | H6: =IF(G6="","",VLOOKUP(G6,index_plateau!$A$5:$O$69,2,FALSE)) -> 93 | I6: 37 | J6: =IF(I6="","",VLOOKUP(I6,index_plateau!$A$5:$O$69,2,FALSE)) -> 70 | K6: 1 | L6: =IF(K6="","",VLOOKUP(K6,index_plateau!$A$5:$O$69,2,FALSE)) -> 1 | M6: 48 | N6: =IF(M6="","",VLOOKUP(M6,index_plateau!$A$5:$O$69,2,FALSE)) -> 17 | O6: 47 | P6: =IF(O6="","",VLOOKUP(O6,index_plateau!$A$5:$O$69,2,FALSE)) -> 16 | Q6: 52 | R6: =IF(Q6="","",VLOOKUP(Q6,index_plateau!$A$5:$O$69,2,FALSE)) -> 22 | S6: 46 | T6: =IF(S6="","",VLOOKUP(S6,index_plateau!$A$5:$O$69,2,FALSE)) -> 15 | U6: 47 | V6: =IF(U6="","",VLOOKUP(U6,index_plateau!$A$5:$O$69,2,FALSE)) -> 16 | Z6: MEDIANES
A7: =preparation_plateau!B7 -> CLAUD | B7: =preparation_plateau!C7 -> Maxime | C7: 60 | D7: =IF(C7="","",VLOOKUP(C7,index_plateau!$A$5:$O$69,2,FALSE)) -> 58 | E7: 35 | F7: =IF(E7="","",VLOOKUP(E7,index_plateau!$A$5:$O$69,2,FALSE)) -> 62 | G7: 5 | H7: =IF(G7="","",VLOOKUP(G7,index_plateau!$A$5:$O$69,2,FALSE)) -> 5 | I7: 56 | J7: =IF(I7="","",VLOOKUP(I7,index_plateau!$A$5:$O$69,2,FALSE)) -> 54 | K7: 44 | L7: =IF(K7="","",VLOOKUP(K7,index_plateau!$A$5:$O$69,2,FALSE)) -> 93 | M7: 35 | N7: =IF(M7="","",VLOOKUP(M7,index_plateau!$A$5:$O$69,2,FALSE)) -> 62 | O7: 30 | P7: =IF(O7="","",VLOOKUP(O7,index_plateau!$A$5:$O$69,2,FALSE)) -> 21 | Q7: 58 | R7: =IF(Q7="","",VLOOKUP(Q7,index_plateau!$A$5:$O$69,2,FALSE)) -> 56 | S7: 29 | T7: =IF(S7="","",VLOOKUP(S7,index_plateau!$A$5:$O$69,2,FALSE)) -> 13 | U7: 29 | V7: =IF(U7="","",VLOOKUP(U7,index_plateau!$A$5:$O$69,2,FALSE)) -> 13 | Z7: LOINTAINES
A8: =preparation_plateau!B8 -> NAISSA | B8: =preparation_plateau!C8 -> Estelle | C8: 47 | D8: =IF(C8="","",VLOOKUP(C8,index_plateau!$A$5:$O$69,2,FALSE)) -> 16 | E8: 46 | F8: =IF(E8="","",VLOOKUP(E8,index_plateau!$A$5:$O$69,2,FALSE)) -> 15 | G8: 5 | H8: =IF(G8="","",VLOOKUP(G8,index_plateau!$A$5:$O$69,2,FALSE)) -> 5 | I8: 8 | J8: =IF(I8="","",VLOOKUP(I8,index_plateau!$A$5:$O$69,2,FALSE)) -> 27 | K8: 43 | L8: =IF(K8="","",VLOOKUP(K8,index_plateau!$A$5:$O$69,2,FALSE)) -> 92 | M8: 27 | N8: =IF(M8="","",VLOOKUP(M8,index_plateau!$A$5:$O$69,2,FALSE)) -> 11 | O8: 13 | P8: =IF(O8="","",VLOOKUP(O8,index_plateau!$A$5:$O$69,2,FALSE)) -> 32 | Q8: 15 | R8: =IF(Q8="","",VLOOKUP(Q8,index_plateau!$A$5:$O$69,2,FALSE)) -> 65 | S8: 37 | T8: =IF(S8="","",VLOOKUP(S8,index_plateau!$A$5:$O$69,2,FALSE)) -> 70 | U8: 45 | V8: =IF(U8="","",VLOOKUP(U8,index_plateau!$A$5:$O$69,2,FALSE)) -> 14 | Z8: PROCHES+MEDIANES
A9: =preparation_plateau!B9 -> FA | B9: =preparation_plateau!C9 -> Dylan | C9: 48 | D9: =IF(C9="","",VLOOKUP(C9,index_plateau!$A$5:$O$69,2,FALSE)) -> 17 | E9: 40 | F9: =IF(E9="","",VLOOKUP(E9,index_plateau!$A$5:$O$69,2,FALSE)) -> 86 | G9: 25 | H9: =IF(G9="","",VLOOKUP(G9,index_plateau!$A$5:$O$69,2,FALSE)) -> 9 | I9: 60 | J9: =IF(I9="","",VLOOKUP(I9,index_plateau!$A$5:$O$69,2,FALSE)) -> 58 | K9: 6 | L9: =IF(K9="","",VLOOKUP(K9,index_plateau!$A$5:$O$69,2,FALSE)) -> 8 | M9: 34 | N9: =IF(M9="","",VLOOKUP(M9,index_plateau!$A$5:$O$69,2,FALSE)) -> 61 | O9: 51 | P9: =IF(O9="","",VLOOKUP(O9,index_plateau!$A$5:$O$69,2,FALSE)) -> 20 | Q9: 62 | R9: =IF(Q9="","",VLOOKUP(Q9,index_plateau!$A$5:$O$69,2,FALSE)) -> 85 | S9: 63 | T9: =IF(S9="","",VLOOKUP(S9,index_plateau!$A$5:$O$69,2,FALSE)) -> 89 | U9: 15 | V9: =IF(U9="","",VLOOKUP(U9,index_plateau!$A$5:$O$69,2,FALSE)) -> 65 | Z9: MEDIANES+LOINTAINES
A10: =preparation_plateau!B10 -> FLEIN | B10: =preparation_plateau!C10 -> Theo | C10: 46 | D10: =IF(C10="","",VLOOKUP(C10,index_plateau!$A$5:$O$69,2,FALSE)) -> 15 | E10: 17 | F10: =IF(E10="","",VLOOKUP(E10,index_plateau!$A$5:$O$69,2,FALSE)) -> 67 | G10: 44 | H10: =IF(G10="","",VLOOKUP(G10,index_plateau!$A$5:$O$69,2,FALSE)) -> 93 | I10: 36 | J10: =IF(I10="","",VLOOKUP(I10,index_plateau!$A$5:$O$69,2,FALSE)) -> 63 | K10: 42 | L10: =IF(K10="","",VLOOKUP(K10,index_plateau!$A$5:$O$69,2,FALSE)) -> 88 | M10: 24 | N10: =IF(M10="","",VLOOKUP(M10,index_plateau!$A$5:$O$69,2,FALSE)) -> 7 | O10: 24 | P10: =IF(O10="","",VLOOKUP(O10,index_plateau!$A$5:$O$69,2,FALSE)) -> 7 | Q10: 19 | R10: =IF(Q10="","",VLOOKUP(Q10,index_plateau!$A$5:$O$69,2,FALSE)) -> 69 | S10: 58 | T10: =IF(S10="","",VLOOKUP(S10,index_plateau!$A$5:$O$69,2,FALSE)) -> 56 | U10: 61 | V10: =IF(U10="","",VLOOKUP(U10,index_plateau!$A$5:$O$69,2,FALSE)) -> 60 | Z10: TOUTES
A11: =preparation_plateau!B11 -> JEAON | B11: =preparation_plateau!C11 -> Alexis | C11: 17 | D11: =IF(C11="","",VLOOKUP(C11,index_plateau!$A$5:$O$69,2,FALSE)) -> 67 | E11: 41 | F11: =IF(E11="","",VLOOKUP(E11,index_plateau!$A$5:$O$69,2,FALSE)) -> 87 | G11: 29 | H11: =IF(G11="","",VLOOKUP(G11,index_plateau!$A$5:$O$69,2,FALSE)) -> 13 | I11: 33 | J11: =IF(I11="","",VLOOKUP(I11,index_plateau!$A$5:$O$69,2,FALSE)) -> 59 | K11: 43 | L11: =IF(K11="","",VLOOKUP(K11,index_plateau!$A$5:$O$69,2,FALSE)) -> 92 | M11: 65 | N11: =IF(M11="","",VLOOKUP(M11,index_plateau!$A$5:$O$69,2,FALSE)) -> 91 | O11: 48 | P11: =IF(O11="","",VLOOKUP(O11,index_plateau!$A$5:$O$69,2,FALSE)) -> 17 | Q11: 12 | R11: =IF(Q11="","",VLOOKUP(Q11,index_plateau!$A$5:$O$69,2,FALSE)) -> 31 | S11: 30 | T11: =IF(S11="","",VLOOKUP(S11,index_plateau!$A$5:$O$69,2,FALSE)) -> 21 | U11: 26 | V11: =IF(U11="","",VLOOKUP(U11,index_plateau!$A$5:$O$69,2,FALSE)) -> 10
A12: =preparation_plateau!B12 -> KOLA | B12: =preparation_plateau!C12 -> Alexandre | C12: 11 | D12: =IF(C12="","",VLOOKUP(C12,index_plateau!$A$5:$O$69,2,FALSE)) -> 30 | E12: 9 | F12: =IF(E12="","",VLOOKUP(E12,index_plateau!$A$5:$O$69,2,FALSE)) -> 28 | G12: 32 | H12: =IF(G12="","",VLOOKUP(G12,index_plateau!$A$5:$O$69,2,FALSE)) -> 24 | I12: 28 | J12: =IF(I12="","",VLOOKUP(I12,index_plateau!$A$5:$O$69,2,FALSE)) -> 12 | K12: 16 | L12: =IF(K12="","",VLOOKUP(K12,index_plateau!$A$5:$O$69,2,FALSE)) -> 66 | M12: 28 | N12: =IF(M12="","",VLOOKUP(M12,index_plateau!$A$5:$O$69,2,FALSE)) -> 12 | O12: 56 | P12: =IF(O12="","",VLOOKUP(O12,index_plateau!$A$5:$O$69,2,FALSE)) -> 54 | Q12: 57 | R12: =IF(Q12="","",VLOOKUP(Q12,index_plateau!$A$5:$O$69,2,FALSE)) -> 55 | S12: 63 | T12: =IF(S12="","",VLOOKUP(S12,index_plateau!$A$5:$O$69,2,FALSE)) -> 89 | U12: 49 | V12: =IF(U12="","",VLOOKUP(U12,index_plateau!$A$5:$O$69,2,FALSE)) -> 18
A13: =preparation_plateau!B13 -> LERHE | B13: =preparation_plateau!C13 -> Melvin | C13: 23 | D13: =IF(C13="","",VLOOKUP(C13,index_plateau!$A$5:$O$69,2,FALSE)) -> 6 | E13: 44 | F13: =IF(E13="","",VLOOKUP(E13,index_plateau!$A$5:$O$69,2,FALSE)) -> 93 | G13: 26 | H13: =IF(G13="","",VLOOKUP(G13,index_plateau!$A$5:$O$69,2,FALSE)) -> 10 | I13: 60 | J13: =IF(I13="","",VLOOKUP(I13,index_plateau!$A$5:$O$69,2,FALSE)) -> 58 | K13: 3 | L13: =IF(K13="","",VLOOKUP(K13,index_plateau!$A$5:$O$69,2,FALSE)) -> 3 | M13: 9 | N13: =IF(M13="","",VLOOKUP(M13,index_plateau!$A$5:$O$69,2,FALSE)) -> 28 | O13: 59 | P13: =IF(O13="","",VLOOKUP(O13,index_plateau!$A$5:$O$69,2,FALSE)) -> 57 | Q13: 7 | R13: =IF(Q13="","",VLOOKUP(Q13,index_plateau!$A$5:$O$69,2,FALSE)) -> 25 | S13: 44 | T13: =IF(S13="","",VLOOKUP(S13,index_plateau!$A$5:$O$69,2,FALSE)) -> 93 | U13: 19 | V13: =IF(U13="","",VLOOKUP(U13,index_plateau!$A$5:$O$69,2,FALSE)) -> 69
A14: =preparation_plateau!B14 -> LOE | B14: =preparation_plateau!C14 -> Mickael | C14: 49 | D14: =IF(C14="","",VLOOKUP(C14,index_plateau!$A$5:$O$69,2,FALSE)) -> 18 | E14: 19 | F14: =IF(E14="","",VLOOKUP(E14,index_plateau!$A$5:$O$69,2,FALSE)) -> 69 | G14: 48 | H14: =IF(G14="","",VLOOKUP(G14,index_plateau!$A$5:$O$69,2,FALSE)) -> 17 | I14: 54 | J14: =IF(I14="","",VLOOKUP(I14,index_plateau!$A$5:$O$69,2,FALSE)) -> 52 | K14: 47 | L14: =IF(K14="","",VLOOKUP(K14,index_plateau!$A$5:$O$69,2,FALSE)) -> 16 | M14: 52 | N14: =IF(M14="","",VLOOKUP(M14,index_plateau!$A$5:$O$69,2,FALSE)) -> 22 | O14: 59 | P14: =IF(O14="","",VLOOKUP(O14,index_plateau!$A$5:$O$69,2,FALSE)) -> 57 | Q14: 11 | R14: =IF(Q14="","",VLOOKUP(Q14,index_plateau!$A$5:$O$69,2,FALSE)) -> 30 | S14: 47 | T14: =IF(S14="","",VLOOKUP(S14,index_plateau!$A$5:$O$69,2,FALSE)) -> 16 | U14: 20 | V14: =IF(U14="","",VLOOKUP(U14,index_plateau!$A$5:$O$69,2,FALSE)) -> 94
A15: =preparation_plateau!B15 -> MORET | B15: =preparation_plateau!C15 -> Alice | C15: 63 | D15: =IF(C15="","",VLOOKUP(C15,index_plateau!$A$5:$O$69,2,FALSE)) -> 89 | E15: 60 | F15: =IF(E15="","",VLOOKUP(E15,index_plateau!$A$5:$O$69,2,FALSE)) -> 58 | G15: 43 | H15: =IF(G15="","",VLOOKUP(G15,index_plateau!$A$5:$O$69,2,FALSE)) -> 92 | I15: 54 | J15: =IF(I15="","",VLOOKUP(I15,index_plateau!$A$5:$O$69,2,FALSE)) -> 52 | K15: 25 | L15: =IF(K15="","",VLOOKUP(K15,index_plateau!$A$5:$O$69,2,FALSE)) -> 9 | M15: 52 | N15: =IF(M15="","",VLOOKUP(M15,index_plateau!$A$5:$O$69,2,FALSE)) -> 22 | O15: 40 | P15: =IF(O15="","",VLOOKUP(O15,index_plateau!$A$5:$O$69,2,FALSE)) -> 86 | Q15: 51 | R15: =IF(Q15="","",VLOOKUP(Q15,index_plateau!$A$5:$O$69,2,FALSE)) -> 20 | S15: 25 | T15: =IF(S15="","",VLOOKUP(S15,index_plateau!$A$5:$O$69,2,FALSE)) -> 9 | U15: 47 | V15: =IF(U15="","",VLOOKUP(U15,index_plateau!$A$5:$O$69,2,FALSE)) -> 16
A16: =preparation_plateau!B16 -> NICAU | B16: =preparation_plateau!C16 -> Romain | C16: 60 | D16: =IF(C16="","",VLOOKUP(C16,index_plateau!$A$5:$O$69,2,FALSE)) -> 58 | E16: 11 | F16: =IF(E16="","",VLOOKUP(E16,index_plateau!$A$5:$O$69,2,FALSE)) -> 30 | G16: 32 | H16: =IF(G16="","",VLOOKUP(G16,index_plateau!$A$5:$O$69,2,FALSE)) -> 24 | I16: 45 | J16: =IF(I16="","",VLOOKUP(I16,index_plateau!$A$5:$O$69,2,FALSE)) -> 14 | K16: 54 | L16: =IF(K16="","",VLOOKUP(K16,index_plateau!$A$5:$O$69,2,FALSE)) -> 52 | M16: 57 | N16: =IF(M16="","",VLOOKUP(M16,index_plateau!$A$5:$O$69,2,FALSE)) -> 55 | O16: 31 | P16: =IF(O16="","",VLOOKUP(O16,index_plateau!$A$5:$O$69,2,FALSE)) -> 23 | Q16: 58 | R16: =IF(Q16="","",VLOOKUP(Q16,index_plateau!$A$5:$O$69,2,FALSE)) -> 56 | S16: 29 | T16: =IF(S16="","",VLOOKUP(S16,index_plateau!$A$5:$O$69,2,FALSE)) -> 13 | U16: 48 | V16: =IF(U16="","",VLOOKUP(U16,index_plateau!$A$5:$O$69,2,FALSE)) -> 17
A17: =preparation_plateau!B17 -> RUI | B17: =preparation_plateau!C17 -> Desiderio | C17: 55 | D17: =IF(C17="","",VLOOKUP(C17,index_plateau!$A$5:$O$69,2,FALSE)) -> 53 | E17: 33 | F17: =IF(E17="","",VLOOKUP(E17,index_plateau!$A$5:$O$69,2,FALSE)) -> 59 | G17: 19 | H17: =IF(G17="","",VLOOKUP(G17,index_plateau!$A$5:$O$69,2,FALSE)) -> 69 | I17: 54 | J17: =IF(I17="","",VLOOKUP(I17,index_plateau!$A$5:$O$69,2,FALSE)) -> 52 | K17: 21 | L17: =IF(K17="","",VLOOKUP(K17,index_plateau!$A$5:$O$69,2,FALSE)) -> 95 | M17: 6 | N17: =IF(M17="","",VLOOKUP(M17,index_plateau!$A$5:$O$69,2,FALSE)) -> 8 | O17: 19 | P17: =IF(O17="","",VLOOKUP(O17,index_plateau!$A$5:$O$69,2,FALSE)) -> 69 | Q17: 60 | R17: =IF(Q17="","",VLOOKUP(Q17,index_plateau!$A$5:$O$69,2,FALSE)) -> 58 | S17: 10 | T17: =IF(S17="","",VLOOKUP(S17,index_plateau!$A$5:$O$69,2,FALSE)) -> 29 | U17: 11 | V17: =IF(U17="","",VLOOKUP(U17,index_plateau!$A$5:$O$69,2,FALSE)) -> 30
A18: =preparation_plateau!B18 -> RI | B18: =preparation_plateau!C18 -> Niko | C18: 54 | D18: =IF(C18="","",VLOOKUP(C18,index_plateau!$A$5:$O$69,2,FALSE)) -> 52 | E18: 21 | F18: =IF(E18="","",VLOOKUP(E18,index_plateau!$A$5:$O$69,2,FALSE)) -> 95 | G18: 57 | H18: =IF(G18="","",VLOOKUP(G18,index_plateau!$A$5:$O$69,2,FALSE)) -> 55 | I18: 35 | J18: =IF(I18="","",VLOOKUP(I18,index_plateau!$A$5:$O$69,2,FALSE)) -> 62 | K18: 52 | L18: =IF(K18="","",VLOOKUP(K18,index_plateau!$A$5:$O$69,2,FALSE)) -> 22 | M18: 45 | N18: =IF(M18="","",VLOOKUP(M18,index_plateau!$A$5:$O$69,2,FALSE)) -> 14 | O18: 33 | P18: =IF(O18="","",VLOOKUP(O18,index_plateau!$A$5:$O$69,2,FALSE)) -> 59 | Q18: 29 | R18: =IF(Q18="","",VLOOKUP(Q18,index_plateau!$A$5:$O$69,2,FALSE)) -> 13 | S18: 63 | T18: =IF(S18="","",VLOOKUP(S18,index_plateau!$A$5:$O$69,2,FALSE)) -> 89 | U18: 6 | V18: =IF(U18="","",VLOOKUP(U18,index_plateau!$A$5:$O$69,2,FALSE)) -> 8
A19: =preparation_plateau!B19 -> SAL | B19: =preparation_plateau!C19 -> Calvin | C19: 54 | D19: =IF(C19="","",VLOOKUP(C19,index_plateau!$A$5:$O$69,2,FALSE)) -> 52 | E19: 44 | F19: =IF(E19="","",VLOOKUP(E19,index_plateau!$A$5:$O$69,2,FALSE)) -> 93 | G19: 24 | H19: =IF(G19="","",VLOOKUP(G19,index_plateau!$A$5:$O$69,2,FALSE)) -> 7 | I19: 3 | J19: =IF(I19="","",VLOOKUP(I19,index_plateau!$A$5:$O$69,2,FALSE)) -> 3 | K19: 6 | L19: =IF(K19="","",VLOOKUP(K19,index_plateau!$A$5:$O$69,2,FALSE)) -> 8 | M19: 31 | N19: =IF(M19="","",VLOOKUP(M19,index_plateau!$A$5:$O$69,2,FALSE)) -> 23 | O19: 63 | P19: =IF(O19="","",VLOOKUP(O19,index_plateau!$A$5:$O$69,2,FALSE)) -> 89 | Q19: 44 | R19: =IF(Q19="","",VLOOKUP(Q19,index_plateau!$A$5:$O$69,2,FALSE)) -> 93 | S19: 58 | T19: =IF(S19="","",VLOOKUP(S19,index_plateau!$A$5:$O$69,2,FALSE)) -> 56 | U19: 49 | V19: =IF(U19="","",VLOOKUP(U19,index_plateau!$A$5:$O$69,2,FALSE)) -> 18
A20: =preparation_plateau!B20 -> SIOUI | B20: =preparation_plateau!C20 -> Salah | C20: 65 | D20: =IF(C20="","",VLOOKUP(C20,index_plateau!$A$5:$O$69,2,FALSE)) -> 91 | E20: 34 | F20: =IF(E20="","",VLOOKUP(E20,index_plateau!$A$5:$O$69,2,FALSE)) -> 61 | G20: 11 | H20: =IF(G20="","",VLOOKUP(G20,index_plateau!$A$5:$O$69,2,FALSE)) -> 30 | I20: 24 | J20: =IF(I20="","",VLOOKUP(I20,index_plateau!$A$5:$O$69,2,FALSE)) -> 7 | K20: 44 | L20: =IF(K20="","",VLOOKUP(K20,index_plateau!$A$5:$O$69,2,FALSE)) -> 93 | M20: 12 | N20: =IF(M20="","",VLOOKUP(M20,index_plateau!$A$5:$O$69,2,FALSE)) -> 31 | O20: 46 | P20: =IF(O20="","",VLOOKUP(O20,index_plateau!$A$5:$O$69,2,FALSE)) -> 15 | Q20: 41 | R20: =IF(Q20="","",VLOOKUP(Q20,index_plateau!$A$5:$O$69,2,FALSE)) -> 87 | S20: 32 | T20: =IF(S20="","",VLOOKUP(S20,index_plateau!$A$5:$O$69,2,FALSE)) -> 24 | U20: 42 | V20: =IF(U20="","",VLOOKUP(U20,index_plateau!$A$5:$O$69,2,FALSE)) -> 88
A21: =preparation_plateau!B21 -> TADEVA | B21: =preparation_plateau!C21 -> Khatmat | C21: 8 | D21: =IF(C21="","",VLOOKUP(C21,index_plateau!$A$5:$O$69,2,FALSE)) -> 27 | E21: 24 | F21: =IF(E21="","",VLOOKUP(E21,index_plateau!$A$5:$O$69,2,FALSE)) -> 7 | G21: 6 | H21: =IF(G21="","",VLOOKUP(G21,index_plateau!$A$5:$O$69,2,FALSE)) -> 8 | I21: 23 | J21: =IF(I21="","",VLOOKUP(I21,index_plateau!$A$5:$O$69,2,FALSE)) -> 6 | K21: 34 | L21: =IF(K21="","",VLOOKUP(K21,index_plateau!$A$5:$O$69,2,FALSE)) -> 61 | M21: 64 | N21: =IF(M21="","",VLOOKUP(M21,index_plateau!$A$5:$O$69,2,FALSE)) -> 90 | O21: 38 | P21: =IF(O21="","",VLOOKUP(O21,index_plateau!$A$5:$O$69,2,FALSE)) -> 83 | Q21: 22 | R21: =IF(Q21="","",VLOOKUP(Q21,index_plateau!$A$5:$O$69,2,FALSE)) -> 96 | S21: 10 | T21: =IF(S21="","",VLOOKUP(S21,index_plateau!$A$5:$O$69,2,FALSE)) -> 29 | U21: 38 | V21: =IF(U21="","",VLOOKUP(U21,index_plateau!$A$5:$O$69,2,FALSE)) -> 83
A22: =preparation_plateau!B22 -> TEEC | B22: =preparation_plateau!C22 -> Victor | C22: 61 | D22: =IF(C22="","",VLOOKUP(C22,index_plateau!$A$5:$O$69,2,FALSE)) -> 60 | E22: 48 | F22: =IF(E22="","",VLOOKUP(E22,index_plateau!$A$5:$O$69,2,FALSE)) -> 17 | G22: 40 | H22: =IF(G22="","",VLOOKUP(G22,index_plateau!$A$5:$O$69,2,FALSE)) -> 86 | I22: 41 | J22: =IF(I22="","",VLOOKUP(I22,index_plateau!$A$5:$O$69,2,FALSE)) -> 87 | K22: 55 | L22: =IF(K22="","",VLOOKUP(K22,index_plateau!$A$5:$O$69,2,FALSE)) -> 53 | M22: 39 | N22: =IF(M22="","",VLOOKUP(M22,index_plateau!$A$5:$O$69,2,FALSE)) -> 84 | O22: 58 | P22: =IF(O22="","",VLOOKUP(O22,index_plateau!$A$5:$O$69,2,FALSE)) -> 56 | Q22: =IF($A22="","",IF($A$40="PROCHES",RANDBETWEEN(1,22),IF($A$40="MEDIANES",RANDBETWEEN(23,44),IF($A$40="LOINTAINES",RANDBETWEEN(45,65),IF($A$40="PROCHES+MEDIANES",RANDBETWEEN(1,44),IF($A$40="MEDIANES+LOINTAINES",RANDBETWEEN(23,65),IF($A$40="TOUTES",RANDBETWEEN(1,65)))))))) -> 37 | R22: =IF(Q22="","",VLOOKUP(Q22,index_plateau!$A$5:$O$69,2,FALSE)) -> 70 | S22: 50 | T22: =IF(S22="","",VLOOKUP(S22,index_plateau!$A$5:$O$69,2,FALSE)) -> 19 | U22: 48 | V22: =IF(U22="","",VLOOKUP(U22,index_plateau!$A$5:$O$69,2,FALSE)) -> 17
A23: =preparation_plateau!B23 -> TEJOR | B23: =preparation_plateau!C23 -> Carla | C23: 1 | D23: =IF(C23="","",VLOOKUP(C23,index_plateau!$A$5:$O$69,2,FALSE)) -> 1 | E23: 27 | F23: =IF(E23="","",VLOOKUP(E23,index_plateau!$A$5:$O$69,2,FALSE)) -> 11 | G23: 27 | H23: =IF(G23="","",VLOOKUP(G23,index_plateau!$A$5:$O$69,2,FALSE)) -> 11 | I23: 20 | J23: =IF(I23="","",VLOOKUP(I23,index_plateau!$A$5:$O$69,2,FALSE)) -> 94 | K23: 1 | L23: =IF(K23="","",VLOOKUP(K23,index_plateau!$A$5:$O$69,2,FALSE)) -> 1 | M23: 49 | N23: =IF(M23="","",VLOOKUP(M23,index_plateau!$A$5:$O$69,2,FALSE)) -> 18 | O23: 34 | P23: =IF(O23="","",VLOOKUP(O23,index_plateau!$A$5:$O$69,2,FALSE)) -> 61 | Q23: 58 | R23: =IF(Q23="","",VLOOKUP(Q23,index_plateau!$A$5:$O$69,2,FALSE)) -> 56 | S23: 59 | T23: =IF(S23="","",VLOOKUP(S23,index_plateau!$A$5:$O$69,2,FALSE)) -> 57 | U23: 55 | V23: =IF(U23="","",VLOOKUP(U23,index_plateau!$A$5:$O$69,2,FALSE)) -> 53
A24: =preparation_plateau!B24 -> THIER | B24: =preparation_plateau!C24 -> Andrea | C24: 14 | D24: =IF(C24="","",VLOOKUP(C24,index_plateau!$A$5:$O$69,2,FALSE)) -> 64 | E24: 10 | F24: =IF(E24="","",VLOOKUP(E24,index_plateau!$A$5:$O$69,2,FALSE)) -> 29 | G24: 8 | H24: =IF(G24="","",VLOOKUP(G24,index_plateau!$A$5:$O$69,2,FALSE)) -> 27 | I24: 25 | J24: =IF(I24="","",VLOOKUP(I24,index_plateau!$A$5:$O$69,2,FALSE)) -> 9 | K24: 50 | L24: =IF(K24="","",VLOOKUP(K24,index_plateau!$A$5:$O$69,2,FALSE)) -> 19 | M24: 53 | N24: =IF(M24="","",VLOOKUP(M24,index_plateau!$A$5:$O$69,2,FALSE)) -> 26 | O24: 52 | P24: =IF(O24="","",VLOOKUP(O24,index_plateau!$A$5:$O$69,2,FALSE)) -> 22 | Q24: 34 | R24: =IF(Q24="","",VLOOKUP(Q24,index_plateau!$A$5:$O$69,2,FALSE)) -> 61 | S24: 39 | T24: =IF(S24="","",VLOOKUP(S24,index_plateau!$A$5:$O$69,2,FALSE)) -> 84 | U24: 14 | V24: =IF(U24="","",VLOOKUP(U24,index_plateau!$A$5:$O$69,2,FALSE)) -> 64
A25: =preparation_plateau!B25 -> YI | B25: =preparation_plateau!C25 -> William | C25: 52 | D25: =IF(C25="","",VLOOKUP(C25,index_plateau!$A$5:$O$69,2,FALSE)) -> 22 | E25: 1 | F25: =IF(E25="","",VLOOKUP(E25,index_plateau!$A$5:$O$69,2,FALSE)) -> 1 | G25: 64 | H25: =IF(G25="","",VLOOKUP(G25,index_plateau!$A$5:$O$69,2,FALSE)) -> 90 | I25: 36 | J25: =IF(I25="","",VLOOKUP(I25,index_plateau!$A$5:$O$69,2,FALSE)) -> 63 | K25: 59 | L25: =IF(K25="","",VLOOKUP(K25,index_plateau!$A$5:$O$69,2,FALSE)) -> 57 | M25: 27 | N25: =IF(M25="","",VLOOKUP(M25,index_plateau!$A$5:$O$69,2,FALSE)) -> 11 | O25: 54 | P25: =IF(O25="","",VLOOKUP(O25,index_plateau!$A$5:$O$69,2,FALSE)) -> 52 | Q25: 51 | R25: =IF(Q25="","",VLOOKUP(Q25,index_plateau!$A$5:$O$69,2,FALSE)) -> 20 | S25: 35 | T25: =IF(S25="","",VLOOKUP(S25,index_plateau!$A$5:$O$69,2,FALSE)) -> 62 | U25: 55 | V25: =IF(U25="","",VLOOKUP(U25,index_plateau!$A$5:$O$69,2,FALSE)) -> 53
A26: =preparation_plateau!B26 ->  | B26: =preparation_plateau!C26 ->  | D26: =IF(C26="","",VLOOKUP(C26,index_plateau!$A$5:$O$69,2,FALSE)) ->  | F26: =IF(E26="","",VLOOKUP(E26,index_plateau!$A$5:$O$69,2,FALSE)) ->  | H26: =IF(G26="","",VLOOKUP(G26,index_plateau!$A$5:$O$69,2,FALSE)) ->  | J26: =IF(I26="","",VLOOKUP(I26,index_plateau!$A$5:$O$69,2,FALSE)) ->  | L26: =IF(K26="","",VLOOKUP(K26,index_plateau!$A$5:$O$69,2,FALSE)) ->  | N26: =IF(M26="","",VLOOKUP(M26,index_plateau!$A$5:$O$69,2,FALSE)) ->  | P26: =IF(O26="","",VLOOKUP(O26,index_plateau!$A$5:$O$69,2,FALSE)) ->  | R26: =IF(Q26="","",VLOOKUP(Q26,index_plateau!$A$5:$O$69,2,FALSE)) ->  | T26: =IF(S26="","",VLOOKUP(S26,index_plateau!$A$5:$O$69,2,FALSE)) ->  | V26: =IF(U26="","",VLOOKUP(U26,index_plateau!$A$5:$O$69,2,FALSE)) -> 
A27: =preparation_plateau!B27 ->  | B27: =preparation_plateau!C27 ->  | D27: =IF(C27="","",VLOOKUP(C27,index_plateau!$A$5:$O$69,2,FALSE)) ->  | F27: =IF(E27="","",VLOOKUP(E27,index_plateau!$A$5:$O$69,2,FALSE)) ->  | H27: =IF(G27="","",VLOOKUP(G27,index_plateau!$A$5:$O$69,2,FALSE)) ->  | J27: =IF(I27="","",VLOOKUP(I27,index_plateau!$A$5:$O$69,2,FALSE)) ->  | L27: =IF(K27="","",VLOOKUP(K27,index_plateau!$A$5:$O$69,2,FALSE)) ->  | N27: =IF(M27="","",VLOOKUP(M27,index_plateau!$A$5:$O$69,2,FALSE)) ->  | P27: =IF(O27="","",VLOOKUP(O27,index_plateau!$A$5:$O$69,2,FALSE)) ->  | R27: =IF(Q27="","",VLOOKUP(Q27,index_plateau!$A$5:$O$69,2,FALSE)) ->  | T27: =IF(S27="","",VLOOKUP(S27,index_plateau!$A$5:$O$69,2,FALSE)) ->  | V27: =IF(U27="","",VLOOKUP(U27,index_plateau!$A$5:$O$69,2,FALSE)) -> 
A28: =preparation_plateau!B28 ->  | B28: =preparation_plateau!C28 ->  | D28: =IF(C28="","",VLOOKUP(C28,index_plateau!$A$5:$O$69,2,FALSE)) ->  | F28: =IF(E28="","",VLOOKUP(E28,index_plateau!$A$5:$O$69,2,FALSE)) ->  | H28: =IF(G28="","",VLOOKUP(G28,index_plateau!$A$5:$O$69,2,FALSE)) ->  | J28: =IF(I28="","",VLOOKUP(I28,index_plateau!$A$5:$O$69,2,FALSE)) ->  | L28: =IF(K28="","",VLOOKUP(K28,index_plateau!$A$5:$O$69,2,FALSE)) ->  | N28: =IF(M28="","",VLOOKUP(M28,index_plateau!$A$5:$O$69,2,FALSE)) ->  | P28: =IF(O28="","",VLOOKUP(O28,index_plateau!$A$5:$O$69,2,FALSE)) ->  | R28: =IF(Q28="","",VLOOKUP(Q28,index_plateau!$A$5:$O$69,2,FALSE)) ->  | T28: =IF(S28="","",VLOOKUP(S28,index_plateau!$A$5:$O$69,2,FALSE)) ->  | V28: =IF(U28="","",VLOOKUP(U28,index_plateau!$A$5:$O$69,2,FALSE)) -> 
A29: =preparation_plateau!B29 ->  | B29: =preparation_plateau!C29 ->  | D29: =IF(C29="","",VLOOKUP(C29,index_plateau!$A$5:$O$69,2,FALSE)) ->  | F29: =IF(E29="","",VLOOKUP(E29,index_plateau!$A$5:$O$69,2,FALSE)) ->  | H29: =IF(G29="","",VLOOKUP(G29,index_plateau!$A$5:$O$69,2,FALSE)) ->  | J29: =IF(I29="","",VLOOKUP(I29,index_plateau!$A$5:$O$69,2,FALSE)) ->  | L29: =IF(K29="","",VLOOKUP(K29,index_plateau!$A$5:$O$69,2,FALSE)) ->  | N29: =IF(M29="","",VLOOKUP(M29,index_plateau!$A$5:$O$69,2,FALSE)) ->  | P29: =IF(O29="","",VLOOKUP(O29,index_plateau!$A$5:$O$69,2,FALSE)) ->  | R29: =IF(Q29="","",VLOOKUP(Q29,index_plateau!$A$5:$O$69,2,FALSE)) ->  | T29: =IF(S29="","",VLOOKUP(S29,index_plateau!$A$5:$O$69,2,FALSE)) ->  | V29: =IF(U29="","",VLOOKUP(U29,index_plateau!$A$5:$O$69,2,FALSE)) -> 
A30: =preparation_plateau!B30 ->  | B30: =preparation_plateau!C30 ->  | D30: =IF(C30="","",VLOOKUP(C30,index_plateau!$A$5:$O$69,2,FALSE)) ->  | F30: =IF(E30="","",VLOOKUP(E30,index_plateau!$A$5:$O$69,2,FALSE)) ->  | H30: =IF(G30="","",VLOOKUP(G30,index_plateau!$A$5:$O$69,2,FALSE)) ->  | J30: =IF(I30="","",VLOOKUP(I30,index_plateau!$A$5:$O$69,2,FALSE)) ->  | L30: =IF(K30="","",VLOOKUP(K30,index_plateau!$A$5:$O$69,2,FALSE)) ->  | N30: =IF(M30="","",VLOOKUP(M30,index_plateau!$A$5:$O$69,2,FALSE)) ->  | P30: =IF(O30="","",VLOOKUP(O30,index_plateau!$A$5:$O$69,2,FALSE)) ->  | R30: =IF(Q30="","",VLOOKUP(Q30,index_plateau!$A$5:$O$69,2,FALSE)) ->  | T30: =IF(S30="","",VLOOKUP(S30,index_plateau!$A$5:$O$69,2,FALSE)) ->  | V30: =IF(U30="","",VLOOKUP(U30,index_plateau!$A$5:$O$69,2,FALSE)) -> 
A31: =preparation_plateau!B31 ->  | B31: =preparation_plateau!C31 ->  | D31: =IF(C31="","",VLOOKUP(C31,index_plateau!$A$5:$O$69,2,FALSE)) ->  | F31: =IF(E31="","",VLOOKUP(E31,index_plateau!$A$5:$O$69,2,FALSE)) ->  | H31: =IF(G31="","",VLOOKUP(G31,index_plateau!$A$5:$O$69,2,FALSE)) ->  | J31: =IF(I31="","",VLOOKUP(I31,index_plateau!$A$5:$O$69,2,FALSE)) ->  | L31: =IF(K31="","",VLOOKUP(K31,index_plateau!$A$5:$O$69,2,FALSE)) ->  | N31: =IF(M31="","",VLOOKUP(M31,index_plateau!$A$5:$O$69,2,FALSE)) ->  | P31: =IF(O31="","",VLOOKUP(O31,index_plateau!$A$5:$O$69,2,FALSE)) ->  | R31: =IF(Q31="","",VLOOKUP(Q31,index_plateau!$A$5:$O$69,2,FALSE)) ->  | T31: =IF(S31="","",VLOOKUP(S31,index_plateau!$A$5:$O$69,2,FALSE)) ->  | V31: =IF(U31="","",VLOOKUP(U31,index_plateau!$A$5:$O$69,2,FALSE)) -> 
A32: =preparation_plateau!B32 ->  | B32: =preparation_plateau!C32 ->  | D32: =IF(C32="","",VLOOKUP(C32,index_plateau!$A$5:$O$69,2,FALSE)) ->  | F32: =IF(E32="","",VLOOKUP(E32,index_plateau!$A$5:$O$69,2,FALSE)) ->  | H32: =IF(G32="","",VLOOKUP(G32,index_plateau!$A$5:$O$69,2,FALSE)) ->  | J32: =IF(I32="","",VLOOKUP(I32,index_plateau!$A$5:$O$69,2,FALSE)) ->  | L32: =IF(K32="","",VLOOKUP(K32,index_plateau!$A$5:$O$69,2,FALSE)) ->  | N32: =IF(M32="","",VLOOKUP(M32,index_plateau!$A$5:$O$69,2,FALSE)) ->  | P32: =IF(O32="","",VLOOKUP(O32,index_plateau!$A$5:$O$69,2,FALSE)) ->  | R32: =IF(Q32="","",VLOOKUP(Q32,index_plateau!$A$5:$O$69,2,FALSE)) ->  | T32: =IF(S32="","",VLOOKUP(S32,index_plateau!$A$5:$O$69,2,FALSE)) ->  | V32: =IF(U32="","",VLOOKUP(U32,index_plateau!$A$5:$O$69,2,FALSE)) -> 
A33: =preparation_plateau!B33 ->  | B33: =preparation_plateau!C33 ->  | D33: =IF(C33="","",VLOOKUP(C33,index_plateau!$A$5:$O$69,2,FALSE)) ->  | F33: =IF(E33="","",VLOOKUP(E33,index_plateau!$A$5:$O$69,2,FALSE)) ->  | H33: =IF(G33="","",VLOOKUP(G33,index_plateau!$A$5:$O$69,2,FALSE)) ->  | J33: =IF(I33="","",VLOOKUP(I33,index_plateau!$A$5:$O$69,2,FALSE)) ->  | L33: =IF(K33="","",VLOOKUP(K33,index_plateau!$A$5:$O$69,2,FALSE)) ->  | N33: =IF(M33="","",VLOOKUP(M33,index_plateau!$A$5:$O$69,2,FALSE)) ->  | P33: =IF(O33="","",VLOOKUP(O33,index_plateau!$A$5:$O$69,2,FALSE)) ->  | R33: =IF(Q33="","",VLOOKUP(Q33,index_plateau!$A$5:$O$69,2,FALSE)) ->  | T33: =IF(S33="","",VLOOKUP(S33,index_plateau!$A$5:$O$69,2,FALSE)) ->  | V33: =IF(U33="","",VLOOKUP(U33,index_plateau!$A$5:$O$69,2,FALSE)) -> 
A34: =preparation_plateau!B34 ->  | B34: =preparation_plateau!C34 ->  | D34: =IF(C34="","",VLOOKUP(C34,index_plateau!$A$5:$O$69,2,FALSE)) ->  | F34: =IF(E34="","",VLOOKUP(E34,index_plateau!$A$5:$O$69,2,FALSE)) ->  | H34: =IF(G34="","",VLOOKUP(G34,index_plateau!$A$5:$O$69,2,FALSE)) ->  | J34: =IF(I34="","",VLOOKUP(I34,index_plateau!$A$5:$O$69,2,FALSE)) ->  | L34: =IF(K34="","",VLOOKUP(K34,index_plateau!$A$5:$O$69,2,FALSE)) ->  | N34: =IF(M34="","",VLOOKUP(M34,index_plateau!$A$5:$O$69,2,FALSE)) ->  | P34: =IF(O34="","",VLOOKUP(O34,index_plateau!$A$5:$O$69,2,FALSE)) ->  | R34: =IF(Q34="","",VLOOKUP(Q34,index_plateau!$A$5:$O$69,2,FALSE)) ->  | T34: =IF(S34="","",VLOOKUP(S34,index_plateau!$A$5:$O$69,2,FALSE)) ->  | V34: =IF(U34="","",VLOOKUP(U34,index_plateau!$A$5:$O$69,2,FALSE)) -> 
A35: =preparation_plateau!B35 ->  | B35: =preparation_plateau!C35 ->  | D35: =IF(C35="","",VLOOKUP(C35,index_plateau!$A$5:$O$69,2,FALSE)) ->  | F35: =IF(E35="","",VLOOKUP(E35,index_plateau!$A$5:$O$69,2,FALSE)) ->  | H35: =IF(G35="","",VLOOKUP(G35,index_plateau!$A$5:$O$69,2,FALSE)) ->  | J35: =IF(I35="","",VLOOKUP(I35,index_plateau!$A$5:$O$69,2,FALSE)) ->  | L35: =IF(K35="","",VLOOKUP(K35,index_plateau!$A$5:$O$69,2,FALSE)) ->  | N35: =IF(M35="","",VLOOKUP(M35,index_plateau!$A$5:$O$69,2,FALSE)) ->  | P35: =IF(O35="","",VLOOKUP(O35,index_plateau!$A$5:$O$69,2,FALSE)) ->  | R35: =IF(Q35="","",VLOOKUP(Q35,index_plateau!$A$5:$O$69,2,FALSE)) ->  | T35: =IF(S35="","",VLOOKUP(S35,index_plateau!$A$5:$O$69,2,FALSE)) ->  | V35: =IF(U35="","",VLOOKUP(U35,index_plateau!$A$5:$O$69,2,FALSE)) -> 
A36: =preparation_plateau!B36 ->  | B36: =preparation_plateau!C36 ->  | D36: =IF(C36="","",VLOOKUP(C36,index_plateau!$A$5:$O$69,2,FALSE)) ->  | F36: =IF(E36="","",VLOOKUP(E36,index_plateau!$A$5:$O$69,2,FALSE)) ->  | H36: =IF(G36="","",VLOOKUP(G36,index_plateau!$A$5:$O$69,2,FALSE)) ->  | J36: =IF(I36="","",VLOOKUP(I36,index_plateau!$A$5:$O$69,2,FALSE)) ->  | L36: =IF(K36="","",VLOOKUP(K36,index_plateau!$A$5:$O$69,2,FALSE)) ->  | N36: =IF(M36="","",VLOOKUP(M36,index_plateau!$A$5:$O$69,2,FALSE)) ->  | P36: =IF(O36="","",VLOOKUP(O36,index_plateau!$A$5:$O$69,2,FALSE)) ->  | R36: =IF(Q36="","",VLOOKUP(Q36,index_plateau!$A$5:$O$69,2,FALSE)) ->  | T36: =IF(S36="","",VLOOKUP(S36,index_plateau!$A$5:$O$69,2,FALSE)) ->  | V36: =IF(U36="","",VLOOKUP(U36,index_plateau!$A$5:$O$69,2,FALSE)) -> 
A37: =preparation_plateau!B37 ->  | B37: =preparation_plateau!C37 ->  | D37: =IF(C37="","",VLOOKUP(C37,index_plateau!$A$5:$O$69,2,FALSE)) ->  | F37: =IF(E37="","",VLOOKUP(E37,index_plateau!$A$5:$O$69,2,FALSE)) ->  | H37: =IF(G37="","",VLOOKUP(G37,index_plateau!$A$5:$O$69,2,FALSE)) ->  | J37: =IF(I37="","",VLOOKUP(I37,index_plateau!$A$5:$O$69,2,FALSE)) ->  | L37: =IF(K37="","",VLOOKUP(K37,index_plateau!$A$5:$O$69,2,FALSE)) ->  | N37: =IF(M37="","",VLOOKUP(M37,index_plateau!$A$5:$O$69,2,FALSE)) ->  | P37: =IF(O37="","",VLOOKUP(O37,index_plateau!$A$5:$O$69,2,FALSE)) ->  | R37: =IF(Q37="","",VLOOKUP(Q37,index_plateau!$A$5:$O$69,2,FALSE)) ->  | T37: =IF(S37="","",VLOOKUP(S37,index_plateau!$A$5:$O$69,2,FALSE)) ->  | V37: =IF(U37="","",VLOOKUP(U37,index_plateau!$A$5:$O$69,2,FALSE)) -> 
A38: =preparation_plateau!B38 ->  | B38: =preparation_plateau!C38 ->  | D38: =IF(C38="","",VLOOKUP(C38,index_plateau!$A$5:$O$69,2,FALSE)) ->  | F38: =IF(E38="","",VLOOKUP(E38,index_plateau!$A$5:$O$69,2,FALSE)) ->  | H38: =IF(G38="","",VLOOKUP(G38,index_plateau!$A$5:$O$69,2,FALSE)) ->  | J38: =IF(I38="","",VLOOKUP(I38,index_plateau!$A$5:$O$69,2,FALSE)) ->  | L38: =IF(K38="","",VLOOKUP(K38,index_plateau!$A$5:$O$69,2,FALSE)) ->  | N38: =IF(M38="","",VLOOKUP(M38,index_plateau!$A$5:$O$69,2,FALSE)) ->  | P38: =IF(O38="","",VLOOKUP(O38,index_plateau!$A$5:$O$69,2,FALSE)) ->  | R38: =IF(Q38="","",VLOOKUP(Q38,index_plateau!$A$5:$O$69,2,FALSE)) ->  | T38: =IF(S38="","",VLOOKUP(S38,index_plateau!$A$5:$O$69,2,FALSE)) ->  | V38: =IF(U38="","",VLOOKUP(U38,index_plateau!$A$5:$O$69,2,FALSE)) -> 
A39: CHOIX DES BALISES
A40: TOUTES | B40: <<<<<<<<<<

Sheet preparation_plateau
B1: PLATEAU | F1: Cellule "N° CARTE" prioritaire par rapport à la colonne "N° CARTE" (si cellule "C2"vide alors la colonne est prise en compte). | G1: Cellule "N° CARTE" prioritaire par rapport à la colonne "N° CARTE" (si cellule "C2"vide alors la colonne est prise en compte). | AL1: 0
B2: N° CARTE | F2: Combien de code(s) sur chaque coupon ? | L2: 5 | N2: SEANCE N° : | P2: 3 | S2: DATE : | T2: 2011-03-04 | AL2: 1
B3: NOM | C3: PRENOM | D3: N° CARTE | E3: N° CARTE | F3: N° BALISE 1 | G3: CODE 1 | H3: Solution 1 | I3: N° BALISE 2 | J3: CODE 2 | K3: Solution 2 | L3: N° BALISE 3 | M3: CODE 3 | N3: Solution 3 | O3: N° BALISE 4 | P3: CODE 4 | Q3: Solution 4 | R3: N° BALISE 5 | S3: CODE 5 | T3: Solution 5 | U3: N° BALISE 6 | V3: CODE 6 | W3: Solution 6 | X3: N° BALISE 7 | Y3: CODE 7 | Z3: Solution 7 | AA3: N° BALISE 8 | AB3: CODE 8 | AC3: Solution 8 | AD3: N° BALISE 9 | AE3: CODE 9 | AF3: Solution 9 | AG3: N° BALISE 10 | AH3: CODE 10 | AI3: Solution 10 | AL3: 2
A4: 1 | B4: =IF(index_classe!F3="","",IF(index_classe!$K$1="NON",index_classe!F3,"Groupe 1")) -> BENZ | C4: =IF(index_classe!G3="","",IF(index_classe!$K$1="NON",index_classe!G3,">>>>>")) -> Nawel | D4: =IF($C$2<>"",$C$2,E4) -> 1 | E4: 1 | F4: 62 | G4: =IF(F4="","",IF($C$2<>"",VLOOKUP(F4,index_plateau!$B$5:$O$69,$C$2+2,FALSE),VLOOKUP(F4,index_plateau!$B$5:$O$69,$D4+2,FALSE))) -> AM | H4: =IF(G4="","",VLOOKUP(F4,index_plateau!$B$5:$O$69,2,FALSE)) -> 4945 | I4: 84 | J4: =IF(I4="","",IF($C$2<>"",VLOOKUP(I4,index_plateau!$B$5:$O$69,$C$2+2,FALSE),VLOOKUP(I4,index_plateau!$B$5:$O$69,$D4+2,FALSE))) -> CBL | K4: =IF(J4="","",VLOOKUP(I4,index_plateau!$B$5:$O$69,2,FALSE)) -> 4313 | L4: 84 | M4: =IF(L4="","",IF($C$2<>"",VLOOKUP(L4,index_plateau!$B$5:$O$69,$C$2+2,FALSE),VLOOKUP(L4,index_plateau!$B$5:$O$69,$D4+2,FALSE))) -> CBL | N4: =IF(M4="","",VLOOKUP(L4,index_plateau!$B$5:$O$69,2,FALSE)) -> 4313 | O4: 9 | P4: =IF(O4="","",IF($C$2<>"",VLOOKUP(O4,index_plateau!$B$5:$O$69,$C$2+2,FALSE),VLOOKUP(O4,index_plateau!$B$5:$O$69,$D4+2,FALSE))) -> BAK | Q4: =IF(P4="","",VLOOKUP(O4,index_plateau!$B$5:$O$69,2,FALSE)) -> 6525 | R4: 87 | S4: =IF(R4="","",IF($C$2<>"",VLOOKUP(R4,index_plateau!$B$5:$O$69,$C$2+2,FALSE),VLOOKUP(R4,index_plateau!$B$5:$O$69,$D4+2,FALSE))) -> CBO | T4: =IF(S4="","",VLOOKUP(R4,index_plateau!$B$5:$O$69,2,FALSE)) -> 3997 | U4: 62 | V4: =IF(U4="","",IF($C$2<>"",VLOOKUP(U4,index_plateau!$B$5:$O$69,$C$2+2,FALSE),VLOOKUP(U4,index_plateau!$B$5:$O$69,$D4+2,FALSE))) -> AM | W4: =IF(V4="","",VLOOKUP(U4,index_plateau!$B$5:$O$69,2,FALSE)) -> 4945 | X4: 30 | Y4: =IF(X4="","",IF($C$2<>"",VLOOKUP(X4,index_plateau!$B$5:$O$69,$C$2+2,FALSE),VLOOKUP(X4,index_plateau!$B$5:$O$69,$D4+2,FALSE))) -> CBI | Z4: =IF(Y4="","",VLOOKUP(X4,index_plateau!$B$5:$O$69,2,FALSE)) -> 5878 | AA4: 83 | AB4: =IF(AA4="","",IF($C$2<>"",VLOOKUP(AA4,index_plateau!$B$5:$O$69,$C$2+2,FALSE),VLOOKUP(AA4,index_plateau!$B$5:$O$69,$D4+2,FALSE))) -> BJ | AC4: =IF(AB4="","",VLOOKUP(AA4,index_plateau!$B$5:$O$69,2,FALSE)) -> 4471 | AD4: 66 | AE4: =IF(AD4="","",IF($C$2<>"",VLOOKUP(AD4,index_plateau!$B$5:$O$69,$C$2+2,FALSE),VLOOKUP(AD4,index_plateau!$B$5:$O$69,$D4+2,FALSE))) -> AQ | AF4: =IF(AE4="","",VLOOKUP(AD4,index_plateau!$B$5:$O$69,2,FALSE)) -> 6553 | AG4: 95 | AH4: =IF(AG4="","",IF($C$2<>"",VLOOKUP(AG4,index_plateau!$B$5:$O$69,$C$2+2,FALSE),VLOOKUP(AG4,index_plateau!$B$5:$O$69,$D4+2,FALSE))) -> CBW | AI4: =IF(AH4="","",VLOOKUP(AG4,index_plateau!$B$5:$O$69,2,FALSE)) -> 7228 | AL4: 3
A5: 2 | B5: =IF(index_classe!F4="","",IF(index_classe!$K$1="NON",index_classe!F4,IF(A5>index_classe!$P$1,"","Groupe 2"))) -> BERNA | C5: =IF(index_classe!G4="","",IF(index_classe!$K$1="NON",index_classe!G4,IF(A5>index_classe!$P$1,"",">>>>>"))) -> Laurine | D5: =IF($C$2<>"",$C$2,E5) -> 2 | E5: 2 | F5: 84 | G5: =IF(F5="","",IF($C$2<>"",VLOOKUP(F5,index_plateau!$B$5:$O$69,$C$2+2,FALSE),VLOOKUP(F5,index_plateau!$B$5:$O$69,$D5+2,FALSE))) -> UPJ | H5: =IF(G5="","",VLOOKUP(F5,index_plateau!$B$5:$O$69,2,FALSE)) -> 4313 | I5: 86 | J5: =IF(I5="","",IF($C$2<>"",VLOOKUP(I5,index_plateau!$B$5:$O$69,$C$2+2,FALSE),VLOOKUP(I5,index_plateau!$B$5:$O$69,$D5+2,FALSE))) -> UPL | K5: =IF(J5="","",VLOOKUP(I5,index_plateau!$B$5:$O$69,2,FALSE)) -> 4155 | L5: 65 | M5: =IF(L5="","",IF($C$2<>"",VLOOKUP(L5,index_plateau!$B$5:$O$69,$C$2+2,FALSE),VLOOKUP(L5,index_plateau!$B$5:$O$69,$D5+2,FALSE))) -> EA | N5: =IF(M5="","",VLOOKUP(L5,index_plateau!$B$5:$O$69,2,FALSE)) -> 6418 | O5: 66 | P5: =IF(O5="","",IF($C$2<>"",VLOOKUP(O5,index_plateau!$B$5:$O$69,$C$2+2,FALSE),VLOOKUP(O5,index_plateau!$B$5:$O$69,$D5+2,FALSE))) -> EB | Q5: =IF(P5="","",VLOOKUP(O5,index_plateau!$B$5:$O$69,2,FALSE)) -> 6553 | R5: 86 | S5: =IF(R5="","",IF($C$2<>"",VLOOKUP(R5,index_plateau!$B$5:$O$69,$C$2+2,FALSE),VLOOKUP(R5,index_plateau!$B$5:$O$69,$D5+2,FALSE))) -> UPL | T5: =IF(S5="","",VLOOKUP(R5,index_plateau!$B$5:$O$69,2,FALSE)) -> 4155 | U5: 23 | V5: =IF(U5="","",IF($C$2<>"",VLOOKUP(U5,index_plateau!$B$5:$O$69,$C$2+2,FALSE),VLOOKUP(U5,index_plateau!$B$5:$O$69,$D5+2,FALSE))) -> TOZ | W5: =IF(V5="","",VLOOKUP(U5,index_plateau!$B$5:$O$69,2,FALSE)) -> 5577 | X5: 61 | Y5: =IF(X5="","",IF($C$2<>"",VLOOKUP(X5,index_plateau!$B$5:$O$69,$C$2+2,FALSE),VLOOKUP(X5,index_plateau!$B$5:$O$69,$D5+2,FALSE))) -> DW | Z5: =IF(Y5="","",VLOOKUP(X5,index_plateau!$B$5:$O$69,2,FALSE)) -> 5103 | AA5: 84 | AB5: =IF(AA5="","",IF($C$2<>"",VLOOKUP(AA5,index_plateau!$B$5:$O$69,$C$2+2,FALSE),VLOOKUP(AA5,index_plateau!$B$5:$O$69,$D5+2,FALSE))) -> UPJ | AC5: =IF(AB5="","",VLOOKUP(AA5,index_plateau!$B$5:$O$69,2,FALSE)) -> 4313 | AD5: 7 | AE5: =IF(AD5="","",IF($C$2<>"",VLOOKUP(AD5,index_plateau!$B$5:$O$69,$C$2+2,FALSE),VLOOKUP(AD5,index_plateau!$B$5:$O$69,$D5+2,FALSE))) -> TOI | AF5: =IF(AE5="","",VLOOKUP(AD5,index_plateau!$B$5:$O$69,2,FALSE)) -> 6683 | AG5: 27 | AH5: =IF(AG5="","",IF($C$2<>"",VLOOKUP(AG5,index_plateau!$B$5:$O$69,$C$2+2,FALSE),VLOOKUP(AG5,index_plateau!$B$5:$O$69,$D5+2,FALSE))) -> UPD | AI5: =IF(AH5="","",VLOOKUP(AG5,index_plateau!$B$5:$O$69,2,FALSE)) -> 5473 | AL5: 4
A6: 3 | B6: =IF(index_classe!F5="","",IF(index_classe!$K$1="NON",index_classe!F5,IF(A6>index_classe!$P$1,"","Groupe 3"))) -> CHEL | C6: =IF(index_classe!G5="","",IF(index_classe!$K$1="NON",index_classe!G5,IF(A6>index_classe!$P$1,"",">>>>>"))) -> Sarah | D6: 3 | E6: 3 | F6: 70 | G6: =IF(F6="","",IF($C$2<>"",VLOOKUP(F6,index_plateau!$B$5:$O$69,$C$2+2,FALSE),VLOOKUP(F6,index_plateau!$B$5:$O$69,$D6+2,FALSE))) -> GQ | H6: =IF(G6="","",VLOOKUP(F6,index_plateau!$B$5:$O$69,2,FALSE)) -> 4629 | I6: 59 | J6: =IF(I6="","",IF($C$2<>"",VLOOKUP(I6,index_plateau!$B$5:$O$69,$C$2+2,FALSE),VLOOKUP(I6,index_plateau!$B$5:$O$69,$D6+2,FALSE))) -> GE | K6: =IF(J6="","",VLOOKUP(I6,index_plateau!$B$5:$O$69,2,FALSE)) -> 5261 | L6: 68 | M6: =IF(L6="","",IF($C$2<>"",VLOOKUP(L6,index_plateau!$B$5:$O$69,$C$2+2,FALSE),VLOOKUP(L6,index_plateau!$B$5:$O$69,$D6+2,FALSE))) -> GO | N6: =IF(M6="","",VLOOKUP(L6,index_plateau!$B$5:$O$69,2,FALSE)) -> 6823 | O6: 2 | P6: =IF(O6="","",IF($C$2<>"",VLOOKUP(O6,index_plateau!$B$5:$O$69,$C$2+2,FALSE),VLOOKUP(O6,index_plateau!$B$5:$O$69,$D6+2,FALSE))) -> FIQ | Q6: =IF(P6="","",VLOOKUP(O6,index_plateau!$B$5:$O$69,2,FALSE)) -> 4663 | R6: 93 | S6: =IF(R6="","",IF($C$2<>"",VLOOKUP(R6,index_plateau!$B$5:$O$69,$C$2+2,FALSE),VLOOKUP(R6,index_plateau!$B$5:$O$69,$D6+2,FALSE))) -> IHE | T6: =IF(S6="","",VLOOKUP(R6,index_plateau!$B$5:$O$69,2,FALSE)) -> 3523 | U6: 13 | V6: =IF(U6="","",IF($C$2<>"",VLOOKUP(U6,index_plateau!$B$5:$O$69,$C$2+2,FALSE),VLOOKUP(U6,index_plateau!$B$5:$O$69,$D6+2,FALSE))) -> FJB | W6: =IF(V6="","",VLOOKUP(U6,index_plateau!$B$5:$O$69,2,FALSE)) -> 5893 | X6: 96 | Y6: =IF(X6="","",IF($C$2<>"",VLOOKUP(X6,index_plateau!$B$5:$O$69,$C$2+2,FALSE),VLOOKUP(X6,index_plateau!$B$5:$O$69,$D6+2,FALSE))) -> IHH | Z6: =IF(Y6="","",VLOOKUP(X6,index_plateau!$B$5:$O$69,2,FALSE)) -> 7363 | AA6: 3 | AB6: =IF(AA6="","",IF($C$2<>"",VLOOKUP(AA6,index_plateau!$B$5:$O$69,$C$2+2,FALSE),VLOOKUP(AA6,index_plateau!$B$5:$O$69,$D6+2,FALSE))) -> FIR | AC6: =IF(AB6="","",VLOOKUP(AA6,index_plateau!$B$5:$O$69,2,FALSE)) -> 4798 | AD6: 86 | AE6: =IF(AD6="","",IF($C$2<>"",VLOOKUP(AD6,index_plateau!$B$5:$O$69,$C$2+2,FALSE),VLOOKUP(AD6,index_plateau!$B$5:$O$69,$D6+2,FALSE))) -> FJX | AF6: =IF(AE6="","",VLOOKUP(AD6,index_plateau!$B$5:$O$69,2,FALSE)) -> 4155 | AG6: 84 | AH6: =IF(AG6="","",IF($C$2<>"",VLOOKUP(AG6,index_plateau!$B$5:$O$69,$C$2+2,FALSE),VLOOKUP(AG6,index_plateau!$B$5:$O$69,$D6+2,FALSE))) -> FJV | AI6: =IF(AH6="","",VLOOKUP(AG6,index_plateau!$B$5:$O$69,2,FALSE)) -> 4313 | AL6: 5
A7: 4 | B7: =IF(index_classe!F6="","",IF(index_classe!$K$1="NON",index_classe!F6,IF(A7>index_classe!$P$1,"","Groupe 4"))) -> CLAUD | C7: =IF(index_classe!G6="","",IF(index_classe!$K$1="NON",index_classe!G6,IF(A7>index_classe!$P$1,"",">>>>>"))) -> Maxime | D7: 4 | E7: 4 | F7: 66 | G7: =IF(F7="","",IF($C$2<>"",VLOOKUP(F7,index_plateau!$B$5:$O$69,$C$2+2,FALSE),VLOOKUP(F7,index_plateau!$B$5:$O$69,$D7+2,FALSE))) -> IX | H7: =IF(G7="","",VLOOKUP(F7,index_plateau!$B$5:$O$69,2,FALSE)) -> 6553 | I7: 59 | J7: =IF(I7="","",IF($C$2<>"",VLOOKUP(I7,index_plateau!$B$5:$O$69,$C$2+2,FALSE),VLOOKUP(I7,index_plateau!$B$5:$O$69,$D7+2,FALSE))) -> IQ | K7: =IF(J7="","",VLOOKUP(I7,index_plateau!$B$5:$O$69,2,FALSE)) -> 5261 | L7: 66 | M7: =IF(L7="","",IF($C$2<>"",VLOOKUP(L7,index_plateau!$B$5:$O$69,$C$2+2,FALSE),VLOOKUP(L7,index_plateau!$B$5:$O$69,$D7+2,FALSE))) -> IX | N7: =IF(M7="","",VLOOKUP(L7,index_plateau!$B$5:$O$69,2,FALSE)) -> 6553 | O7: 95 | P7: =IF(O7="","",IF($C$2<>"",VLOOKUP(O7,index_plateau!$B$5:$O$69,$C$2+2,FALSE),VLOOKUP(O7,index_plateau!$B$5:$O$69,$D7+2,FALSE))) -> MBI | Q7: =IF(P7="","",VLOOKUP(O7,index_plateau!$B$5:$O$69,2,FALSE)) -> 7228 | R7: 11 | S7: =IF(R7="","",IF($C$2<>"",VLOOKUP(R7,index_plateau!$B$5:$O$69,$C$2+2,FALSE),VLOOKUP(R7,index_plateau!$B$5:$O$69,$D7+2,FALSE))) -> NAB | T7: =IF(S7="","",VLOOKUP(R7,index_plateau!$B$5:$O$69,2,FALSE)) -> 6209 | U7: 1 | V7: =IF(U7="","",IF($C$2<>"",VLOOKUP(U7,index_plateau!$B$5:$O$69,$C$2+2,FALSE),VLOOKUP(U7,index_plateau!$B$5:$O$69,$D7+2,FALSE))) -> MER | W7: =IF(V7="","",VLOOKUP(U7,index_plateau!$B$5:$O$69,2,FALSE)) -> 4528 | X7: 66 | Y7: =IF(X7="","",IF($C$2<>"",VLOOKUP(X7,index_plateau!$B$5:$O$69,$C$2+2,FALSE),VLOOKUP(X7,index_plateau!$B$5:$O$69,$D7+2,FALSE))) -> IX | Z7: =IF(Y7="","",VLOOKUP(X7,index_plateau!$B$5:$O$69,2,FALSE)) -> 6553 | AA7: 7 | AB7: =IF(AA7="","",IF($C$2<>"",VLOOKUP(AA7,index_plateau!$B$5:$O$69,$C$2+2,FALSE),VLOOKUP(AA7,index_plateau!$B$5:$O$69,$D7+2,FALSE))) -> MEX | AC7: =IF(AB7="","",VLOOKUP(AA7,index_plateau!$B$5:$O$69,2,FALSE)) -> 6683 | AD7: 13 | AE7: =IF(AD7="","",IF($C$2<>"",VLOOKUP(AD7,index_plateau!$B$5:$O$69,$C$2+2,FALSE),VLOOKUP(AD7,index_plateau!$B$5:$O$69,$D7+2,FALSE))) -> NAD | AF7: =IF(AE7="","",VLOOKUP(AD7,index_plateau!$B$5:$O$69,2,FALSE)) -> 5893 | AG7: 25 | AH7: =IF(AG7="","",IF($C$2<>"",VLOOKUP(AG7,index_plateau!$B$5:$O$69,$C$2+2,FALSE),VLOOKUP(AG7,index_plateau!$B$5:$O$69,$D7+2,FALSE))) -> NAP | AI7: =IF(AH7="","",VLOOKUP(AG7,index_plateau!$B$5:$O$69,2,FALSE)) -> 5338 | AL7: 6
A8: 5 | B8: =IF(index_classe!F7="","",IF(index_classe!$K$1="NON",index_classe!F7,IF(A8>index_classe!$P$1,"","Groupe 5"))) -> NAISSA | C8: =IF(index_classe!G7="","",IF(index_classe!$K$1="NON",index_classe!G7,IF(A8>index_classe!$P$1,"",">>>>>"))) -> Estelle | D8: 5 | E8: 5 | F8: 27 | G8: =IF(F8="","",IF($C$2<>"",VLOOKUP(F8,index_plateau!$B$5:$O$69,$C$2+2,FALSE),VLOOKUP(F8,index_plateau!$B$5:$O$69,$D8+2,FALSE))) -> DSJ | H8: =IF(G8="","",VLOOKUP(F8,index_plateau!$B$5:$O$69,2,FALSE)) -> 5473 | I8: 62 | J8: =IF(I8="","",IF($C$2<>"",VLOOKUP(I8,index_plateau!$B$5:$O$69,$C$2+2,FALSE),VLOOKUP(I8,index_plateau!$B$5:$O$69,$D8+2,FALSE))) -> OD | K8: =IF(J8="","",VLOOKUP(I8,index_plateau!$B$5:$O$69,2,FALSE)) -> 4945 | L8: 67 | M8: =IF(L8="","",IF($C$2<>"",VLOOKUP(L8,index_plateau!$B$5:$O$69,$C$2+2,FALSE),VLOOKUP(L8,index_plateau!$B$5:$O$69,$D8+2,FALSE))) -> OI | N8: =IF(M8="","",VLOOKUP(L8,index_plateau!$B$5:$O$69,2,FALSE)) -> 6688 | O8: 66 | P8: =IF(O8="","",IF($C$2<>"",VLOOKUP(O8,index_plateau!$B$5:$O$69,$C$2+2,FALSE),VLOOKUP(O8,index_plateau!$B$5:$O$69,$D8+2,FALSE))) -> OH | Q8: =IF(P8="","",VLOOKUP(O8,index_plateau!$B$5:$O$69,2,FALSE)) -> 6553 | R8: 88 | S8: =IF(R8="","",IF($C$2<>"",VLOOKUP(R8,index_plateau!$B$5:$O$69,$C$2+2,FALSE),VLOOKUP(R8,index_plateau!$B$5:$O$69,$D8+2,FALSE))) -> DSS | T8: =IF(S8="","",VLOOKUP(R8,index_plateau!$B$5:$O$69,2,FALSE)) -> 3839 | U8: 3 | V8: =IF(U8="","",IF($C$2<>"",VLOOKUP(U8,index_plateau!$B$5:$O$69,$C$2+2,FALSE),VLOOKUP(U8,index_plateau!$B$5:$O$69,$D8+2,FALSE))) -> DRG | W8: =IF(V8="","",VLOOKUP(U8,index_plateau!$B$5:$O$69,2,FALSE)) -> 4798 | X8: 25 | Y8: =IF(X8="","",IF($C$2<>"",VLOOKUP(X8,index_plateau!$B$5:$O$69,$C$2+2,FALSE),VLOOKUP(X8,index_plateau!$B$5:$O$69,$D8+2,FALSE))) -> DSH | Z8: =IF(Y8="","",VLOOKUP(X8,index_plateau!$B$5:$O$69,2,FALSE)) -> 5338 | AA8: 12 | AB8: =IF(AA8="","",IF($C$2<>"",VLOOKUP(AA8,index_plateau!$B$5:$O$69,$C$2+2,FALSE),VLOOKUP(AA8,index_plateau!$B$5:$O$69,$D8+2,FALSE))) -> DRQ | AC8: =IF(AB8="","",VLOOKUP(AA8,index_plateau!$B$5:$O$69,2,FALSE)) -> 6051 | AD8: 2 | AE8: =IF(AD8="","",IF($C$2<>"",VLOOKUP(AD8,index_plateau!$B$5:$O$69,$C$2+2,FALSE),VLOOKUP(AD8,index_plateau!$B$5:$O$69,$D8+2,FALSE))) -> DRF | AF8: =IF(AE8="","",VLOOKUP(AD8,index_plateau!$B$5:$O$69,2,FALSE)) -> 4663 | AG8: 70 | AH8: =IF(AG8="","",IF($C$2<>"",VLOOKUP(AG8,index_plateau!$B$5:$O$69,$C$2+2,FALSE),VLOOKUP(AG8,index_plateau!$B$5:$O$69,$D8+2,FALSE))) -> OL | AI8: =IF(AH8="","",VLOOKUP(AG8,index_plateau!$B$5:$O$69,2,FALSE)) -> 4629 | AL8: 7
A9: 6 | B9: =IF(index_classe!F8="","",IF(index_classe!$K$1="NON",index_classe!F8,IF(A9>index_classe!$P$1,"","Groupe 6"))) -> FA | C9: =IF(index_classe!G8="","",IF(index_classe!$K$1="NON",index_classe!G8,IF(A9>index_classe!$P$1,"",">>>>>"))) -> Dylan | D9: 6 | E9: 6 | F9: 30 | G9: =IF(F9="","",IF($C$2<>"",VLOOKUP(F9,index_plateau!$B$5:$O$69,$C$2+2,FALSE),VLOOKUP(F9,index_plateau!$B$5:$O$69,$D9+2,FALSE))) -> ZOI | H9: =IF(G9="","",VLOOKUP(F9,index_plateau!$B$5:$O$69,2,FALSE)) -> 5878 | I9: 87 | J9: =IF(I9="","",IF($C$2<>"",VLOOKUP(I9,index_plateau!$B$5:$O$69,$C$2+2,FALSE),VLOOKUP(I9,index_plateau!$B$5:$O$69,$D9+2,FALSE))) -> ZOP | K9: =IF(J9="","",VLOOKUP(I9,index_plateau!$B$5:$O$69,2,FALSE)) -> 3997 | L9: 86 | M9: =IF(L9="","",IF($C$2<>"",VLOOKUP(L9,index_plateau!$B$5:$O$69,$C$2+2,FALSE),VLOOKUP(L9,index_plateau!$B$5:$O$69,$D9+2,FALSE))) -> ZON | N9: =IF(M9="","",VLOOKUP(L9,index_plateau!$B$5:$O$69,2,FALSE)) -> 4155 | O9: 63 | P9: =IF(O9="","",IF($C$2<>"",VLOOKUP(O9,index_plateau!$B$5:$O$69,$C$2+2,FALSE),VLOOKUP(O9,index_plateau!$B$5:$O$69,$D9+2,FALSE))) -> RP | Q9: =IF(P9="","",VLOOKUP(O9,index_plateau!$B$5:$O$69,2,FALSE)) -> 4787 | R9: 87 | S9: =IF(R9="","",IF($C$2<>"",VLOOKUP(R9,index_plateau!$B$5:$O$69,$C$2+2,FALSE),VLOOKUP(R9,index_plateau!$B$5:$O$69,$D9+2,FALSE))) -> ZOP | T9: =IF(S9="","",VLOOKUP(R9,index_plateau!$B$5:$O$69,2,FALSE)) -> 3997 | U9: 66 | V9: =IF(U9="","",IF($C$2<>"",VLOOKUP(U9,index_plateau!$B$5:$O$69,$C$2+2,FALSE),VLOOKUP(U9,index_plateau!$B$5:$O$69,$D9+2,FALSE))) -> RS | W9: =IF(V9="","",VLOOKUP(U9,index_plateau!$B$5:$O$69,2,FALSE)) -> 6553 | X9: 62 | Y9: =IF(X9="","",IF($C$2<>"",VLOOKUP(X9,index_plateau!$B$5:$O$69,$C$2+2,FALSE),VLOOKUP(X9,index_plateau!$B$5:$O$69,$D9+2,FALSE))) -> RO | Z9: =IF(Y9="","",VLOOKUP(X9,index_plateau!$B$5:$O$69,2,FALSE)) -> 4945 | AA9: 30 | AB9: =IF(AA9="","",IF($C$2<>"",VLOOKUP(AA9,index_plateau!$B$5:$O$69,$C$2+2,FALSE),VLOOKUP(AA9,index_plateau!$B$5:$O$69,$D9+2,FALSE))) -> ZOI | AC9: =IF(AB9="","",VLOOKUP(AA9,index_plateau!$B$5:$O$69,2,FALSE)) -> 5878 | AD9: 93 | AE9: =IF(AD9="","",IF($C$2<>"",VLOOKUP(AD9,index_plateau!$B$5:$O$69,$C$2+2,FALSE),VLOOKUP(AD9,index_plateau!$B$5:$O$69,$D9+2,FALSE))) -> ZOV | AF9: =IF(AE9="","",VLOOKUP(AD9,index_plateau!$B$5:$O$69,2,FALSE)) -> 3523 | AG9: 6 | AH9: =IF(AG9="","",IF($C$2<>"",VLOOKUP(AG9,index_plateau!$B$5:$O$69,$C$2+2,FALSE),VLOOKUP(AG9,index_plateau!$B$5:$O$69,$D9+2,FALSE))) -> YON | AI9: =IF(AH9="","",VLOOKUP(AG9,index_plateau!$B$5:$O$69,2,FALSE)) -> 6841 | AL9: 8
A10: 7 | B10: =IF(index_classe!F9="","",IF(index_classe!$K$1="NON",index_classe!F9,IF(A10>index_classe!$P$1,"","Groupe 7"))) -> FLEIN | C10: =IF(index_classe!G9="","",IF(index_classe!$K$1="NON",index_classe!G9,IF(A10>index_classe!$P$1,"",">>>>>"))) -> Theo | D10: 7 | E10: 7 | F10: 65 | G10: =IF(F10="","",IF($C$2<>"",VLOOKUP(F10,index_plateau!$B$5:$O$69,$C$2+2,FALSE),VLOOKUP(F10,index_plateau!$B$5:$O$69,$D10+2,FALSE))) -> WB | H10: =IF(G10="","",VLOOKUP(F10,index_plateau!$B$5:$O$69,2,FALSE)) -> 6418 | I10: 93 | J10: =IF(I10="","",IF($C$2<>"",VLOOKUP(I10,index_plateau!$B$5:$O$69,$C$2+2,FALSE),VLOOKUP(I10,index_plateau!$B$5:$O$69,$D10+2,FALSE))) -> MNB | K10: =IF(J10="","",VLOOKUP(I10,index_plateau!$B$5:$O$69,2,FALSE)) -> 3523 | L10: 7 | M10: =IF(L10="","",IF($C$2<>"",VLOOKUP(L10,index_plateau!$B$5:$O$69,$C$2+2,FALSE),VLOOKUP(L10,index_plateau!$B$5:$O$69,$D10+2,FALSE))) -> KLS | N10: =IF(M10="","",VLOOKUP(L10,index_plateau!$B$5:$O$69,2,FALSE)) -> 6683 | O10: 25 | P10: =IF(O10="","",IF($C$2<>"",VLOOKUP(O10,index_plateau!$B$5:$O$69,$C$2+2,FALSE),VLOOKUP(O10,index_plateau!$B$5:$O$69,$D10+2,FALSE))) -> KMX | Q10: =IF(P10="","",VLOOKUP(O10,index_plateau!$B$5:$O$69,2,FALSE)) -> 5338 | R10: 86 | S10: =IF(R10="","",IF($C$2<>"",VLOOKUP(R10,index_plateau!$B$5:$O$69,$C$2+2,FALSE),VLOOKUP(R10,index_plateau!$B$5:$O$69,$D10+2,FALSE))) -> LMU | T10: =IF(S10="","",VLOOKUP(R10,index_plateau!$B$5:$O$69,2,FALSE)) -> 4155 | U10: 92 | V10: =IF(U10="","",IF($C$2<>"",VLOOKUP(U10,index_plateau!$B$5:$O$69,$C$2+2,FALSE),VLOOKUP(U10,index_plateau!$B$5:$O$69,$D10+2,FALSE))) -> MNA | W10: =IF(V10="","",VLOOKUP(U10,index_plateau!$B$5:$O$69,2,FALSE)) -> 3681 | X10: 3 | Y10: =IF(X10="","",IF($C$2<>"",VLOOKUP(X10,index_plateau!$B$5:$O$69,$C$2+2,FALSE),VLOOKUP(X10,index_plateau!$B$5:$O$69,$D10+2,FALSE))) -> KLO | Z10: =IF(Y10="","",VLOOKUP(X10,index_plateau!$B$5:$O$69,2,FALSE)) -> 4798 | AA10: 5 | AB10: =IF(AA10="","",IF($C$2<>"",VLOOKUP(AA10,index_plateau!$B$5:$O$69,$C$2+2,FALSE),VLOOKUP(AA10,index_plateau!$B$5:$O$69,$D10+2,FALSE))) -> KLQ | AC10: =IF(AB10="","",VLOOKUP(AA10,index_plateau!$B$5:$O$69,2,FALSE)) -> 5068 | AD10: 94 | AE10: =IF(AD10="","",IF($C$2<>"",VLOOKUP(AD10,index_plateau!$B$5:$O$69,$C$2+2,FALSE),VLOOKUP(AD10,index_plateau!$B$5:$O$69,$D10+2,FALSE))) -> MNC | AF10: =IF(AE10="","",VLOOKUP(AD10,index_plateau!$B$5:$O$69,2,FALSE)) -> 7093 | AG10: 84 | AH10: =IF(AG10="","",IF($C$2<>"",VLOOKUP(AG10,index_plateau!$B$5:$O$69,$C$2+2,FALSE),VLOOKUP(AG10,index_plateau!$B$5:$O$69,$D10+2,FALSE))) -> LMS | AI10: =IF(AH10="","",VLOOKUP(AG10,index_plateau!$B$5:$O$69,2,FALSE)) -> 4313 | AL10: 9
A11: 8 | B11: =IF(index_classe!F10="","",IF(index_classe!$K$1="NON",index_classe!F10,IF(A11>index_classe!$P$1,"","Groupe 8"))) -> JEAON | C11: =IF(index_classe!G10="","",IF(index_classe!$K$1="NON",index_classe!G10,IF(A11>index_classe!$P$1,"",">>>>>"))) -> Alexis | D11: 8 | E11: 8 | F11: 24 | G11: =IF(F11="","",IF($C$2<>"",VLOOKUP(F11,index_plateau!$B$5:$O$69,$C$2+2,FALSE),VLOOKUP(F11,index_plateau!$B$5:$O$69,$D11+2,FALSE))) -> PNC | H11: =IF(G11="","",VLOOKUP(F11,index_plateau!$B$5:$O$69,2,FALSE)) -> 5419 | I11: 70 | J11: =IF(I11="","",IF($C$2<>"",VLOOKUP(I11,index_plateau!$B$5:$O$69,$C$2+2,FALSE),VLOOKUP(I11,index_plateau!$B$5:$O$69,$D11+2,FALSE))) -> ZQ | K11: =IF(J11="","",VLOOKUP(I11,index_plateau!$B$5:$O$69,2,FALSE)) -> 4629 | L11: 24 | M11: =IF(L11="","",IF($C$2<>"",VLOOKUP(L11,index_plateau!$B$5:$O$69,$C$2+2,FALSE),VLOOKUP(L11,index_plateau!$B$5:$O$69,$D11+2,FALSE))) -> PNC | N11: =IF(M11="","",VLOOKUP(L11,index_plateau!$B$5:$O$69,2,FALSE)) -> 5419 | O11: 61 | P11: =IF(O11="","",IF($C$2<>"",VLOOKUP(O11,index_plateau!$B$5:$O$69,$C$2+2,FALSE),VLOOKUP(O11,index_plateau!$B$5:$O$69,$D11+2,FALSE))) -> ZH | Q11: =IF(P11="","",VLOOKUP(O11,index_plateau!$B$5:$O$69,2,FALSE)) -> 5103 | R11: 88 | S11: =IF(R11="","",IF($C$2<>"",VLOOKUP(R11,index_plateau!$B$5:$O$69,$C$2+2,FALSE),VLOOKUP(R11,index_plateau!$B$5:$O$69,$D11+2,FALSE))) -> PNP | T11: =IF(S11="","",VLOOKUP(R11,index_plateau!$B$5:$O$69,2,FALSE)) -> 3839 | U11: 24 | V11: =IF(U11="","",IF($C$2<>"",VLOOKUP(U11,index_plateau!$B$5:$O$69,$C$2+2,FALSE),VLOOKUP(U11,index_plateau!$B$5:$O$69,$D11+2,FALSE))) -> PNC | W11: =IF(V11="","",VLOOKUP(U11,index_plateau!$B$5:$O$69,2,FALSE)) -> 5419 | X11: 88 | Y11: =IF(X11="","",IF($C$2<>"",VLOOKUP(X11,index_plateau!$B$5:$O$69,$C$2+2,FALSE),VLOOKUP(X11,index_plateau!$B$5:$O$69,$D11+2,FALSE))) -> PNP | Z11: =IF(Y11="","",VLOOKUP(X11,index_plateau!$B$5:$O$69,2,FALSE)) -> 3839 | AA11: 8 | AB11: =IF(AA11="","",IF($C$2<>"",VLOOKUP(AA11,index_plateau!$B$5:$O$69,$C$2+2,FALSE),VLOOKUP(AA11,index_plateau!$B$5:$O$69,$D11+2,FALSE))) -> POM | AC11: =IF(AB11="","",VLOOKUP(AA11,index_plateau!$B$5:$O$69,2,FALSE)) -> 5203 | AD11: 2 | AE11: =IF(AD11="","",IF($C$2<>"",VLOOKUP(AD11,index_plateau!$B$5:$O$69,$C$2+2,FALSE),VLOOKUP(AD11,index_plateau!$B$5:$O$69,$D11+2,FALSE))) -> POG | AF11: =IF(AE11="","",VLOOKUP(AD11,index_plateau!$B$5:$O$69,2,FALSE)) -> 4663 | AG11: 25 | AH11: =IF(AG11="","",IF($C$2<>"",VLOOKUP(AG11,index_plateau!$B$5:$O$69,$C$2+2,FALSE),VLOOKUP(AG11,index_plateau!$B$5:$O$69,$D11+2,FALSE))) -> PND | AI11: =IF(AH11="","",VLOOKUP(AG11,index_plateau!$B$5:$O$69,2,FALSE)) -> 5338 | AL11: 10
A12: 9 | B12: =IF(index_classe!F11="","",IF(index_classe!$K$1="NON",index_classe!F11,IF(A12>index_classe!$P$1,"","Groupe 9"))) -> KOLA | C12: =IF(index_classe!G11="","",IF(index_classe!$K$1="NON",index_classe!G11,IF(A12>index_classe!$P$1,"",">>>>>"))) -> Alexandre | D12: 9 | E12: 9 | F12: 87 | G12: =IF(F12="","",IF($C$2<>"",VLOOKUP(F12,index_plateau!$B$5:$O$69,$C$2+2,FALSE),VLOOKUP(F12,index_plateau!$B$5:$O$69,$D12+2,FALSE))) -> WFX | H12: =IF(G12="","",VLOOKUP(F12,index_plateau!$B$5:$O$69,2,FALSE)) -> 3997 | I12: 87 | J12: =IF(I12="","",IF($C$2<>"",VLOOKUP(I12,index_plateau!$B$5:$O$69,$C$2+2,FALSE),VLOOKUP(I12,index_plateau!$B$5:$O$69,$D12+2,FALSE))) -> WFX | K12: =IF(J12="","",VLOOKUP(I12,index_plateau!$B$5:$O$69,2,FALSE)) -> 3997 | L12: 95 | M12: =IF(L12="","",IF($C$2<>"",VLOOKUP(L12,index_plateau!$B$5:$O$69,$C$2+2,FALSE),VLOOKUP(L12,index_plateau!$B$5:$O$69,$D12+2,FALSE))) -> XGF | N12: =IF(M12="","",VLOOKUP(L12,index_plateau!$B$5:$O$69,2,FALSE)) -> 7228 | O12: 21 | P12: =IF(O12="","",IF($C$2<>"",VLOOKUP(O12,index_plateau!$B$5:$O$69,$C$2+2,FALSE),VLOOKUP(O12,index_plateau!$B$5:$O$69,$D12+2,FALSE))) -> WFH | Q12: =IF(P12="","",VLOOKUP(O12,index_plateau!$B$5:$O$69,2,FALSE)) -> 5735 | R12: 87 | S12: =IF(R12="","",IF($C$2<>"",VLOOKUP(R12,index_plateau!$B$5:$O$69,$C$2+2,FALSE),VLOOKUP(R12,index_plateau!$B$5:$O$69,$D12+2,FALSE))) -> WFX | T12: =IF(S12="","",VLOOKUP(R12,index_plateau!$B$5:$O$69,2,FALSE)) -> 3997 | U12: 29 | V12: =IF(U12="","",IF($C$2<>"",VLOOKUP(U12,index_plateau!$B$5:$O$69,$C$2+2,FALSE),VLOOKUP(U12,index_plateau!$B$5:$O$69,$D12+2,FALSE))) -> WFQ | W12: =IF(V12="","",VLOOKUP(U12,index_plateau!$B$5:$O$69,2,FALSE)) -> 5743 | X12: 67 | Y12: =IF(X12="","",IF($C$2<>"",VLOOKUP(X12,index_plateau!$B$5:$O$69,$C$2+2,FALSE),VLOOKUP(X12,index_plateau!$B$5:$O$69,$D12+2,FALSE))) -> CCY | Z12: =IF(Y12="","",VLOOKUP(X12,index_plateau!$B$5:$O$69,2,FALSE)) -> 6688 | AA12: 13 | AB12: =IF(AA12="","",IF($C$2<>"",VLOOKUP(AA12,index_plateau!$B$5:$O$69,$C$2+2,FALSE),VLOOKUP(AA12,index_plateau!$B$5:$O$69,$D12+2,FALSE))) -> VEZ | AC12: =IF(AB12="","",VLOOKUP(AA12,index_plateau!$B$5:$O$69,2,FALSE)) -> 5893 | AD12: 93 | AE12: =IF(AD12="","",IF($C$2<>"",VLOOKUP(AD12,index_plateau!$B$5:$O$69,$C$2+2,FALSE),VLOOKUP(AD12,index_plateau!$B$5:$O$69,$D12+2,FALSE))) -> XGD | AF12: =IF(AE12="","",VLOOKUP(AD12,index_plateau!$B$5:$O$69,2,FALSE)) -> 3523 | AG12: 6 | AH12: =IF(AG12="","",IF($C$2<>"",VLOOKUP(AG12,index_plateau!$B$5:$O$69,$C$2+2,FALSE),VLOOKUP(AG12,index_plateau!$B$5:$O$69,$D12+2,FALSE))) -> VES | AI12: =IF(AH12="","",VLOOKUP(AG12,index_plateau!$B$5:$O$69,2,FALSE)) -> 6841 | AL12: 11
A13: 10 | B13: =IF(index_classe!F12="","",IF(index_classe!$K$1="NON",index_classe!F12,IF(A13>index_classe!$P$1,"","Groupe 10"))) -> LERHE | C13: =IF(index_classe!G12="","",IF(index_classe!$K$1="NON",index_classe!G12,IF(A13>index_classe!$P$1,"",">>>>>"))) -> Melvin | D13: 10 | E13: 10 | F13: 62 | G13: =IF(F13="","",IF($C$2<>"",VLOOKUP(F13,index_plateau!$B$5:$O$69,$C$2+2,FALSE),VLOOKUP(F13,index_plateau!$B$5:$O$69,$D13+2,FALSE))) -> GGD | H13: =IF(G13="","",VLOOKUP(F13,index_plateau!$B$5:$O$69,2,FALSE)) -> 4945 | I13: 62 | J13: =IF(I13="","",IF($C$2<>"",VLOOKUP(I13,index_plateau!$B$5:$O$69,$C$2+2,FALSE),VLOOKUP(I13,index_plateau!$B$5:$O$69,$D13+2,FALSE))) -> GGD | K13: =IF(J13="","",VLOOKUP(I13,index_plateau!$B$5:$O$69,2,FALSE)) -> 4945 | L13: 1 | M13: =IF(L13="","",IF($C$2<>"",VLOOKUP(L13,index_plateau!$B$5:$O$69,$C$2+2,FALSE),VLOOKUP(L13,index_plateau!$B$5:$O$69,$D13+2,FALSE))) -> SAJ | N13: =IF(M13="","",VLOOKUP(L13,index_plateau!$B$5:$O$69,2,FALSE)) -> 4528 | O13: 69 | P13: =IF(O13="","",IF($C$2<>"",VLOOKUP(O13,index_plateau!$B$5:$O$69,$C$2+2,FALSE),VLOOKUP(O13,index_plateau!$B$5:$O$69,$D13+2,FALSE))) -> GGL | Q13: =IF(P13="","",VLOOKUP(O13,index_plateau!$B$5:$O$69,2,FALSE)) -> 6958 | R13: 59 | S13: =IF(R13="","",IF($C$2<>"",VLOOKUP(R13,index_plateau!$B$5:$O$69,$C$2+2,FALSE),VLOOKUP(R13,index_plateau!$B$5:$O$69,$D13+2,FALSE))) -> GGA | T13: =IF(S13="","",VLOOKUP(R13,index_plateau!$B$5:$O$69,2,FALSE)) -> 5261 | U13: 2 | V13: =IF(U13="","",IF($C$2<>"",VLOOKUP(U13,index_plateau!$B$5:$O$69,$C$2+2,FALSE),VLOOKUP(U13,index_plateau!$B$5:$O$69,$D13+2,FALSE))) -> SAK | W13: =IF(V13="","",VLOOKUP(U13,index_plateau!$B$5:$O$69,2,FALSE)) -> 4663 | X13: 8 | Y13: =IF(X13="","",IF($C$2<>"",VLOOKUP(X13,index_plateau!$B$5:$O$69,$C$2+2,FALSE),VLOOKUP(X13,index_plateau!$B$5:$O$69,$D13+2,FALSE))) -> SAQ | Z13: =IF(Y13="","",VLOOKUP(X13,index_plateau!$B$5:$O$69,2,FALSE)) -> 5203 | AA13: 12 | AB13: =IF(AA13="","",IF($C$2<>"",VLOOKUP(AA13,index_plateau!$B$5:$O$69,$C$2+2,FALSE),VLOOKUP(AA13,index_plateau!$B$5:$O$69,$D13+2,FALSE))) -> SAU | AC13: =IF(AB13="","",VLOOKUP(AA13,index_plateau!$B$5:$O$69,2,FALSE)) -> 6051 | AD13: 4 | AE13: =IF(AD13="","",IF($C$2<>"",VLOOKUP(AD13,index_plateau!$B$5:$O$69,$C$2+2,FALSE),VLOOKUP(AD13,index_plateau!$B$5:$O$69,$D13+2,FALSE))) -> SAM | AF13: =IF(AE13="","",VLOOKUP(AD13,index_plateau!$B$5:$O$69,2,FALSE)) -> 4933 | AG13: 59 | AH13: =IF(AG13="","",IF($C$2<>"",VLOOKUP(AG13,index_plateau!$B$5:$O$69,$C$2+2,FALSE),VLOOKUP(AG13,index_plateau!$B$5:$O$69,$D13+2,FALSE))) -> GGA | AI13: =IF(AH13="","",VLOOKUP(AG13,index_plateau!$B$5:$O$69,2,FALSE)) -> 5261 | AL13: 12
A14: 11 | B14: =IF(index_classe!F13="","",IF(index_classe!$K$1="NON",index_classe!F13,IF(A14>index_classe!$P$1,"","Groupe 11"))) -> LOE | C14: =IF(index_classe!G13="","",IF(index_classe!$K$1="NON",index_classe!G13,IF(A14>index_classe!$P$1,"",">>>>>"))) -> Mickael | D14: 11 | E14: 11 | F14: 87 | G14: =IF(F14="","",IF($C$2<>"",VLOOKUP(F14,index_plateau!$B$5:$O$69,$C$2+2,FALSE),VLOOKUP(F14,index_plateau!$B$5:$O$69,$D14+2,FALSE))) -> ESA | H14: =IF(G14="","",VLOOKUP(F14,index_plateau!$B$5:$O$69,2,FALSE)) -> 3997 | I14: 87 | J14: =IF(I14="","",IF($C$2<>"",VLOOKUP(I14,index_plateau!$B$5:$O$69,$C$2+2,FALSE),VLOOKUP(I14,index_plateau!$B$5:$O$69,$D14+2,FALSE))) -> ESA | K14: =IF(J14="","",VLOOKUP(I14,index_plateau!$B$5:$O$69,2,FALSE)) -> 3997 | L14: 92 | M14: =IF(L14="","",IF($C$2<>"",VLOOKUP(L14,index_plateau!$B$5:$O$69,$C$2+2,FALSE),VLOOKUP(L14,index_plateau!$B$5:$O$69,$D14+2,FALSE))) -> ESF | N14: =IF(M14="","",VLOOKUP(L14,index_plateau!$B$5:$O$69,2,FALSE)) -> 3681 | O14: 10 | P14: =IF(O14="","",IF($C$2<>"",VLOOKUP(O14,index_plateau!$B$5:$O$69,$C$2+2,FALSE),VLOOKUP(O14,index_plateau!$B$5:$O$69,$D14+2,FALSE))) -> DRA | Q14: =IF(P14="","",VLOOKUP(O14,index_plateau!$B$5:$O$69,2,FALSE)) -> 6367 | R14: 61 | S14: =IF(R14="","",IF($C$2<>"",VLOOKUP(R14,index_plateau!$B$5:$O$69,$C$2+2,FALSE),VLOOKUP(R14,index_plateau!$B$5:$O$69,$D14+2,FALSE))) -> LLM | T14: =IF(S14="","",VLOOKUP(R14,index_plateau!$B$5:$O$69,2,FALSE)) -> 5103 | U14: 86 | V14: =IF(U14="","",IF($C$2<>"",VLOOKUP(U14,index_plateau!$B$5:$O$69,$C$2+2,FALSE),VLOOKUP(U14,index_plateau!$B$5:$O$69,$D14+2,FALSE))) -> DRZ | W14: =IF(V14="","",VLOOKUP(U14,index_plateau!$B$5:$O$69,2,FALSE)) -> 4155 | X14: 32 | Y14: =IF(X14="","",IF($C$2<>"",VLOOKUP(X14,index_plateau!$B$5:$O$69,$C$2+2,FALSE),VLOOKUP(X14,index_plateau!$B$5:$O$69,$D14+2,FALSE))) -> DRW | Z14: =IF(Y14="","",VLOOKUP(X14,index_plateau!$B$5:$O$69,2,FALSE)) -> 6148 | AA14: 9 | AB14: =IF(AA14="","",IF($C$2<>"",VLOOKUP(AA14,index_plateau!$B$5:$O$69,$C$2+2,FALSE),VLOOKUP(AA14,index_plateau!$B$5:$O$69,$D14+2,FALSE))) -> CSZ | AC14: =IF(AB14="","",VLOOKUP(AA14,index_plateau!$B$5:$O$69,2,FALSE)) -> 6525 | AD14: 63 | AE14: =IF(AD14="","",IF($C$2<>"",VLOOKUP(AD14,index_plateau!$B$5:$O$69,$C$2+2,FALSE),VLOOKUP(AD14,index_plateau!$B$5:$O$69,$D14+2,FALSE))) -> LLO | AF14: =IF(AE14="","",VLOOKUP(AD14,index_plateau!$B$5:$O$69,2,FALSE)) -> 4787 | AG14: 86 | AH14: =IF(AG14="","",IF($C$2<>"",VLOOKUP(AG14,index_plateau!$B$5:$O$69,$C$2+2,FALSE),VLOOKUP(AG14,index_plateau!$B$5:$O$69,$D14+2,FALSE))) -> DRZ | AI14: =IF(AH14="","",VLOOKUP(AG14,index_plateau!$B$5:$O$69,2,FALSE)) -> 4155
A15: 12 | B15: =IF(index_classe!F14="","",IF(index_classe!$K$1="NON",index_classe!F14,IF(A15>index_classe!$P$1,"","Groupe 12"))) -> MORET | C15: =IF(index_classe!G14="","",IF(index_classe!$K$1="NON",index_classe!G14,IF(A15>index_classe!$P$1,"",">>>>>"))) -> Alice | D15: 1 | E15: 1 | F15: 11 | G15: =IF(F15="","",IF($C$2<>"",VLOOKUP(F15,index_plateau!$B$5:$O$69,$C$2+2,FALSE),VLOOKUP(F15,index_plateau!$B$5:$O$69,$D15+2,FALSE))) -> BAM | H15: =IF(G15="","",VLOOKUP(F15,index_plateau!$B$5:$O$69,2,FALSE)) -> 6209 | I15: 10 | J15: =IF(I15="","",IF($C$2<>"",VLOOKUP(I15,index_plateau!$B$5:$O$69,$C$2+2,FALSE),VLOOKUP(I15,index_plateau!$B$5:$O$69,$D15+2,FALSE))) -> BAL | K15: =IF(J15="","",VLOOKUP(I15,index_plateau!$B$5:$O$69,2,FALSE)) -> 6367 | L15: 4 | M15: =IF(L15="","",IF($C$2<>"",VLOOKUP(L15,index_plateau!$B$5:$O$69,$C$2+2,FALSE),VLOOKUP(L15,index_plateau!$B$5:$O$69,$D15+2,FALSE))) -> BAF | N15: =IF(M15="","",VLOOKUP(L15,index_plateau!$B$5:$O$69,2,FALSE)) -> 4933 | O15: 12 | P15: =IF(O15="","",IF($C$2<>"",VLOOKUP(O15,index_plateau!$B$5:$O$69,$C$2+2,FALSE),VLOOKUP(O15,index_plateau!$B$5:$O$69,$D15+2,FALSE))) -> BAN | Q15: =IF(P15="","",VLOOKUP(O15,index_plateau!$B$5:$O$69,2,FALSE)) -> 6051 | R15: 66 | S15: =IF(R15="","",IF($C$2<>"",VLOOKUP(R15,index_plateau!$B$5:$O$69,$C$2+2,FALSE),VLOOKUP(R15,index_plateau!$B$5:$O$69,$D15+2,FALSE))) -> AQ | T15: =IF(S15="","",VLOOKUP(R15,index_plateau!$B$5:$O$69,2,FALSE)) -> 6553 | U15: 67 | V15: =IF(U15="","",IF($C$2<>"",VLOOKUP(U15,index_plateau!$B$5:$O$69,$C$2+2,FALSE),VLOOKUP(U15,index_plateau!$B$5:$O$69,$D15+2,FALSE))) -> AR | W15: =IF(V15="","",VLOOKUP(U15,index_plateau!$B$5:$O$69,2,FALSE)) -> 6688 | X15: 25 | Y15: =IF(X15="","",IF($C$2<>"",VLOOKUP(X15,index_plateau!$B$5:$O$69,$C$2+2,FALSE),VLOOKUP(X15,index_plateau!$B$5:$O$69,$D15+2,FALSE))) -> CBD | Z15: =IF(Y15="","",VLOOKUP(X15,index_plateau!$B$5:$O$69,2,FALSE)) -> 5338 | AA15: 92 | AB15: =IF(AA15="","",IF($C$2<>"",VLOOKUP(AA15,index_plateau!$B$5:$O$69,$C$2+2,FALSE),VLOOKUP(AA15,index_plateau!$B$5:$O$69,$D15+2,FALSE))) -> CBT | AC15: =IF(AB15="","",VLOOKUP(AA15,index_plateau!$B$5:$O$69,2,FALSE)) -> 3681 | AD15: 32 | AE15: =IF(AD15="","",IF($C$2<>"",VLOOKUP(AD15,index_plateau!$B$5:$O$69,$C$2+2,FALSE),VLOOKUP(AD15,index_plateau!$B$5:$O$69,$D15+2,FALSE))) -> CBK | AF15: =IF(AE15="","",VLOOKUP(AD15,index_plateau!$B$5:$O$69,2,FALSE)) -> 6148 | AG15: 96 | AH15: =IF(AG15="","",IF($C$2<>"",VLOOKUP(AG15,index_plateau!$B$5:$O$69,$C$2+2,FALSE),VLOOKUP(AG15,index_plateau!$B$5:$O$69,$D15+2,FALSE))) -> CBX | AI15: =IF(AH15="","",VLOOKUP(AG15,index_plateau!$B$5:$O$69,2,FALSE)) -> 7363
A16: 13 | B16: =IF(index_classe!F15="","",IF(index_classe!$K$1="NON",index_classe!F15,IF(A16>index_classe!$P$1,"","Groupe 13"))) -> NICAU | C16: =IF(index_classe!G15="","",IF(index_classe!$K$1="NON",index_classe!G15,IF(A16>index_classe!$P$1,"",">>>>>"))) -> Romain | D16: 2 | E16: 2 | F16: 93 | G16: =IF(F16="","",IF($C$2<>"",VLOOKUP(F16,index_plateau!$B$5:$O$69,$C$2+2,FALSE),VLOOKUP(F16,index_plateau!$B$5:$O$69,$D16+2,FALSE))) -> UPS | H16: =IF(G16="","",VLOOKUP(F16,index_plateau!$B$5:$O$69,2,FALSE)) -> 3523 | I16: 12 | J16: =IF(I16="","",IF($C$2<>"",VLOOKUP(I16,index_plateau!$B$5:$O$69,$C$2+2,FALSE),VLOOKUP(I16,index_plateau!$B$5:$O$69,$D16+2,FALSE))) -> TON | K16: =IF(J16="","",VLOOKUP(I16,index_plateau!$B$5:$O$69,2,FALSE)) -> 6051 | L16: 64 | M16: =IF(L16="","",IF($C$2<>"",VLOOKUP(L16,index_plateau!$B$5:$O$69,$C$2+2,FALSE),VLOOKUP(L16,index_plateau!$B$5:$O$69,$D16+2,FALSE))) -> DZ | N16: =IF(M16="","",VLOOKUP(L16,index_plateau!$B$5:$O$69,2,FALSE)) -> 6283 | O16: 2 | P16: =IF(O16="","",IF($C$2<>"",VLOOKUP(O16,index_plateau!$B$5:$O$69,$C$2+2,FALSE),VLOOKUP(O16,index_plateau!$B$5:$O$69,$D16+2,FALSE))) -> TOD | Q16: =IF(P16="","",VLOOKUP(O16,index_plateau!$B$5:$O$69,2,FALSE)) -> 4663 | R16: 23 | S16: =IF(R16="","",IF($C$2<>"",VLOOKUP(R16,index_plateau!$B$5:$O$69,$C$2+2,FALSE),VLOOKUP(R16,index_plateau!$B$5:$O$69,$D16+2,FALSE))) -> TOZ | T16: =IF(S16="","",VLOOKUP(R16,index_plateau!$B$5:$O$69,2,FALSE)) -> 5577 | U16: 66 | V16: =IF(U16="","",IF($C$2<>"",VLOOKUP(U16,index_plateau!$B$5:$O$69,$C$2+2,FALSE),VLOOKUP(U16,index_plateau!$B$5:$O$69,$D16+2,FALSE))) -> EB | W16: =IF(V16="","",VLOOKUP(U16,index_plateau!$B$5:$O$69,2,FALSE)) -> 6553 | X16: 29 | Y16: =IF(X16="","",IF($C$2<>"",VLOOKUP(X16,index_plateau!$B$5:$O$69,$C$2+2,FALSE),VLOOKUP(X16,index_plateau!$B$5:$O$69,$D16+2,FALSE))) -> UPF | Z16: =IF(Y16="","",VLOOKUP(X16,index_plateau!$B$5:$O$69,2,FALSE)) -> 5743 | AA16: 30 | AB16: =IF(AA16="","",IF($C$2<>"",VLOOKUP(AA16,index_plateau!$B$5:$O$69,$C$2+2,FALSE),VLOOKUP(AA16,index_plateau!$B$5:$O$69,$D16+2,FALSE))) -> UPG | AC16: =IF(AB16="","",VLOOKUP(AA16,index_plateau!$B$5:$O$69,2,FALSE)) -> 5878 | AD16: 12 | AE16: =IF(AD16="","",IF($C$2<>"",VLOOKUP(AD16,index_plateau!$B$5:$O$69,$C$2+2,FALSE),VLOOKUP(AD16,index_plateau!$B$5:$O$69,$D16+2,FALSE))) -> TON | AF16: =IF(AE16="","",VLOOKUP(AD16,index_plateau!$B$5:$O$69,2,FALSE)) -> 6051 | AG16: 65 | AH16: =IF(AG16="","",IF($C$2<>"",VLOOKUP(AG16,index_plateau!$B$5:$O$69,$C$2+2,FALSE),VLOOKUP(AG16,index_plateau!$B$5:$O$69,$D16+2,FALSE))) -> EA | AI16: =IF(AH16="","",VLOOKUP(AG16,index_plateau!$B$5:$O$69,2,FALSE)) -> 6418
A17: 14 | B17: =IF(index_classe!F16="","",IF(index_classe!$K$1="NON",index_classe!F16,IF(A17>index_classe!$P$1,"","Groupe 14"))) -> RUI | C17: =IF(index_classe!G16="","",IF(index_classe!$K$1="NON",index_classe!G16,IF(A17>index_classe!$P$1,"",">>>>>"))) -> Desiderio | D17: 3 | E17: 3 | F17: 4 | G17: =IF(F17="","",IF($C$2<>"",VLOOKUP(F17,index_plateau!$B$5:$O$69,$C$2+2,FALSE),VLOOKUP(F17,index_plateau!$B$5:$O$69,$D17+2,FALSE))) -> FIS | H17: =IF(G17="","",VLOOKUP(F17,index_plateau!$B$5:$O$69,2,FALSE)) -> 4933 | I17: 21 | J17: =IF(I17="","",IF($C$2<>"",VLOOKUP(I17,index_plateau!$B$5:$O$69,$C$2+2,FALSE),VLOOKUP(I17,index_plateau!$B$5:$O$69,$D17+2,FALSE))) -> FJH | K17: =IF(J17="","",VLOOKUP(I17,index_plateau!$B$5:$O$69,2,FALSE)) -> 5735 | L17: 64 | M17: =IF(L17="","",IF($C$2<>"",VLOOKUP(L17,index_plateau!$B$5:$O$69,$C$2+2,FALSE),VLOOKUP(L17,index_plateau!$B$5:$O$69,$D17+2,FALSE))) -> GK | N17: =IF(M17="","",VLOOKUP(L17,index_plateau!$B$5:$O$69,2,FALSE)) -> 6283 | O17: 84 | P17: =IF(O17="","",IF($C$2<>"",VLOOKUP(O17,index_plateau!$B$5:$O$69,$C$2+2,FALSE),VLOOKUP(O17,index_plateau!$B$5:$O$69,$D17+2,FALSE))) -> FJV | Q17: =IF(P17="","",VLOOKUP(O17,index_plateau!$B$5:$O$69,2,FALSE)) -> 4313 | R17: 32 | S17: =IF(R17="","",IF($C$2<>"",VLOOKUP(R17,index_plateau!$B$5:$O$69,$C$2+2,FALSE),VLOOKUP(R17,index_plateau!$B$5:$O$69,$D17+2,FALSE))) -> FJU | T17: =IF(S17="","",VLOOKUP(R17,index_plateau!$B$5:$O$69,2,FALSE)) -> 6148 | U17: 12 | V17: =IF(U17="","",IF($C$2<>"",VLOOKUP(U17,index_plateau!$B$5:$O$69,$C$2+2,FALSE),VLOOKUP(U17,index_plateau!$B$5:$O$69,$D17+2,FALSE))) -> FJA | W17: =IF(V17="","",VLOOKUP(U17,index_plateau!$B$5:$O$69,2,FALSE)) -> 6051 | X17: 25 | Y17: =IF(X17="","",IF($C$2<>"",VLOOKUP(X17,index_plateau!$B$5:$O$69,$C$2+2,FALSE),VLOOKUP(X17,index_plateau!$B$5:$O$69,$D17+2,FALSE))) -> FJN | Z17: =IF(Y17="","",VLOOKUP(X17,index_plateau!$B$5:$O$69,2,FALSE)) -> 5338 | AA17: 87 | AB17: =IF(AA17="","",IF($C$2<>"",VLOOKUP(AA17,index_plateau!$B$5:$O$69,$C$2+2,FALSE),VLOOKUP(AA17,index_plateau!$B$5:$O$69,$D17+2,FALSE))) -> FJY | AC17: =IF(AB17="","",VLOOKUP(AA17,index_plateau!$B$5:$O$69,2,FALSE)) -> 3997 | AD17: 2 | AE17: =IF(AD17="","",IF($C$2<>"",VLOOKUP(AD17,index_plateau!$B$5:$O$69,$C$2+2,FALSE),VLOOKUP(AD17,index_plateau!$B$5:$O$69,$D17+2,FALSE))) -> FIQ | AF17: =IF(AE17="","",VLOOKUP(AD17,index_plateau!$B$5:$O$69,2,FALSE)) -> 4663 | AG17: 65 | AH17: =IF(AG17="","",IF($C$2<>"",VLOOKUP(AG17,index_plateau!$B$5:$O$69,$C$2+2,FALSE),VLOOKUP(AG17,index_plateau!$B$5:$O$69,$D17+2,FALSE))) -> GL | AI17: =IF(AH17="","",VLOOKUP(AG17,index_plateau!$B$5:$O$69,2,FALSE)) -> 6418
A18: 15 | B18: =IF(index_classe!F17="","",IF(index_classe!$K$1="NON",index_classe!F17,IF(A18>index_classe!$P$1,"","Groupe 15"))) -> RI | C18: =IF(index_classe!G17="","",IF(index_classe!$K$1="NON",index_classe!G17,IF(A18>index_classe!$P$1,"",">>>>>"))) -> Niko | D18: 4 | E18: 4 | F18: 30 | G18: =IF(F18="","",IF($C$2<>"",VLOOKUP(F18,index_plateau!$B$5:$O$69,$C$2+2,FALSE),VLOOKUP(F18,index_plateau!$B$5:$O$69,$D18+2,FALSE))) -> NAU | H18: =IF(G18="","",VLOOKUP(F18,index_plateau!$B$5:$O$69,2,FALSE)) -> 5878 | I18: 30 | J18: =IF(I18="","",IF($C$2<>"",VLOOKUP(I18,index_plateau!$B$5:$O$69,$C$2+2,FALSE),VLOOKUP(I18,index_plateau!$B$5:$O$69,$D18+2,FALSE))) -> NAU | K18: =IF(J18="","",VLOOKUP(I18,index_plateau!$B$5:$O$69,2,FALSE)) -> 5878 | L18: 3 | M18: =IF(L18="","",IF($C$2<>"",VLOOKUP(L18,index_plateau!$B$5:$O$69,$C$2+2,FALSE),VLOOKUP(L18,index_plateau!$B$5:$O$69,$D18+2,FALSE))) -> MET | N18: =IF(M18="","",VLOOKUP(L18,index_plateau!$B$5:$O$69,2,FALSE)) -> 4798 | O18: 31 | P18: =IF(O18="","",IF($C$2<>"",VLOOKUP(O18,index_plateau!$B$5:$O$69,$C$2+2,FALSE),VLOOKUP(O18,index_plateau!$B$5:$O$69,$D18+2,FALSE))) -> NAV | Q18: =IF(P18="","",VLOOKUP(O18,index_plateau!$B$5:$O$69,2,FALSE)) -> 6013 | R18: 67 | S18: =IF(R18="","",IF($C$2<>"",VLOOKUP(R18,index_plateau!$B$5:$O$69,$C$2+2,FALSE),VLOOKUP(R18,index_plateau!$B$5:$O$69,$D18+2,FALSE))) -> IY | T18: =IF(S18="","",VLOOKUP(R18,index_plateau!$B$5:$O$69,2,FALSE)) -> 6688 | U18: 25 | V18: =IF(U18="","",IF($C$2<>"",VLOOKUP(U18,index_plateau!$B$5:$O$69,$C$2+2,FALSE),VLOOKUP(U18,index_plateau!$B$5:$O$69,$D18+2,FALSE))) -> NAP | W18: =IF(V18="","",VLOOKUP(U18,index_plateau!$B$5:$O$69,2,FALSE)) -> 5338 | X18: 86 | Y18: =IF(X18="","",IF($C$2<>"",VLOOKUP(X18,index_plateau!$B$5:$O$69,$C$2+2,FALSE),VLOOKUP(X18,index_plateau!$B$5:$O$69,$D18+2,FALSE))) -> NAZ | Z18: =IF(Y18="","",VLOOKUP(X18,index_plateau!$B$5:$O$69,2,FALSE)) -> 4155 | AA18: 1 | AB18: =IF(AA18="","",IF($C$2<>"",VLOOKUP(AA18,index_plateau!$B$5:$O$69,$C$2+2,FALSE),VLOOKUP(AA18,index_plateau!$B$5:$O$69,$D18+2,FALSE))) -> MER | AC18: =IF(AB18="","",VLOOKUP(AA18,index_plateau!$B$5:$O$69,2,FALSE)) -> 4528 | AD18: 95 | AE18: =IF(AD18="","",IF($C$2<>"",VLOOKUP(AD18,index_plateau!$B$5:$O$69,$C$2+2,FALSE),VLOOKUP(AD18,index_plateau!$B$5:$O$69,$D18+2,FALSE))) -> MBI | AF18: =IF(AE18="","",VLOOKUP(AD18,index_plateau!$B$5:$O$69,2,FALSE)) -> 7228 | AG18: 31 | AH18: =IF(AG18="","",IF($C$2<>"",VLOOKUP(AG18,index_plateau!$B$5:$O$69,$C$2+2,FALSE),VLOOKUP(AG18,index_plateau!$B$5:$O$69,$D18+2,FALSE))) -> NAV | AI18: =IF(AH18="","",VLOOKUP(AG18,index_plateau!$B$5:$O$69,2,FALSE)) -> 6013
